Workbook

Sheet Titel
A8: CO2-neutrale Prozesswärmeerzeugung Umbau des industriellen Anlagenparks im Rahmen der Energiewende: Ermittlung des aktuellen SdT und des weiteren Handlungsbedarfs zum Einsatz strombasierter Prozesswärmeanlagen AP2 Modell: Berechnung der Wirtschaftlichkeit und der Diffusion CO2-neutraler Techniken Ausführlichere Dokumentation im Anhang zum Endbericht
A15: Projektkoordination
A16: Fraunhofer-Institut für System- und Innovationsforschung ISI
A17: Breslauer Strasse 48, 76139 Karlsruhe
A18: Dr. Matthias Rehfeldt, matthias.rehfeldt@isi.fraunhofer.de
A19: Dr. Tobias Fleiter, tobias.fleiter@isi.fraunhofer.de
A21: Beteiligte Institute
A22: Fraunhofer-Institut für System- und Innovationsforschung ISI
A23: Breslauer Strasse 48, 76139 Karlsruhe
A24: Dr. Matthias Rehfeldt, matthias.rehfeldt@isi.fraunhofer.de
A25: Dr. Tobias Fleiter, tobias.fleiter@isi.fraunhofer.de
A26: Dr. Simon Hirzel, simon.hirzel@isi.fraunhofer.de
A27: Lisa Neusel, lisa.neusel@isi.fraunhofer.de
A28: Dr. Ali Aydemir, ali.aydemir@isi.fraunhofer.de
A30: Institut für Industrieofenbau und Wärmetechnik (IOB) der RWTH Aachen University
A31: Kopernikustraße 10, 52074 Aachen
A32: Dr. Christian Schwotzer, schwotzer@iob.rwth-aachen.de
A33: Felix Kaiser
A34: Carsten Gondorf
A35: Justin Hauch
A36: Jan Hof
A37: Lukas Sankowski
A38: Moritz Langhorst
A45: Im Auftrag des Umweltbundesamtes
A46: Umweltbundesamt
A47: Wörlitzer Platz 1, 06844 Dessau-Roßlau
A48: info@umweltbundesamt.de
A49: www.umweltbundesamt.de
A50: Forschungskennzahl 3718410030 | E50: Veröffentlicht unter CC BY-SA 3.0 DE

Sheet Übersicht
A1: # | B1: Name Arbeitsblatt | C1: Inhalt Arbeitsblatt
A2: 1 | B2: Titel | C2: Deckblatt, Kontakte der bearbeitenden Personen
A3: 2 | B3: Übersicht | C3: Inhaltsverzeichnis
A4: 3 | B4: Dashboard | C4: Hauptarbeitsebene. Zentrale Anlaufstelle für die Auswahl der zu untersuchenden Anwendungen (Bereich K4:M6), der Definition von Modellparametern (Bereich: K13:L29) und der Ausgabe von Ergebnissen (A32:Q127). Das Dashboard greift auf "A_Rahmendaten, B_Rahmendaten, B_Steuerfelder" sowie ausgeblendete Berechnungsarbeitsblätter zu.
A5: 4 | B5: A_Rahmendaten | C5: Übersicht der für das Szenario verwendeten Rahmendaten. Diese können für Stützjahre angepasst und in Szenarien (siehe "Szenario 1, Szenario 2, Szenario 3") abgespeichert/geladen werden. Weitere Einstellungen (jahresscharf) können in "B_Rahmendaten" durchgeführt werden - dies ist aber aufwändiger und sollte nur bei tieferem Verständnis des Tools durchgeführt werden.
A6: 5 | B6: B_Rahmendaten | C6: Jährliche Aufschlüsselung der in "A_Rahmendaten" für Stützjahre angegebene Rahmendaten.
A7: 6 | B7: B_Steuerfelder | C7: Funktionsarbeitsblatt für Bereitstellung der Benutzeroberfläche. Bereich ist für Makro-Zugriff sichtbar, sollte aber nicht modifiziert werden.
A8: 7 | B8: Kern_Daten Techniken | C8: Datengrundlage der Anwendungen und Techniken.
A9: 8 | B9: Kern_Rahmendaten | C9: Szenario-Rahmendaten der für die im Bericht verwendete Auswertung.
A10: 9 | B10: Szenario 1 | C10: Speichermöglichkeit für angepasstes Szenario.
A11: 10 | B11: Szenario 2 | C11: Speichermöglichkeit für angepasstes Szenario.
A12: 11 | B12: Szenario 3 | C12: Speichermöglichkeit für angepasstes Szenario.
A13: 12 | B13: Quellen_Rahmendaten | C13: Quellen der Szenario-Rahmendaten der für die im Bericht verwendete Auswertung.

Sheet Dashboard
A1: Technologie und Szenariodefinition
A3: Eingabe: Technologieeigenschaften | I3: =IF(B._Steuerfelder!B6="Makro","Warnung! - Zelle B6 in Registerkarte B_Steuerfelder leeren!","") -> 
K4: Szenariodefinition
B5: =B._Steuerfelder!M8 -> NE-Metallindustrie: Kupfer | C5: Referenztechnik | D5: Alternativtechnik 1 | E5: Alternativtechnik 2 | F5: Alternativtechnik 3 | G5: Alternativtechnik 4 | K5: Branche | L5: NE-Metallindustrie: Kupfer | N5: 1. Zuerst hier die Branche auswählen.
B6: =B._Steuerfelder!C16 -> Name | C6: =B._Steuerfelder!D16 -> Erdgasbeheizung | D6: =B._Steuerfelder!E16 -> Elektrifizierung | E6: =B._Steuerfelder!F16 -> Wasserstoffbeheizung | F6: =B._Steuerfelder!G16 -> 0 | G6: =B._Steuerfelder!H16 -> 0 | H6: =B._Steuerfelder!I16 -> Einheit | K6: Anwendung | L6: Kontinuierliches Schmelzen Kupfer Gießwalzdraht | N6: 2. Dann hier die Anwendung auswählen. | R6: In Studie verwendete Stufen. Diese können in den Bereich L13:29 kopiert werden.
B7: =B._Steuerfelder!C17 -> Repräsentative Kapazität | C7: =B._Steuerfelder!D17 -> 520000 | D7: =B._Steuerfelder!E17 -> 80000 | E7: =B._Steuerfelder!F17 -> 520000 | F7: =B._Steuerfelder!G17 -> 0 | G7: =B._Steuerfelder!H17 -> 0 | H7: =B._Steuerfelder!I17 -> tJahresleistung | L7: Techniken
B8: =B._Steuerfelder!C18 -> Auslastung | C8: =B._Steuerfelder!D18 -> 0.9 | D8: =B._Steuerfelder!E18 -> 0.9 | E8: =B._Steuerfelder!F18 -> 0.9 | F8: =B._Steuerfelder!G18 -> 0 | G8: =B._Steuerfelder!H18 -> 0 | H8: =B._Steuerfelder!I18 -> - | K8: Referenztechnik | L8: =B._Steuerfelder!D16 -> Erdgasbeheizung | S8: Referenz | T8: Stufe 1 | U8: Stufe 2 | V8: Stufe 3 | W8: (SPARE)
B9: =B._Steuerfelder!C19 -> Energieträger 1 | C9: =B._Steuerfelder!D19 -> Erdgas | D9: =B._Steuerfelder!E19 -> Strom | E9: =B._Steuerfelder!F19 -> EE-Wasserstoff | F9: =B._Steuerfelder!G19 -> 0 | G9: =B._Steuerfelder!H19 -> 0 | H9: =B._Steuerfelder!I19 -> - | K9: Alternativtechnik 1 | L9: =B._Steuerfelder!E16 -> Elektrifizierung | R9: Reduktion Investition (jährlich) | S9: Mittel 0.01->0.01 | T9: Mittel 0.01->0.01 | U9: Mittel 0.01->0.01 | V9: Mittel 0.01->0.01
B10: =B._Steuerfelder!C20 -> Energieträger 2 | C10: =B._Steuerfelder!D20 -> keiner | D10: =B._Steuerfelder!E20 -> keiner | E10: =B._Steuerfelder!F20 -> keiner | F10: =B._Steuerfelder!G20 -> 0 | G10: =B._Steuerfelder!H20 -> 0 | H10: =B._Steuerfelder!I20 -> - | K10: Alternativtechnik 2 | L10: =B._Steuerfelder!F16 -> Wasserstoffbeheizung | R10: Zinssatz | S10: Mittel_0.05->0.05 | T10: Mittel_0.05->0.05 | U10: Mittel_0.05->0.05 | V10: Mittel_0.05->0.05
B11: =B._Steuerfelder!C21 -> Energieträger 3 | C11: =B._Steuerfelder!D21 -> keiner | D11: =B._Steuerfelder!E21 -> keiner | E11: =B._Steuerfelder!F21 -> keiner | F11: =B._Steuerfelder!G21 -> 0 | G11: =B._Steuerfelder!H21 -> 0 | H11: =B._Steuerfelder!I21 -> - | K11: Alternativtechnik 3 | L11: =B._Steuerfelder!G16 -> 0 | R11: Energieeffizienzfortschritt (jährlich) | S11: Mittel_0.005->0.005 | T11: Mittel_0.005->0.005 | U11: Mittel_0.005->0.005 | V11: Mittel_0.005->0.005
B12: =B._Steuerfelder!C22 -> Spezifischer Energiebedarf 1 | C12: =B._Steuerfelder!D22 -> 0.285 | D12: =B._Steuerfelder!E22 -> 0.265 | E12: =B._Steuerfelder!F22 -> 0.285 | F12: =B._Steuerfelder!G22 -> 0 | G12: =B._Steuerfelder!H22 -> 0 | H12: =B._Steuerfelder!I22 -> MWh/tPr. | K12: Alternativtechnik 4 | L12: =B._Steuerfelder!H16 -> 0 | P12: Kontextspezifische Hinweise | R12: Preisfaktor Eigenversorgung Strom | S12: 0.8 | T12: 0.8 | U12: 0.8 | V12: 0.8
B13: =B._Steuerfelder!C23 -> Spezifischer Energiebedarf 2 | C13: =B._Steuerfelder!D23 -> 0 | D13: =B._Steuerfelder!E23 -> 0 | E13: =B._Steuerfelder!F23 -> 0 | F13: =B._Steuerfelder!G23 -> 0 | G13: =B._Steuerfelder!H23 -> 0 | H13: =B._Steuerfelder!I23 -> MWh/tPr. | K13: Reduktion Investition (jährlich) | L13: Mittel 0.01->0.01 | N13: 3. Dann hier Szenario definieren. Wenn in der Ausgabe Fehler auftauchen, Eingabe der Parameter prüfen (neu aus Dropdownfeld auswählen). | R13: Entlastung von staatlich bestimmten Strompreiskomponenten | S13: Mittelwert Eurostat | T13: Mittelwert Eurostat | U13: EEG+Stromsteuer+Netzentgelt+Weitere | V13: EEG+Stromsteuer+Netzentgelt+Weitere
B14: =B._Steuerfelder!C24 -> Spezifischer Energiebedarf 3 | C14: =B._Steuerfelder!D24 -> 0 | D14: =B._Steuerfelder!E24 -> 0 | E14: =B._Steuerfelder!F24 -> 0 | F14: =B._Steuerfelder!G24 -> 0 | G14: =B._Steuerfelder!H24 -> 0 | H14: =B._Steuerfelder!I24 -> MWh/tPr. | K14: Zinssatz | L14: Mittel_0.05->0.05 | R14: Entlastung Energiesteuer Erdgas | S14: Befreiung nach §51 (0EUR/MWh) | T14: Befreiung nach §51 (0EUR/MWh) | U14: Regulärer Satz (5.5EUR/MWh) | V14: Regulärer Satz (5.5EUR/MWh)
B15: =B._Steuerfelder!C25 -> Minimaler spezifischer Energiebedarf | C15: =B._Steuerfelder!D25 -> 0.285 | D15: =B._Steuerfelder!E25 -> 0.265 | E15: =B._Steuerfelder!F25 -> 0.285 | F15: =B._Steuerfelder!G25 -> 0 | G15: =B._Steuerfelder!H25 -> 0 | H15: =B._Steuerfelder!I25 -> MWh/tPr. | K15: Energieeffizienzfortschritt (jährlich) | L15: Mittel_0.005->0.005 | R15: Effektive CO2-Preisüberwälzung Strom | S15: 1 | T15: 1 | U15: 0.3 | V15: 0.3
B16: =B._Steuerfelder!C26 -> Prozessbedingte Emissionen | C16: =B._Steuerfelder!D26 -> 0 | D16: =B._Steuerfelder!E26 -> 0 | E16: =B._Steuerfelder!F26 -> 0 | F16: =B._Steuerfelder!G26 -> 0 | G16: =B._Steuerfelder!H26 -> 0 | H16: =B._Steuerfelder!I26 -> tCO2/tPr. | K16: Preisfaktor Eigenversorgung Strom | L16: 0.8 | P16: =IF(OR(L6="Papiertrocknung",L6="Papiertrocknung (inkl. Biomasse)"),"Preisfaktor Eigenversorgung 40%.","") ->  | R16: CO2-Preise (EUR/tCO2) | S16: Mittel_75->150 | T16: Hoch_75->300 | U16: Hoch_75->300 | V16: Hoch_75->300
B17: =B._Steuerfelder!C27 -> Investition Neubau | C17: =B._Steuerfelder!D27 -> 38.5 | D17: =B._Steuerfelder!E27 -> 65.9 | E17: =B._Steuerfelder!F27 -> 38.5 | F17: =B._Steuerfelder!G27 -> 0 | G17: =B._Steuerfelder!H27 -> 0 | H17: =B._Steuerfelder!I27 -> EUR/tKap. | K17: Entlastung von staatlich bestimmten Strompreiskomponenten | L17: EEG+Stromsteuer+Netzentgelt+Weitere | R17: Preisvoraussicht | S17: Keine 0->0 Jahre | T17: Keine 0->0 Jahre | U17: Keine 0->0 Jahre | V17: Gering 5->5 Jahre
B18: =B._Steuerfelder!C28 -> Investition Modernisierung | C18: =B._Steuerfelder!D28 -> 9.6 | D18: =B._Steuerfelder!E28 -> 7.1 | E18: =B._Steuerfelder!F28 -> 9.6 | F18: =B._Steuerfelder!G28 -> 0 | G18: =B._Steuerfelder!H28 -> 0 | H18: =B._Steuerfelder!I28 -> EUR/tKap. | K18: Entlastung Energiesteuer Erdgas | L18: Regulärer Satz (5.5EUR/MWh) | R18: Energieträgerpreisentwicklung nach 2050 | S18: Trend 2030-2050 | T18: Trend 2030-2050 | U18: Trend 2030-2050 | V18: Trend 2030-2050
B19: =B._Steuerfelder!C29 -> Betriebs- und Wartungskosten | C19: =B._Steuerfelder!D29 -> 1.9 | D19: =B._Steuerfelder!E29 -> 3.1 | E19: =B._Steuerfelder!F29 -> 1.9 | F19: =B._Steuerfelder!G29 -> 0 | G19: =B._Steuerfelder!H29 -> 0 | H19: =B._Steuerfelder!I29 -> EUR/tKap. | K19: Effektive CO2-Preisüberwälzung Strom | L19: 0.3 | R19: CO2-Preisentwicklung nach 2050 | S19: Trend 2030-2050 | T19: Trend 2030-2050 | U19: Trend 2030-2050 | V19: Trend 2030-2050
B20: =B._Steuerfelder!C30 -> Abschreibungszeitraum | C20: =B._Steuerfelder!D30 -> 25 | D20: =B._Steuerfelder!E30 -> 25 | E20: =B._Steuerfelder!F30 -> 25 | F20: =B._Steuerfelder!G30 -> 0 | G20: =B._Steuerfelder!H30 -> 0 | H20: =B._Steuerfelder!I30 -> a | K20: CO2-Preise (EUR/tCO2) | L20: Hoch_75->300 | R20: Bestandsmodell
B21: =B._Steuerfelder!C31 -> Modernisierungszyklus | C21: =B._Steuerfelder!D31 -> 50 | D21: =B._Steuerfelder!E31 -> 50 | E21: =B._Steuerfelder!F31 -> 50 | F21: =B._Steuerfelder!G31 -> 0 | G21: =B._Steuerfelder!H31 -> 0 | H21: =B._Steuerfelder!I31 -> a | K21: Preisvoraussicht | L21: Gering 5->5 Jahre | R21: Altersverteilung im Startjahr | S21: Gleichverteilung | T21: Gleichverteilung | U21: Gleichverteilung | V21: Gleichverteilung
B22: =B._Steuerfelder!C32 -> Minimale Investition Neubau | C22: =B._Steuerfelder!D32 -> 38.5 | D22: =B._Steuerfelder!E32 -> 36.2 | E22: =B._Steuerfelder!F32 -> 38.5 | F22: =B._Steuerfelder!G32 -> 0 | G22: =B._Steuerfelder!H32 -> 0 | H22: =B._Steuerfelder!I32 -> EUR/tKap. | K22: Energieträgerpreisentwicklung nach 2050 | L22: Trend 2030-2050 | R22: Ersatzrate | S22: Bestandserhaltend | T22: Bestandserhaltend | U22: Bestandserhaltend | V22: Bestandserneuerung
B23: =B._Steuerfelder!C33 -> Minimale Investition Modernisierung | C23: =B._Steuerfelder!D33 -> 9.6 | D23: =B._Steuerfelder!E33 -> 0.3 | E23: =B._Steuerfelder!F33 -> 9.6 | F23: =B._Steuerfelder!G33 -> 0 | G23: =B._Steuerfelder!H33 -> 0 | H23: =B._Steuerfelder!I33 -> EUR/tKap. | K23: CO2-Preisentwicklung nach 2050 | L23: Trend 2030-2050 | R23: Markthomogenität | S23: Mittel | T23: Mittel | U23: Mittel | V23: Hoch
B24: =B._Steuerfelder!C34 -> Anteil Bestand 2020 | C24: =B._Steuerfelder!D34 -> 1 | D24: =B._Steuerfelder!E34 -> 0 | E24: =B._Steuerfelder!F34 -> 0 | F24: =B._Steuerfelder!G34 -> 0 | G24: =B._Steuerfelder!H34 -> 0 | H24: =B._Steuerfelder!I34 -> % | K24: Bestandsmodell | R24: Anteil Modernisierung | S24: 0.5 | T24: 0.5 | U24: 0.5 | V24: 0.5
B25: =B._Steuerfelder!C35 -> Verfügbar ab | C25: =B._Steuerfelder!D35 -> 2020 | D25: =B._Steuerfelder!E35 -> 2020 | E25: =B._Steuerfelder!F35 -> 2030 | F25: =B._Steuerfelder!G35 -> 0 | G25: =B._Steuerfelder!H35 -> 0 | H25: =B._Steuerfelder!I35 -> - | K25: Altersverteilung im Startjahr | L25: Gleichverteilung | R25: Entwicklung Gesamtkapazität | S25: Kapazitätserhaltung | T25: Kapazitätserhaltung | U25: Kapazitätserhaltung | V25: Kapazitätserhaltung
B26: =B._Steuerfelder!C36 -> Verfügbar bis | C26: =B._Steuerfelder!D36 -> 2050 | D26: =B._Steuerfelder!E36 -> 2050 | E26: =B._Steuerfelder!F36 -> 2050 | F26: =B._Steuerfelder!G36 -> 0 | G26: =B._Steuerfelder!H36 -> 0 | H26: =B._Steuerfelder!I36 -> - | K26: Ersatzrate | L26: Bestandserneuerung
B27: =B._Steuerfelder!C37 -> Stromerzeugung | C27: =B._Steuerfelder!D37 -> 0 | D27: =B._Steuerfelder!E37 -> 0 | E27: =B._Steuerfelder!F37 -> 0 | F27: =B._Steuerfelder!G37 -> 0 | G27: =B._Steuerfelder!H37 -> 0 | H27: =B._Steuerfelder!I37 -> MWhStrom/tPr. | K27: Markthomogenität | L27: Hoch
B28: =B._Steuerfelder!C38 -> Gesamtkapazität 2020 | C28: =B._Steuerfelder!D38 -> 657.924 | D28: =B._Steuerfelder!E38 -> 0 | E28: =B._Steuerfelder!F38 -> 0 | F28: =B._Steuerfelder!G38 -> 0 | G28: =B._Steuerfelder!H38 -> 0 | H28: =B._Steuerfelder!I38 -> kt | K28: Anteil Modernisierung | L28: 0.5
B29: Betriebserlaubnis bis | C29: 2050 | D29: 2050 | E29: 2050 | F29: 2050 | G29: 2050 | K29: Entwicklung Gesamtkapazität | L29: Kapazitätserhaltung
A32: Wärmegestehungskosten | H32: Bestandsmodell
A33: Ausgabe: Wärmegestehungskosten und Kostenbestandteile | B33: =Name_Referenz -> Erdgasbeheizung | H33: Ausgabe: Diffusion von Techniken in den Bestand | I33: =C5&": "&Name_Referenz -> Referenztechnik: Erdgasbeheizung
B34: Jahr | C34: 2020 | D34: 2030 | E34: 2040 | F34: 2050 | I34: Jahr | J34: 2020 | K34: 2025 | L34: 2030 | M34: 2035 | N34: 2040 | O34: 2045 | P34: 2050
B35: Aktivität [t] | C35: =B._WGK!D8 -> 468000 | D35: =B._WGK!N8 -> 468000 | E35: =B._WGK!X8 -> 468000 | F35: =B._WGK!AH8 -> 468000
B36: Annuität Investition Neubau [EUR/t] | C36: =B._WGK!D9/C35 ->  | D36: =B._WGK!N9/D35 ->  | E36: =B._WGK!X9/E35 ->  | F36: =B._WGK!AH9/F35 -> 
B37: Annuität Investition Modernisierung [EUR/t] | C37: =B._WGK!D10/C35 ->  | D37: =B._WGK!N10/D35 ->  | E37: =B._WGK!X10/E35 ->  | F37: =B._WGK!AH10/F35 -> 
B38: CO2-Kosten/ Umweltkosten [EUR/t] | C38: =B._WGK!D11/C35 -> 5.3865 | D38: =B._WGK!N11/D35 ->  | E38: =B._WGK!X11/E35 ->  | F38: =B._WGK!AH11/F35 -> 
B39: Energiekosten [EUR/t] | C39: =B._WGK!D12/C35 -> 12.95925573 | D39: =B._WGK!N12/D35 ->  | E39: =B._WGK!X12/E35 ->  | F39: =B._WGK!AH12/F35 -> 
B40: O&M Neubau [EUR/t] | C40: =B._WGK!D13/C35 -> 2.111111111 | D40: =B._WGK!N13/D35 -> 2.111111111 | E40: =B._WGK!X13/E35 -> 2.111111111 | F40: =B._WGK!AH13/F35 -> 2.111111111
B41: O&M Modernisierung [EUR/t] | C41: =B._WGK!D14/C35 -> 2.111111111 | D41: =B._WGK!N14/D35 -> 2.111111111 | E41: =B._WGK!X14/E35 -> 2.111111111 | F41: =B._WGK!AH14/F35 -> 2.111111111
B42: Gesamtkosten Neubau [EUR/t] | C42: =B._WGK!D15/C35 ->  | D42: =B._WGK!N15/D35 ->  | E42: =B._WGK!X15/E35 ->  | F42: =B._WGK!AH15/F35 -> 
B43: Gesamtkosten Modernisierung [EUR/t] | C43: =B._WGK!D16/C35 ->  | D43: =B._WGK!N16/D35 ->  | E43: =B._WGK!X16/E35 ->  | F43: =B._WGK!AH16/F35 -> 
B44: Einnahmen [EUR/t] | C44: =B._WGK!D17/C35 -> 0 | D44: =B._WGK!N17/D35 -> 0 | E44: =B._WGK!X17/E35 -> 0 | F44: =B._WGK!AH17/F35 -> 0
B45: Wärmegestehungskosten Neubau [EUR/t] | C45: =B._WGK!D18 ->  | D45: =B._WGK!N18 ->  | E45: =B._WGK!X18 ->  | F45: =B._WGK!AH18 ->  | I45: Bestand [Kapazität in kt] | J45: =B._Diffusion!AK89 -> 657.924 | K45: =B._Diffusion!AP89 ->  | L45: =B._Diffusion!AU89 ->  | M45: =B._Diffusion!AZ89 ->  | N45: =B._Diffusion!BE89 ->  | O45: =B._Diffusion!BJ89 ->  | P45: =B._Diffusion!BO89 -> 
B46: Wärmegestehungskosten Modernisierung [EUR/t] | C46: =B._WGK!D19 ->  | D46: =B._WGK!N19 ->  | E46: =B._WGK!X19 ->  | F46: =B._WGK!AH19 ->  | I46: Summe Neubau diese Jahresscheibe [kt] | J46: =SUM(B._Diffusion!AK71:AO71) ->  | K46: =SUM(B._Diffusion!AP71:AT71) ->  | L46: =SUM(B._Diffusion!AU71:AY71) ->  | M46: =SUM(B._Diffusion!AZ71:BD71) ->  | N46: =SUM(B._Diffusion!BE71:BI71) ->  | O46: =SUM(B._Diffusion!BJ71:BN71) ->  | P46: =B._Diffusion!BO71 -> 
I47: Wahlwahrscheinlichkeit | J47: =B._Diffusion!B28 ->  | K47: =B._Diffusion!G28 ->  | L47: =B._Diffusion!L28 ->  | M47: =B._Diffusion!Q28 ->  | N47: =B._Diffusion!V28 ->  | O47: =B._Diffusion!AA28 ->  | P47: =B._Diffusion!AF28 -> 
B48: =NAME_Alternative1 -> Elektrifizierung | I48: =B48 -> Elektrifizierung
B49: Jahr | C49: 2020 | D49: 2030 | E49: 2040 | F49: 2050 | I49: Jahr | J49: 2020 | K49: 2025 | L49: 2030 | M49: 2035 | N49: 2040 | O49: 2045 | P49: 2050
B50: Aktivität [t] | C50: =B._WGK!D24 -> 72000 | D50: =B._WGK!N24 -> 72000 | E50: =B._WGK!X24 -> 72000 | F50: =B._WGK!AH24 -> 72000
B51: Annuität Investition Neubau [EUR/t] | C51: =B._WGK!D25/C50 ->  | D51: =B._WGK!N25/D50 ->  | E51: =B._WGK!X25/E50 ->  | F51: =B._WGK!AH25/F50 -> 
B52: Annuität Investition Modernisierung [EUR/t] | C52: =B._WGK!D26/C50 ->  | D52: =B._WGK!N26/D50 ->  | E52: =B._WGK!X26/E50 ->  | F52: =B._WGK!AH26/F50 -> 
B53: CO2-Kosten/ Umweltkosten [EUR/t] | C53: =B._WGK!D27/C50 -> 3.20484375 | D53: =B._WGK!N27/D50 ->  | E53: =B._WGK!X27/E50 ->  | F53: =B._WGK!AH27/F50 -> 
B54: Energiekosten [EUR/t] | C54: =B._WGK!D28/C50 -> 14.50415901 | D54: =B._WGK!N28/D50 ->  | E54: =B._WGK!X28/E50 ->  | F54: =B._WGK!AH28/F50 -> 
B55: O&M Neubau [EUR/t] | C55: =B._WGK!D29/C50 -> 3.444444444 | D55: =B._WGK!N29/D50 -> 3.444444444 | E55: =B._WGK!X29/E50 -> 3.444444444 | F55: =B._WGK!AH29/F50 -> 3.444444444
B56: O&M Modernisierung [EUR/t] | C56: =B._WGK!D30/C50 -> 3.444444444 | D56: =B._WGK!N30/D50 -> 3.444444444 | E56: =B._WGK!X30/E50 -> 3.444444444 | F56: =B._WGK!AH30/F50 -> 3.444444444
B57: Gesamtkosten Neubau [EUR/t] | C57: =B._WGK!D31/C50 ->  | D57: =B._WGK!N31/D50 ->  | E57: =B._WGK!X31/E50 ->  | F57: =B._WGK!AH31/F50 -> 
B58: Gesamtkosten Modernisierung [EUR/t] | C58: =B._WGK!D32/C50 ->  | D58: =B._WGK!N32/D50 ->  | E58: =B._WGK!X32/E50 ->  | F58: =B._WGK!AH32/F50 -> 
B59: Einnahmen [EUR/t] | C59: =B._WGK!D33/C50 -> 0 | D59: =B._WGK!N33/D50 -> 0 | E59: =B._WGK!X33/E50 -> 0 | F59: =B._WGK!AH33/F50 -> 0
B60: Wärmegestehungskosten Neubau [EUR/t] | C60: =B._WGK!D34 ->  | D60: =B._WGK!N34 ->  | E60: =B._WGK!X34 ->  | F60: =B._WGK!AH34 ->  | I60: Bestand [Kapazität in kt] | J60: =B._Diffusion!AK90 -> 0 | K60: =B._Diffusion!AP90 ->  | L60: =B._Diffusion!AU90 ->  | M60: =B._Diffusion!AZ90 ->  | N60: =B._Diffusion!BE90 ->  | O60: =B._Diffusion!BJ90 ->  | P60: =B._Diffusion!BO90 -> 
B61: Wärmegestehungskosten Modernisierung [EUR/t] | C61: =B._WGK!D35 ->  | D61: =B._WGK!N35 ->  | E61: =B._WGK!X35 ->  | F61: =B._WGK!AH35 ->  | I61: Summe Neubau diese Jahresscheibe [kt] | J61: =SUM(B._Diffusion!AK72:AO72) ->  | K61: =SUM(B._Diffusion!AP72:AT72) ->  | L61: =SUM(B._Diffusion!AU72:AY72) ->  | M61: =SUM(B._Diffusion!AZ72:BD72) ->  | N61: =SUM(B._Diffusion!BE72:BI72) ->  | O61: =SUM(B._Diffusion!BJ72:BN72) ->  | P61: =B._Diffusion!BO72 -> 
I62: Wahlwahrscheinlichkeit | J62: =B._Diffusion!B29 ->  | K62: =B._Diffusion!G29 ->  | L62: =B._Diffusion!L29 ->  | M62: =B._Diffusion!Q29 ->  | N62: =B._Diffusion!V29 ->  | O62: =B._Diffusion!AA29 ->  | P62: =B._Diffusion!AF29 -> 
B63: =NAME_Alternative2 -> Wasserstoffbeheizung | I63: =B63 -> Wasserstoffbeheizung
B64: Jahr | C64: 2020 | D64: 2030 | E64: 2040 | F64: 2050 | I64: Jahr | J64: 2020 | K64: 2025 | L64: 2030 | M64: 2035 | N64: 2040 | O64: 2045 | P64: 2050
B65: Aktivität [t] | C65: =B._WGK!D40 -> 468000 | D65: =B._WGK!N40 -> 468000 | E65: =B._WGK!X40 -> 468000 | F65: =B._WGK!AH40 -> 468000
B66: Annuität Investition Neubau [EUR/t] | C66: =B._WGK!D41/C65 ->  | D66: =B._WGK!N41/D65 ->  | E66: =B._WGK!X41/E65 ->  | F66: =B._WGK!AH41/F65 -> 
B67: Annuität Investition Modernisierung [EUR/t] | C67: =B._WGK!D42/C65 ->  | D67: =B._WGK!N42/D65 ->  | E67: =B._WGK!X42/E65 ->  | F67: =B._WGK!AH42/F65 -> 
B68: CO2-Kosten/ Umweltkosten [EUR/t] | C68: =B._WGK!D43/C65 -> 0 | D68: =B._WGK!N43/D65 ->  | E68: =B._WGK!X43/E65 ->  | F68: =B._WGK!AH43/F65 -> 
B69: Energiekosten [EUR/t] | C69: =B._WGK!D44/C65 -> 14.41556033 | D69: =B._WGK!N44/D65 ->  | E69: =B._WGK!X44/E65 ->  | F69: =B._WGK!AH44/F65 -> 
B70: O&M Neubau [EUR/t] | C70: =B._WGK!D45/C65 -> 2.111111111 | D70: =B._WGK!N45/D65 -> 2.111111111 | E70: =B._WGK!X45/E65 -> 2.111111111 | F70: =B._WGK!AH45/F65 -> 2.111111111
B71: O&M Modernisierung [EUR/t] | C71: =B._WGK!D46/C65 -> 2.111111111 | D71: =B._WGK!N46/D65 -> 2.111111111 | E71: =B._WGK!X46/E65 -> 2.111111111 | F71: =B._WGK!AH46/F65 -> 2.111111111
B72: Gesamtkosten Neubau [EUR/t] | C72: =B._WGK!D47/C65 ->  | D72: =B._WGK!N47/D65 ->  | E72: =B._WGK!X47/E65 ->  | F72: =B._WGK!AH47/F65 -> 
B73: Gesamtkosten Modernisierung [EUR/t] | C73: =B._WGK!D48/C65 ->  | D73: =B._WGK!N48/D65 ->  | E73: =B._WGK!X48/E65 ->  | F73: =B._WGK!AH48/F65 -> 
B74: Einnahmen [EUR/t] | C74: =B._WGK!D49/C65 -> 0 | D74: =B._WGK!N49/D65 -> 0 | E74: =B._WGK!X49/E65 -> 0 | F74: =B._WGK!AH49/F65 -> 0
B75: Wärmegestehungskosten Neubau [EUR/t] | C75: =B._WGK!D50 -> 0 | D75: =B._WGK!N50 ->  | E75: =B._WGK!X50 ->  | F75: =B._WGK!AH50 ->  | I75: Bestand [Kapazität in kt] | J75: =B._Diffusion!AK91 -> 0 | K75: =B._Diffusion!AP91 ->  | L75: =B._Diffusion!AU91 ->  | M75: =B._Diffusion!AZ91 ->  | N75: =B._Diffusion!BE91 ->  | O75: =B._Diffusion!BJ91 ->  | P75: =B._Diffusion!BO91 -> 
B76: Wärmegestehungskosten Modernisierung [EUR/t] | C76: =B._WGK!D51 -> 0 | D76: =B._WGK!N51 ->  | E76: =B._WGK!X51 ->  | F76: =B._WGK!AH51 ->  | I76: Summe Neubau diese Jahresscheibe [kt] | J76: =SUM(B._Diffusion!AK73:AO73) ->  | K76: =SUM(B._Diffusion!AP73:AT73) ->  | L76: =SUM(B._Diffusion!AU73:AY73) ->  | M76: =SUM(B._Diffusion!AZ73:BD73) ->  | N76: =SUM(B._Diffusion!BE73:BI73) ->  | O76: =SUM(B._Diffusion!BJ73:BN73) ->  | P76: =B._Diffusion!BO73 -> 
I77: Wahlwahrscheinlichkeit | J77: =B._Diffusion!B30 ->  | K77: =B._Diffusion!G30 ->  | L77: =B._Diffusion!L30 ->  | M77: =B._Diffusion!Q30 ->  | N77: =B._Diffusion!V30 ->  | O77: =B._Diffusion!AA30 ->  | P77: =B._Diffusion!AF30 -> 
B78: =NAME_Alternative3 -> 0 | I78: =B78 -> 0
B79: Jahr | C79: 2020 | D79: 2030 | E79: 2040 | F79: 2050 | I79: Jahr | J79: 2020 | K79: 2025 | L79: 2030 | M79: 2035 | N79: 2040 | O79: 2045 | P79: 2050
B80: Aktivität [t] | C80: =B._WGK!D67 -> 0 | D80: =B._WGK!N67 -> 0 | E80: =B._WGK!X67 -> 0 | F80: =B._WGK!AH67 -> 0
B81: Annuität Investition Neubau [EUR/t] | C81: =B._WGK!D68/C80 ->  | D81: =B._WGK!N68/D80 ->  | E81: =B._WGK!X68/E80 ->  | F81: =B._WGK!AH68/F80 -> 
B82: Annuität Investition Modernisierung [EUR/t] | C82: =B._WGK!D69/C80 ->  | D82: =B._WGK!N69/D80 ->  | E82: =B._WGK!X69/E80 ->  | F82: =B._WGK!AH69/F80 -> 
B83: CO2-Kosten/ Umweltkosten [EUR/t] | C83: =B._WGK!D70/C80 ->  | D83: =B._WGK!N70/D80 ->  | E83: =B._WGK!X70/E80 ->  | F83: =B._WGK!AH70/F80 -> 
B84: Energiekosten [EUR/t] | C84: =B._WGK!D71/C80 ->  | D84: =B._WGK!N71/D80 ->  | E84: =B._WGK!X71/E80 ->  | F84: =B._WGK!AH71/F80 -> 
B85: O&M Neubau [EUR/t] | C85: =B._WGK!D72/C80 ->  | D85: =B._WGK!N72/D80 ->  | E85: =B._WGK!X72/E80 ->  | F85: =B._WGK!AH72/F80 -> 
B86: O&M Modernisierung [EUR/t] | C86: =B._WGK!D73/C80 ->  | D86: =B._WGK!N73/D80 ->  | E86: =B._WGK!X73/E80 ->  | F86: =B._WGK!AH73/F80 -> 
B87: Gesamtkosten Neubau [EUR/t] | C87: =B._WGK!D74/C80 ->  | D87: =B._WGK!N74/D80 ->  | E87: =B._WGK!X74/E80 ->  | F87: =B._WGK!AH74/F80 -> 
B88: Gesamtkosten Modernisierung [EUR/t] | C88: =B._WGK!D75/C80 ->  | D88: =B._WGK!N75/D80 ->  | E88: =B._WGK!X75/E80 ->  | F88: =B._WGK!AH75/F80 -> 
B89: Einnahmen [EUR/t] | C89: =B._WGK!D76/C80 ->  | D89: =B._WGK!N76/D80 ->  | E89: =B._WGK!X76/E80 ->  | F89: =B._WGK!AH76/F80 -> 
B90: Wärmegestehungskosten Neubau [EUR/t] | C90: =B._WGK!D77 -> 0 | D90: =B._WGK!N77 -> 0 | E90: =B._WGK!X77 -> 0 | F90: =B._WGK!AH77 -> 0 | I90: Bestand [Kapazität in kt] | J90: =B._Diffusion!AK92 -> 0 | K90: =B._Diffusion!AP92 ->  | L90: =B._Diffusion!AU92 ->  | M90: =B._Diffusion!AZ92 ->  | N90: =B._Diffusion!BE92 ->  | O90: =B._Diffusion!BJ92 ->  | P90: =B._Diffusion!BO92 -> 
B91: Wärmegestehungskosten Modernisierung [EUR/t] | C91: =B._WGK!D78 -> 0 | D91: =B._WGK!N78 -> 0 | E91: =B._WGK!X78 -> 0 | F91: =B._WGK!AH78 -> 0 | I91: Summe Neubau diese Jahresscheibe [kt] | J91: =SUM(B._Diffusion!AK74:AO74) ->  | K91: =SUM(B._Diffusion!AP74:AT74) ->  | L91: =SUM(B._Diffusion!AU74:AY74) ->  | M91: =SUM(B._Diffusion!AZ74:BD74) ->  | N91: =SUM(B._Diffusion!BE74:BI74) ->  | O91: =SUM(B._Diffusion!BJ74:BN74) ->  | P91: =B._Diffusion!BO74 -> 
I92: Wahlwahrscheinlichkeit | J92: =B._Diffusion!B31 ->  | K92: =B._Diffusion!G31 ->  | L92: =B._Diffusion!L31 ->  | M92: =B._Diffusion!Q31 ->  | N92: =B._Diffusion!V31 ->  | O92: =B._Diffusion!AA31 ->  | P92: =B._Diffusion!AF31 -> 
B93: =NAME_Alternative4 -> 0 | I93: =B93 -> 0
B94: Jahr | C94: 2020 | D94: 2030 | E94: 2040 | F94: 2050 | I94: Jahr | J94: 2020 | K94: 2025 | L94: 2030 | M94: 2035 | N94: 2040 | O94: 2045 | P94: 2050
B95: Aktivität [t] | C95: =B._WGK!D83 -> 0 | D95: =B._WGK!N83 -> 0 | E95: =B._WGK!X83 -> 0 | F95: =B._WGK!AH83 -> 0
B96: Annuität Investition Neubau [EUR/a] | C96: =B._WGK!D84/C95 ->  | D96: =B._WGK!N84/D95 ->  | E96: =B._WGK!X84/E95 ->  | F96: =B._WGK!AH84/F95 -> 
B97: Annuität Investition Modernisierung [EUR/a] | C97: =B._WGK!D85/C95 ->  | D97: =B._WGK!N85/D95 ->  | E97: =B._WGK!X85/E95 ->  | F97: =B._WGK!AH85/F95 -> 
B98: CO2-Kosten/ Umweltkosten [EUR/a] | C98: =B._WGK!D86/C95 ->  | D98: =B._WGK!N86/D95 ->  | E98: =B._WGK!X86/E95 ->  | F98: =B._WGK!AH86/F95 -> 
B99: Energiekosten [EUR/a] | C99: =B._WGK!D87/C95 ->  | D99: =B._WGK!N87/D95 ->  | E99: =B._WGK!X87/E95 ->  | F99: =B._WGK!AH87/F95 -> 
B100: O&M Neubau [EUR/a] | C100: =B._WGK!D88/C95 ->  | D100: =B._WGK!N88/D95 ->  | E100: =B._WGK!X88/E95 ->  | F100: =B._WGK!AH88/F95 -> 
B101: O&M Modernisierung [EUR/a] | C101: =B._WGK!D89/C95 ->  | D101: =B._WGK!N89/D95 ->  | E101: =B._WGK!X89/E95 ->  | F101: =B._WGK!AH89/F95 -> 
B102: Gesamtkosten Neubau [EUR/a] | C102: =B._WGK!D90/C95 ->  | D102: =B._WGK!N90/D95 ->  | E102: =B._WGK!X90/E95 ->  | F102: =B._WGK!AH90/F95 -> 
B103: Gesamtkosten Modernisierung [EUR/a] | C103: =B._WGK!D91/C95 ->  | D103: =B._WGK!N91/D95 ->  | E103: =B._WGK!X91/E95 ->  | F103: =B._WGK!AH91/F95 -> 
B104: Einnahmen [EUR/a] | C104: =B._WGK!D92/C95 ->  | D104: =B._WGK!N92/D95 ->  | E104: =B._WGK!X92/E95 ->  | F104: =B._WGK!AH92/F95 -> 
B105: Wärmegestehungskosten Neubau [EUR/t] | C105: =B._WGK!D93 -> 0 | D105: =B._WGK!N93 -> 0 | E105: =B._WGK!X93 -> 0 | F105: =B._WGK!AH93 -> 0 | I105: Bestand [Kapazität in kt] | J105: =B._Diffusion!AK93 -> 0 | K105: =B._Diffusion!AP93 ->  | L105: =B._Diffusion!AU93 ->  | M105: =B._Diffusion!AZ93 ->  | N105: =B._Diffusion!BE93 ->  | O105: =B._Diffusion!BJ93 ->  | P105: =B._Diffusion!BO93 -> 
B106: Wärmegestehungskosten Modernisierung [EUR/t] | C106: =B._WGK!D94 -> 0 | D106: =B._WGK!N94 -> 0 | E106: =B._WGK!X94 -> 0 | F106: =B._WGK!AH94 -> 0 | I106: Summe Neubau diese Jahresscheibe [kt] | J106: =SUM(B._Diffusion!AK75:AO75) ->  | K106: =SUM(B._Diffusion!AP75:AT75) ->  | L106: =SUM(B._Diffusion!AU75:AY75) ->  | M106: =SUM(B._Diffusion!AZ75:BD75) ->  | N106: =SUM(B._Diffusion!BE75:BI75) ->  | O106: =SUM(B._Diffusion!BJ75:BN75) ->  | P106: =B._Diffusion!BO75 -> 
I107: Wahlwahrscheinlichkeit | J107: =B._Diffusion!B32 ->  | K107: =B._Diffusion!G32 ->  | L107: =B._Diffusion!L32 ->  | M107: =B._Diffusion!Q32 ->  | N107: =B._Diffusion!V32 ->  | O107: =B._Diffusion!AA32 ->  | P107: =B._Diffusion!AF32 -> 
B108: Wirtschaftliche Daten Hauptenergieträger | I108: Bestandsdaten
B109: Jahr | C109: 2020 | D109: 2030 | E109: 2040 | F109: 2050 | I109: Jahr | J109: 2020 | K109: 2025 | L109: 2030 | M109: 2035 | N109: 2040 | O109: 2045 | P109: 2050
B110: ="Preis "& Energieträger_1_Referenz &" für "&C5&" [EUR/MWh]" -> Preis Erdgas für Referenztechnik [EUR/MWh] | C110: =B._Energiekosten!D13 -> 45.47107274 | D110: =B._Energiekosten!N13 ->  | E110: =B._Energiekosten!X13 ->  | F110: =B._Energiekosten!AH13 ->  | I110: Summe Neubau diese Jahresscheibe [kt] | J110: =J106+J91+J76+J61+J46 -> 
B111: ="Preis "& Energieträger_1_Alternative1 &" für "&D5&" [EUR/MWh]" -> Preis Strom für Alternativtechnik 1 [EUR/MWh] | C111: =B._Energiekosten!D21 -> 54.73267551 | D111: =B._Energiekosten!N21 ->  | E111: =B._Energiekosten!X21 ->  | F111: =B._Energiekosten!AH21 ->  | I111: Mittleres Alter Bestand | J111: =B._Diffusion!AK97 -> 25 | K111: =B._Diffusion!AP97 ->  | L111: =B._Diffusion!AU97 ->  | M111: =B._Diffusion!AZ97 ->  | N111: =B._Diffusion!BE97 ->  | O111: =B._Diffusion!BJ97 ->  | P111: =B._Diffusion!BO97 -> 
B112: ="Preis "& Energieträger_1_Alternative2 &" für "&E5&" [EUR/MWh]" -> Preis EE-Wasserstoff für Alternativtechnik 2 [EUR/MWh] | C112: =B._Energiekosten!D29 -> 50.58091342 | D112: =B._Energiekosten!N29 -> 74.45444751 | E112: =B._Energiekosten!X29 -> 76.49054772 | F112: =B._Energiekosten!AH29 -> 76.60549422 | I112: Mittelwert Ausfallrate | J112: =B._Bestandsmodell!AJ577 -> 0 | K112: =B._Bestandsmodell!AO577 ->  | L112: =B._Bestandsmodell!AT577 ->  | M112: =B._Bestandsmodell!AY577 ->  | N112: =B._Bestandsmodell!BD577 ->  | O112: =B._Bestandsmodell!BI577 ->  | P112: =B._Bestandsmodell!BN577 -> 
B113: ="Preis "& Energieträger_1_Alternative3 &" für "&F5&" [EUR/MWh]" -> Preis 0 für Alternativtechnik 3 [EUR/MWh] | C113: =B._Energiekosten!D37 -> 0 | D113: =B._Energiekosten!N37 -> 0 | E113: =B._Energiekosten!X37 -> 0 | F113: =B._Energiekosten!AH37 -> 0 | I113: Bestand | J113: =J34 -> 2020 | K113: 2025 | L113: =L34 -> 2030 | M113: 2035 | N113: =N34 -> 2040 | O113: 2045 | P113: =P34 -> 2050
B114: ="Preis "& Energieträger_1_Alternative4 &" für "&G5&" [EUR/MWh]" -> Preis 0 für Alternativtechnik 4 [EUR/MWh] | C114: =B._Energiekosten!D45 -> 0 | D114: =B._Energiekosten!N45 -> 0 | E114: =B._Energiekosten!X45 -> 0 | F114: =B._Energiekosten!AH45 -> 0 | I114: =I33 -> Referenztechnik: Erdgasbeheizung | J114: =J45 -> 657.924 | K114: =K45 -> 
B115: ="CO2-Kosten "& Energieträger_1_Referenz &" für "&C5&" [EUR/MWh]" -> CO2-Kosten Erdgas für Referenztechnik [EUR/MWh] | C115: =B._CO2!D13*B._CO2!D16 -> 18.9 | D115: =B._CO2!N13*B._CO2!N16 -> 37.8 | E115: =B._CO2!X13*B._CO2!X16 -> 60.48 | F115: =B._CO2!AH13*B._CO2!AH16 -> 68.04 | I115: =I48 -> Elektrifizierung | J115: =J60 -> 0 | K115: =K60 -> 
B116: ="CO2-Kosten "& Energieträger_1_Alternative1 &" für "&D5&" [EUR/MWh]" -> CO2-Kosten Strom für Alternativtechnik 1 [EUR/MWh] | C116: =B._CO2!D26*B._CO2!D29 -> 12.09375 | D116: =B._CO2!N26*B._CO2!N29 -> 6.1875 | E116: =B._CO2!X26*B._CO2!X29 -> 2.7 | F116: =B._CO2!AH26*B._CO2!AH29 -> 0 | I116: =I63 -> Wasserstoffbeheizung | J116: =J75 -> 0 | K116: =K75 -> 
B117: ="CO2-Kosten "& Energieträger_1_Alternative2 &" für "&E5&" [EUR/MWh]" -> CO2-Kosten EE-Wasserstoff für Alternativtechnik 2 [EUR/MWh] | C117: =B._CO2!D39*B._CO2!D42 -> 0 | D117: =B._CO2!N39*B._CO2!N42 -> 0 | E117: =B._CO2!X39*B._CO2!X42 -> 0 | F117: =B._CO2!AH39*B._CO2!AH42 -> 0 | I117: =I78 -> 0 | J117: =J90 -> 0 | K117: =K90 -> 
B118: ="CO2-Kosten "& Energieträger_1_Alternative3 &" für "&F5&" [EUR/MWh]" -> CO2-Kosten 0 für Alternativtechnik 3 [EUR/MWh] | C118: =B._CO2!D52*B._CO2!D55 -> 0 | D118: =B._CO2!N52*B._CO2!N55 -> 0 | E118: =B._CO2!X52*B._CO2!X55 -> 0 | F118: =B._CO2!AH52*B._CO2!AH55 -> 0 | I118: =I93 -> 0 | J118: =J105 -> 0 | K118: =K105 -> 
B119: ="CO2-Kosten "& Energieträger_1_Alternative4 &" für "&G5&" [EUR/MWh]" -> CO2-Kosten 0 für Alternativtechnik 4 [EUR/MWh] | C119: =B._CO2!D65*B._CO2!D68 -> 0 | D119: =B._CO2!N65*B._CO2!N68 -> 0 | E119: =B._CO2!X65*B._CO2!X68 -> 0 | F119: =B._CO2!AH65*B._CO2!AH68 -> 0 | I119: SUMME Bestand | J119: =SUM(J114:J118) -> 657.924 | K119: =SUM(K114:K118) -> 
I120: Schätzung Emissionsmengen [Mt-CO2-Äq.] | J120: 2020 | K120: 2025 | L120: 2030 | M120: 2035 | N120: 2040 | O120: 2045 | P120: 2050
I121: Emissionen bei 100% Referenz | J121: =IFERROR($C$28/(Kapazität_Referenz/1000)/1000/1000*B._CO2!D19,0) -> 0.03402151321 | K121: =IFERROR($C$28/(Kapazität_Referenz/1000)/1000/1000*B._CO2!I19,0) -> 0 | L121: =IFERROR($C$28/(Kapazität_Referenz/1000)/1000/1000*B._CO2!N19,0) -> 0 | M121: =IFERROR($C$28/(Kapazität_Referenz/1000)/1000/1000*B._CO2!S19,0) -> 0 | N121: =IFERROR($C$28/(Kapazität_Referenz/1000)/1000/1000*B._CO2!X19,0) -> 0 | O121: =IFERROR($C$28/(Kapazität_Referenz/1000)/1000/1000*B._CO2!AC19,0) -> 0 | P121: =IFERROR($C$28/(Kapazität_Referenz/1000)/1000/1000*B._CO2!AH19,0) -> 0
I122: Emissionen bei 100% Alternative 1 | J122: =IFERROR($C$28/(Kapazität_Alternative1/1000)/1000/1000*B._CO2!D32,0) -> 0.06747339582 | K122: =IFERROR($C$28/(Kapazität_Alternative1/1000)/1000/1000*B._CO2!I32,0) -> 0 | L122: =IFERROR($C$28/(Kapazität_Alternative1/1000)/1000/1000*B._CO2!N32,0) -> 0 | M122: =IFERROR($C$28/(Kapazität_Alternative1/1000)/1000/1000*B._CO2!S32,0) -> 0 | N122: =IFERROR($C$28/(Kapazität_Alternative1/1000)/1000/1000*B._CO2!X32,0) -> 0 | O122: =IFERROR($C$28/(Kapazität_Alternative1/1000)/1000/1000*B._CO2!AC32,0) -> 0 | P122: =IFERROR($C$28/(Kapazität_Alternative1/1000)/1000/1000*B._CO2!AH32,0) -> 0
I123: Emissionen bei 100% Alternative 2 | J123: =IFERROR($C$28/(Kapazität_Alternative2/1000)/1000/1000*B._CO2!D45,0) -> 0 | K123: =IFERROR($C$28/(Kapazität_Alternative2/1000)/1000/1000*B._CO2!I45,0) -> 0 | L123: =IFERROR($C$28/(Kapazität_Alternative2/1000)/1000/1000*B._CO2!N45,0) -> 0 | M123: =IFERROR($C$28/(Kapazität_Alternative2/1000)/1000/1000*B._CO2!S45,0) -> 0 | N123: =IFERROR($C$28/(Kapazität_Alternative2/1000)/1000/1000*B._CO2!X45,0) -> 0 | O123: =IFERROR($C$28/(Kapazität_Alternative2/1000)/1000/1000*B._CO2!AC45,0) -> 0 | P123: =IFERROR($C$28/(Kapazität_Alternative2/1000)/1000/1000*B._CO2!AH45,0) -> 0
I124: Emissionen bei 100% Alternative 3 | J124: =IFERROR($C$28/(Kapazität_Alternative3/1000)/1000/1000*B._CO2!D58,0) -> 0 | K124: =IFERROR($C$28/(Kapazität_Alternative3/1000)/1000/1000*B._CO2!I58,0) -> 0 | L124: =IFERROR($C$28/(Kapazität_Alternative3/1000)/1000/1000*B._CO2!N58,0) -> 0 | M124: =IFERROR($C$28/(Kapazität_Alternative3/1000)/1000/1000*B._CO2!S58,0) -> 0 | N124: =IFERROR($C$28/(Kapazität_Alternative3/1000)/1000/1000*B._CO2!X58,0) -> 0 | O124: =IFERROR($C$28/(Kapazität_Alternative3/1000)/1000/1000*B._CO2!AC58,0) -> 0 | P124: =IFERROR($C$28/(Kapazität_Alternative3/1000)/1000/1000*B._CO2!AH58,0) -> 0
I125: Emissionen bei 100% Alternative 4 | J125: =IFERROR($C$28/(Kapazität_Alternative4/1000)/1000/1000*B._CO2!D71,0) -> 0 | K125: =IFERROR($C$28/(Kapazität_Alternative4/1000)/1000/1000*B._CO2!I71,0) -> 0 | L125: =IFERROR($C$28/(Kapazität_Alternative4/1000)/1000/1000*B._CO2!N71,0) -> 0 | M125: =IFERROR($C$28/(Kapazität_Alternative4/1000)/1000/1000*B._CO2!S71,0) -> 0 | N125: =IFERROR($C$28/(Kapazität_Alternative4/1000)/1000/1000*B._CO2!X71,0) -> 0 | O125: =IFERROR($C$28/(Kapazität_Alternative4/1000)/1000/1000*B._CO2!AC71,0) -> 0 | P125: =IFERROR($C$28/(Kapazität_Alternative4/1000)/1000/1000*B._CO2!AH71,0) -> 0
I126: Emissionen im Bestandsmix | J126: =(J114*J121+J115*J122+J116*J123+J117*J124+J118*J125)/J119 -> 0.03402151321 | K126: =(K114*K121+K115*K122+K116*K123+K117*K124+K118*K125)/K119 -> 
I136: Attractiveness | J136: 2020 | K136: 2025 | L136: 2030 | M136: 2035 | N136: 2040 | O136: 2045 | P136: 2050
I137: =B33 -> Erdgasbeheizung | J137: =J47 ->  | K137: =K47 -> 
I138: =B48 -> Elektrifizierung | J138: =J62 ->  | K138: =K62 -> 
I139: =B63 -> Wasserstoffbeheizung | J139: =J77 ->  | K139: =K77 -> 
I140: =B78 -> 0 | J140: =J92 ->  | K140: =K92 -> 
I141: =B93 -> 0 | J141: =J107 ->  | K141: =K107 -> 
I143: Diffusion | J143: 2020 | K143: 2025 | L143: 2030 | M143: 2035 | N143: 2040 | O143: 2045 | P143: 2050
I144: =I137 -> Erdgasbeheizung | J144: =J114/J$119 -> 1 | K144: =K114/K$119 -> 
I145: =I138 -> Elektrifizierung | J145: =J115/J$119 -> 0
I146: =I139 -> Wasserstoffbeheizung | J146: 0
I147: =I140 -> 0 | J147: 0
I148: =I141 -> 0 | J148: 0

Sheet A_Rahmendaten
C4: Energieträgerpreise
D5: Einheit | E5: 2020 | F5: 2030 | G5: 2040 | H5: 2050
C6: Strom | D6: €/MWh | E6: 88.54 | F6: 89.45424109 | G6: 92.86114962 | H6: 92.51878627 | I6: Überschrieben durch jahressscharfe Daten in "B._Rahmendaten"!
C7: Erdgas | D7: €/MWh | E7: 27.396 | F7: 27.072 | G7: 26.784 | H7: 26.532 | I7: Überschrieben durch jahressscharfe Daten in "B._Rahmendaten"!
C8: Steinkohlen | D8: €/MWh | E8: 15.444 | F8: 15.444 | G8: 15.444 | H8: 15.444
C9: Biomasse | D9: €/MWh | E9: 24.948 | F9: 26.964 | G9: 27.576 | H9: 29.556
C10: Heizöl | D10: €/MWh | E10: 49.5 | F10: 58.176 | G10: 65.7 | H10: 69.264
C11: Abfall, erneuerbar | D11: €/MWh | E11: 15.084 | F11: 15.084 | G11: 15.084 | H11: 15.084
C12: Abfall, nicht erneuerbar | D12: €/MWh | E12: 7.704 | F12: 7.704 | G12: 7.704 | H12: 7.704
C13: Andere fossile | D13: €/MWh | E13: 19.8 | F13: 19.8 | G13: 19.8 | H13: 19.8
C14: Strommix-Methan | D14: €/MWh | E14: Funktion der Stromkosten (:0.7^2) | I14: In "B-:Rahmendaten" anpassbar.
C15: Strommix-Wasserstoff | D15: €/MWh | E15: Funktion der Stromkosten (:0.7) | I15: In "B-:Rahmendaten" anpassbar.
C16: Braunkohle | D16: €/MWh | E16: 10.008 | F16: 10.008 | G16: 10.008 | H16: 10.008
C17: EE-Methan | D17: €/MWh | E17: Funktion der Stromkosten (:0.7^2) | I17: In "B-:Rahmendaten" anpassbar.
C18: EE-Wasserstoff | D18: €/MWh | E18: Funktion der Stromkosten (:0.7) | I18: In "B-:Rahmendaten" anpassbar.
C27: CO2-Preise
D28: Einheit | E28: 2020 | F28: 2030 | G28: 2040 | H28: 2050
C29: Kein CO2-Preis | D29: €/tCO2 | E29: 0 | F29: 0 | G29: 0 | H29: 0
C30: Niedrig | D30: €/tCO2 | E30: 75 | F30: 75 | G30: 75 | H30: 75
C31: Mittel | D31: €/tCO2 | E31: 75 | F31: 100 | G31: 125 | H31: 150
C32: Hoch | D32: €/tCO2 | E32: 75 | F32: 150 | G32: 300 | H32: 300
C35: Kompensation von Strompreiskomponenten
D36: Einheit | E36: 2020 | F36: 2030 | G36: 2040 | H36: 2050
C37: Keine Kompensation | D37: Wirksamer Anteil Strompreis | E37: 1.32 | F37: 1.32 | G37: 1.32 | H37: 1.32
C38: Mittelwert Eurostat | D38: Wirksamer Anteil Strompreis | E38: 1 | F38: 1 | G38: 1 | H38: 1
C39: EEG+Stromsteuer+Netzentgelt+Weitere | D39: Wirksamer Anteil Strompreis | E39: 0.5 | F39: 0.5 | G39: 0.5 | H39: 0.5
C40: Individuell | D40: Wirksamer Anteil Strompreis | E40: 0.25 | F40: 0.25 | G40: 0.25 | H40: 0.25
C42: Kompensation von Erdgaspreiskomponenten
D43: Einheit | E43: 2020 | F43: 2030 | G43: 2040 | H43: 2050
C44: Regulärer Satz (5.5EUR/MWh) | D44: €/MWh Preisaufschlag für Erdgas | E44: 0 | F44: 0 | G44: 0 | H44: 0
C45: Produzierendes Gewerbe Spitzenausgleich (2.068EUR/MWh) | D45: €/MWh Preisaufschlag für Erdgas | E45: -3.432 | F45: -3.432 | G45: -3.432 | H45: -3.432
C46: Befreiung nach §51 (0EUR/MWh) | D46: €/MWh Preisaufschlag für Erdgas | E46: -5.5 | F46: -5.5 | G46: -5.5 | H46: -5.5
C47: Individuell 1 | D47: €/MWh Preisaufschlag für Erdgas | E47: 0 | F47: 0 | G47: 0 | H47: 0
C67: Zinssatz
D68: Einheit | E68: 2020 | F68: 2030 | G68: 2040 | H68: 2050
C69: Kein Zinssatz | D69: 1 | E69: 1e-07 | F69: 1e-07 | G69: 1e-07 | H69: 1e-07
C70: Niedrig | D70: 1 | E70: 0.02 | F70: 0.02 | G70: 0.02 | H70: 0.02
C71: Mittel | D71: 1 | E71: 0.05 | F71: 0.05 | G71: 0.05 | H71: 0.05
C72: Hoch | D72: 1 | E72: 0.08 | F72: 0.08 | G72: 0.08 | H72: 0.08
C74: Direkt preiswirksame Emissionsfaktoren
D75: Einheit | E75: 2020 | F75: 2030 | G75: 2040 | H75: 2050
C76: Strom | D76: tCO2/MWh | E76: 0.43 | F76: 0.11 | G76: 0.03 | H76: 0
C77: Erdgas | D77: tCO2/MWh | E77: 0.2016 | F77: 0.2016 | G77: 0.2016 | H77: 0.2016
C78: Steinkohlen | D78: tCO2/MWh | E78: 0.3384 | F78: 0.3384 | G78: 0.3384 | H78: 0.3384
C79: Biomasse | D79: tCO2/MWh | E79: 0 | F79: 0 | G79: 0 | H79: 0
C80: Heizöl | D80: tCO2/MWh | E80: 0.2664 | F80: 0.2664 | G80: 0.2664 | H80: 0.2664
C81: Abfall, erneuerbar | D81: tCO2/MWh | E81: 0 | F81: 0 | G81: 0 | H81: 0
C82: Abfall, nicht erneuerbar | D82: tCO2/MWh | E82: 0.1656 | F82: 0.1656 | G82: 0.1656 | H82: 0.1656
C83: Andere fossile | D83: tCO2/MWh | E83: 0.2664 | F83: 0.2664 | G83: 0.2664 | H83: 0.2664
C84: Strommix-Methan | D84: tCO2/MWh | E84: =E76/0.7/0.7 -> 0.8775510204 | F84: =F76/0.7/0.7 -> 0.2244897959 | G84: 0.0612244898 | H84: 0
C85: Strommix-Wasserstoff | D85: tCO2/MWh | E85: =E76/0.7 -> 0.6142857143 | F85: =F76/0.7 -> 0.1571428571 | G85: 0.04285714286 | H85: 0
C86: Braunkohle | D86: tCO2/MWh | E86: 0.4032 | F86: 0.4032 | G86: 0.4032 | H86: 0.4032
C87: EE-Methan | D87: tCO2/MWh | E87: 0 | F87: 0 | G87: 0 | H87: 0
C88: EE-Wasserstoff | D88: tCO2/MWh | E88: 0 | F88: 0 | G88: 0 | H88: 0
C92: Energieeffizienzfortschritt
D93: Einheit | E93: 2020 | F93: 2030 | G93: 2040 | H93: 2050
C94: Kein Effizienzfortschritt | D94: 1 | E94: 0 | F94: 0 | G94: 0 | H94: 0
C95: Niedrig | D95: 1 | E95: 0.001 | F95: 0.001 | G95: 0.001 | H95: 0.001
C96: Mittel | D96: 1 | E96: 0.005 | F96: 0.005 | G96: 0.005 | H96: 0.005
C97: Hoch | D97: 1 | E97: 0.01 | F97: 0.01 | G97: 0.01 | H97: 0.01
C99: Preistrend Energieträger für Voraussicht
D100: Einheit | E100: Konstant 2050 | F100: Trend 2030-2050 | G100: Abgeschwächter Trend 2030-2050
C101: Strom | D101: 1 | E101: =B._Rahmendaten!AH19/B._Rahmendaten!AH19 -> 1 | F101: =B._Rahmendaten!AH19/B._Rahmendaten!N19 -> 1.034258244 | G101: =(B._Rahmendaten!AH19/B._Rahmendaten!N19+1)/2 -> 1.017129122
C102: Erdgas | D102: 1 | E102: =B._Rahmendaten!AH20/B._Rahmendaten!AH20 -> 1 | F102: =B._Rahmendaten!AH20/B._Rahmendaten!N20 -> 1.027220092 | G102: =(B._Rahmendaten!AH20/B._Rahmendaten!N20+1)/2 -> 1.013610046
C103: Steinkohlen | D103: 1 | E103: =B._Rahmendaten!AH21/B._Rahmendaten!AH21 -> 1 | F103: =B._Rahmendaten!AH21/B._Rahmendaten!N21 -> 1 | G103: =(B._Rahmendaten!AH21/B._Rahmendaten!N21+1)/2 -> 1
C104: Biomasse | D104: 1 | E104: =B._Rahmendaten!AH22/B._Rahmendaten!AH22 -> 1 | F104: =B._Rahmendaten!AH22/B._Rahmendaten!N22 -> 1.096128171 | G104: =(B._Rahmendaten!AH22/B._Rahmendaten!N22+1)/2 -> 1.048064085
C105: Heizöl | D105: 1 | E105: =B._Rahmendaten!AH23/B._Rahmendaten!AH23 -> 1 | F105: =B._Rahmendaten!AH23/B._Rahmendaten!N23 -> 1.190594059 | G105: =(B._Rahmendaten!AH23/B._Rahmendaten!N23+1)/2 -> 1.09529703
C106: Abfall, erneuerbar | D106: 1 | E106: =B._Rahmendaten!AH24/B._Rahmendaten!AH24 -> 1 | F106: =B._Rahmendaten!AH24/B._Rahmendaten!N24 -> 1 | G106: =(B._Rahmendaten!AH24/B._Rahmendaten!N24+1)/2 -> 1
C107: Abfall, nicht erneuerbar | D107: 1 | E107: =B._Rahmendaten!AH25/B._Rahmendaten!AH25 -> 1 | F107: =B._Rahmendaten!AH25/B._Rahmendaten!N25 -> 1 | G107: =(B._Rahmendaten!AH25/B._Rahmendaten!N25+1)/2 -> 1
C108: Andere fossile | D108: 1 | E108: =B._Rahmendaten!AH26/B._Rahmendaten!AH26 -> 1 | F108: =B._Rahmendaten!AH26/B._Rahmendaten!N26 -> 1 | G108: =(B._Rahmendaten!AH26/B._Rahmendaten!N26+1)/2 -> 1
C109: EE-Methan | D109: 1 | E109: =B._Rahmendaten!AH27/B._Rahmendaten!AH27 -> 1 | F109: =B._Rahmendaten!AH27/B._Rahmendaten!N27 -> 1.034258244 | G109: =(B._Rahmendaten!AH27/B._Rahmendaten!N27+1)/2 -> 1.017129122
C110: EE-Wasserstoff | D110: 1 | E110: =B._Rahmendaten!AH28/B._Rahmendaten!AH28 -> 1 | F110: =B._Rahmendaten!AH28/B._Rahmendaten!N28 -> 1.034258244 | G110: =(B._Rahmendaten!AH28/B._Rahmendaten!N28+1)/2 -> 1.017129122
C111: Braunkohle | D111: 1 | E111: =B._Rahmendaten!AH29/B._Rahmendaten!AH29 -> 1 | F111: =B._Rahmendaten!AH29/B._Rahmendaten!N29 -> 1 | G111: =(B._Rahmendaten!AH29/B._Rahmendaten!N29+1)/2 -> 1
C117: Preistrend CO2 für Voraussicht
D118: Einheit | E118: Konstant 2050 | F118: Trend 2030-2050 | G118: Abgeschwächter Trend 2030-2050
C119: Keine CO2-Preis | D119: €/tCO2 | E119: =IFERROR(B._Rahmendaten!AH35/B._Rahmendaten!AH35,0) -> 0 | F119: =IFERROR(B._Rahmendaten!AH35/B._Rahmendaten!N35,0) -> 0 | G119: =(IFERROR(B._Rahmendaten!AH35/B._Rahmendaten!N35,0))/2 -> 0
C120: Niedrig | D120: €/tCO2 | E120: =B._Rahmendaten!AH36/B._Rahmendaten!AH36 -> 1 | F120: =IFERROR(B._Rahmendaten!AH36/B._Rahmendaten!N36,0) -> 1 | G120: =(IFERROR(B._Rahmendaten!AH36/B._Rahmendaten!N36,0))/2 -> 0.5
C121: Mittel | D121: €/tCO2 | E121: =B._Rahmendaten!AH37/B._Rahmendaten!AH37 -> 1 | F121: =IFERROR(B._Rahmendaten!AH37/B._Rahmendaten!N37,0) -> 1.5 | G121: =(IFERROR(B._Rahmendaten!AH37/B._Rahmendaten!N37,0))/2 -> 0.75
C122: Hoch | D122: €/tCO2 | E122: =B._Rahmendaten!AH38/B._Rahmendaten!AH38 -> 1 | F122: =IFERROR(B._Rahmendaten!AH38/B._Rahmendaten!N38,0) -> 2 | G122: =(IFERROR(B._Rahmendaten!AH38/B._Rahmendaten!N38,0))/2 -> 1
C124: Preisvoraussicht (CO2 und Energieträger)
D125: Einheit | E125: 2020 | F125: 2030 | G125: 2040 | H125: 2050
C126: ="Keine "&E126&"->"&H126&" "&D126 -> Keine 0->0 Jahre | D126: Jahre | E126: 0 | F126: 0 | G126: 0 | H126: 0
C127: ="Gering "&E127&"->"&H127&" "&D127 -> Gering 5->5 Jahre | D127: Jahre | E127: 5 | F127: 5 | G127: 5 | H127: 5
C128: ="Hoch "&E128&"->"&H128&" "&D128 -> Hoch 10->10 Jahre | D128: Jahre | E128: 10 | F128: 10 | G128: 10 | H128: 10
C129: ="Variabel "&E129&"->"&H129&" "&D129 -> Variabel 5->10 Jahre | D129: Jahre | E129: 5 | F129: 10 | G129: 10 | H129: 10
C131: Ausfallraten-Faktor
D132: Einheit | E132: 2020 | F132: 2030 | G132: 2040 | H132: 2050
C133: Bestandsalterung | D133: - | E133: 0 | F133: 0 | G133: 0 | H133: 0
C134: Bestandserhaltend | D134: - | E134: 0.2 | F134: 0.2 | G134: 0.2 | H134: 0.2
C135: Bestandserneuerung | D135: - | E135: 0.5 | F135: 0.5 | G135: 0.5 | H135: 0.5
C136: Individuell | D136: - | E136: 1 | F136: 1 | G136: 1 | H136: 1
C138: Markthomogenität
D139: Einheit | E139: 2020 | F139: 2030 | G139: 2040 | H139: 2050
C140: Niedrig | D140: - | E140: 1 | F140: 1 | G140: 1 | H140: 1
C141: Mittel | D141: - | E141: 4 | F141: 4 | G141: 4 | H141: 4
C142: Hoch | D142: - | E142: 7 | F142: 7 | G142: 7 | H142: 7
C143: Individuell | D143: - | E143: 3 | F143: 3 | G143: 6 | H143: 6
C145: Reduktion Investition
D146: Einheit | E146: 2020 | F146: 2030 | G146: 2040 | H146: 2050
C147: Keine Reduktion | D147: 1 | E147: 0 | F147: 0 | G147: 0 | H147: 0
C148: Niedrig | D148: 1 | E148: 0.005 | F148: 0.005 | G148: 0.005 | H148: 0.005
C149: Mittel | D149: 1 | E149: 0.01 | F149: 0.01 | G149: 0.01 | H149: 0.01
C150: Hoch | D150: 1 | E150: 0.02 | F150: 0.02 | G150: 0.02 | H150: 0.02
C152: Klimakostenannahmen | D152: Einheit [Euro-Angabe für 2020] | E152: 2020 | F152: 2030 | G152: 2040 | H152: 2050
C153: Kostensatz | D153: €/tCO2-Äq. | E153: 198.5483298 | F153: 217.4937811 | G153: 236.0603234 | H153: 254.6268657
C155: Basiswerte Umweltkostensätze
C156: Zielenergieträger: Treibhausgase | E156: 2020 | F156: 2030 | G156: 2040 | H156: 2050
C157: Strom | D157: €/MWh | E157: 85.37578181 | F157: 23.92431592 | G157: 7.081809701 | H157: 0
C158: Erdgas | D158: €/MWh | E158: 40.02734328 | F158: 43.84674627 | G158: 47.58976119 | H158: 51.33277612
C159: Kohle | D159: €/MWh | E159: 73.62172068 | F159: 80.64669403 | G159: 87.53116791 | H159: 94.41564179
C160: Biomasse | D160: €/MWh | E160: 0 | F160: 0 | G160: 0 | H160: 0
C161: Heizöl | D161: €/MWh | E161: 52.89327505 | F161: 57.94034328 | G161: 62.88647015 | H161: 67.83259701
C162: Abfall (erneuerbar) | D162: €/MWh | E162: 0 | F162: 0 | G162: 0 | H162: 0
C163: Abfall (nicht erneuerbar) | D163: €/MWh | E163: 32.87960341 | F163: 36.01697015 | G163: 39.09158955 | H163: 42.16620896
C164: Andere (fossil) | D164: €/MWh | E164: 52.89327505 | F164: 57.94034328 | G164: 62.88647015 | H164: 67.83259701
C165: Methan | D165: €/MWh | E165: 174.2362894 | F165: 48.82513453 | G165: 14.45267286 | H165: 0
C166: Wasserstoff | D166: €/MWh | E166: 121.9654026 | F166: 34.17759417 | G166: 10.116871 | H166: 0
C168: Zielenergieträger: Luftschadstoffe | D168: Einheit | E168: 2020 | F168: 2030 | G168: 2040 | H168: 2050
C169: Strom | D169: €/MWh | E169: 10.24731216 | F169: 2.621405435 | G169: 0.7149287551 | H169: 0
C170: Erdgas | D170: €/MWh | E170: 4.112567971 | F170: 4.112567971 | G170: 4.112567971 | H170: 4.112567971
C171: Kohle | D171: €/MWh | E171: 6.973138593 | F171: 6.973138593 | G171: 6.973138593 | H171: 6.973138593
C172: Biomasse | D172: €/MWh | E172: 18.64929602 | F172: 18.64929602 | G172: 18.64929602 | H172: 18.64929602
C173: Heizöl | D173: €/MWh | E173: 16.54344237 | F173: 16.54344237 | G173: 16.54344237 | H173: 16.54344237
C174: Abfall (erneuerbar) | D174: €/MWh | E174: 18.64929602 | F174: 18.64929602 | G174: 18.64929602 | H174: 18.64929602
C175: Abfall (nicht erneuerbar) | D175: €/MWh | E175: 3.26978158 | F175: 3.26978158 | G175: 3.26978158 | H175: 3.26978158
C176: Andere (fossil) | D176: €/MWh | E176: 5.260083411 | F176: 5.260083411 | G176: 5.260083411 | H176: 5.260083411
C177: Methan | D177: €/MWh | E177: 20.91288195 | F177: 5.349807011 | G177: 1.459038276 | H177: 0
C178: Wasserstoff | D178: €/MWh | E178: 14.63901737 | F178: 3.744864908 | G178: 1.021326793 | H178: 0
C180: Ersatzraten-Faktor
D181: Einheit | E181: 2020 | F181: 2030 | G181: 2040 | H181: 2050
C182: Kapazitätserhaltung | D182: - | E182: 1 | F182: 1 | G182: 1 | H182: 1
C183: Kapazitätsschrumpfung | D183: - | E183: 0.8 | F183: 0.8 | G183: 0.8 | H183: 0.8
C184: Kapazitätswachstum | D184: - | E184: 1.2 | F184: 1.2 | G184: 1.2 | H184: 1.2
C185: Individuell | D185: - | E185: 0.8 | F185: 0.9 | G185: 1.1 | H185: 1.2
C187: Angepasste Umweltkostensätze
C188: Umweltkostensätze: Treibhausgase | D188: Einheit [Euro-Angabe für 2020] | E188: 2020 | F188: 2030 | G188: 2040 | H188: 2050
C189: Strom | D189: €/MWh | E189: =E157/198.55*E$153 -> 85.37506362 | F189: =F157/198.55*F$153 -> 26.20695004 | G189: 8.419714371 | H189: 0
C190: Erdgas | D190: €/MWh | E190: =E158/198.55*E$153 -> 40.02700657 | F190: 48.03019207 | G190: 56.58048057 | H190: 65.83079269
C191: Steinkohlen | D191: €/MWh | E191: 73.62110137 | F191: 88.34124612 | G191: 104.0676696 | H191: 121.0816366
C192: Biomasse | D192: €/MWh | E192: 0 | F192: 0 | G192: 0 | H192: 0
C193: Heizöl | D193: €/MWh | E193: 52.89283011 | F193: 63.46846809 | G193: 74.76706361 | H193: 86.99069035
C194: Abfall, erneuerbar | D194: €/MWh | E194: 0 | F194: 0 | G194: 0 | H194: 0
C195: Abfall, nicht erneuerbar | D195: €/MWh | E195: 32.87932683 | F195: 39.45337205 | G195: 46.47682333 | H195: 54.075294
C196: Andere fossile | D196: €/MWh | E196: 52.89283011 | F196: 63.46846809 | G196: 74.76706361 | H196: 86.99069035
C197: EE-Methan | D197: €/MWh | E197: =E165/198.55*E$153 -> 174.2348237 | F197: 53.4835715 | G197: 17.18309055 | H197: 0
C198: EE-Wasserstoff | D198: €/MWh | E198: =E166/198.55*E$153 -> 121.9643766 | F198: 37.43850005 | G198: 12.02816339 | H198: 0
C199: Braunkohle | D199: €/MWh | E199: =E191 -> 73.62110137 | F199: =F191 -> 88.34124612 | G199: 104.0676696 | H199: 121.0816366
C205: Umweltkostensätze: Luftschadstoffe | D205: Einheit [Euro-Angabe für 2020] | E205: 2020 | F205: 2030 | G205: 2040 | H205: 2050
C206: Strom | D206: €/MWh | E206: =E169/198.55*E$153 -> 10.24722595 | F206: =F169/198.55*F$153 -> 2.871515386 | G206: 0.8499940222 | H206: 0
C207: Erdgas | D207: €/MWh | E207: =E170/198.55*E$153 -> 4.112533376 | F207: 4.504950683 | G207: 4.889519643 | H207: 5.274088604
C208: Steinkohlen | D208: €/MWh | E208: 6.973079934 | F208: 7.638450157 | G208: 8.290512975 | H208: 8.942575793
C209: Biomasse | D209: €/MWh | E209: 18.64913914 | F209: 20.42863715 | G209: 22.1725452 | H209: 23.91645325
C210: Heizöl | D210: €/MWh | E210: 16.5433032 | F210: 18.12186267 | G210: 19.66885094 | H210: 21.21583922
C211: Abfall, erneuerbar | D211: €/MWh | E211: 18.64913914 | F211: 20.42863715 | G211: 22.1725452 | H211: 23.91645325
C212: Abfall, nicht erneuerbar | D212: €/MWh | E212: 3.269754074 | F212: 3.581753509 | G212: 3.887512955 | H212: 4.193272401
C213: Andere fossile | D213: €/MWh | E213: 5.260039163 | F213: 5.761951297 | G213: 6.253825188 | H213: 6.745699079
C214: EE-Methan | D214: €/MWh | E214: 20.91270603 | F214: 5.860235482 | G214: 1.734681678 | H214: 0
C215: EE-Wasserstoff | D215: €/MWh | E215: 14.63889422 | F215: 4.102164837 | G215: 1.214277175 | H215: 0
C216: Braunkohle | D216: €/MWh | E216: =E208 -> 6.973079934 | F216: =F208 -> 7.638450157 | G216: 8.290512975 | H216: 8.942575793

Sheet B._Rahmendaten
B2: Statische, jahresscharfe Preise
B3: Strom | D3: 60 | E3: 98.10287598 | F3: 236.7683269 | G3: 177.9186765 | H3: 125.8843756 | I3: 103.0437079 | J3: 103.7990967 | K3: 104.1372749 | L3: 104.0571892 | M3: 103.1666863 | N3: 103.2531152 | O3: 103.6463597 | P3: 104.0396042 | Q3: 104.4328488 | R3: 104.8260933 | S3: 105.2193379 | T3: 105.6125824 | U3: 106.0058269 | V3: 106.3990715 | W3: 106.792316 | X3: 107.1855606 | Y3: 107.1460431 | Z3: 107.1065256 | AA3: 107.0670081 | AB3: 107.0274906 | AC3: 106.987973 | AD3: 106.9484555 | AE3: 106.908938 | AF3: 106.8694205 | AG3: 106.829903 | AH3: 106.7903855
B4: Erdgas | D4: 40 | E4: 47.484 | F4: 123.084 | G4: 74.664 | H4: 45.432 | I4: 36 | J4: 36.04933187 | K4: 36.09866374 | L4: 36.14799561 | M4: 36.19732748 | N4: 36.24665935 | O4: 36.29599122 | P4: 36.3453231 | Q4: 36.39465497 | R4: 36.44398684 | S4: 36.49331871 | T4: 36.54265058 | U4: 36.59198245 | V4: 36.64131432 | W4: 36.69064619 | X4: 36.73997806 | Y4: 36.78930993 | Z4: 36.8386418 | AA4: 36.88797367 | AB4: 36.93730554 | AC4: 36.98663741 | AD4: 37.03596929 | AE4: 37.08530116 | AF4: 37.13463303 | AG4: 37.1839649 | AH4: 37.23329677
B5: Steinkohlen
B6: Biomasse
B7: Heizöl
B8: Abfall, erneuerbar
B9: Abfall, nicht erneuerbar
B10: Andere fossile
B11: Strommix-Methan
B12: Strommix-Wasserstoff
B13: Braunkohle
B14: EE-Methan
B15: EE-Wasserstoff
B17: Energieträgerpreise | AH17: Auslauf für Voraussicht
C18: Einheit | D18: 2020 | E18: 2021 | F18: 2022 | G18: 2023 | H18: 2024 | I18: 2025 | J18: 2026 | K18: 2027 | L18: 2028 | M18: 2029 | N18: 2030 | O18: 2031 | P18: 2032 | Q18: 2033 | R18: 2034 | S18: 2035 | T18: 2036 | U18: 2037 | V18: 2038 | W18: 2039 | X18: 2040 | Y18: 2041 | Z18: 2042 | AA18: 2043 | AB18: 2044 | AC18: 2045 | AD18: 2046 | AE18: 2047 | AF18: 2048 | AG18: 2049 | AH18: 2050 | AI18: 2051 | AJ18: 2052 | AK18: 2053 | AL18: 2054 | AM18: 2055 | AN18: 2056 | AO18: 2057 | AP18: 2058 | AQ18: 2059 | AR18: 2060 | AS18: 2061 | AT18: 2062 | AU18: 2063 | AV18: 2064 | AW18: 2065 | AX18: 2066 | AY18: 2067 | AZ18: 2068 | BA18: 2069 | BB18: 2070
B19: Strom | C19: €/MWh | D19: =D3*INDEX(A_Rahmendaten!$C$37:$H$40,MATCH(Dashboard!$L$17,A_Rahmendaten!$C$37:$C$40,0),3) -> 30 | E19: =E3*INDEX(A_Rahmendaten!$C$37:$H$40,MATCH(Dashboard!$L$17,A_Rahmendaten!$C$37:$C$40,0),3) -> 49.05143799 | F19: =F3*INDEX(A_Rahmendaten!$C$37:$H$40,MATCH(Dashboard!$L$17,A_Rahmendaten!$C$37:$C$40,0),3) -> 118.3841635 | G19: =G3*INDEX(A_Rahmendaten!$C$37:$H$40,MATCH(Dashboard!$L$17,A_Rahmendaten!$C$37:$C$40,0),3) -> 88.95933827 | H19: =H3*INDEX(A_Rahmendaten!$C$37:$H$40,MATCH(Dashboard!$L$17,A_Rahmendaten!$C$37:$C$40,0),3) -> 62.94218779 | I19: =I3*INDEX(A_Rahmendaten!$C$37:$H$40,MATCH(Dashboard!$L$17,A_Rahmendaten!$C$37:$C$40,0),3) -> 51.52185397 | J19: =J3*INDEX(A_Rahmendaten!$C$37:$H$40,MATCH(Dashboard!$L$17,A_Rahmendaten!$C$37:$C$40,0),3) -> 51.89954836 | K19: =K3*INDEX(A_Rahmendaten!$C$37:$H$40,MATCH(Dashboard!$L$17,A_Rahmendaten!$C$37:$C$40,0),3) -> 52.06863744 | L19: =L3*INDEX(A_Rahmendaten!$C$37:$H$40,MATCH(Dashboard!$L$17,A_Rahmendaten!$C$37:$C$40,0),3) -> 52.02859462 | M19: =M3*INDEX(A_Rahmendaten!$C$37:$H$40,MATCH(Dashboard!$L$17,A_Rahmendaten!$C$37:$C$40,0),3) -> 51.58334316 | N19: =N3*INDEX(A_Rahmendaten!$C$37:$H$40,MATCH(Dashboard!$L$17,A_Rahmendaten!$C$37:$C$40,0),3) -> 51.62655758 | O19: =O3*INDEX(A_Rahmendaten!$C$37:$H$40,MATCH(Dashboard!$L$17,A_Rahmendaten!$C$37:$C$40,0),3) -> 51.82317985 | P19: =P3*INDEX(A_Rahmendaten!$C$37:$H$40,MATCH(Dashboard!$L$17,A_Rahmendaten!$C$37:$C$40,0),3) -> 52.01980212 | Q19: =Q3*INDEX(A_Rahmendaten!$C$37:$H$40,MATCH(Dashboard!$L$17,A_Rahmendaten!$C$37:$C$40,0),3) -> 52.21642439 | R19: =R3*INDEX(A_Rahmendaten!$C$37:$H$40,MATCH(Dashboard!$L$17,A_Rahmendaten!$C$37:$C$40,0),3) -> 52.41304666 | S19: =S3*INDEX(A_Rahmendaten!$C$37:$H$40,MATCH(Dashboard!$L$17,A_Rahmendaten!$C$37:$C$40,0),3) -> 52.60966893 | T19: =T3*INDEX(A_Rahmendaten!$C$37:$H$40,MATCH(Dashboard!$L$17,A_Rahmendaten!$C$37:$C$40,0),3) -> 52.8062912 | U19: =U3*INDEX(A_Rahmendaten!$C$37:$H$40,MATCH(Dashboard!$L$17,A_Rahmendaten!$C$37:$C$40,0),3) -> 53.00291347 | V19: =V3*INDEX(A_Rahmendaten!$C$37:$H$40,MATCH(Dashboard!$L$17,A_Rahmendaten!$C$37:$C$40,0),3) -> 53.19953574 | W19: =W3*INDEX(A_Rahmendaten!$C$37:$H$40,MATCH(Dashboard!$L$17,A_Rahmendaten!$C$37:$C$40,0),3) -> 53.39615801 | X19: =X3*INDEX(A_Rahmendaten!$C$37:$H$40,MATCH(Dashboard!$L$17,A_Rahmendaten!$C$37:$C$40,0),3) -> 53.59278028 | Y19: =Y3*INDEX(A_Rahmendaten!$C$37:$H$40,MATCH(Dashboard!$L$17,A_Rahmendaten!$C$37:$C$40,0),3) -> 53.57302153 | Z19: =Z3*INDEX(A_Rahmendaten!$C$37:$H$40,MATCH(Dashboard!$L$17,A_Rahmendaten!$C$37:$C$40,0),3) -> 53.55326278 | AA19: =AA3*INDEX(A_Rahmendaten!$C$37:$H$40,MATCH(Dashboard!$L$17,A_Rahmendaten!$C$37:$C$40,0),3) -> 53.53350403 | AB19: =AB3*INDEX(A_Rahmendaten!$C$37:$H$40,MATCH(Dashboard!$L$17,A_Rahmendaten!$C$37:$C$40,0),3) -> 53.51374528 | AC19: =AC3*INDEX(A_Rahmendaten!$C$37:$H$40,MATCH(Dashboard!$L$17,A_Rahmendaten!$C$37:$C$40,0),3) -> 53.49398652 | AD19: =AD3*INDEX(A_Rahmendaten!$C$37:$H$40,MATCH(Dashboard!$L$17,A_Rahmendaten!$C$37:$C$40,0),3) -> 53.47422777 | AE19: =AE3*INDEX(A_Rahmendaten!$C$37:$H$40,MATCH(Dashboard!$L$17,A_Rahmendaten!$C$37:$C$40,0),3) -> 53.45446902 | AF19: =AF3*INDEX(A_Rahmendaten!$C$37:$H$40,MATCH(Dashboard!$L$17,A_Rahmendaten!$C$37:$C$40,0),3) -> 53.43471027 | AG19: =AG3*INDEX(A_Rahmendaten!$C$37:$H$40,MATCH(Dashboard!$L$17,A_Rahmendaten!$C$37:$C$40,0),3) -> 53.41495152 | AH19: =AH3*INDEX(A_Rahmendaten!$C$37:$H$40,MATCH(Dashboard!$L$17,A_Rahmendaten!$C$37:$C$40,0),3) -> 53.39519277 | AI19: =($BB19-$AH19)/20+AH19 -> 53.48665404 | AJ19: =($BB19-$AH19)/20+AI19 -> 53.57811532 | AK19: =($BB19-$AH19)/20+AJ19 -> 53.6695766 | AL19: =($BB19-$AH19)/20+AK19 -> 53.76103787 | AM19: =($BB19-$AH19)/20+AL19 -> 53.85249915 | AN19: =($BB19-$AH19)/20+AM19 -> 53.94396042 | AO19: 54.0354217 | AP19: 54.12688298 | AQ19: 54.21834425 | AR19: =($BB19-$AH19)/20+AQ19 -> 54.30980553 | AS19: 54.4012668 | AT19: 54.49272808 | AU19: 54.58418935 | AV19: 54.67565063 | AW19: 54.76711191 | AX19: 54.85857318 | AY19: 54.95003446 | AZ19: 55.04149573 | BA19: 55.13295701 | BB19: =INDEX(A_Rahmendaten!$E$101:$G$111,MATCH(B._Rahmendaten!$B19,A_Rahmendaten!$C$101:$C$111,0),MATCH(Dashboard!L$22,A_Rahmendaten!$E$100:$G$100,0))*AH19 -> 55.22441829
B20: Erdgas | C20: €/MWh | D20: =D4+INDEX(A_Rahmendaten!$C$44:$H$47,MATCH(Dashboard!$L$18,A_Rahmendaten!$C$44:$C$47,0),3) -> 40 | E20: =E4+INDEX(A_Rahmendaten!$C$44:$H$47,MATCH(Dashboard!$L$18,A_Rahmendaten!$C$44:$C$47,0),3) -> 47.484 | F20: =F4+INDEX(A_Rahmendaten!$C$44:$H$47,MATCH(Dashboard!$L$18,A_Rahmendaten!$C$44:$C$47,0),3) -> 123.084 | G20: =G4+INDEX(A_Rahmendaten!$C$44:$H$47,MATCH(Dashboard!$L$18,A_Rahmendaten!$C$44:$C$47,0),3) -> 74.664 | H20: =H4+INDEX(A_Rahmendaten!$C$44:$H$47,MATCH(Dashboard!$L$18,A_Rahmendaten!$C$44:$C$47,0),3) -> 45.432 | I20: =I4+INDEX(A_Rahmendaten!$C$44:$H$47,MATCH(Dashboard!$L$18,A_Rahmendaten!$C$44:$C$47,0),3) -> 36 | J20: =J4+INDEX(A_Rahmendaten!$C$44:$H$47,MATCH(Dashboard!$L$18,A_Rahmendaten!$C$44:$C$47,0),3) -> 36.04933187 | K20: =K4+INDEX(A_Rahmendaten!$C$44:$H$47,MATCH(Dashboard!$L$18,A_Rahmendaten!$C$44:$C$47,0),3) -> 36.09866374 | L20: =L4+INDEX(A_Rahmendaten!$C$44:$H$47,MATCH(Dashboard!$L$18,A_Rahmendaten!$C$44:$C$47,0),3) -> 36.14799561 | M20: =M4+INDEX(A_Rahmendaten!$C$44:$H$47,MATCH(Dashboard!$L$18,A_Rahmendaten!$C$44:$C$47,0),3) -> 36.19732748 | N20: =N4+INDEX(A_Rahmendaten!$C$44:$H$47,MATCH(Dashboard!$L$18,A_Rahmendaten!$C$44:$C$47,0),3) -> 36.24665935 | O20: =O4+INDEX(A_Rahmendaten!$C$44:$H$47,MATCH(Dashboard!$L$18,A_Rahmendaten!$C$44:$C$47,0),3) -> 36.29599122 | P20: =P4+INDEX(A_Rahmendaten!$C$44:$H$47,MATCH(Dashboard!$L$18,A_Rahmendaten!$C$44:$C$47,0),3) -> 36.3453231 | Q20: =Q4+INDEX(A_Rahmendaten!$C$44:$H$47,MATCH(Dashboard!$L$18,A_Rahmendaten!$C$44:$C$47,0),3) -> 36.39465497 | R20: =R4+INDEX(A_Rahmendaten!$C$44:$H$47,MATCH(Dashboard!$L$18,A_Rahmendaten!$C$44:$C$47,0),3) -> 36.44398684 | S20: =S4+INDEX(A_Rahmendaten!$C$44:$H$47,MATCH(Dashboard!$L$18,A_Rahmendaten!$C$44:$C$47,0),3) -> 36.49331871 | T20: =T4+INDEX(A_Rahmendaten!$C$44:$H$47,MATCH(Dashboard!$L$18,A_Rahmendaten!$C$44:$C$47,0),3) -> 36.54265058 | U20: =U4+INDEX(A_Rahmendaten!$C$44:$H$47,MATCH(Dashboard!$L$18,A_Rahmendaten!$C$44:$C$47,0),3) -> 36.59198245 | V20: =V4+INDEX(A_Rahmendaten!$C$44:$H$47,MATCH(Dashboard!$L$18,A_Rahmendaten!$C$44:$C$47,0),3) -> 36.64131432 | W20: =W4+INDEX(A_Rahmendaten!$C$44:$H$47,MATCH(Dashboard!$L$18,A_Rahmendaten!$C$44:$C$47,0),3) -> 36.69064619 | X20: =X4+INDEX(A_Rahmendaten!$C$44:$H$47,MATCH(Dashboard!$L$18,A_Rahmendaten!$C$44:$C$47,0),3) -> 36.73997806 | Y20: =Y4+INDEX(A_Rahmendaten!$C$44:$H$47,MATCH(Dashboard!$L$18,A_Rahmendaten!$C$44:$C$47,0),3) -> 36.78930993 | Z20: =Z4+INDEX(A_Rahmendaten!$C$44:$H$47,MATCH(Dashboard!$L$18,A_Rahmendaten!$C$44:$C$47,0),3) -> 36.8386418 | AA20: =AA4+INDEX(A_Rahmendaten!$C$44:$H$47,MATCH(Dashboard!$L$18,A_Rahmendaten!$C$44:$C$47,0),3) -> 36.88797367 | AB20: =AB4+INDEX(A_Rahmendaten!$C$44:$H$47,MATCH(Dashboard!$L$18,A_Rahmendaten!$C$44:$C$47,0),3) -> 36.93730554 | AC20: =AC4+INDEX(A_Rahmendaten!$C$44:$H$47,MATCH(Dashboard!$L$18,A_Rahmendaten!$C$44:$C$47,0),3) -> 36.98663741 | AD20: =AD4+INDEX(A_Rahmendaten!$C$44:$H$47,MATCH(Dashboard!$L$18,A_Rahmendaten!$C$44:$C$47,0),3) -> 37.03596929 | AE20: =AE4+INDEX(A_Rahmendaten!$C$44:$H$47,MATCH(Dashboard!$L$18,A_Rahmendaten!$C$44:$C$47,0),3) -> 37.08530116 | AF20: =AF4+INDEX(A_Rahmendaten!$C$44:$H$47,MATCH(Dashboard!$L$18,A_Rahmendaten!$C$44:$C$47,0),3) -> 37.13463303 | AG20: =AG4+INDEX(A_Rahmendaten!$C$44:$H$47,MATCH(Dashboard!$L$18,A_Rahmendaten!$C$44:$C$47,0),3) -> 37.1839649 | AH20: =AH4+INDEX(A_Rahmendaten!$C$44:$H$47,MATCH(Dashboard!$L$18,A_Rahmendaten!$C$44:$C$47,0),3) -> 37.23329677 | AI20: 37.1961625 | AJ20: 37.15902822 | AK20: 37.12189395 | AL20: 37.08475968 | AM20: 37.04762541 | AN20: 37.01049114 | AO20: 36.97335686 | AP20: 36.93622259 | AQ20: 36.89908832 | AR20: =($BB20-$AH20)/20+AQ20 -> 36.86195405 | AS20: 36.82481978 | AT20: 36.7876855 | AU20: 36.75055123 | AV20: 36.71341696 | AW20: 36.67628269 | AX20: 36.63914842 | AY20: 36.60201414 | AZ20: 36.56487987 | BA20: 36.5277456 | BB20: =INDEX([1]A_Rahmendaten!$E$101:$G$111,MATCH([1]B._Rahmendaten!$B6,[1]A_Rahmendaten!$C$101:$C$111,0),MATCH([1]Dashboard!L$22,[1]A_Rahmendaten!$E$100:$G$100,0))*AH20 -> 36.49061133
B21: Steinkohlen | C21: €/MWh | D21: =A_Rahmendaten!E8 -> 15.444 | E21: =($N21-$D21)/10+D21 -> 15.444 | F21: 15.444 | G21: 15.444 | H21: 15.444 | I21: 15.444 | J21: 15.444 | K21: 15.444 | L21: 15.444 | M21: 15.444 | N21: =A_Rahmendaten!F8 -> 15.444 | O21: =($X21-$N21)/10+N21 -> 15.444 | P21: 15.444 | Q21: 15.444 | R21: 15.444 | S21: 15.444 | T21: 15.444 | U21: 15.444 | V21: 15.444 | W21: 15.444 | X21: =A_Rahmendaten!G8 -> 15.444 | Y21: =($AH21-$X21)/10+X21 -> 15.444 | Z21: 15.444 | AA21: 15.444 | AB21: 15.444 | AC21: 15.444 | AD21: 15.444 | AE21: 15.444 | AF21: 15.444 | AG21: 15.444 | AH21: =A_Rahmendaten!H8 -> 15.444 | AI21: =($BB21-$AH21)/20+AH21 -> 15.444 | AJ21: 15.444 | AK21: 15.444 | AL21: 15.444 | AM21: 15.444 | AN21: 15.444 | AO21: 15.444 | AP21: 15.444 | AQ21: 15.444 | AR21: =($BB21-$AH21)/20+AQ21 -> 15.444 | AS21: 15.444 | AT21: 15.444 | AU21: 15.444 | AV21: 15.444 | AW21: 15.444 | AX21: 15.444 | AY21: 15.444 | AZ21: 15.444 | BA21: 15.444 | BB21: =INDEX(A_Rahmendaten!$E$101:$G$111,MATCH(B._Rahmendaten!$B21,A_Rahmendaten!$C$101:$C$111,0),MATCH(Dashboard!L$22,A_Rahmendaten!$E$100:$G$100,0))*AH21 -> 15.444
B22: Biomasse | C22: €/MWh | D22: =A_Rahmendaten!E9 -> 24.948 | E22: =($N22-$D22)/10+D22 -> 25.1496 | F22: 25.3512 | G22: 25.5528 | H22: 25.7544 | I22: 25.956 | J22: 26.1576 | K22: 26.3592 | L22: 26.5608 | M22: 26.7624 | N22: =A_Rahmendaten!F9 -> 26.964 | O22: =($X22-$N22)/10+N22 -> 27.0252 | P22: 27.0864 | Q22: 27.1476 | R22: 27.2088 | S22: 27.27 | T22: 27.3312 | U22: 27.3924 | V22: 27.4536 | W22: 27.5148 | X22: =A_Rahmendaten!G9 -> 27.576 | Y22: =($AH22-$X22)/10+X22 -> 27.774 | Z22: 27.972 | AA22: 28.17 | AB22: 28.368 | AC22: 28.566 | AD22: 28.764 | AE22: 28.962 | AF22: 29.16 | AG22: 29.358 | AH22: =A_Rahmendaten!H9 -> 29.556 | AI22: =($BB22-$AH22)/20+AH22 -> 29.69805821 | AJ22: 29.84011642 | AK22: 29.98217463 | AL22: 30.12423284 | AM22: 30.26629105 | AN22: 30.40834927 | AO22: 30.55040748 | AP22: 30.69246569 | AQ22: 30.8345239 | AR22: 30.97658211 | AS22: 31.11864032 | AT22: 31.26069853 | AU22: 31.40275674 | AV22: 31.54481495 | AW22: 31.68687316 | AX22: 31.82893138 | AY22: 31.97098959 | AZ22: 32.1130478 | BA22: 32.25510601 | BB22: =INDEX(A_Rahmendaten!$E$101:$G$111,MATCH(B._Rahmendaten!$B22,A_Rahmendaten!$C$101:$C$111,0),MATCH(Dashboard!L$22,A_Rahmendaten!$E$100:$G$100,0))*AH22 -> 32.39716422
B23: Heizöl | C23: €/MWh | D23: =A_Rahmendaten!E10 -> 49.5 | E23: =($N23-$D23)/10+D23 -> 50.3676 | F23: 51.2352 | G23: 52.1028 | H23: 52.9704 | I23: 53.838 | J23: 54.7056 | K23: 55.5732 | L23: 56.4408 | M23: 57.3084 | N23: =A_Rahmendaten!F10 -> 58.176 | O23: =($X23-$N23)/10+N23 -> 58.9284 | P23: 59.6808 | Q23: 60.4332 | R23: 61.1856 | S23: 61.938 | T23: 62.6904 | U23: 63.4428 | V23: 64.1952 | W23: 64.9476 | X23: =A_Rahmendaten!G10 -> 65.7 | Y23: =($AH23-$X23)/10+X23 -> 66.0564 | Z23: 66.4128 | AA23: 66.7692 | AB23: 67.1256 | AC23: 67.482 | AD23: 67.8384 | AE23: 68.1948 | AF23: 68.5512 | AG23: 68.9076 | AH23: =A_Rahmendaten!H10 -> 69.264 | AI23: =($BB23-$AH23)/20+AH23 -> 69.92406535 | AJ23: 70.58413069 | AK23: 71.24419604 | AL23: 71.90426139 | AM23: 72.56432673 | AN23: 73.22439208 | AO23: 73.88445743 | AP23: 74.54452277 | AQ23: 75.20458812 | AR23: 75.86465347 | AS23: 76.52471881 | AT23: 77.18478416 | AU23: 77.8448495 | AV23: 78.50491485 | AW23: 79.1649802 | AX23: 79.82504554 | AY23: 80.48511089 | AZ23: 81.14517624 | BA23: 81.80524158 | BB23: =INDEX(A_Rahmendaten!$E$101:$G$111,MATCH(B._Rahmendaten!$B23,A_Rahmendaten!$C$101:$C$111,0),MATCH(Dashboard!L$22,A_Rahmendaten!$E$100:$G$100,0))*AH23 -> 82.46530693
B24: Abfall, erneuerbar | C24: €/MWh | D24: =A_Rahmendaten!E11 -> 15.084 | E24: =($N24-$D24)/10+D24 -> 15.084 | F24: 15.084 | G24: 15.084 | H24: 15.084 | I24: 15.084 | J24: 15.084 | K24: 15.084 | L24: 15.084 | M24: 15.084 | N24: =A_Rahmendaten!F11 -> 15.084 | O24: =($X24-$N24)/10+N24 -> 15.084 | P24: 15.084 | Q24: 15.084 | R24: 15.084 | S24: 15.084 | T24: 15.084 | U24: 15.084 | V24: 15.084 | W24: 15.084 | X24: =A_Rahmendaten!G11 -> 15.084 | Y24: =($AH24-$X24)/10+X24 -> 15.084 | Z24: 15.084 | AA24: 15.084 | AB24: 15.084 | AC24: 15.084 | AD24: 15.084 | AE24: 15.084 | AF24: 15.084 | AG24: 15.084 | AH24: =A_Rahmendaten!H11 -> 15.084 | AI24: =($BB24-$AH24)/20+AH24 -> 15.084 | AJ24: 15.084 | AK24: 15.084 | AL24: 15.084 | AM24: 15.084 | AN24: 15.084 | AO24: 15.084 | AP24: 15.084 | AQ24: 15.084 | AR24: 15.084 | AS24: 15.084 | AT24: 15.084 | AU24: 15.084 | AV24: 15.084 | AW24: 15.084 | AX24: 15.084 | AY24: 15.084 | AZ24: 15.084 | BA24: 15.084 | BB24: =INDEX(A_Rahmendaten!$E$101:$G$111,MATCH(B._Rahmendaten!$B24,A_Rahmendaten!$C$101:$C$111,0),MATCH(Dashboard!L$22,A_Rahmendaten!$E$100:$G$100,0))*AH24 -> 15.084
B25: Abfall, nicht erneuerbar | C25: €/MWh | D25: =A_Rahmendaten!E12 -> 7.704 | E25: =($N25-$D25)/10+D25 -> 7.704 | F25: 7.704 | G25: 7.704 | H25: 7.704 | I25: 7.704 | J25: 7.704 | K25: 7.704 | L25: 7.704 | M25: 7.704 | N25: =A_Rahmendaten!F12 -> 7.704 | O25: =($X25-$N25)/10+N25 -> 7.704 | P25: 7.704 | Q25: 7.704 | R25: 7.704 | S25: 7.704 | T25: 7.704 | U25: 7.704 | V25: 7.704 | W25: 7.704 | X25: =A_Rahmendaten!G12 -> 7.704 | Y25: =($AH25-$X25)/10+X25 -> 7.704 | Z25: 7.704 | AA25: 7.704 | AB25: 7.704 | AC25: 7.704 | AD25: 7.704 | AE25: 7.704 | AF25: 7.704 | AG25: 7.704 | AH25: =A_Rahmendaten!H12 -> 7.704 | AI25: =($BB25-$AH25)/20+AH25 -> 7.704 | AJ25: 7.704 | AK25: 7.704 | AL25: 7.704 | AM25: 7.704 | AN25: 7.704 | AO25: 7.704 | AP25: 7.704 | AQ25: 7.704 | AR25: 7.704 | AS25: 7.704 | AT25: 7.704 | AU25: 7.704 | AV25: 7.704 | AW25: 7.704 | AX25: 7.704 | AY25: 7.704 | AZ25: 7.704 | BA25: 7.704 | BB25: =INDEX(A_Rahmendaten!$E$101:$G$111,MATCH(B._Rahmendaten!$B25,A_Rahmendaten!$C$101:$C$111,0),MATCH(Dashboard!L$22,A_Rahmendaten!$E$100:$G$100,0))*AH25 -> 7.704
B26: Andere fossile | C26: €/MWh | D26: =A_Rahmendaten!E13 -> 19.8 | E26: =($N26-$D26)/10+D26 -> 19.8 | F26: 19.8 | G26: 19.8 | H26: 19.8 | I26: 19.8 | J26: 19.8 | K26: 19.8 | L26: 19.8 | M26: 19.8 | N26: =A_Rahmendaten!F13 -> 19.8 | O26: =($X26-$N26)/10+N26 -> 19.8 | P26: 19.8 | Q26: 19.8 | R26: 19.8 | S26: 19.8 | T26: 19.8 | U26: 19.8 | V26: 19.8 | W26: 19.8 | X26: =A_Rahmendaten!G13 -> 19.8 | Y26: =($AH26-$X26)/10+X26 -> 19.8 | Z26: 19.8 | AA26: 19.8 | AB26: 19.8 | AC26: 19.8 | AD26: 19.8 | AE26: 19.8 | AF26: 19.8 | AG26: 19.8 | AH26: =A_Rahmendaten!H13 -> 19.8 | AI26: =($BB26-$AH26)/20+AH26 -> 19.8 | AJ26: 19.8 | AK26: 19.8 | AL26: 19.8 | AM26: 19.8 | AN26: 19.8 | AO26: 19.8 | AP26: 19.8 | AQ26: 19.8 | AR26: 19.8 | AS26: 19.8 | AT26: 19.8 | AU26: 19.8 | AV26: 19.8 | AW26: 19.8 | AX26: 19.8 | AY26: 19.8 | AZ26: 19.8 | BA26: 19.8 | BB26: =INDEX(A_Rahmendaten!$E$101:$G$111,MATCH(B._Rahmendaten!$B26,A_Rahmendaten!$C$101:$C$111,0),MATCH(Dashboard!L$22,A_Rahmendaten!$E$100:$G$100,0))*AH26 -> 19.8
B27: Strommix-Methan | C27: €/MWh | D27: =D19/0.7/0.7 -> 61.2244898 | E27: =($N27-$D27)/10+D27 -> 65.63807298 | F27: 70.05165616 | G27: 74.46523934 | H27: 78.87882252 | I27: 83.2924057 | J27: 87.70598888 | K27: 92.11957206 | L27: 96.53315524 | M27: 100.9467384 | N27: =N19/0.7/0.7 -> 105.3603216 | O27: =($X27-$N27)/10+N27 -> 105.7615915 | P27: 106.1628615 | Q27: 106.5641314 | R27: 106.9654014 | S27: 107.3666713 | T27: 107.7679412 | U27: 108.1692112 | V27: 108.5704811 | W27: 108.971751 | X27: =X19/0.7/0.7 -> 109.373021 | Y27: =($AH27-$X27)/10+X27 -> 109.332697 | Z27: 109.292373 | AA27: 109.252049 | AB27: 109.2117251 | AC27: 109.1714011 | AD27: 109.1310771 | AE27: 109.0907531 | AF27: 109.0504291 | AG27: 109.0101051 | AH27: =AH19/0.7/0.7 -> 108.9697812 | AI27: =($BB27-$AH27)/20+AH27 -> 109.1564368 | AJ27: 109.3430925 | AK27: 109.5297482 | AL27: 109.7164038 | AM27: 109.9030595 | AN27: 110.0897151 | AO27: 110.2763708 | AP27: 110.4630265 | AQ27: 110.6496821 | AR27: =AR19/0.7/0.7 -> 110.8363378 | AS27: 111.0229935 | AT27: 111.2096491 | AU27: 111.3963048 | AV27: 111.5829605 | AW27: 111.7696161 | AX27: 111.9562718 | AY27: 112.1429275 | AZ27: 112.3295831 | BA27: 112.5162388 | BB27: =BB19/0.7/0.7 -> 112.7028945
B28: Strommix-Wasserstoff | C28: €/MWh | D28: =D19/0.7 -> 42.85714286 | E28: =($N28-$D28)/10+D28 -> 45.94665108 | F28: 49.03615931 | G28: 52.12566754 | H28: 55.21517576 | I28: 58.30468399 | J28: 61.39419221 | K28: 64.48370044 | L28: 67.57320867 | M28: 70.66271689 | N28: =N19/0.7 -> 73.75222512 | O28: =($X28-$N28)/10+N28 -> 74.03311408 | P28: 74.31400303 | Q28: 74.59489199 | R28: 74.87578095 | S28: 75.1566699 | T28: 75.43755886 | U28: 75.71844782 | V28: 75.99933677 | W28: 76.28022573 | X28: =X19/0.7 -> 76.56111469 | Y28: =($AH28-$X28)/10+X28 -> 76.5328879 | Z28: 76.50466111 | AA28: 76.47643433 | AB28: 76.44820754 | AC28: 76.41998075 | AD28: 76.39175396 | AE28: 76.36352717 | AF28: 76.33530039 | AG28: 76.3070736 | AH28: =AH19/0.7 -> 76.27884681 | AI28: =($BB28-$AH28)/20+AH28 -> 76.40950578 | AJ28: 76.54016474 | AK28: 76.67082371 | AL28: 76.80148267 | AM28: 76.93214164 | AN28: 77.0628006 | AO28: 77.19345957 | AP28: 77.32411854 | AQ28: 77.4547775 | AR28: =AR19/0.7 -> 77.58543647 | AS28: 77.71609543 | AT28: 77.8467544 | AU28: 77.97741336 | AV28: 78.10807233 | AW28: 78.2387313 | AX28: 78.36939026 | AY28: 78.50004923 | AZ28: 78.63070819 | BA28: 78.76136716 | BB28: =BB19/0.7 -> 78.89202612
B29: Braunkohle | C29: €/MWh | D29: =A_Rahmendaten!E16 -> 10.008 | E29: 10.008 | F29: 10.008 | G29: 10.008 | H29: 10.008 | I29: 10.008 | J29: 10.008 | K29: 10.008 | L29: 10.008 | M29: 10.008 | N29: =A_Rahmendaten!F16 -> 10.008 | O29: 10.008 | P29: 10.008 | Q29: 10.008 | R29: 10.008 | S29: 10.008 | T29: 10.008 | U29: 10.008 | V29: 10.008 | W29: 10.008 | X29: =A_Rahmendaten!G16 -> 10.008 | Y29: 10.008 | Z29: 10.008 | AA29: 10.008 | AB29: 10.008 | AC29: 10.008 | AD29: 10.008 | AE29: 10.008 | AF29: 10.008 | AG29: 10.008 | AH29: =A_Rahmendaten!H16 -> 10.008 | AI29: 10.008 | AJ29: 10.008 | AK29: 10.008 | AL29: 10.008 | AM29: 10.008 | AN29: 10.008 | AO29: 10.008 | AP29: 10.008 | AQ29: 10.008 | AR29: 10.008 | AS29: 10.008 | AT29: 10.008 | AU29: 10.008 | AV29: 10.008 | AW29: 10.008 | AX29: 10.008 | AY29: 10.008 | AZ29: 10.008 | BA29: 10.008 | BB29: =INDEX(A_Rahmendaten!$E$101:$G$111,MATCH(B._Rahmendaten!$B29,A_Rahmendaten!$C$101:$C$111,0),MATCH(Dashboard!L$22,A_Rahmendaten!$E$100:$G$100,0))*AH29 -> 10.008
B30: EE-Methan | C30: €/MWh | D30: =D27 -> 61.2244898 | E30: 65.63807298 | F30: 70.05165616 | G30: 74.46523934 | H30: 78.87882252 | I30: 83.2924057 | J30: 87.70598888 | K30: 92.11957206 | L30: 96.53315524 | M30: 100.9467384 | N30: =N27 -> 105.3603216 | O30: 105.7615915 | P30: 106.1628615 | Q30: 106.5641314 | R30: 106.9654014 | S30: 107.3666713 | T30: 107.7679412 | U30: 108.1692112 | V30: 108.5704811 | W30: 108.971751 | X30: =X27 -> 109.373021 | Y30: 109.332697 | Z30: 109.292373 | AA30: 109.252049 | AB30: 109.2117251 | AC30: 109.1714011 | AD30: 109.1310771 | AE30: 109.0907531 | AF30: 109.0504291 | AG30: 109.0101051 | AH30: =AH27 -> 108.9697812 | AI30: 109.1564368 | AJ30: 109.3430925 | AK30: 109.5297482 | AL30: 109.7164038 | AM30: 109.9030595 | AN30: 110.0897151 | AO30: 110.2763708 | AP30: 110.4630265 | AQ30: 110.6496821 | AR30: =AR27 -> 110.8363378 | AS30: 111.0229935 | AT30: 111.2096491 | AU30: 111.3963048 | AV30: 111.5829605 | AW30: 111.7696161 | AX30: 111.9562718 | AY30: 112.1429275 | AZ30: 112.3295831 | BA30: 112.5162388 | BB30: =BB27 -> 112.7028945
B31: EE-Wasserstoff | C31: €/MWh | D31: =D28 -> 42.85714286 | E31: =($N31-$D31)/10+D31 -> 45.94665108 | F31: =($N31-$D31)/10+E31 -> 49.03615931 | G31: =($N31-$D31)/10+F31 -> 52.12566754 | H31: =($N31-$D31)/10+G31 -> 55.21517576 | I31: =($N31-$D31)/10+H31 -> 58.30468399 | J31: =($N31-$D31)/10+I31 -> 61.39419221 | K31: =($N31-$D31)/10+J31 -> 64.48370044 | L31: =($N31-$D31)/10+K31 -> 67.57320867 | M31: =($N31-$D31)/10+L31 -> 70.66271689 | N31: =N28 -> 73.75222512 | O31: =($X31-$N31)/10+N31 -> 74.03311408 | P31: =($X31-$N31)/10+O31 -> 74.31400303 | Q31: =($X31-$N31)/10+P31 -> 74.59489199 | R31: =($X31-$N31)/10+Q31 -> 74.87578095 | S31: =($X31-$N31)/10+R31 -> 75.1566699 | T31: =($X31-$N31)/10+S31 -> 75.43755886 | U31: =($X31-$N31)/10+T31 -> 75.71844782 | V31: =($X31-$N31)/10+U31 -> 75.99933677 | W31: =($X31-$N31)/10+V31 -> 76.28022573 | X31: =X28 -> 76.56111469 | Y31: =($AH31-$X31)/10+X31 -> 76.5328879 | Z31: =($AH31-$X31)/10+Y31 -> 76.50466111 | AA31: =($AH31-$X31)/10+Z31 -> 76.47643433 | AB31: =($AH31-$X31)/10+AA31 -> 76.44820754 | AC31: =($AH31-$X31)/10+AB31 -> 76.41998075 | AD31: =($AH31-$X31)/10+AC31 -> 76.39175396 | AE31: =($AH31-$X31)/10+AD31 -> 76.36352717 | AF31: =($AH31-$X31)/10+AE31 -> 76.33530039 | AG31: =($AH31-$X31)/10+AF31 -> 76.3070736 | AH31: =AH28 -> 76.27884681 | AI31: =($BB31-$AH31)/20+AH31 -> 76.40950578 | AJ31: =($BB31-$AH31)/20+AI31 -> 76.54016474 | AK31: =($BB31-$AH31)/20+AJ31 -> 76.67082371 | AL31: =($BB31-$AH31)/20+AK31 -> 76.80148267 | AM31: =($BB31-$AH31)/20+AL31 -> 76.93214164 | AN31: =($BB31-$AH31)/20+AM31 -> 77.0628006 | AO31: =($BB31-$AH31)/20+AN31 -> 77.19345957 | AP31: =($BB31-$AH31)/20+AO31 -> 77.32411854 | AQ31: =($BB31-$AH31)/20+AP31 -> 77.4547775 | AR31: =AR28 -> 77.58543647 | AS31: =($BB31-$AH31)/20+AR31 -> 77.71609543 | AT31: =($BB31-$AH31)/20+AS31 -> 77.8467544 | AU31: =($BB31-$AH31)/20+AT31 -> 77.97741336 | AV31: =($BB31-$AH31)/20+AU31 -> 78.10807233 | AW31: =($BB31-$AH31)/20+AV31 -> 78.2387313 | AX31: =($BB31-$AH31)/20+AW31 -> 78.36939026 | AY31: =($BB31-$AH31)/20+AX31 -> 78.50004923 | AZ31: =($BB31-$AH31)/20+AY31 -> 78.63070819 | BA31: =($BB31-$AH31)/20+AZ31 -> 78.76136716 | BB31: =BB28 -> 78.89202612
B33: CO2-Preise | AH33: Auslauf für Voraussicht
C34: Einheit | D34: 2020 | E34: 2021 | F34: 2022 | G34: 2023 | H34: 2024 | I34: 2025 | J34: 2026 | K34: 2027 | L34: 2028 | M34: 2029 | N34: 2030 | O34: 2031 | P34: 2032 | Q34: 2033 | R34: 2034 | S34: 2035 | T34: 2036 | U34: 2037 | V34: 2038 | W34: 2039 | X34: 2040 | Y34: 2041 | Z34: 2042 | AA34: 2043 | AB34: 2044 | AC34: 2045 | AD34: 2046 | AE34: 2047 | AF34: 2048 | AG34: 2049 | AH34: 2050 | AI34: 2051 | AJ34: 2052 | AK34: 2053 | AL34: 2054 | AM34: 2055 | AN34: 2056 | AO34: 2057 | AP34: 2058 | AQ34: 2059 | AR34: 2060 | AS34: 2061 | AT34: 2062 | AU34: 2063 | AV34: 2064 | AW34: 2065 | AX34: 2066 | AY34: 2067 | AZ34: 2068 | BA34: 2069 | BB34: 2070
B35: Kein CO2-Preis | C35: €/tCO2 | D35: =A_Rahmendaten!E29 -> 0 | E35: =($N35-$D35)/10+D35 -> 0 | F35: =($N35-$D35)/10+E35 -> 0 | G35: =($N35-$D35)/10+F35 -> 0 | H35: =($N35-$D35)/10+G35 -> 0 | I35: =($N35-$D35)/10+H35 -> 0 | J35: =($N35-$D35)/10+I35 -> 0 | K35: =($N35-$D35)/10+J35 -> 0 | L35: =($N35-$D35)/10+K35 -> 0 | M35: =($N35-$D35)/10+L35 -> 0 | N35: =A_Rahmendaten!F29 -> 0 | O35: =($X35-$N35)/10+N35 -> 0 | P35: =($X35-$N35)/10+O35 -> 0 | Q35: =($X35-$N35)/10+P35 -> 0 | R35: =($X35-$N35)/10+Q35 -> 0 | S35: =($X35-$N35)/10+R35 -> 0 | T35: =($X35-$N35)/10+S35 -> 0 | U35: =($X35-$N35)/10+T35 -> 0 | V35: =($X35-$N35)/10+U35 -> 0 | W35: =($X35-$N35)/10+V35 -> 0 | X35: =A_Rahmendaten!G29 -> 0 | Y35: =($AH35-$X35)/10+X35 -> 0 | Z35: =($AH35-$X35)/10+Y35 -> 0 | AA35: =($AH35-$X35)/10+Z35 -> 0 | AB35: =($AH35-$X35)/10+AA35 -> 0 | AC35: =($AH35-$X35)/10+AB35 -> 0 | AD35: =($AH35-$X35)/10+AC35 -> 0 | AE35: =($AH35-$X35)/10+AD35 -> 0 | AF35: =($AH35-$X35)/10+AE35 -> 0 | AG35: =($AH35-$X35)/10+AF35 -> 0 | AH35: =A_Rahmendaten!H29 -> 0 | AI35: 0 | AJ35: 0 | AK35: 0 | AL35: 0 | AM35: 0 | AN35: 0 | AO35: 0 | AP35: 0 | AQ35: 0 | AR35: 0 | AS35: 0 | AT35: 0 | AU35: 0 | AV35: 0 | AW35: 0 | AX35: 0 | AY35: 0 | AZ35: 0 | BA35: 0 | BB35: 0
B36: Niedrig | C36: €/tCO2 | D36: =A_Rahmendaten!E30 -> 75 | E36: =($N36-$D36)/10+D36 -> 75 | F36: =($N36-$D36)/10+E36 -> 75 | G36: 75 | H36: 75 | I36: 75 | J36: 75 | K36: 75 | L36: 75 | M36: 75 | N36: =A_Rahmendaten!F30 -> 75 | O36: =($X36-$N36)/10+N36 -> 75 | P36: =($X36-$N36)/10+O36 -> 75 | Q36: 75 | R36: 75 | S36: 75 | T36: 75 | U36: 75 | V36: 75 | W36: 75 | X36: =A_Rahmendaten!G30 -> 75 | Y36: =($AH36-$X36)/10+X36 -> 75 | Z36: =($AH36-$X36)/10+Y36 -> 75 | AA36: 75 | AB36: 75 | AC36: 75 | AD36: 75 | AE36: 75 | AF36: 75 | AG36: 75 | AH36: =A_Rahmendaten!H30 -> 75 | AI36: =($BB36-$AH36)/20+AH36 -> 75 | AJ36: 75 | AK36: 75 | AL36: 75 | AM36: 75 | AN36: 75 | AO36: 75 | AP36: 75 | AQ36: 75 | AR36: 75 | AS36: 75 | AT36: 75 | AU36: 75 | AV36: 75 | AW36: 75 | AX36: 75 | AY36: 75 | AZ36: 75 | BA36: 75 | BB36: =INDEX(A_Rahmendaten!$E$119:$G$122,MATCH($B36,A_Rahmendaten!$C$119:$C$122,0),MATCH(Dashboard!$L$23,A_Rahmendaten!$E$118:$G$118,0))*AH36 -> 75
B37: Mittel | C37: €/tCO2 | D37: =A_Rahmendaten!E31 -> 75 | E37: =($N37-$D37)/10+D37 -> 77.5 | F37: 80 | G37: 82.5 | H37: 85 | I37: 87.5 | J37: 90 | K37: 92.5 | L37: 95 | M37: 97.5 | N37: =A_Rahmendaten!F31 -> 100 | O37: =($X37-$N37)/10+N37 -> 102.5 | P37: 105 | Q37: 107.5 | R37: 110 | S37: 112.5 | T37: 115 | U37: 117.5 | V37: 120 | W37: 122.5 | X37: =A_Rahmendaten!G31 -> 125 | Y37: =($AH37-$X37)/10+X37 -> 127.5 | Z37: 130 | AA37: 132.5 | AB37: 135 | AC37: 137.5 | AD37: 140 | AE37: 142.5 | AF37: 145 | AG37: 147.5 | AH37: =A_Rahmendaten!H31 -> 150 | AI37: =($BB37-$AH37)/20+AH37 -> 153.75 | AJ37: 157.5 | AK37: 161.25 | AL37: 165 | AM37: 168.75 | AN37: 172.5 | AO37: 176.25 | AP37: 180 | AQ37: 183.75 | AR37: 187.5 | AS37: 191.25 | AT37: 195 | AU37: 198.75 | AV37: 202.5 | AW37: 206.25 | AX37: 210 | AY37: 213.75 | AZ37: 217.5 | BA37: 221.25 | BB37: =INDEX(A_Rahmendaten!$E$119:$G$122,MATCH($B37,A_Rahmendaten!$C$119:$C$122,0),MATCH(Dashboard!$L$23,A_Rahmendaten!$E$118:$G$118,0))*AH37 -> 225
B38: Hoch | C38: €/tCO2 | D38: =A_Rahmendaten!E32 -> 75 | E38: =($N38-$D38)/10+D38 -> 82.5 | F38: 90 | G38: 97.5 | H38: 105 | I38: 112.5 | J38: 120 | K38: 127.5 | L38: 135 | M38: 142.5 | N38: =A_Rahmendaten!F32 -> 150 | O38: =($X38-$N38)/10+N38 -> 165 | P38: 180 | Q38: 195 | R38: 210 | S38: 225 | T38: 240 | U38: 255 | V38: 270 | W38: 285 | X38: =A_Rahmendaten!G32 -> 300 | Y38: =($AH38-$X38)/10+X38 -> 300 | Z38: 300 | AA38: 300 | AB38: 300 | AC38: 300 | AD38: 300 | AE38: 300 | AF38: 300 | AG38: 300 | AH38: =A_Rahmendaten!H32 -> 300 | AI38: =($BB38-$AH38)/20+AH38 -> 315 | AJ38: 330 | AK38: 345 | AL38: 360 | AM38: 375 | AN38: 390 | AO38: 405 | AP38: 420 | AQ38: 435 | AR38: 450 | AS38: 465 | AT38: 480 | AU38: 495 | AV38: 510 | AW38: 525 | AX38: 540 | AY38: 555 | AZ38: 570 | BA38: 585 | BB38: =INDEX(A_Rahmendaten!$E$119:$G$122,MATCH($B38,A_Rahmendaten!$C$119:$C$122,0),MATCH(Dashboard!$L$23,A_Rahmendaten!$E$118:$G$118,0))*AH38 -> 600
B42: Subventionen
C43: Einheit | D43: 2020 | E43: 2021 | F43: 2022 | G43: 2023 | H43: 2024 | I43: 2025 | J43: 2026 | K43: 2027 | L43: 2028 | M43: 2029 | N43: 2030 | O43: 2031 | P43: 2032 | Q43: 2033 | R43: 2034 | S43: 2035 | T43: 2036 | U43: 2037 | V43: 2038 | W43: 2039 | X43: 2040 | Y43: 2041 | Z43: 2042 | AA43: 2043 | AB43: 2044 | AC43: 2045 | AD43: 2046 | AE43: 2047 | AF43: 2048 | AG43: 2049 | AH43: 2050
B44: Strom | C44: €/MWh | D44: =A_Rahmendaten!E51 -> 0 | E44: =($N44-$D44)/10+D44 -> 0 | F44: =($N44-$D44)/10+E44 -> 0 | G44: 0 | H44: 0 | I44: 0 | J44: 0 | K44: 0 | L44: 0 | M44: 0 | N44: =A_Rahmendaten!F51 -> 0 | O44: =($X44-$N44)/10+N44 -> 0 | P44: =($X44-$N44)/10+O44 -> 0 | Q44: 0 | R44: 0 | S44: 0 | T44: 0 | U44: 0 | V44: 0 | W44: 0 | X44: =A_Rahmendaten!G51 -> 0 | Y44: =($AH44-$X44)/10+X44 -> 0 | Z44: =($AH44-$X44)/10+Y44 -> 0 | AA44: 0 | AB44: 0 | AC44: 0 | AD44: 0 | AE44: 0 | AF44: 0 | AG44: 0 | AH44: =A_Rahmendaten!H51 -> 0
B45: Erdgas | C45: €/MWh | D45: =A_Rahmendaten!E52 -> 0 | E45: =($N45-$D45)/10+D45 -> 0 | F45: 0 | G45: 0 | H45: 0 | I45: 0 | J45: 0 | K45: 0 | L45: 0 | M45: 0 | N45: =A_Rahmendaten!F52 -> 0 | O45: =($X45-$N45)/10+N45 -> 0 | P45: 0 | Q45: 0 | R45: 0 | S45: 0 | T45: 0 | U45: 0 | V45: 0 | W45: 0 | X45: =A_Rahmendaten!G52 -> 0 | Y45: =($AH45-$X45)/10+X45 -> 0 | Z45: 0 | AA45: 0 | AB45: 0 | AC45: 0 | AD45: 0 | AE45: 0 | AF45: 0 | AG45: 0 | AH45: =A_Rahmendaten!H52 -> 0
B46: Steinkohlen | C46: €/MWh | D46: =A_Rahmendaten!E53 -> 0 | E46: =($N46-$D46)/10+D46 -> 0 | F46: 0 | G46: 0 | H46: 0 | I46: 0 | J46: 0 | K46: 0 | L46: 0 | M46: 0 | N46: =A_Rahmendaten!F53 -> 0 | O46: =($X46-$N46)/10+N46 -> 0 | P46: 0 | Q46: 0 | R46: 0 | S46: 0 | T46: 0 | U46: 0 | V46: 0 | W46: 0 | X46: =A_Rahmendaten!G53 -> 0 | Y46: =($AH46-$X46)/10+X46 -> 0 | Z46: 0 | AA46: 0 | AB46: 0 | AC46: 0 | AD46: 0 | AE46: 0 | AF46: 0 | AG46: 0 | AH46: =A_Rahmendaten!H53 -> 0
B47: Biomasse | C47: €/MWh | D47: =A_Rahmendaten!E54 -> 0 | E47: =($N47-$D47)/10+D47 -> 0 | F47: 0 | G47: 0 | H47: 0 | I47: 0 | J47: 0 | K47: 0 | L47: 0 | M47: 0 | N47: =A_Rahmendaten!F54 -> 0 | O47: =($X47-$N47)/10+N47 -> 0 | P47: 0 | Q47: 0 | R47: 0 | S47: 0 | T47: 0 | U47: 0 | V47: 0 | W47: 0 | X47: =A_Rahmendaten!G54 -> 0 | Y47: =($AH47-$X47)/10+X47 -> 0 | Z47: 0 | AA47: 0 | AB47: 0 | AC47: 0 | AD47: 0 | AE47: 0 | AF47: 0 | AG47: 0 | AH47: =A_Rahmendaten!H54 -> 0
B48: Heizöl | C48: €/MWh | D48: =A_Rahmendaten!E55 -> 0 | E48: =($N48-$D48)/10+D48 -> 0 | F48: 0 | G48: 0 | H48: 0 | I48: 0 | J48: 0 | K48: 0 | L48: 0 | M48: 0 | N48: =A_Rahmendaten!F55 -> 0 | O48: =($X48-$N48)/10+N48 -> 0 | P48: 0 | Q48: 0 | R48: 0 | S48: 0 | T48: 0 | U48: 0 | V48: 0 | W48: 0 | X48: =A_Rahmendaten!G55 -> 0 | Y48: =($AH48-$X48)/10+X48 -> 0 | Z48: 0 | AA48: 0 | AB48: 0 | AC48: 0 | AD48: 0 | AE48: 0 | AF48: 0 | AG48: 0 | AH48: =A_Rahmendaten!H55 -> 0
B49: Abfall, erneuerbar | C49: €/MWh | D49: =A_Rahmendaten!E56 -> 0 | E49: =($N49-$D49)/10+D49 -> 0 | F49: 0 | G49: 0 | H49: 0 | I49: 0 | J49: 0 | K49: 0 | L49: 0 | M49: 0 | N49: =A_Rahmendaten!F56 -> 0 | O49: =($X49-$N49)/10+N49 -> 0 | P49: 0 | Q49: 0 | R49: 0 | S49: 0 | T49: 0 | U49: 0 | V49: 0 | W49: 0 | X49: =A_Rahmendaten!G56 -> 0 | Y49: =($AH49-$X49)/10+X49 -> 0 | Z49: 0 | AA49: 0 | AB49: 0 | AC49: 0 | AD49: 0 | AE49: 0 | AF49: 0 | AG49: 0 | AH49: =A_Rahmendaten!H56 -> 0
B50: Abfall, nicht erneuerbar | C50: €/MWh | D50: =A_Rahmendaten!E57 -> 0 | E50: =($N50-$D50)/10+D50 -> 0 | F50: 0 | G50: 0 | H50: 0 | I50: 0 | J50: 0 | K50: 0 | L50: 0 | M50: 0 | N50: =A_Rahmendaten!F57 -> 0 | O50: =($X50-$N50)/10+N50 -> 0 | P50: 0 | Q50: 0 | R50: 0 | S50: 0 | T50: 0 | U50: 0 | V50: 0 | W50: 0 | X50: =A_Rahmendaten!G57 -> 0 | Y50: =($AH50-$X50)/10+X50 -> 0 | Z50: 0 | AA50: 0 | AB50: 0 | AC50: 0 | AD50: 0 | AE50: 0 | AF50: 0 | AG50: 0 | AH50: =A_Rahmendaten!H57 -> 0
B51: Andere fossile | C51: €/MWh | D51: =A_Rahmendaten!E58 -> 0 | E51: =($N51-$D51)/10+D51 -> 0 | F51: 0 | G51: 0 | H51: 0 | I51: 0 | J51: 0 | K51: 0 | L51: 0 | M51: 0 | N51: =A_Rahmendaten!F58 -> 0 | O51: =($X51-$N51)/10+N51 -> 0 | P51: 0 | Q51: 0 | R51: 0 | S51: 0 | T51: 0 | U51: 0 | V51: 0 | W51: 0 | X51: =A_Rahmendaten!G58 -> 0 | Y51: =($AH51-$X51)/10+X51 -> 0 | Z51: 0 | AA51: 0 | AB51: 0 | AC51: 0 | AD51: 0 | AE51: 0 | AF51: 0 | AG51: 0 | AH51: =A_Rahmendaten!H58 -> 0
B52: EE-Methan | C52: €/MWh | D52: =A_Rahmendaten!E59 -> 0 | E52: =($N52-$D52)/10+D52 -> 0 | F52: 0 | G52: 0 | H52: 0 | I52: 0 | J52: 0 | K52: 0 | L52: 0 | M52: 0 | N52: =A_Rahmendaten!F59 -> 0 | O52: =($X52-$N52)/10+N52 -> 0 | P52: 0 | Q52: 0 | R52: 0 | S52: 0 | T52: 0 | U52: 0 | V52: 0 | W52: 0 | X52: =A_Rahmendaten!G59 -> 0 | Y52: =($AH52-$X52)/10+X52 -> 0 | Z52: 0 | AA52: 0 | AB52: 0 | AC52: 0 | AD52: 0 | AE52: 0 | AF52: 0 | AG52: 0 | AH52: =A_Rahmendaten!H59 -> 0
B53: EE-Wasserstoff | C53: €/MWh | D53: =A_Rahmendaten!E60 -> 0 | E53: =($N53-$D53)/10+D53 -> 0 | F53: 0 | G53: 0 | H53: 0 | I53: 0 | J53: 0 | K53: 0 | L53: 0 | M53: 0 | N53: =A_Rahmendaten!F60 -> 0 | O53: =($X53-$N53)/10+N53 -> 0 | P53: 0 | Q53: 0 | R53: 0 | S53: 0 | T53: 0 | U53: 0 | V53: 0 | W53: 0 | X53: =A_Rahmendaten!G60 -> 0 | Y53: =($AH53-$X53)/10+X53 -> 0 | Z53: 0 | AA53: 0 | AB53: 0 | AC53: 0 | AD53: 0 | AE53: 0 | AF53: 0 | AG53: 0 | AH53: =A_Rahmendaten!H60 -> 0
B54: Braunkohle | C54: €/MWh | D54: =A_Rahmendaten!E61 -> 0 | E54: =($N54-$D54)/10+D54 -> 0 | F54: =($N54-$D54)/10+E54 -> 0 | G54: =($N54-$D54)/10+F54 -> 0 | H54: =($N54-$D54)/10+G54 -> 0 | I54: =($N54-$D54)/10+H54 -> 0 | J54: =($N54-$D54)/10+I54 -> 0 | K54: =($N54-$D54)/10+J54 -> 0 | L54: =($N54-$D54)/10+K54 -> 0 | M54: =($N54-$D54)/10+L54 -> 0 | N54: =A_Rahmendaten!F61 -> 0 | O54: =($X54-$N54)/10+N54 -> 0 | P54: =($X54-$N54)/10+O54 -> 0 | Q54: =($X54-$N54)/10+P54 -> 0 | R54: =($X54-$N54)/10+Q54 -> 0 | S54: =($X54-$N54)/10+R54 -> 0 | T54: =($X54-$N54)/10+S54 -> 0 | U54: =($X54-$N54)/10+T54 -> 0 | V54: =($X54-$N54)/10+U54 -> 0 | W54: =($X54-$N54)/10+V54 -> 0 | X54: =A_Rahmendaten!G61 -> 0 | Y54: =($AH54-$X54)/10+X54 -> 0 | Z54: =($AH54-$X54)/10+Y54 -> 0 | AA54: =($AH54-$X54)/10+Z54 -> 0 | AB54: =($AH54-$X54)/10+AA54 -> 0 | AC54: =($AH54-$X54)/10+AB54 -> 0 | AD54: =($AH54-$X54)/10+AC54 -> 0 | AE54: =($AH54-$X54)/10+AD54 -> 0 | AF54: =($AH54-$X54)/10+AE54 -> 0 | AG54: =($AH54-$X54)/10+AF54 -> 0 | AH54: =A_Rahmendaten!H61 -> 0
B56: Zinssatz
C57: Einheit | D57: 2020 | E57: 2021 | F57: 2022 | G57: 2023 | H57: 2024 | I57: 2025 | J57: 2026 | K57: 2027 | L57: 2028 | M57: 2029 | N57: 2030 | O57: 2031 | P57: 2032 | Q57: 2033 | R57: 2034 | S57: 2035 | T57: 2036 | U57: 2037 | V57: 2038 | W57: 2039 | X57: 2040 | Y57: 2041 | Z57: 2042 | AA57: 2043 | AB57: 2044 | AC57: 2045 | AD57: 2046 | AE57: 2047 | AF57: 2048 | AG57: 2049 | AH57: 2050
B58: Keiner | D58: =A_Rahmendaten!E69 -> 1e-07 | E58: =($N58-$D58)/10+D58 -> 1e-07 | F58: =($N58-$D58)/10+E58 -> 1e-07 | G58: =($N58-$D58)/10+F58 -> 1e-07 | H58: =($N58-$D58)/10+G58 -> 1e-07 | I58: =($N58-$D58)/10+H58 -> 1e-07 | J58: =($N58-$D58)/10+I58 -> 1e-07 | K58: =($N58-$D58)/10+J58 -> 1e-07 | L58: =($N58-$D58)/10+K58 -> 1e-07 | M58: =($N58-$D58)/10+L58 -> 1e-07 | N58: =A_Rahmendaten!F69 -> 1e-07 | O58: =($X58-$N58)/10+N58 -> 1e-07 | P58: =($X58-$N58)/10+O58 -> 1e-07 | Q58: =($X58-$N58)/10+P58 -> 1e-07 | R58: =($X58-$N58)/10+Q58 -> 1e-07 | S58: =($X58-$N58)/10+R58 -> 1e-07 | T58: =($X58-$N58)/10+S58 -> 1e-07 | U58: =($X58-$N58)/10+T58 -> 1e-07 | V58: =($X58-$N58)/10+U58 -> 1e-07 | W58: =($X58-$N58)/10+V58 -> 1e-07 | X58: =A_Rahmendaten!G69 -> 1e-07 | Y58: =($AH58-$X58)/10+X58 -> 1e-07 | Z58: =($AH58-$X58)/10+Y58 -> 1e-07 | AA58: =($AH58-$X58)/10+Z58 -> 1e-07 | AB58: =($AH58-$X58)/10+AA58 -> 1e-07 | AC58: =($AH58-$X58)/10+AB58 -> 1e-07 | AD58: =($AH58-$X58)/10+AC58 -> 1e-07 | AE58: =($AH58-$X58)/10+AD58 -> 1e-07 | AF58: =($AH58-$X58)/10+AE58 -> 1e-07 | AG58: =($AH58-$X58)/10+AF58 -> 1e-07 | AH58: =A_Rahmendaten!H69 -> 1e-07
B59: Niedrig | C59: €/tCO2 | D59: =A_Rahmendaten!E70 -> 0.02 | E59: =($N59-$D59)/10+D59 -> 0.02 | F59: =($N59-$D59)/10+E59 -> 0.02 | G59: =($N59-$D59)/10+F59 -> 0.02 | H59: =($N59-$D59)/10+G59 -> 0.02 | I59: =($N59-$D59)/10+H59 -> 0.02 | J59: =($N59-$D59)/10+I59 -> 0.02 | K59: =($N59-$D59)/10+J59 -> 0.02 | L59: =($N59-$D59)/10+K59 -> 0.02 | M59: =($N59-$D59)/10+L59 -> 0.02 | N59: =A_Rahmendaten!F70 -> 0.02 | O59: =($X59-$N59)/10+N59 -> 0.02 | P59: =($X59-$N59)/10+O59 -> 0.02 | Q59: =($X59-$N59)/10+P59 -> 0.02 | R59: =($X59-$N59)/10+Q59 -> 0.02 | S59: =($X59-$N59)/10+R59 -> 0.02 | T59: =($X59-$N59)/10+S59 -> 0.02 | U59: =($X59-$N59)/10+T59 -> 0.02 | V59: =($X59-$N59)/10+U59 -> 0.02 | W59: =($X59-$N59)/10+V59 -> 0.02 | X59: =A_Rahmendaten!G70 -> 0.02 | Y59: =($AH59-$X59)/10+X59 -> 0.02 | Z59: =($AH59-$X59)/10+Y59 -> 0.02 | AA59: =($AH59-$X59)/10+Z59 -> 0.02 | AB59: =($AH59-$X59)/10+AA59 -> 0.02 | AC59: =($AH59-$X59)/10+AB59 -> 0.02 | AD59: =($AH59-$X59)/10+AC59 -> 0.02 | AE59: =($AH59-$X59)/10+AD59 -> 0.02 | AF59: =($AH59-$X59)/10+AE59 -> 0.02 | AG59: =($AH59-$X59)/10+AF59 -> 0.02 | AH59: =A_Rahmendaten!H70 -> 0.02
B60: Mittel | C60: €/tCO2 | D60: =A_Rahmendaten!E71 -> 0.05 | E60: =($N60-$D60)/10+D60 -> 0.05 | F60: 0.05 | G60: 0.05 | H60: 0.05 | I60: 0.05 | J60: 0.05 | K60: 0.05 | L60: 0.05 | M60: 0.05 | N60: =A_Rahmendaten!F71 -> 0.05 | O60: =($X60-$N60)/10+N60 -> 0.05 | P60: 0.05 | Q60: 0.05 | R60: 0.05 | S60: 0.05 | T60: 0.05 | U60: 0.05 | V60: 0.05 | W60: 0.05 | X60: =A_Rahmendaten!G71 -> 0.05 | Y60: =($AH60-$X60)/10+X60 -> 0.05 | Z60: 0.05 | AA60: 0.05 | AB60: 0.05 | AC60: 0.05 | AD60: 0.05 | AE60: 0.05 | AF60: 0.05 | AG60: 0.05 | AH60: =A_Rahmendaten!H71 -> 0.05
B61: Hoch | C61: €/tCO2 | D61: =A_Rahmendaten!E72 -> 0.08 | E61: 0.08 | F61: 0.08 | G61: 0.08 | H61: 0.08 | I61: 0.08 | J61: 0.08 | K61: 0.08 | L61: 0.08 | M61: 0.08 | N61: =A_Rahmendaten!F72 -> 0.08 | O61: 0.08 | P61: 0.08 | Q61: 0.08 | R61: 0.08 | S61: 0.08 | T61: 0.08 | U61: 0.08 | V61: 0.08 | W61: 0.08 | X61: =A_Rahmendaten!G72 -> 0.08 | Y61: 0.08 | Z61: 0.08 | AA61: 0.08 | AB61: 0.08 | AC61: 0.08 | AD61: 0.08 | AE61: 0.08 | AF61: 0.08 | AG61: 0.08 | AH61: =A_Rahmendaten!H72 -> 0.08
B63: Emissionsfaktoren
C64: Einheit | D64: 2020 | E64: 2021 | F64: 2022 | G64: 2023 | H64: 2024 | I64: 2025 | J64: 2026 | K64: 2027 | L64: 2028 | M64: 2029 | N64: 2030 | O64: 2031 | P64: 2032 | Q64: 2033 | R64: 2034 | S64: 2035 | T64: 2036 | U64: 2037 | V64: 2038 | W64: 2039 | X64: 2040 | Y64: 2041 | Z64: 2042 | AA64: 2043 | AB64: 2044 | AC64: 2045 | AD64: 2046 | AE64: 2047 | AF64: 2048 | AG64: 2049 | AH64: 2050
B65: Strom | C65: tCO2/MWh | D65: =A_Rahmendaten!E76 -> 0.43 | E65: =($N65-$D65)/10+D65 -> 0.398 | F65: =($N65-$D65)/10+E65 -> 0.366 | G65: =($N65-$D65)/10+F65 -> 0.334 | H65: =($N65-$D65)/10+G65 -> 0.302 | I65: =($N65-$D65)/10+H65 -> 0.27 | J65: =($N65-$D65)/10+I65 -> 0.238 | K65: =($N65-$D65)/10+J65 -> 0.206 | L65: =($N65-$D65)/10+K65 -> 0.174 | M65: =($N65-$D65)/10+L65 -> 0.142 | N65: =A_Rahmendaten!F76 -> 0.11 | O65: =($X65-$N65)/10+N65 -> 0.102 | P65: =($X65-$N65)/10+O65 -> 0.094 | Q65: =($X65-$N65)/10+P65 -> 0.086 | R65: =($X65-$N65)/10+Q65 -> 0.078 | S65: =($X65-$N65)/10+R65 -> 0.07 | T65: =($X65-$N65)/10+S65 -> 0.062 | U65: =($X65-$N65)/10+T65 -> 0.054 | V65: =($X65-$N65)/10+U65 -> 0.046 | W65: =($X65-$N65)/10+V65 -> 0.038 | X65: =A_Rahmendaten!G76 -> 0.03 | Y65: =($AH65-$X65)/10+X65 -> 0.027 | Z65: =($AH65-$X65)/10+Y65 -> 0.024 | AA65: =($AH65-$X65)/10+Z65 -> 0.021 | AB65: =($AH65-$X65)/10+AA65 -> 0.018 | AC65: =($AH65-$X65)/10+AB65 -> 0.015 | AD65: =($AH65-$X65)/10+AC65 -> 0.012 | AE65: =($AH65-$X65)/10+AD65 -> 0.009 | AF65: =($AH65-$X65)/10+AE65 -> 0.006 | AG65: =($AH65-$X65)/10+AF65 -> 0.003 | AH65: =A_Rahmendaten!H76 -> 0
B66: Erdgas | C66: tCO2/MWh | D66: =A_Rahmendaten!E77 -> 0.2016 | E66: =($N66-$D66)/10+D66 -> 0.2016 | F66: 0.2016 | G66: 0.2016 | H66: 0.2016 | I66: 0.2016 | J66: 0.2016 | K66: 0.2016 | L66: 0.2016 | M66: 0.2016 | N66: =A_Rahmendaten!F77 -> 0.2016 | O66: =($X66-$N66)/10+N66 -> 0.2016 | P66: 0.2016 | Q66: 0.2016 | R66: 0.2016 | S66: 0.2016 | T66: 0.2016 | U66: 0.2016 | V66: 0.2016 | W66: 0.2016 | X66: =A_Rahmendaten!G77 -> 0.2016 | Y66: =($AH66-$X66)/10+X66 -> 0.2016 | Z66: 0.2016 | AA66: 0.2016 | AB66: 0.2016 | AC66: 0.2016 | AD66: 0.2016 | AE66: 0.2016 | AF66: 0.2016 | AG66: 0.2016 | AH66: =A_Rahmendaten!H77 -> 0.2016
B67: Steinkohlen | C67: tCO2/MWh | D67: =A_Rahmendaten!E78 -> 0.3384 | E67: 0.3384 | F67: 0.3384 | G67: 0.3384 | H67: 0.3384 | I67: 0.3384 | J67: 0.3384 | K67: 0.3384 | L67: 0.3384 | M67: 0.3384 | N67: =A_Rahmendaten!F78 -> 0.3384 | O67: 0.3384 | P67: 0.3384 | Q67: 0.3384 | R67: 0.3384 | S67: 0.3384 | T67: 0.3384 | U67: 0.3384 | V67: 0.3384 | W67: 0.3384 | X67: =A_Rahmendaten!G78 -> 0.3384 | Y67: 0.3384 | Z67: 0.3384 | AA67: 0.3384 | AB67: 0.3384 | AC67: 0.3384 | AD67: 0.3384 | AE67: 0.3384 | AF67: 0.3384 | AG67: 0.3384 | AH67: =A_Rahmendaten!H78 -> 0.3384
B68: Biomasse | C68: tCO2/MWh | D68: =A_Rahmendaten!E79 -> 0 | E68: 0 | F68: 0 | G68: 0 | H68: 0 | I68: 0 | J68: 0 | K68: 0 | L68: 0 | M68: 0 | N68: =A_Rahmendaten!F79 -> 0 | O68: 0 | P68: 0 | Q68: 0 | R68: 0 | S68: 0 | T68: 0 | U68: 0 | V68: 0 | W68: 0 | X68: =A_Rahmendaten!G79 -> 0 | Y68: 0 | Z68: 0 | AA68: 0 | AB68: 0 | AC68: 0 | AD68: 0 | AE68: 0 | AF68: 0 | AG68: 0 | AH68: =A_Rahmendaten!H79 -> 0
B69: Heizöl | C69: tCO2/MWh | D69: =A_Rahmendaten!E80 -> 0.2664 | E69: 0.2664 | F69: 0.2664 | G69: 0.2664 | H69: 0.2664 | I69: 0.2664 | J69: 0.2664 | K69: 0.2664 | L69: 0.2664 | M69: 0.2664 | N69: =A_Rahmendaten!F80 -> 0.2664 | O69: 0.2664 | P69: 0.2664 | Q69: 0.2664 | R69: 0.2664 | S69: 0.2664 | T69: 0.2664 | U69: 0.2664 | V69: 0.2664 | W69: 0.2664 | X69: =A_Rahmendaten!G80 -> 0.2664 | Y69: 0.2664 | Z69: 0.2664 | AA69: 0.2664 | AB69: 0.2664 | AC69: 0.2664 | AD69: 0.2664 | AE69: 0.2664 | AF69: 0.2664 | AG69: 0.2664 | AH69: =A_Rahmendaten!H80 -> 0.2664
B70: Abfall, erneuerbar | C70: tCO2/MWh | D70: =A_Rahmendaten!E81 -> 0 | E70: 0 | F70: 0 | G70: 0 | H70: 0 | I70: 0 | J70: 0 | K70: 0 | L70: 0 | M70: 0 | N70: =A_Rahmendaten!F81 -> 0 | O70: 0 | P70: 0 | Q70: 0 | R70: 0 | S70: 0 | T70: 0 | U70: 0 | V70: 0 | W70: 0 | X70: =A_Rahmendaten!G81 -> 0 | Y70: 0 | Z70: 0 | AA70: 0 | AB70: 0 | AC70: 0 | AD70: 0 | AE70: 0 | AF70: 0 | AG70: 0 | AH70: =A_Rahmendaten!H81 -> 0
B71: Abfall, nicht erneuerbar | C71: tCO2/MWh | D71: =A_Rahmendaten!E82 -> 0.1656 | E71: 0.1656 | F71: 0.1656 | G71: 0.1656 | H71: 0.1656 | I71: 0.1656 | J71: 0.1656 | K71: 0.1656 | L71: 0.1656 | M71: 0.1656 | N71: =A_Rahmendaten!F82 -> 0.1656 | O71: 0.1656 | P71: 0.1656 | Q71: 0.1656 | R71: 0.1656 | S71: 0.1656 | T71: 0.1656 | U71: 0.1656 | V71: 0.1656 | W71: 0.1656 | X71: =A_Rahmendaten!G82 -> 0.1656 | Y71: 0.1656 | Z71: 0.1656 | AA71: 0.1656 | AB71: 0.1656 | AC71: 0.1656 | AD71: 0.1656 | AE71: 0.1656 | AF71: 0.1656 | AG71: 0.1656 | AH71: =A_Rahmendaten!H82 -> 0.1656
B72: Andere fossile | C72: tCO2/MWh | D72: =A_Rahmendaten!E83 -> 0.2664 | E72: 0.2664 | F72: 0.2664 | G72: 0.2664 | H72: 0.2664 | I72: 0.2664 | J72: 0.2664 | K72: 0.2664 | L72: 0.2664 | M72: 0.2664 | N72: =A_Rahmendaten!F83 -> 0.2664 | O72: 0.2664 | P72: 0.2664 | Q72: 0.2664 | R72: 0.2664 | S72: 0.2664 | T72: 0.2664 | U72: 0.2664 | V72: 0.2664 | W72: 0.2664 | X72: =A_Rahmendaten!G83 -> 0.2664 | Y72: 0.2664 | Z72: 0.2664 | AA72: 0.2664 | AB72: 0.2664 | AC72: 0.2664 | AD72: 0.2664 | AE72: 0.2664 | AF72: 0.2664 | AG72: 0.2664 | AH72: =A_Rahmendaten!H83 -> 0.2664
B73: Strommix-Methan | C73: tCO2/MWh | D73: =A_Rahmendaten!E84 -> 0.8775510204 | E73: 0.812244898 | F73: 0.7469387755 | G73: 0.6816326531 | H73: 0.6163265306 | I73: 0.5510204082 | J73: 0.4857142857 | K73: 0.4204081633 | L73: 0.3551020408 | M73: 0.2897959184 | N73: =A_Rahmendaten!F84 -> 0.2244897959 | O73: 0.2081632653 | P73: 0.1918367347 | Q73: 0.1755102041 | R73: 0.1591836735 | S73: 0.1428571429 | T73: 0.1265306122 | U73: 0.1102040816 | V73: 0.09387755102 | W73: 0.07755102041 | X73: =A_Rahmendaten!G84 -> 0.0612244898 | Y73: 0.05510204082 | Z73: 0.04897959184 | AA73: 0.04285714286 | AB73: 0.03673469388 | AC73: 0.0306122449 | AD73: 0.02448979592 | AE73: 0.01836734694 | AF73: 0.01224489796 | AG73: 0.00612244898 | AH73: =A_Rahmendaten!H84 -> 0
B74: Strommix-Wasserstoff | C74: tCO2/MWh | D74: =A_Rahmendaten!E85 -> 0.6142857143 | E74: 0.5685714286 | F74: 0.5228571429 | G74: 0.4771428571 | H74: 0.4314285714 | I74: 0.3857142857 | J74: 0.34 | K74: 0.2942857143 | L74: 0.2485714286 | M74: 0.2028571429 | N74: =A_Rahmendaten!F85 -> 0.1571428571 | O74: 0.1457142857 | P74: 0.1342857143 | Q74: 0.1228571429 | R74: 0.1114285714 | S74: 0.1 | T74: 0.08857142857 | U74: 0.07714285714 | V74: 0.06571428571 | W74: 0.05428571429 | X74: =A_Rahmendaten!G85 -> 0.04285714286 | Y74: 0.03857142857 | Z74: 0.03428571429 | AA74: 0.03 | AB74: 0.02571428571 | AC74: 0.02142857143 | AD74: 0.01714285714 | AE74: 0.01285714286 | AF74: 0.008571428571 | AG74: 0.004285714286 | AH74: =A_Rahmendaten!H85 -> 0
B75: Braunkohle | C75: tCO2/MWh | D75: =A_Rahmendaten!E86 -> 0.4032 | E75: =($N75-$D75)/10+D75 -> 0.4032 | F75: =($N75-$D75)/10+E75 -> 0.4032 | G75: =($N75-$D75)/10+F75 -> 0.4032 | H75: =($N75-$D75)/10+G75 -> 0.4032 | I75: =($N75-$D75)/10+H75 -> 0.4032 | J75: =($N75-$D75)/10+I75 -> 0.4032 | K75: =($N75-$D75)/10+J75 -> 0.4032 | L75: =($N75-$D75)/10+K75 -> 0.4032 | M75: =($N75-$D75)/10+L75 -> 0.4032 | N75: =A_Rahmendaten!F86 -> 0.4032 | O75: =($X75-$N75)/10+N75 -> 0.4032 | P75: =($X75-$N75)/10+O75 -> 0.4032 | Q75: =($X75-$N75)/10+P75 -> 0.4032 | R75: =($X75-$N75)/10+Q75 -> 0.4032 | S75: =($X75-$N75)/10+R75 -> 0.4032 | T75: =($X75-$N75)/10+S75 -> 0.4032 | U75: =($X75-$N75)/10+T75 -> 0.4032 | V75: =($X75-$N75)/10+U75 -> 0.4032 | W75: =($X75-$N75)/10+V75 -> 0.4032 | X75: =A_Rahmendaten!G86 -> 0.4032 | Y75: =($AH75-$X75)/10+X75 -> 0.4032 | Z75: =($AH75-$X75)/10+Y75 -> 0.4032 | AA75: =($AH75-$X75)/10+Z75 -> 0.4032 | AB75: =($AH75-$X75)/10+AA75 -> 0.4032 | AC75: =($AH75-$X75)/10+AB75 -> 0.4032 | AD75: =($AH75-$X75)/10+AC75 -> 0.4032 | AE75: =($AH75-$X75)/10+AD75 -> 0.4032 | AF75: =($AH75-$X75)/10+AE75 -> 0.4032 | AG75: =($AH75-$X75)/10+AF75 -> 0.4032 | AH75: =A_Rahmendaten!H86 -> 0.4032
B76: EE-Methan | C76: tCO2/MWh | D76: 0 | E76: 0 | F76: 0 | G76: 0 | H76: 0 | I76: 0 | J76: 0 | K76: 0 | L76: 0 | M76: 0 | N76: 0 | O76: 0 | P76: 0 | Q76: 0 | R76: 0 | S76: 0 | T76: 0 | U76: 0 | V76: 0 | W76: 0 | X76: 0 | Y76: 0 | Z76: 0 | AA76: 0 | AB76: 0 | AC76: 0 | AD76: 0 | AE76: 0 | AF76: 0 | AG76: 0 | AH76: 0
B77: EE-Wasserstoff | C77: tCO2/MWh | D77: 0 | E77: 0 | F77: 0 | G77: 0 | H77: 0 | I77: 0 | J77: 0 | K77: 0 | L77: 0 | M77: 0 | N77: 0 | O77: 0 | P77: 0 | Q77: 0 | R77: 0 | S77: 0 | T77: 0 | U77: 0 | V77: 0 | W77: 0 | X77: 0 | Y77: 0 | Z77: 0 | AA77: 0 | AB77: 0 | AC77: 0 | AD77: 0 | AE77: 0 | AF77: 0 | AG77: 0 | AH77: 0
B79: Jährlicher Energieeffizienzfortschritt (Referenz: 2020)
C80: Einheit | D80: 2020 | E80: 2021 | F80: 2022 | G80: 2023 | H80: 2024 | I80: 2025 | J80: 2026 | K80: 2027 | L80: 2028 | M80: 2029 | N80: 2030 | O80: 2031 | P80: 2032 | Q80: 2033 | R80: 2034 | S80: 2035 | T80: 2036 | U80: 2037 | V80: 2038 | W80: 2039 | X80: 2040 | Y80: 2041 | Z80: 2042 | AA80: 2043 | AB80: 2044 | AC80: 2045 | AD80: 2046 | AE80: 2047 | AF80: 2048 | AG80: 2049 | AH80: 2050
B81: Keiner | C81: €/tCO2 | D81: =A_Rahmendaten!E94 -> 0 | E81: =($N81-$D81)/10+D81 -> 0 | F81: =($N81-$D81)/10+E81 -> 0 | G81: =($N81-$D81)/10+F81 -> 0 | H81: =($N81-$D81)/10+G81 -> 0 | I81: =($N81-$D81)/10+H81 -> 0 | J81: =($N81-$D81)/10+I81 -> 0 | K81: =($N81-$D81)/10+J81 -> 0 | L81: =($N81-$D81)/10+K81 -> 0 | M81: =($N81-$D81)/10+L81 -> 0 | N81: =A_Rahmendaten!F94 -> 0 | O81: =($X81-$N81)/10+N81 -> 0 | P81: =($X81-$N81)/10+O81 -> 0 | Q81: =($X81-$N81)/10+P81 -> 0 | R81: =($X81-$N81)/10+Q81 -> 0 | S81: =($X81-$N81)/10+R81 -> 0 | T81: =($X81-$N81)/10+S81 -> 0 | U81: =($X81-$N81)/10+T81 -> 0 | V81: =($X81-$N81)/10+U81 -> 0 | W81: =($X81-$N81)/10+V81 -> 0 | X81: =A_Rahmendaten!G94 -> 0 | Y81: =($AH81-$X81)/10+X81 -> 0 | Z81: =($AH81-$X81)/10+Y81 -> 0 | AA81: =($AH81-$X81)/10+Z81 -> 0 | AB81: =($AH81-$X81)/10+AA81 -> 0 | AC81: =($AH81-$X81)/10+AB81 -> 0 | AD81: =($AH81-$X81)/10+AC81 -> 0 | AE81: =($AH81-$X81)/10+AD81 -> 0 | AF81: =($AH81-$X81)/10+AE81 -> 0 | AG81: =($AH81-$X81)/10+AF81 -> 0 | AH81: =A_Rahmendaten!H94 -> 0
B82: Niedrig | C82: €/tCO2 | D82: =A_Rahmendaten!E95 -> 0.001 | E82: =($N82-$D82)/10+D82 -> 0.001 | F82: =($N82-$D82)/10+E82 -> 0.001 | G82: =($N82-$D82)/10+F82 -> 0.001 | H82: =($N82-$D82)/10+G82 -> 0.001 | I82: =($N82-$D82)/10+H82 -> 0.001 | J82: =($N82-$D82)/10+I82 -> 0.001 | K82: =($N82-$D82)/10+J82 -> 0.001 | L82: =($N82-$D82)/10+K82 -> 0.001 | M82: =($N82-$D82)/10+L82 -> 0.001 | N82: =A_Rahmendaten!F95 -> 0.001 | O82: =($X82-$N82)/10+N82 -> 0.001 | P82: =($X82-$N82)/10+O82 -> 0.001 | Q82: =($X82-$N82)/10+P82 -> 0.001 | R82: =($X82-$N82)/10+Q82 -> 0.001 | S82: =($X82-$N82)/10+R82 -> 0.001 | T82: =($X82-$N82)/10+S82 -> 0.001 | U82: =($X82-$N82)/10+T82 -> 0.001 | V82: =($X82-$N82)/10+U82 -> 0.001 | W82: =($X82-$N82)/10+V82 -> 0.001 | X82: =A_Rahmendaten!G95 -> 0.001 | Y82: =($AH82-$X82)/10+X82 -> 0.001 | Z82: =($AH82-$X82)/10+Y82 -> 0.001 | AA82: =($AH82-$X82)/10+Z82 -> 0.001 | AB82: =($AH82-$X82)/10+AA82 -> 0.001 | AC82: =($AH82-$X82)/10+AB82 -> 0.001 | AD82: =($AH82-$X82)/10+AC82 -> 0.001 | AE82: =($AH82-$X82)/10+AD82 -> 0.001 | AF82: =($AH82-$X82)/10+AE82 -> 0.001 | AG82: =($AH82-$X82)/10+AF82 -> 0.001 | AH82: =A_Rahmendaten!H95 -> 0.001
B83: Mittel | C83: €/tCO2 | D83: =A_Rahmendaten!E96 -> 0.005 | E83: =($N83-$D83)/10+D83 -> 0.005 | F83: 0.005 | G83: 0.005 | H83: 0.005 | I83: 0.005 | J83: 0.005 | K83: 0.005 | L83: 0.005 | M83: 0.005 | N83: =A_Rahmendaten!F96 -> 0.005 | O83: =($X83-$N83)/10+N83 -> 0.005 | P83: 0.005 | Q83: 0.005 | R83: 0.005 | S83: 0.005 | T83: 0.005 | U83: 0.005 | V83: 0.005 | W83: 0.005 | X83: =A_Rahmendaten!G96 -> 0.005 | Y83: =($AH83-$X83)/10+X83 -> 0.005 | Z83: 0.005 | AA83: 0.005 | AB83: 0.005 | AC83: 0.005 | AD83: 0.005 | AE83: 0.005 | AF83: 0.005 | AG83: 0.005 | AH83: =A_Rahmendaten!H96 -> 0.005
B84: Hoch | C84: €/tCO2 | D84: =A_Rahmendaten!E97 -> 0.01 | E84: 0.01 | F84: 0.01 | G84: 0.01 | H84: 0.01 | I84: 0.01 | J84: 0.01 | K84: 0.01 | L84: 0.01 | M84: 0.01 | N84: =A_Rahmendaten!F97 -> 0.01 | O84: 0.01 | P84: 0.01 | Q84: 0.01 | R84: 0.01 | S84: 0.01 | T84: 0.01 | U84: 0.01 | V84: 0.01 | W84: 0.01 | X84: =A_Rahmendaten!G97 -> 0.01 | Y84: 0.01 | Z84: 0.01 | AA84: 0.01 | AB84: 0.01 | AC84: 0.01 | AD84: 0.01 | AE84: 0.01 | AF84: 0.01 | AG84: 0.01 | AH84: =A_Rahmendaten!H97 -> 0.01
B86: Voraussicht Preise (CO2 und Energieträger)
C87: Einheit | D87: 2020 | E87: 2021 | F87: 2022 | G87: 2023 | H87: 2024 | I87: 2025 | J87: 2026 | K87: 2027 | L87: 2028 | M87: 2029 | N87: 2030 | O87: 2031 | P87: 2032 | Q87: 2033 | R87: 2034 | S87: 2035 | T87: 2036 | U87: 2037 | V87: 2038 | W87: 2039 | X87: 2040 | Y87: 2041 | Z87: 2042 | AA87: 2043 | AB87: 2044 | AC87: 2045 | AD87: 2046 | AE87: 2047 | AF87: 2048 | AG87: 2049 | AH87: 2050
B88: =A_Rahmendaten!C126 -> Keine 0->0 Jahre | C88: Jahre | D88: =A_Rahmendaten!E126 -> 0 | E88: =($N88-$D88)/10+D88 -> 0 | F88: 0 | G88: 0 | H88: 0 | I88: 0 | J88: 0 | K88: 0 | L88: 0 | M88: 0 | N88: =A_Rahmendaten!F126 -> 0 | O88: =($X88-$N88)/10+N88 -> 0 | P88: 0 | Q88: 0 | R88: 0 | S88: 0 | T88: 0 | U88: 0 | V88: 0 | W88: 0 | X88: =A_Rahmendaten!G126 -> 0 | Y88: =($AH88-$X88)/10+X88 -> 0 | Z88: 0 | AA88: 0 | AB88: 0 | AC88: 0 | AD88: 0 | AE88: 0 | AF88: 0 | AG88: 0 | AH88: =A_Rahmendaten!H126 -> 0
B89: =A_Rahmendaten!C127 -> Gering 5->5 Jahre | C89: Jahre | D89: =A_Rahmendaten!E127 -> 5 | E89: =($N89-$D89)/10+D89 -> 5 | F89: =($N89-$D89)/10+E89 -> 5 | G89: =($N89-$D89)/10+F89 -> 5 | H89: =($N89-$D89)/10+G89 -> 5 | I89: =($N89-$D89)/10+H89 -> 5 | J89: =($N89-$D89)/10+I89 -> 5 | K89: =($N89-$D89)/10+J89 -> 5 | L89: =($N89-$D89)/10+K89 -> 5 | M89: =($N89-$D89)/10+L89 -> 5 | N89: =A_Rahmendaten!F127 -> 5 | O89: =($X89-$N89)/10+N89 -> 5 | P89: =($X89-$N89)/10+O89 -> 5 | Q89: =($X89-$N89)/10+P89 -> 5 | R89: =($X89-$N89)/10+Q89 -> 5 | S89: =($X89-$N89)/10+R89 -> 5 | T89: =($X89-$N89)/10+S89 -> 5 | U89: =($X89-$N89)/10+T89 -> 5 | V89: =($X89-$N89)/10+U89 -> 5 | W89: =($X89-$N89)/10+V89 -> 5 | X89: =A_Rahmendaten!G127 -> 5 | Y89: =($AH89-$X89)/10+X89 -> 5 | Z89: =($AH89-$X89)/10+Y89 -> 5 | AA89: =($AH89-$X89)/10+Z89 -> 5 | AB89: =($AH89-$X89)/10+AA89 -> 5 | AC89: =($AH89-$X89)/10+AB89 -> 5 | AD89: =($AH89-$X89)/10+AC89 -> 5 | AE89: =($AH89-$X89)/10+AD89 -> 5 | AF89: =($AH89-$X89)/10+AE89 -> 5 | AG89: =($AH89-$X89)/10+AF89 -> 5 | AH89: =A_Rahmendaten!H127 -> 5
B90: =A_Rahmendaten!C128 -> Hoch 10->10 Jahre | C90: Jahre | D90: =A_Rahmendaten!E128 -> 10 | E90: 10 | F90: 10 | G90: 10 | H90: 10 | I90: 10 | J90: 10 | K90: 10 | L90: 10 | M90: 10 | N90: =A_Rahmendaten!F128 -> 10 | O90: 10 | P90: 10 | Q90: 10 | R90: 10 | S90: 10 | T90: 10 | U90: 10 | V90: 10 | W90: 10 | X90: =A_Rahmendaten!G128 -> 10 | Y90: 10 | Z90: 10 | AA90: 10 | AB90: 10 | AC90: 10 | AD90: 10 | AE90: 10 | AF90: 10 | AG90: 10 | AH90: =A_Rahmendaten!H128 -> 10
B91: =A_Rahmendaten!C129 -> Variabel 5->10 Jahre | C91: Jahre | D91: =A_Rahmendaten!E129 -> 5 | E91: 5.5 | F91: 6 | G91: 6.5 | H91: 7 | I91: 7.5 | J91: 8 | K91: 8.5 | L91: 9 | M91: 9.5 | N91: =A_Rahmendaten!F129 -> 10 | O91: 10 | P91: 10 | Q91: 10 | R91: 10 | S91: 10 | T91: 10 | U91: 10 | V91: 10 | W91: 10 | X91: =A_Rahmendaten!G129 -> 10 | Y91: 10 | Z91: 10 | AA91: 10 | AB91: 10 | AC91: 10 | AD91: 10 | AE91: 10 | AF91: 10 | AG91: 10 | AH91: =A_Rahmendaten!H129 -> 10
B93: Jährlicher Reduktion Investition (Referenz:2020)
C94: Einheit | D94: 2020 | E94: 2021 | F94: 2022 | G94: 2023 | H94: 2024 | I94: 2025 | J94: 2026 | K94: 2027 | L94: 2028 | M94: 2029 | N94: 2030 | O94: 2031 | P94: 2032 | Q94: 2033 | R94: 2034 | S94: 2035 | T94: 2036 | U94: 2037 | V94: 2038 | W94: 2039 | X94: 2040 | Y94: 2041 | Z94: 2042 | AA94: 2043 | AB94: 2044 | AC94: 2045 | AD94: 2046 | AE94: 2047 | AF94: 2048 | AG94: 2049 | AH94: 2050
B95: Keiner | C95: €/tCO2 | D95: =A_Rahmendaten!E147 -> 0 | E95: =($N95-$D95)/10+D95 -> 0 | F95: =($N95-$D95)/10+E95 -> 0 | G95: =($N95-$D95)/10+F95 -> 0 | H95: =($N95-$D95)/10+G95 -> 0 | I95: =($N95-$D95)/10+H95 -> 0 | J95: =($N95-$D95)/10+I95 -> 0 | K95: =($N95-$D95)/10+J95 -> 0 | L95: =($N95-$D95)/10+K95 -> 0 | M95: =($N95-$D95)/10+L95 -> 0 | N95: =A_Rahmendaten!F147 -> 0 | O95: =($X95-$N95)/10+N95 -> 0 | P95: =($X95-$N95)/10+O95 -> 0 | Q95: =($X95-$N95)/10+P95 -> 0 | R95: =($X95-$N95)/10+Q95 -> 0 | S95: =($X95-$N95)/10+R95 -> 0 | T95: =($X95-$N95)/10+S95 -> 0 | U95: =($X95-$N95)/10+T95 -> 0 | V95: =($X95-$N95)/10+U95 -> 0 | W95: =($X95-$N95)/10+V95 -> 0 | X95: =A_Rahmendaten!G147 -> 0 | Y95: =($AH95-$X95)/10+X95 -> 0 | Z95: =($AH95-$X95)/10+Y95 -> 0 | AA95: =($AH95-$X95)/10+Z95 -> 0 | AB95: =($AH95-$X95)/10+AA95 -> 0 | AC95: =($AH95-$X95)/10+AB95 -> 0 | AD95: =($AH95-$X95)/10+AC95 -> 0 | AE95: =($AH95-$X95)/10+AD95 -> 0 | AF95: =($AH95-$X95)/10+AE95 -> 0 | AG95: =($AH95-$X95)/10+AF95 -> 0 | AH95: =A_Rahmendaten!H147 -> 0
B96: Niedrig | C96: €/tCO2 | D96: =A_Rahmendaten!E148 -> 0.005 | E96: =($N96-$D96)/10+D96 -> 0.005 | F96: 0.005 | G96: 0.005 | H96: 0.005 | I96: 0.005 | J96: 0.005 | K96: 0.005 | L96: 0.005 | M96: 0.005 | N96: =A_Rahmendaten!F148 -> 0.005 | O96: =($X96-$N96)/10+N96 -> 0.005 | P96: 0.005 | Q96: 0.005 | R96: 0.005 | S96: 0.005 | T96: 0.005 | U96: 0.005 | V96: 0.005 | W96: 0.005 | X96: =A_Rahmendaten!G148 -> 0.005 | Y96: =($AH96-$X96)/10+X96 -> 0.005 | Z96: 0.005 | AA96: 0.005 | AB96: 0.005 | AC96: 0.005 | AD96: 0.005 | AE96: 0.005 | AF96: 0.005 | AG96: 0.005 | AH96: =A_Rahmendaten!H148 -> 0.005
B97: Mittel | C97: €/tCO2 | D97: =A_Rahmendaten!E149 -> 0.01 | E97: =($N97-$D97)/10+D97 -> 0.01 | F97: 0.01 | G97: 0.01 | H97: 0.01 | I97: 0.01 | J97: 0.01 | K97: 0.01 | L97: 0.01 | M97: 0.01 | N97: =A_Rahmendaten!F149 -> 0.01 | O97: =($X97-$N97)/10+N97 -> 0.01 | P97: 0.01 | Q97: 0.01 | R97: 0.01 | S97: 0.01 | T97: 0.01 | U97: 0.01 | V97: 0.01 | W97: 0.01 | X97: =A_Rahmendaten!G149 -> 0.01 | Y97: =($AH97-$X97)/10+X97 -> 0.01 | Z97: 0.01 | AA97: 0.01 | AB97: 0.01 | AC97: 0.01 | AD97: 0.01 | AE97: 0.01 | AF97: 0.01 | AG97: 0.01 | AH97: =A_Rahmendaten!H149 -> 0.01
B98: Hoch | C98: €/tCO2 | D98: =A_Rahmendaten!E150 -> 0.02 | E98: 0.02 | F98: 0.02 | G98: 0.02 | H98: 0.02 | I98: 0.02 | J98: 0.02 | K98: 0.02 | L98: 0.02 | M98: 0.02 | N98: =A_Rahmendaten!F150 -> 0.02 | O98: 0.02 | P98: 0.02 | Q98: 0.02 | R98: 0.02 | S98: 0.02 | T98: 0.02 | U98: 0.02 | V98: 0.02 | W98: 0.02 | X98: =A_Rahmendaten!G150 -> 0.02 | Y98: 0.02 | Z98: 0.02 | AA98: 0.02 | AB98: 0.02 | AC98: 0.02 | AD98: 0.02 | AE98: 0.02 | AF98: 0.02 | AG98: 0.02 | AH98: =A_Rahmendaten!H150 -> 0.02
B100: Umweltkosten
C101: Einheit | D101: 2020 | E101: 2021 | F101: 2022 | G101: 2023 | H101: 2024 | I101: 2025 | J101: 2026 | K101: 2027 | L101: 2028 | M101: 2029 | N101: 2030 | O101: 2031 | P101: 2032 | Q101: 2033 | R101: 2034 | S101: 2035 | T101: 2036 | U101: 2037 | V101: 2038 | W101: 2039 | X101: 2040 | Y101: 2041 | Z101: 2042 | AA101: 2043 | AB101: 2044 | AC101: 2045 | AD101: 2046 | AE101: 2047 | AF101: 2048 | AG101: 2049 | AH101: 2050
B102: Strom | C102: €/MWh | D102: =A_Rahmendaten!E189+A_Rahmendaten!E206 -> 95.62228957 | E102: =($N102-$D102)/10+D102 -> 88.96790716 | F102: =($N102-$D102)/10+E102 -> 82.31352474 | G102: =($N102-$D102)/10+F102 -> 75.65914233 | H102: =($N102-$D102)/10+G102 -> 69.00475991 | I102: =($N102-$D102)/10+H102 -> 62.3503775 | J102: =($N102-$D102)/10+I102 -> 55.69599508 | K102: =($N102-$D102)/10+J102 -> 49.04161267 | L102: =($N102-$D102)/10+K102 -> 42.38723025 | M102: =($N102-$D102)/10+L102 -> 35.73284784 | N102: =A_Rahmendaten!F189+A_Rahmendaten!F206 -> 29.07846542 | O102: =($X102-$N102)/10+N102 -> 27.09758972 | P102: =($X102-$N102)/10+O102 -> 25.11671402 | Q102: =($X102-$N102)/10+P102 -> 23.13583831 | R102: =($X102-$N102)/10+Q102 -> 21.15496261 | S102: =($X102-$N102)/10+R102 -> 19.17408691 | T102: =($X102-$N102)/10+S102 -> 17.1932112 | U102: =($X102-$N102)/10+T102 -> 15.2123355 | V102: =($X102-$N102)/10+U102 -> 13.2314598 | W102: =($X102-$N102)/10+V102 -> 11.2505841 | X102: =A_Rahmendaten!G189+A_Rahmendaten!G206 -> 9.269708393 | Y102: =($AH102-$X102)/10+X102 -> 8.342737554 | Z102: =($AH102-$X102)/10+Y102 -> 7.415766714 | AA102: =($AH102-$X102)/10+Z102 -> 6.488795875 | AB102: =($AH102-$X102)/10+AA102 -> 5.561825036 | AC102: =($AH102-$X102)/10+AB102 -> 4.634854196 | AD102: =($AH102-$X102)/10+AC102 -> 3.707883357 | AE102: =($AH102-$X102)/10+AD102 -> 2.780912518 | AF102: =($AH102-$X102)/10+AE102 -> 1.853941679 | AG102: =($AH102-$X102)/10+AF102 -> 0.9269708393 | AH102: =A_Rahmendaten!H189+A_Rahmendaten!H206 -> 0
B103: Erdgas | C103: €/MWh | D103: =A_Rahmendaten!E190+A_Rahmendaten!E207 -> 44.13953995 | E103: =($N103-$D103)/10+D103 -> 44.97910023 | F103: 45.81866051 | G103: 46.65822079 | H103: 47.49778107 | I103: 48.33734135 | J103: 49.17690163 | K103: 50.01646191 | L103: 50.85602219 | M103: 51.69558247 | N103: =A_Rahmendaten!F190+A_Rahmendaten!F207 -> 52.53514275 | O103: =($X103-$N103)/10+N103 -> 53.42862849 | P103: 54.32211424 | Q103: 55.21559999 | R103: 56.10908573 | S103: 57.00257148 | T103: 57.89605723 | U103: 58.78954297 | V103: 59.68302872 | W103: 60.57651447 | X103: =A_Rahmendaten!G190+A_Rahmendaten!G207 -> 61.47000021 | Y103: =($AH103-$X103)/10+X103 -> 62.43348832 | Z103: 63.39697643 | AA103: 64.36046454 | AB103: 65.32395265 | AC103: 66.28744076 | AD103: 67.25092886 | AE103: 68.21441697 | AF103: 69.17790508 | AG103: 70.14139319 | AH103: =A_Rahmendaten!H190+A_Rahmendaten!H207 -> 71.1048813
B104: Steinkohlen | C104: €/MWh | D104: =A_Rahmendaten!E191+A_Rahmendaten!E208 -> 80.5941813 | E104: 82.1327328 | F104: 83.6712843 | G104: 85.2098358 | H104: 86.74838729 | I104: 88.28693879 | J104: 89.82549029 | K104: 91.36404179 | L104: 92.90259328 | M104: 94.44114478 | N104: =A_Rahmendaten!F191+A_Rahmendaten!F208 -> 95.97969628 | O104: 97.61754491 | P104: 99.25539354 | Q104: 100.8932422 | R104: 102.5310908 | S104: 104.1689394 | T104: 105.8067881 | U104: 107.4446367 | V104: 109.0824853 | W104: 110.720334 | X104: =A_Rahmendaten!G191+A_Rahmendaten!G208 -> 112.3581826 | Y104: 114.1247856 | Z104: 115.8913885 | AA104: 117.6579915 | AB104: 119.4245945 | AC104: 121.1911975 | AD104: 122.9578005 | AE104: 124.7244034 | AF104: 126.4910064 | AG104: 128.2576094 | AH104: =A_Rahmendaten!H191+A_Rahmendaten!H208 -> 130.0242124
B105: Biomasse | C105: €/MWh | D105: =A_Rahmendaten!E192+A_Rahmendaten!E209 -> 18.64913914 | E105: 18.82708894 | F105: 19.00503874 | G105: 19.18298854 | H105: 19.36093834 | I105: 19.53888815 | J105: 19.71683795 | K105: 19.89478775 | L105: 20.07273755 | M105: 20.25068735 | N105: =A_Rahmendaten!F192+A_Rahmendaten!F209 -> 20.42863715 | O105: 20.60302795 | P105: 20.77741876 | Q105: 20.95180956 | R105: 21.12620037 | S105: 21.30059117 | T105: 21.47498198 | U105: 21.64937278 | V105: 21.82376359 | W105: 21.99815439 | X105: =A_Rahmendaten!G192+A_Rahmendaten!G209 -> 22.1725452 | Y105: 22.346936 | Z105: 22.52132681 | AA105: 22.69571761 | AB105: 22.87010842 | AC105: 23.04449922 | AD105: 23.21889003 | AE105: 23.39328083 | AF105: 23.56767164 | AG105: 23.74206244 | AH105: =A_Rahmendaten!H192+A_Rahmendaten!H209 -> 23.91645325
B106: Heizöl | C106: €/MWh | D106: =A_Rahmendaten!E193+A_Rahmendaten!E210 -> 69.43613331 | E106: 70.65155305 | F106: 71.8669728 | G106: 73.08239254 | H106: 74.29781229 | I106: 75.51323203 | J106: 76.72865178 | K106: 77.94407152 | L106: 79.15949126 | M106: 80.37491101 | N106: =A_Rahmendaten!F193+A_Rahmendaten!F210 -> 81.59033075 | O106: 82.87488913 | P106: 84.15944751 | Q106: 85.44400589 | R106: 86.72856427 | S106: 88.01312265 | T106: 89.29768103 | U106: 90.58223941 | V106: 91.86679779 | W106: 93.15135617 | X106: =A_Rahmendaten!G193+A_Rahmendaten!G210 -> 94.43591455 | Y106: 95.81297605 | Z106: 97.19003756 | AA106: 98.56709906 | AB106: 99.94416056 | AC106: 101.3212221 | AD106: 102.6982836 | AE106: 104.0753451 | AF106: 105.4524066 | AG106: 106.8294681 | AH106: =A_Rahmendaten!H193+A_Rahmendaten!H210 -> 108.2065296
B107: Abfall, erneuerbar | C107: €/MWh | D107: =A_Rahmendaten!E194+A_Rahmendaten!E211 -> 18.64913914 | E107: 18.82708894 | F107: 19.00503874 | G107: 19.18298854 | H107: 19.36093834 | I107: 19.53888815 | J107: 19.71683795 | K107: 19.89478775 | L107: 20.07273755 | M107: 20.25068735 | N107: =A_Rahmendaten!F194+A_Rahmendaten!F211 -> 20.42863715 | O107: 20.60302795 | P107: 20.77741876 | Q107: 20.95180956 | R107: 21.12620037 | S107: 21.30059117 | T107: 21.47498198 | U107: 21.64937278 | V107: 21.82376359 | W107: 21.99815439 | X107: =A_Rahmendaten!G194+A_Rahmendaten!G211 -> 22.1725452 | Y107: 22.346936 | Z107: 22.52132681 | AA107: 22.69571761 | AB107: 22.87010842 | AC107: 23.04449922 | AD107: 23.21889003 | AE107: 23.39328083 | AF107: 23.56767164 | AG107: 23.74206244 | AH107: =A_Rahmendaten!H194+A_Rahmendaten!H211 -> 23.91645325
B108: Abfall, nicht erneuerbar | C108: €/MWh | D108: =A_Rahmendaten!E195+A_Rahmendaten!E212 -> 36.1490809 | E108: 36.83768537 | F108: 37.52628983 | G108: 38.2148943 | H108: 38.90349876 | I108: 39.59210323 | J108: 40.2807077 | K108: 40.96931216 | L108: 41.65791663 | M108: 42.3465211 | N108: =A_Rahmendaten!F195+A_Rahmendaten!F212 -> 43.03512556 | O108: 43.76804663 | P108: 44.50096771 | Q108: 45.23388878 | R108: 45.96680985 | S108: 46.69973092 | T108: 47.43265199 | U108: 48.16557306 | V108: 48.89849414 | W108: 49.63141521 | X108: =A_Rahmendaten!G195+A_Rahmendaten!G212 -> 50.36433628 | Y108: 51.15475929 | Z108: 51.9451823 | AA108: 52.73560532 | AB108: 53.52602833 | AC108: 54.31645134 | AD108: 55.10687435 | AE108: 55.89729736 | AF108: 56.68772038 | AG108: 57.47814339 | AH108: =A_Rahmendaten!H195+A_Rahmendaten!H212 -> 58.2685664
B109: Andere fossile | C109: €/MWh | D109: =A_Rahmendaten!E196+A_Rahmendaten!E213 -> 58.15286927 | E109: 59.26062428 | F109: 60.3683793 | G109: 61.47613431 | H109: 62.58388932 | I109: 63.69164433 | J109: 64.79939934 | K109: 65.90715435 | L109: 67.01490936 | M109: 68.12266437 | N109: =A_Rahmendaten!F196+A_Rahmendaten!F213 -> 69.23041938 | O109: 70.40946633 | P109: 71.58851327 | Q109: 72.76756021 | R109: 73.94660715 | S109: 75.12565409 | T109: 76.30470103 | U109: 77.48374797 | V109: 78.66279492 | W109: 79.84184186 | X109: =A_Rahmendaten!G196+A_Rahmendaten!G213 -> 81.0208888 | Y109: 82.29243886 | Z109: 83.56398892 | AA109: 84.83553899 | AB109: 86.10708905 | AC109: 87.37863911 | AD109: 88.65018917 | AE109: 89.92173924 | AF109: 91.1932893 | AG109: 92.46483936 | AH109: =A_Rahmendaten!H196+A_Rahmendaten!H213 -> 93.73638943
B110: Strommix-Methan | C110: €/MWh | D110: =A_Rahmendaten!E197+A_Rahmendaten!E214 -> 195.1475297 | E110: 181.5671575 | F110: 167.9867852 | G110: 154.4064129 | H110: 140.8260406 | I110: 127.2456684 | J110: 113.6652961 | K110: 100.0849238 | L110: 86.50455153 | M110: 72.92417926 | N110: =A_Rahmendaten!F197+A_Rahmendaten!F214 -> 59.34380698 | O110: 55.30120351 | P110: 51.25860003 | Q110: 47.21599656 | R110: 43.17339308 | S110: 39.13078961 | T110: 35.08818613 | U110: 31.04558266 | V110: 27.00297918 | W110: 22.96037571 | X110: =A_Rahmendaten!G197+A_Rahmendaten!G214 -> 18.91777223 | Y110: 17.02599501 | Z110: 15.13421778 | AA110: 13.24244056 | AB110: 11.35066334 | AC110: 9.458886115 | AD110: 7.567108892 | AE110: 5.675331669 | AF110: 3.783554446 | AG110: 1.891777223 | AH110: =A_Rahmendaten!H197+A_Rahmendaten!H214 -> 0
B111: Strommix-Wasserstoff | C111: €/MWh | D111: =A_Rahmendaten!E198+A_Rahmendaten!E215 -> 136.6032708 | E111: 127.0970102 | F111: 117.5907496 | G111: 108.084489 | H111: 98.57822845 | I111: 89.07196785 | J111: 79.56570726 | K111: 70.05944667 | L111: 60.55318607 | M111: 51.04692548 | N111: =A_Rahmendaten!F198+A_Rahmendaten!F215 -> 41.54066489 | O111: 38.71084246 | P111: 35.88102002 | Q111: 33.05119759 | R111: 30.22137516 | S111: 27.39155272 | T111: 24.56173029 | U111: 21.73190786 | V111: 18.90208543 | W111: 16.07226299 | X111: =A_Rahmendaten!G198+A_Rahmendaten!G215 -> 13.24244056 | Y111: 11.91819651 | Z111: 10.59395245 | AA111: 9.269708393 | AB111: 7.945464337 | AC111: 6.621220281 | AD111: 5.296976224 | AE111: 3.972732168 | AF111: 2.648488112 | AG111: 1.324244056 | AH111: =A_Rahmendaten!H198+A_Rahmendaten!H215 -> 0
B112: Braunkohle | C112: €/MWh | D112: =A_Rahmendaten!E199+A_Rahmendaten!E216 -> 80.5941813 | E112: =($N112-$D112)/10+D112 -> 82.1327328 | F112: =($N112-$D112)/10+E112 -> 83.6712843 | G112: =($N112-$D112)/10+F112 -> 85.2098358 | H112: =($N112-$D112)/10+G112 -> 86.74838729 | I112: =($N112-$D112)/10+H112 -> 88.28693879 | J112: =($N112-$D112)/10+I112 -> 89.82549029 | K112: =($N112-$D112)/10+J112 -> 91.36404179 | L112: =($N112-$D112)/10+K112 -> 92.90259328 | M112: =($N112-$D112)/10+L112 -> 94.44114478 | N112: =A_Rahmendaten!F199+A_Rahmendaten!F216 -> 95.97969628 | O112: =($X112-$N112)/10+N112 -> 97.61754491 | P112: =($X112-$N112)/10+O112 -> 99.25539354 | Q112: =($X112-$N112)/10+P112 -> 100.8932422 | R112: =($X112-$N112)/10+Q112 -> 102.5310908 | S112: =($X112-$N112)/10+R112 -> 104.1689394 | T112: =($X112-$N112)/10+S112 -> 105.8067881 | U112: =($X112-$N112)/10+T112 -> 107.4446367 | V112: =($X112-$N112)/10+U112 -> 109.0824853 | W112: =($X112-$N112)/10+V112 -> 110.720334 | X112: =A_Rahmendaten!G199+A_Rahmendaten!G216 -> 112.3581826 | Y112: =($AH112-$X112)/10+X112 -> 114.1247856 | Z112: =($AH112-$X112)/10+Y112 -> 115.8913885 | AA112: =($AH112-$X112)/10+Z112 -> 117.6579915 | AB112: =($AH112-$X112)/10+AA112 -> 119.4245945 | AC112: =($AH112-$X112)/10+AB112 -> 121.1911975 | AD112: =($AH112-$X112)/10+AC112 -> 122.9578005 | AE112: =($AH112-$X112)/10+AD112 -> 124.7244034 | AF112: =($AH112-$X112)/10+AE112 -> 126.4910064 | AG112: =($AH112-$X112)/10+AF112 -> 128.2576094 | AH112: =A_Rahmendaten!H199+A_Rahmendaten!H216 -> 130.0242124
B113: EE-Methan | C113: €/MWh | D113: =A_Rahmendaten!E200+A_Rahmendaten!E217 -> 0 | E113: 0 | F113: 0 | G113: 0 | H113: 0 | I113: 0 | J113: 0 | K113: 0 | L113: 0 | M113: 0 | N113: =A_Rahmendaten!F200+A_Rahmendaten!F217 -> 0 | O113: 0 | P113: 0 | Q113: 0 | R113: 0 | S113: 0 | T113: 0 | U113: 0 | V113: 0 | W113: 0 | X113: =A_Rahmendaten!G200+A_Rahmendaten!G217 -> 0 | Y113: 0 | Z113: 0 | AA113: 0 | AB113: 0 | AC113: 0 | AD113: 0 | AE113: 0 | AF113: 0 | AG113: 0 | AH113: =A_Rahmendaten!H200+A_Rahmendaten!H217 -> 0
B114: EE-Wasserstoff | C114: €/MWh | D114: =A_Rahmendaten!E201+A_Rahmendaten!E218 -> 0 | E114: 0 | F114: 0 | G114: 0 | H114: 0 | I114: 0 | J114: 0 | K114: 0 | L114: 0 | M114: 0 | N114: =A_Rahmendaten!F201+A_Rahmendaten!F218 -> 0 | O114: 0 | P114: 0 | Q114: 0 | R114: 0 | S114: 0 | T114: 0 | U114: 0 | V114: 0 | W114: 0 | X114: =A_Rahmendaten!G201+A_Rahmendaten!G218 -> 0 | Y114: 0 | Z114: 0 | AA114: 0 | AB114: 0 | AC114: 0 | AD114: 0 | AE114: 0 | AF114: 0 | AG114: 0 | AH114: =A_Rahmendaten!H201+A_Rahmendaten!H218 -> 0
B115: Prozessbedingte Emission | C115: €/t | D115: =A_Rahmendaten!E153 -> 198.5483298 | E115: =($N115-$D115)/10+D115 -> 200.4428749 | F115: =($N115-$D115)/10+E115 -> 202.33742 | G115: =($N115-$D115)/10+F115 -> 204.2319652 | H115: =($N115-$D115)/10+G115 -> 206.1265103 | I115: =($N115-$D115)/10+H115 -> 208.0210554 | J115: =($N115-$D115)/10+I115 -> 209.9156006 | K115: =($N115-$D115)/10+J115 -> 211.8101457 | L115: =($N115-$D115)/10+K115 -> 213.7046908 | M115: =($N115-$D115)/10+L115 -> 215.599236 | N115: =A_Rahmendaten!F153 -> 217.4937811 | O115: =($X115-$N115)/10+N115 -> 219.3504353 | P115: =($X115-$N115)/10+O115 -> 221.2070896 | Q115: =($X115-$N115)/10+P115 -> 223.0637438 | R115: =($X115-$N115)/10+Q115 -> 224.920398 | S115: =($X115-$N115)/10+R115 -> 226.7770522 | T115: =($X115-$N115)/10+S115 -> 228.6337065 | U115: =($X115-$N115)/10+T115 -> 230.4903607 | V115: =($X115-$N115)/10+U115 -> 232.3470149 | W115: =($X115-$N115)/10+V115 -> 234.2036692 | X115: =A_Rahmendaten!G153 -> 236.0603234 | Y115: =($AH115-$X115)/10+X115 -> 237.9169776 | Z115: =($AH115-$X115)/10+Y115 -> 239.7736318 | AA115: =($AH115-$X115)/10+Z115 -> 241.6302861 | AB115: =($AH115-$X115)/10+AA115 -> 243.4869403 | AC115: =($AH115-$X115)/10+AB115 -> 245.3435945 | AD115: =($AH115-$X115)/10+AC115 -> 247.2002488 | AE115: =($AH115-$X115)/10+AD115 -> 249.056903 | AF115: =($AH115-$X115)/10+AE115 -> 250.9135572 | AG115: =($AH115-$X115)/10+AF115 -> 252.7702114 | AH115: =A_Rahmendaten!H153 -> 254.6268657

Sheet B._WGK (hidden)
A2: Anwendung | B2: =Dashboard!D3 -> 0
A3: Referenz
A4: Technik | B4: =Name_Referenz -> Erdgasbeheizung
C6: Wärmegestehungskosten
C7: Jahr | D7: 2020 | E7: 2021 | F7: 2022 | G7: 2023 | H7: 2024 | I7: 2025 | J7: 2026 | K7: 2027 | L7: 2028 | M7: 2029 | N7: 2030 | O7: 2031 | P7: 2032 | Q7: 2033 | R7: 2034 | S7: 2035 | T7: 2036 | U7: 2037 | V7: 2038 | W7: 2039 | X7: 2040 | Y7: 2041 | Z7: 2042 | AA7: 2043 | AB7: 2044 | AC7: 2045 | AD7: 2046 | AE7: 2047 | AF7: 2048 | AG7: 2049 | AH7: 2050 | AI7: Einheit
C8: Aktivität | D8: =Kapazität_Referenz*Auslastung_Referenz -> 468000 | E8: 468000 | F8: 468000 | G8: 468000 | H8: 468000 | I8: 468000 | J8: 468000 | K8: 468000 | L8: 468000 | M8: 468000 | N8: 468000 | O8: 468000 | P8: 468000 | Q8: 468000 | R8: 468000 | S8: 468000 | T8: 468000 | U8: 468000 | V8: 468000 | W8: 468000 | X8: 468000 | Y8: 468000 | Z8: 468000 | AA8: 468000 | AB8: 468000 | AC8: 468000 | AD8: 468000 | AE8: 468000 | AF8: 468000 | AG8: 468000 | AH8: 468000 | AI8: tProdukt
C9: Annuität Investition Neubau | D9: =B._Investition!D17 ->  | E9: =B._Investition!E17 ->  | F9: =B._Investition!F17 ->  | G9: =B._Investition!G17 ->  | H9: =B._Investition!H17 ->  | I9: =B._Investition!I17 ->  | J9: =B._Investition!J17 ->  | K9: =B._Investition!K17 ->  | L9: =B._Investition!L17 ->  | M9: =B._Investition!M17 ->  | N9: =B._Investition!N17 ->  | O9: =B._Investition!O17 ->  | P9: =B._Investition!P17 ->  | Q9: =B._Investition!Q17 ->  | R9: =B._Investition!R17 ->  | S9: =B._Investition!S17 ->  | T9: =B._Investition!T17 ->  | U9: =B._Investition!U17 ->  | V9: =B._Investition!V17 ->  | W9: =B._Investition!W17 ->  | X9: =B._Investition!X17 ->  | Y9: =B._Investition!Y17 ->  | Z9: =B._Investition!Z17 ->  | AA9: =B._Investition!AA17 ->  | AB9: =B._Investition!AB17 ->  | AC9: =B._Investition!AC17 ->  | AD9: =B._Investition!AD17 ->  | AE9: =B._Investition!AE17 ->  | AF9: =B._Investition!AF17 ->  | AG9: =B._Investition!AG17 ->  | AH9: =B._Investition!AH17 ->  | AI9: EUR/a
C10: Annuität Investition Modernisierung | D10: =B._Investition!D18 ->  | E10: =B._Investition!E18 ->  | F10: =B._Investition!F18 ->  | G10: =B._Investition!G18 ->  | H10: =B._Investition!H18 ->  | I10: =B._Investition!I18 ->  | J10: =B._Investition!J18 ->  | K10: =B._Investition!K18 ->  | L10: =B._Investition!L18 ->  | M10: =B._Investition!M18 ->  | N10: =B._Investition!N18 ->  | O10: =B._Investition!O18 ->  | P10: =B._Investition!P18 ->  | Q10: =B._Investition!Q18 ->  | R10: =B._Investition!R18 ->  | S10: =B._Investition!S18 ->  | T10: =B._Investition!T18 ->  | U10: =B._Investition!U18 ->  | V10: =B._Investition!V18 ->  | W10: =B._Investition!W18 ->  | X10: =B._Investition!X18 ->  | Y10: =B._Investition!Y18 ->  | Z10: =B._Investition!Z18 ->  | AA10: =B._Investition!AA18 ->  | AB10: =B._Investition!AB18 ->  | AC10: =B._Investition!AC18 ->  | AD10: =B._Investition!AD18 ->  | AE10: =B._Investition!AE18 ->  | AF10: =B._Investition!AF18 ->  | AG10: =B._Investition!AG18 ->  | AH10: =B._Investition!AH18 ->  | AI10: EUR/a
C11: CO2-Kosten/Umweltkosten | D11: =INDEX(B._Umweltkosten!$B$54:$AH$58,MATCH(Auswahl_CO2Preise,B._Umweltkosten!$B$54:$B$58,0),MATCH(B._WGK!D$7,B._Umweltkosten!$D$53:$AH$53,0)+2) -> 2520882 | E11: =INDEX(B._Umweltkosten!$B$54:$AH$58,MATCH(Auswahl_CO2Preise,B._Umweltkosten!$B$54:$B$58,0),MATCH(B._WGK!E$7,B._Umweltkosten!$D$53:$AH$53,0)+2) ->  | F11: =INDEX(B._Umweltkosten!$B$54:$AH$58,MATCH(Auswahl_CO2Preise,B._Umweltkosten!$B$54:$B$58,0),MATCH(B._WGK!F$7,B._Umweltkosten!$D$53:$AH$53,0)+2) ->  | G11: =INDEX(B._Umweltkosten!$B$54:$AH$58,MATCH(Auswahl_CO2Preise,B._Umweltkosten!$B$54:$B$58,0),MATCH(B._WGK!G$7,B._Umweltkosten!$D$53:$AH$53,0)+2) ->  | H11: =INDEX(B._Umweltkosten!$B$54:$AH$58,MATCH(Auswahl_CO2Preise,B._Umweltkosten!$B$54:$B$58,0),MATCH(B._WGK!H$7,B._Umweltkosten!$D$53:$AH$53,0)+2) ->  | I11: =INDEX(B._Umweltkosten!$B$54:$AH$58,MATCH(Auswahl_CO2Preise,B._Umweltkosten!$B$54:$B$58,0),MATCH(B._WGK!I$7,B._Umweltkosten!$D$53:$AH$53,0)+2) ->  | J11: =INDEX(B._Umweltkosten!$B$54:$AH$58,MATCH(Auswahl_CO2Preise,B._Umweltkosten!$B$54:$B$58,0),MATCH(B._WGK!J$7,B._Umweltkosten!$D$53:$AH$53,0)+2) ->  | K11: =INDEX(B._Umweltkosten!$B$54:$AH$58,MATCH(Auswahl_CO2Preise,B._Umweltkosten!$B$54:$B$58,0),MATCH(B._WGK!K$7,B._Umweltkosten!$D$53:$AH$53,0)+2) ->  | L11: =INDEX(B._Umweltkosten!$B$54:$AH$58,MATCH(Auswahl_CO2Preise,B._Umweltkosten!$B$54:$B$58,0),MATCH(B._WGK!L$7,B._Umweltkosten!$D$53:$AH$53,0)+2) ->  | M11: =INDEX(B._Umweltkosten!$B$54:$AH$58,MATCH(Auswahl_CO2Preise,B._Umweltkosten!$B$54:$B$58,0),MATCH(B._WGK!M$7,B._Umweltkosten!$D$53:$AH$53,0)+2) ->  | N11: =INDEX(B._Umweltkosten!$B$54:$AH$58,MATCH(Auswahl_CO2Preise,B._Umweltkosten!$B$54:$B$58,0),MATCH(B._WGK!N$7,B._Umweltkosten!$D$53:$AH$53,0)+2) ->  | O11: =INDEX(B._Umweltkosten!$B$54:$AH$58,MATCH(Auswahl_CO2Preise,B._Umweltkosten!$B$54:$B$58,0),MATCH(B._WGK!O$7,B._Umweltkosten!$D$53:$AH$53,0)+2) ->  | P11: =INDEX(B._Umweltkosten!$B$54:$AH$58,MATCH(Auswahl_CO2Preise,B._Umweltkosten!$B$54:$B$58,0),MATCH(B._WGK!P$7,B._Umweltkosten!$D$53:$AH$53,0)+2) ->  | Q11: =INDEX(B._Umweltkosten!$B$54:$AH$58,MATCH(Auswahl_CO2Preise,B._Umweltkosten!$B$54:$B$58,0),MATCH(B._WGK!Q$7,B._Umweltkosten!$D$53:$AH$53,0)+2) ->  | R11: =INDEX(B._Umweltkosten!$B$54:$AH$58,MATCH(Auswahl_CO2Preise,B._Umweltkosten!$B$54:$B$58,0),MATCH(B._WGK!R$7,B._Umweltkosten!$D$53:$AH$53,0)+2) ->  | S11: =INDEX(B._Umweltkosten!$B$54:$AH$58,MATCH(Auswahl_CO2Preise,B._Umweltkosten!$B$54:$B$58,0),MATCH(B._WGK!S$7,B._Umweltkosten!$D$53:$AH$53,0)+2) ->  | T11: =INDEX(B._Umweltkosten!$B$54:$AH$58,MATCH(Auswahl_CO2Preise,B._Umweltkosten!$B$54:$B$58,0),MATCH(B._WGK!T$7,B._Umweltkosten!$D$53:$AH$53,0)+2) ->  | U11: =INDEX(B._Umweltkosten!$B$54:$AH$58,MATCH(Auswahl_CO2Preise,B._Umweltkosten!$B$54:$B$58,0),MATCH(B._WGK!U$7,B._Umweltkosten!$D$53:$AH$53,0)+2) ->  | V11: =INDEX(B._Umweltkosten!$B$54:$AH$58,MATCH(Auswahl_CO2Preise,B._Umweltkosten!$B$54:$B$58,0),MATCH(B._WGK!V$7,B._Umweltkosten!$D$53:$AH$53,0)+2) ->  | W11: =INDEX(B._Umweltkosten!$B$54:$AH$58,MATCH(Auswahl_CO2Preise,B._Umweltkosten!$B$54:$B$58,0),MATCH(B._WGK!W$7,B._Umweltkosten!$D$53:$AH$53,0)+2) ->  | X11: =INDEX(B._Umweltkosten!$B$54:$AH$58,MATCH(Auswahl_CO2Preise,B._Umweltkosten!$B$54:$B$58,0),MATCH(B._WGK!X$7,B._Umweltkosten!$D$53:$AH$53,0)+2) ->  | Y11: =INDEX(B._Umweltkosten!$B$54:$AH$58,MATCH(Auswahl_CO2Preise,B._Umweltkosten!$B$54:$B$58,0),MATCH(B._WGK!Y$7,B._Umweltkosten!$D$53:$AH$53,0)+2) ->  | Z11: =INDEX(B._Umweltkosten!$B$54:$AH$58,MATCH(Auswahl_CO2Preise,B._Umweltkosten!$B$54:$B$58,0),MATCH(B._WGK!Z$7,B._Umweltkosten!$D$53:$AH$53,0)+2) ->  | AA11: =INDEX(B._Umweltkosten!$B$54:$AH$58,MATCH(Auswahl_CO2Preise,B._Umweltkosten!$B$54:$B$58,0),MATCH(B._WGK!AA$7,B._Umweltkosten!$D$53:$AH$53,0)+2) ->  | AB11: =INDEX(B._Umweltkosten!$B$54:$AH$58,MATCH(Auswahl_CO2Preise,B._Umweltkosten!$B$54:$B$58,0),MATCH(B._WGK!AB$7,B._Umweltkosten!$D$53:$AH$53,0)+2) ->  | AC11: =INDEX(B._Umweltkosten!$B$54:$AH$58,MATCH(Auswahl_CO2Preise,B._Umweltkosten!$B$54:$B$58,0),MATCH(B._WGK!AC$7,B._Umweltkosten!$D$53:$AH$53,0)+2) ->  | AD11: =INDEX(B._Umweltkosten!$B$54:$AH$58,MATCH(Auswahl_CO2Preise,B._Umweltkosten!$B$54:$B$58,0),MATCH(B._WGK!AD$7,B._Umweltkosten!$D$53:$AH$53,0)+2) ->  | AE11: =INDEX(B._Umweltkosten!$B$54:$AH$58,MATCH(Auswahl_CO2Preise,B._Umweltkosten!$B$54:$B$58,0),MATCH(B._WGK!AE$7,B._Umweltkosten!$D$53:$AH$53,0)+2) ->  | AF11: =INDEX(B._Umweltkosten!$B$54:$AH$58,MATCH(Auswahl_CO2Preise,B._Umweltkosten!$B$54:$B$58,0),MATCH(B._WGK!AF$7,B._Umweltkosten!$D$53:$AH$53,0)+2) ->  | AG11: =INDEX(B._Umweltkosten!$B$54:$AH$58,MATCH(Auswahl_CO2Preise,B._Umweltkosten!$B$54:$B$58,0),MATCH(B._WGK!AG$7,B._Umweltkosten!$D$53:$AH$53,0)+2) ->  | AH11: =INDEX(B._Umweltkosten!$B$54:$AH$58,MATCH(Auswahl_CO2Preise,B._Umweltkosten!$B$54:$B$58,0),MATCH(B._WGK!AH$7,B._Umweltkosten!$D$53:$AH$53,0)+2) ->  | AI11: EUR/a
C12: Energiekosten | D12: =B._Energiekosten!D16 -> 6064931.682 | E12: =B._Energiekosten!E16 ->  | F12: =B._Energiekosten!F16 ->  | G12: =B._Energiekosten!G16 ->  | H12: =B._Energiekosten!H16 ->  | I12: =B._Energiekosten!I16 ->  | J12: =B._Energiekosten!J16 ->  | K12: =B._Energiekosten!K16 ->  | L12: =B._Energiekosten!L16 ->  | M12: =B._Energiekosten!M16 ->  | N12: =B._Energiekosten!N16 ->  | O12: =B._Energiekosten!O16 ->  | P12: =B._Energiekosten!P16 ->  | Q12: =B._Energiekosten!Q16 ->  | R12: =B._Energiekosten!R16 ->  | S12: =B._Energiekosten!S16 ->  | T12: =B._Energiekosten!T16 ->  | U12: =B._Energiekosten!U16 ->  | V12: =B._Energiekosten!V16 ->  | W12: =B._Energiekosten!W16 ->  | X12: =B._Energiekosten!X16 ->  | Y12: =B._Energiekosten!Y16 ->  | Z12: =B._Energiekosten!Z16 ->  | AA12: =B._Energiekosten!AA16 ->  | AB12: =B._Energiekosten!AB16 ->  | AC12: =B._Energiekosten!AC16 ->  | AD12: =B._Energiekosten!AD16 ->  | AE12: =B._Energiekosten!AE16 ->  | AF12: =B._Energiekosten!AF16 ->  | AG12: =B._Energiekosten!AG16 ->  | AH12: =B._Energiekosten!AH16 ->  | AI12: EUR/a
C13: O&M Neubau | D13: ='B._O&M'!D14 -> 988000 | E13: ='B._O&M'!E14 -> 988000 | F13: ='B._O&M'!F14 -> 988000 | G13: ='B._O&M'!G14 -> 988000 | H13: ='B._O&M'!H14 -> 988000 | I13: ='B._O&M'!I14 -> 988000 | J13: ='B._O&M'!J14 -> 988000 | K13: ='B._O&M'!K14 -> 988000 | L13: ='B._O&M'!L14 -> 988000 | M13: ='B._O&M'!M14 -> 988000 | N13: ='B._O&M'!N14 -> 988000 | O13: ='B._O&M'!O14 -> 988000 | P13: ='B._O&M'!P14 -> 988000 | Q13: ='B._O&M'!Q14 -> 988000 | R13: ='B._O&M'!R14 -> 988000 | S13: ='B._O&M'!S14 -> 988000 | T13: ='B._O&M'!T14 -> 988000 | U13: ='B._O&M'!U14 -> 988000 | V13: ='B._O&M'!V14 -> 988000 | W13: ='B._O&M'!W14 -> 988000 | X13: ='B._O&M'!X14 -> 988000 | Y13: ='B._O&M'!Y14 -> 988000 | Z13: ='B._O&M'!Z14 -> 988000 | AA13: ='B._O&M'!AA14 -> 988000 | AB13: ='B._O&M'!AB14 -> 988000 | AC13: ='B._O&M'!AC14 -> 988000 | AD13: ='B._O&M'!AD14 -> 988000 | AE13: ='B._O&M'!AE14 -> 988000 | AF13: ='B._O&M'!AF14 -> 988000 | AG13: ='B._O&M'!AG14 -> 988000 | AH13: ='B._O&M'!AH14 -> 988000 | AI13: EUR/a
C14: O&M Modernisierung | D14: ='B._O&M'!D15 -> 988000 | E14: ='B._O&M'!E15 -> 988000 | F14: ='B._O&M'!F15 -> 988000 | G14: ='B._O&M'!G15 -> 988000 | H14: ='B._O&M'!H15 -> 988000 | I14: ='B._O&M'!I15 -> 988000 | J14: ='B._O&M'!J15 -> 988000 | K14: ='B._O&M'!K15 -> 988000 | L14: ='B._O&M'!L15 -> 988000 | M14: ='B._O&M'!M15 -> 988000 | N14: ='B._O&M'!N15 -> 988000 | O14: ='B._O&M'!O15 -> 988000 | P14: ='B._O&M'!P15 -> 988000 | Q14: ='B._O&M'!Q15 -> 988000 | R14: ='B._O&M'!R15 -> 988000 | S14: ='B._O&M'!S15 -> 988000 | T14: ='B._O&M'!T15 -> 988000 | U14: ='B._O&M'!U15 -> 988000 | V14: ='B._O&M'!V15 -> 988000 | W14: ='B._O&M'!W15 -> 988000 | X14: ='B._O&M'!X15 -> 988000 | Y14: ='B._O&M'!Y15 -> 988000 | Z14: ='B._O&M'!Z15 -> 988000 | AA14: ='B._O&M'!AA15 -> 988000 | AB14: ='B._O&M'!AB15 -> 988000 | AC14: ='B._O&M'!AC15 -> 988000 | AD14: ='B._O&M'!AD15 -> 988000 | AE14: ='B._O&M'!AE15 -> 988000 | AF14: ='B._O&M'!AF15 -> 988000 | AG14: ='B._O&M'!AG15 -> 988000 | AH14: ='B._O&M'!AH15 -> 988000 | AI14: EUR/a
C15: Gesamtkosten Neubau | D15: =D9+D11+D12+D13 ->  | E15: =E9+E11+E12+E13 ->  | AI15: EUR/a
C16: Gesamtkosten Modernisierung | D16: =D10+D11+D12+D14 ->  | E16: =E10+E11+E12+E14 ->  | AI16: EUR/a
C17: Einnahmen | D17: =B._Einnahmen!D16 -> 0 | E17: =B._Einnahmen!E16 -> 0 | F17: =B._Einnahmen!F16 -> 0 | G17: =B._Einnahmen!G16 -> 0 | H17: =B._Einnahmen!H16 -> 0 | I17: =B._Einnahmen!I16 -> 0 | J17: =B._Einnahmen!J16 -> 0 | K17: =B._Einnahmen!K16 -> 0 | L17: =B._Einnahmen!L16 -> 0 | M17: =B._Einnahmen!M16 -> 0 | N17: =B._Einnahmen!N16 -> 0 | O17: =B._Einnahmen!O16 -> 0 | P17: =B._Einnahmen!P16 -> 0 | Q17: =B._Einnahmen!Q16 -> 0 | R17: =B._Einnahmen!R16 -> 0 | S17: =B._Einnahmen!S16 -> 0 | T17: =B._Einnahmen!T16 -> 0 | U17: =B._Einnahmen!U16 -> 0 | V17: =B._Einnahmen!V16 -> 0 | W17: =B._Einnahmen!W16 -> 0 | X17: =B._Einnahmen!X16 -> 0 | Y17: =B._Einnahmen!Y16 -> 0 | Z17: =B._Einnahmen!Z16 -> 0 | AA17: =B._Einnahmen!AA16 -> 0 | AB17: =B._Einnahmen!AB16 -> 0 | AC17: =B._Einnahmen!AC16 -> 0 | AD17: =B._Einnahmen!AD16 -> 0 | AE17: =B._Einnahmen!AE16 -> 0 | AF17: =B._Einnahmen!AF16 -> 0 | AG17: =B._Einnahmen!AG16 -> 0 | AH17: =B._Einnahmen!AH16 -> 0 | AI17: EUR/a
C18: Wärmegestehungskosten Neubau | D18: =IF(OR(D7<Dashboard!$C$25,D7>Dashboard!$C$26),0,(D15-D17)/D8) ->  | E18: =IF(OR(E7<Dashboard!$C$25,E7>Dashboard!$C$26),0,(E15-E17)/E8) ->  | F18: =IF(OR(F7<Dashboard!$C$25,F7>Dashboard!$C$26),0,(F15-F17)/F8) ->  | G18: =IF(OR(G7<Dashboard!$C$25,G7>Dashboard!$C$26),0,(G15-G17)/G8) ->  | H18: =IF(OR(H7<Dashboard!$C$25,H7>Dashboard!$C$26),0,(H15-H17)/H8) ->  | I18: =IF(OR(I7<Dashboard!$C$25,I7>Dashboard!$C$26),0,(I15-I17)/I8) ->  | J18: =IF(OR(J7<Dashboard!$C$25,J7>Dashboard!$C$26),0,(J15-J17)/J8) ->  | K18: =IF(OR(K7<Dashboard!$C$25,K7>Dashboard!$C$26),0,(K15-K17)/K8) ->  | L18: =IF(OR(L7<Dashboard!$C$25,L7>Dashboard!$C$26),0,(L15-L17)/L8) ->  | M18: =IF(OR(M7<Dashboard!$C$25,M7>Dashboard!$C$26),0,(M15-M17)/M8) ->  | N18: =IF(OR(N7<Dashboard!$C$25,N7>Dashboard!$C$26),0,(N15-N17)/N8) ->  | O18: =IF(OR(O7<Dashboard!$C$25,O7>Dashboard!$C$26),0,(O15-O17)/O8) ->  | P18: =IF(OR(P7<Dashboard!$C$25,P7>Dashboard!$C$26),0,(P15-P17)/P8) ->  | Q18: =IF(OR(Q7<Dashboard!$C$25,Q7>Dashboard!$C$26),0,(Q15-Q17)/Q8) ->  | R18: =IF(OR(R7<Dashboard!$C$25,R7>Dashboard!$C$26),0,(R15-R17)/R8) ->  | S18: =IF(OR(S7<Dashboard!$C$25,S7>Dashboard!$C$26),0,(S15-S17)/S8) ->  | T18: =IF(OR(T7<Dashboard!$C$25,T7>Dashboard!$C$26),0,(T15-T17)/T8) ->  | U18: =IF(OR(U7<Dashboard!$C$25,U7>Dashboard!$C$26),0,(U15-U17)/U8) ->  | V18: =IF(OR(V7<Dashboard!$C$25,V7>Dashboard!$C$26),0,(V15-V17)/V8) ->  | W18: =IF(OR(W7<Dashboard!$C$25,W7>Dashboard!$C$26),0,(W15-W17)/W8) ->  | X18: =IF(OR(X7<Dashboard!$C$25,X7>Dashboard!$C$26),0,(X15-X17)/X8) ->  | Y18: =IF(OR(Y7<Dashboard!$C$25,Y7>Dashboard!$C$26),0,(Y15-Y17)/Y8) ->  | Z18: =IF(OR(Z7<Dashboard!$C$25,Z7>Dashboard!$C$26),0,(Z15-Z17)/Z8) ->  | AA18: =IF(OR(AA7<Dashboard!$C$25,AA7>Dashboard!$C$26),0,(AA15-AA17)/AA8) ->  | AB18: =IF(OR(AB7<Dashboard!$C$25,AB7>Dashboard!$C$26),0,(AB15-AB17)/AB8) ->  | AC18: =IF(OR(AC7<Dashboard!$C$25,AC7>Dashboard!$C$26),0,(AC15-AC17)/AC8) ->  | AD18: =IF(OR(AD7<Dashboard!$C$25,AD7>Dashboard!$C$26),0,(AD15-AD17)/AD8) ->  | AE18: =IF(OR(AE7<Dashboard!$C$25,AE7>Dashboard!$C$26),0,(AE15-AE17)/AE8) ->  | AF18: =IF(OR(AF7<Dashboard!$C$25,AF7>Dashboard!$C$26),0,(AF15-AF17)/AF8) ->  | AG18: =IF(OR(AG7<Dashboard!$C$25,AG7>Dashboard!$C$26),0,(AG15-AG17)/AG8) ->  | AH18: =IF(OR(AH7<Dashboard!$C$25,AH7>Dashboard!$C$26),0,(AH15-AH17)/AH8) ->  | AI18: EUR/tProdukt
C19: Wärmegestehungskosten Modernisierung | D19: =IF(OR(D7<Dashboard!$C$25,D7>Dashboard!$C$26),0,(D16-D17)/D8) ->  | E19: =IF(OR(E7<Dashboard!$C$25,E7>Dashboard!$C$26),0,(E16-E17)/E8) ->  | F19: =IF(OR(F7<Dashboard!$C$25,F7>Dashboard!$C$26),0,(F16-F17)/F8) ->  | G19: =IF(OR(G7<Dashboard!$C$25,G7>Dashboard!$C$26),0,(G16-G17)/G8) ->  | H19: =IF(OR(H7<Dashboard!$C$25,H7>Dashboard!$C$26),0,(H16-H17)/H8) ->  | I19: =IF(OR(I7<Dashboard!$C$25,I7>Dashboard!$C$26),0,(I16-I17)/I8) ->  | J19: =IF(OR(J7<Dashboard!$C$25,J7>Dashboard!$C$26),0,(J16-J17)/J8) ->  | K19: =IF(OR(K7<Dashboard!$C$25,K7>Dashboard!$C$26),0,(K16-K17)/K8) ->  | L19: =IF(OR(L7<Dashboard!$C$25,L7>Dashboard!$C$26),0,(L16-L17)/L8) ->  | M19: =IF(OR(M7<Dashboard!$C$25,M7>Dashboard!$C$26),0,(M16-M17)/M8) ->  | N19: =IF(OR(N7<Dashboard!$C$25,N7>Dashboard!$C$26),0,(N16-N17)/N8) ->  | O19: =IF(OR(O7<Dashboard!$C$25,O7>Dashboard!$C$26),0,(O16-O17)/O8) ->  | P19: =IF(OR(P7<Dashboard!$C$25,P7>Dashboard!$C$26),0,(P16-P17)/P8) ->  | Q19: =IF(OR(Q7<Dashboard!$C$25,Q7>Dashboard!$C$26),0,(Q16-Q17)/Q8) ->  | R19: =IF(OR(R7<Dashboard!$C$25,R7>Dashboard!$C$26),0,(R16-R17)/R8) ->  | S19: =IF(OR(S7<Dashboard!$C$25,S7>Dashboard!$C$26),0,(S16-S17)/S8) ->  | T19: =IF(OR(T7<Dashboard!$C$25,T7>Dashboard!$C$26),0,(T16-T17)/T8) ->  | U19: =IF(OR(U7<Dashboard!$C$25,U7>Dashboard!$C$26),0,(U16-U17)/U8) ->  | V19: =IF(OR(V7<Dashboard!$C$25,V7>Dashboard!$C$26),0,(V16-V17)/V8) ->  | W19: =IF(OR(W7<Dashboard!$C$25,W7>Dashboard!$C$26),0,(W16-W17)/W8) ->  | X19: =IF(OR(X7<Dashboard!$C$25,X7>Dashboard!$C$26),0,(X16-X17)/X8) ->  | Y19: =IF(OR(Y7<Dashboard!$C$25,Y7>Dashboard!$C$26),0,(Y16-Y17)/Y8) ->  | Z19: =IF(OR(Z7<Dashboard!$C$25,Z7>Dashboard!$C$26),0,(Z16-Z17)/Z8) ->  | AA19: =IF(OR(AA7<Dashboard!$C$25,AA7>Dashboard!$C$26),0,(AA16-AA17)/AA8) ->  | AB19: =IF(OR(AB7<Dashboard!$C$25,AB7>Dashboard!$C$26),0,(AB16-AB17)/AB8) ->  | AC19: =IF(OR(AC7<Dashboard!$C$25,AC7>Dashboard!$C$26),0,(AC16-AC17)/AC8) ->  | AD19: =IF(OR(AD7<Dashboard!$C$25,AD7>Dashboard!$C$26),0,(AD16-AD17)/AD8) ->  | AE19: =IF(OR(AE7<Dashboard!$C$25,AE7>Dashboard!$C$26),0,(AE16-AE17)/AE8) ->  | AF19: =IF(OR(AF7<Dashboard!$C$25,AF7>Dashboard!$C$26),0,(AF16-AF17)/AF8) ->  | AG19: =IF(OR(AG7<Dashboard!$C$25,AG7>Dashboard!$C$26),0,(AG16-AG17)/AG8) ->  | AH19: =IF(OR(AH7<Dashboard!$C$25,AH7>Dashboard!$C$26),0,(AH16-AH17)/AH8) ->  | AI19: EUR/tProdukt
A21: CO2-neutrale Prozesswärmetechnik_1
A22: Technik | B22: =NAME_Alternative1 -> Elektrifizierung | C22: Wärmegestehungskosten
C23: Jahr | D23: 2020 | E23: 2021 | F23: 2022 | G23: 2023 | H23: 2024 | I23: 2025 | J23: 2026 | K23: 2027 | L23: 2028 | M23: 2029 | N23: 2030 | O23: 2031 | P23: 2032 | Q23: 2033 | R23: 2034 | S23: 2035 | T23: 2036 | U23: 2037 | V23: 2038 | W23: 2039 | X23: 2040 | Y23: 2041 | Z23: 2042 | AA23: 2043 | AB23: 2044 | AC23: 2045 | AD23: 2046 | AE23: 2047 | AF23: 2048 | AG23: 2049 | AH23: 2050 | AI23: Einheit
C24: Aktivität | D24: =Kapazität_Alternative1*Auslastung_Alternative1 -> 72000 | E24: 72000 | F24: 72000 | G24: 72000 | H24: 72000 | I24: 72000 | J24: 72000 | K24: 72000 | L24: 72000 | M24: 72000 | N24: 72000 | O24: 72000 | P24: 72000 | Q24: 72000 | R24: 72000 | S24: 72000 | T24: 72000 | U24: 72000 | V24: 72000 | W24: 72000 | X24: 72000 | Y24: 72000 | Z24: 72000 | AA24: 72000 | AB24: 72000 | AC24: 72000 | AD24: 72000 | AE24: 72000 | AF24: 72000 | AG24: 72000 | AH24: 72000 | AI24: tProdukt
C25: Annuität Investition Neubau | D25: =B._Investition!D27 ->  | E25: =B._Investition!E27 ->  | F25: =B._Investition!F27 ->  | G25: =B._Investition!G27 ->  | H25: =B._Investition!H27 ->  | I25: =B._Investition!I27 ->  | J25: =B._Investition!J27 ->  | K25: =B._Investition!K27 ->  | L25: =B._Investition!L27 ->  | M25: =B._Investition!M27 ->  | N25: =B._Investition!N27 ->  | O25: =B._Investition!O27 ->  | P25: =B._Investition!P27 ->  | Q25: =B._Investition!Q27 ->  | R25: =B._Investition!R27 ->  | S25: =B._Investition!S27 ->  | T25: =B._Investition!T27 ->  | U25: =B._Investition!U27 ->  | V25: =B._Investition!V27 ->  | W25: =B._Investition!W27 ->  | X25: =B._Investition!X27 ->  | Y25: =B._Investition!Y27 ->  | Z25: =B._Investition!Z27 ->  | AA25: =B._Investition!AA27 ->  | AB25: =B._Investition!AB27 ->  | AC25: =B._Investition!AC27 ->  | AD25: =B._Investition!AD27 ->  | AE25: =B._Investition!AE27 ->  | AF25: =B._Investition!AF27 ->  | AG25: =B._Investition!AG27 ->  | AH25: =B._Investition!AH27 ->  | AI25: EUR/a
C26: Annuität Investition Modernisierung | D26: =B._Investition!D28 ->  | E26: =B._Investition!E28 ->  | F26: =B._Investition!F28 ->  | G26: =B._Investition!G28 ->  | H26: =B._Investition!H28 ->  | I26: =B._Investition!I28 ->  | J26: =B._Investition!J28 ->  | K26: =B._Investition!K28 ->  | L26: =B._Investition!L28 ->  | M26: =B._Investition!M28 ->  | N26: =B._Investition!N28 ->  | O26: =B._Investition!O28 ->  | P26: =B._Investition!P28 ->  | Q26: =B._Investition!Q28 ->  | R26: =B._Investition!R28 ->  | S26: =B._Investition!S28 ->  | T26: =B._Investition!T28 ->  | U26: =B._Investition!U28 ->  | V26: =B._Investition!V28 ->  | W26: =B._Investition!W28 ->  | X26: =B._Investition!X28 ->  | Y26: =B._Investition!Y28 ->  | Z26: =B._Investition!Z28 ->  | AA26: =B._Investition!AA28 ->  | AB26: =B._Investition!AB28 ->  | AC26: =B._Investition!AC28 ->  | AD26: =B._Investition!AD28 ->  | AE26: =B._Investition!AE28 ->  | AF26: =B._Investition!AF28 ->  | AG26: =B._Investition!AG28 ->  | AH26: =B._Investition!AH28 ->  | AI26: EUR/a
C27: CO2-Kosten/Umweltkosten | D27: =INDEX(B._Umweltkosten!$B$59:$AH$63,MATCH(Auswahl_CO2Preise,B._Umweltkosten!$B$59:$B$63,0),MATCH(B._WGK!D$7,B._Umweltkosten!$D$53:$AH$53,0)+2) -> 230748.75 | E27: =INDEX(B._Umweltkosten!$B$59:$AH$63,MATCH(Auswahl_CO2Preise,B._Umweltkosten!$B$59:$B$63,0),MATCH(B._WGK!E$7,B._Umweltkosten!$D$53:$AH$53,0)+2) ->  | F27: =INDEX(B._Umweltkosten!$B$59:$AH$63,MATCH(Auswahl_CO2Preise,B._Umweltkosten!$B$59:$B$63,0),MATCH(B._WGK!F$7,B._Umweltkosten!$D$53:$AH$53,0)+2) ->  | G27: =INDEX(B._Umweltkosten!$B$59:$AH$63,MATCH(Auswahl_CO2Preise,B._Umweltkosten!$B$59:$B$63,0),MATCH(B._WGK!G$7,B._Umweltkosten!$D$53:$AH$53,0)+2) ->  | H27: =INDEX(B._Umweltkosten!$B$59:$AH$63,MATCH(Auswahl_CO2Preise,B._Umweltkosten!$B$59:$B$63,0),MATCH(B._WGK!H$7,B._Umweltkosten!$D$53:$AH$53,0)+2) ->  | I27: =INDEX(B._Umweltkosten!$B$59:$AH$63,MATCH(Auswahl_CO2Preise,B._Umweltkosten!$B$59:$B$63,0),MATCH(B._WGK!I$7,B._Umweltkosten!$D$53:$AH$53,0)+2) ->  | J27: =INDEX(B._Umweltkosten!$B$59:$AH$63,MATCH(Auswahl_CO2Preise,B._Umweltkosten!$B$59:$B$63,0),MATCH(B._WGK!J$7,B._Umweltkosten!$D$53:$AH$53,0)+2) ->  | K27: =INDEX(B._Umweltkosten!$B$59:$AH$63,MATCH(Auswahl_CO2Preise,B._Umweltkosten!$B$59:$B$63,0),MATCH(B._WGK!K$7,B._Umweltkosten!$D$53:$AH$53,0)+2) ->  | L27: =INDEX(B._Umweltkosten!$B$59:$AH$63,MATCH(Auswahl_CO2Preise,B._Umweltkosten!$B$59:$B$63,0),MATCH(B._WGK!L$7,B._Umweltkosten!$D$53:$AH$53,0)+2) ->  | M27: =INDEX(B._Umweltkosten!$B$59:$AH$63,MATCH(Auswahl_CO2Preise,B._Umweltkosten!$B$59:$B$63,0),MATCH(B._WGK!M$7,B._Umweltkosten!$D$53:$AH$53,0)+2) ->  | N27: =INDEX(B._Umweltkosten!$B$59:$AH$63,MATCH(Auswahl_CO2Preise,B._Umweltkosten!$B$59:$B$63,0),MATCH(B._WGK!N$7,B._Umweltkosten!$D$53:$AH$53,0)+2) ->  | O27: =INDEX(B._Umweltkosten!$B$59:$AH$63,MATCH(Auswahl_CO2Preise,B._Umweltkosten!$B$59:$B$63,0),MATCH(B._WGK!O$7,B._Umweltkosten!$D$53:$AH$53,0)+2) ->  | P27: =INDEX(B._Umweltkosten!$B$59:$AH$63,MATCH(Auswahl_CO2Preise,B._Umweltkosten!$B$59:$B$63,0),MATCH(B._WGK!P$7,B._Umweltkosten!$D$53:$AH$53,0)+2) ->  | Q27: =INDEX(B._Umweltkosten!$B$59:$AH$63,MATCH(Auswahl_CO2Preise,B._Umweltkosten!$B$59:$B$63,0),MATCH(B._WGK!Q$7,B._Umweltkosten!$D$53:$AH$53,0)+2) ->  | R27: =INDEX(B._Umweltkosten!$B$59:$AH$63,MATCH(Auswahl_CO2Preise,B._Umweltkosten!$B$59:$B$63,0),MATCH(B._WGK!R$7,B._Umweltkosten!$D$53:$AH$53,0)+2) ->  | S27: =INDEX(B._Umweltkosten!$B$59:$AH$63,MATCH(Auswahl_CO2Preise,B._Umweltkosten!$B$59:$B$63,0),MATCH(B._WGK!S$7,B._Umweltkosten!$D$53:$AH$53,0)+2) ->  | T27: =INDEX(B._Umweltkosten!$B$59:$AH$63,MATCH(Auswahl_CO2Preise,B._Umweltkosten!$B$59:$B$63,0),MATCH(B._WGK!T$7,B._Umweltkosten!$D$53:$AH$53,0)+2) ->  | U27: =INDEX(B._Umweltkosten!$B$59:$AH$63,MATCH(Auswahl_CO2Preise,B._Umweltkosten!$B$59:$B$63,0),MATCH(B._WGK!U$7,B._Umweltkosten!$D$53:$AH$53,0)+2) ->  | V27: =INDEX(B._Umweltkosten!$B$59:$AH$63,MATCH(Auswahl_CO2Preise,B._Umweltkosten!$B$59:$B$63,0),MATCH(B._WGK!V$7,B._Umweltkosten!$D$53:$AH$53,0)+2) ->  | W27: =INDEX(B._Umweltkosten!$B$59:$AH$63,MATCH(Auswahl_CO2Preise,B._Umweltkosten!$B$59:$B$63,0),MATCH(B._WGK!W$7,B._Umweltkosten!$D$53:$AH$53,0)+2) ->  | X27: =INDEX(B._Umweltkosten!$B$59:$AH$63,MATCH(Auswahl_CO2Preise,B._Umweltkosten!$B$59:$B$63,0),MATCH(B._WGK!X$7,B._Umweltkosten!$D$53:$AH$53,0)+2) ->  | Y27: =INDEX(B._Umweltkosten!$B$59:$AH$63,MATCH(Auswahl_CO2Preise,B._Umweltkosten!$B$59:$B$63,0),MATCH(B._WGK!Y$7,B._Umweltkosten!$D$53:$AH$53,0)+2) ->  | Z27: =INDEX(B._Umweltkosten!$B$59:$AH$63,MATCH(Auswahl_CO2Preise,B._Umweltkosten!$B$59:$B$63,0),MATCH(B._WGK!Z$7,B._Umweltkosten!$D$53:$AH$53,0)+2) ->  | AA27: =INDEX(B._Umweltkosten!$B$59:$AH$63,MATCH(Auswahl_CO2Preise,B._Umweltkosten!$B$59:$B$63,0),MATCH(B._WGK!AA$7,B._Umweltkosten!$D$53:$AH$53,0)+2) ->  | AB27: =INDEX(B._Umweltkosten!$B$59:$AH$63,MATCH(Auswahl_CO2Preise,B._Umweltkosten!$B$59:$B$63,0),MATCH(B._WGK!AB$7,B._Umweltkosten!$D$53:$AH$53,0)+2) ->  | AC27: =INDEX(B._Umweltkosten!$B$59:$AH$63,MATCH(Auswahl_CO2Preise,B._Umweltkosten!$B$59:$B$63,0),MATCH(B._WGK!AC$7,B._Umweltkosten!$D$53:$AH$53,0)+2) ->  | AD27: =INDEX(B._Umweltkosten!$B$59:$AH$63,MATCH(Auswahl_CO2Preise,B._Umweltkosten!$B$59:$B$63,0),MATCH(B._WGK!AD$7,B._Umweltkosten!$D$53:$AH$53,0)+2) ->  | AE27: =INDEX(B._Umweltkosten!$B$59:$AH$63,MATCH(Auswahl_CO2Preise,B._Umweltkosten!$B$59:$B$63,0),MATCH(B._WGK!AE$7,B._Umweltkosten!$D$53:$AH$53,0)+2) ->  | AF27: =INDEX(B._Umweltkosten!$B$59:$AH$63,MATCH(Auswahl_CO2Preise,B._Umweltkosten!$B$59:$B$63,0),MATCH(B._WGK!AF$7,B._Umweltkosten!$D$53:$AH$53,0)+2) ->  | AG27: =INDEX(B._Umweltkosten!$B$59:$AH$63,MATCH(Auswahl_CO2Preise,B._Umweltkosten!$B$59:$B$63,0),MATCH(B._WGK!AG$7,B._Umweltkosten!$D$53:$AH$53,0)+2) ->  | AH27: =INDEX(B._Umweltkosten!$B$59:$AH$63,MATCH(Auswahl_CO2Preise,B._Umweltkosten!$B$59:$B$63,0),MATCH(B._WGK!AH$7,B._Umweltkosten!$D$53:$AH$53,0)+2) ->  | AI27: EUR/a
C28: Energiekosten | D28: =B._Energiekosten!D24 -> 1044299.449 | E28: =B._Energiekosten!E24 ->  | F28: =B._Energiekosten!F24 ->  | G28: =B._Energiekosten!G24 ->  | H28: =B._Energiekosten!H24 ->  | I28: =B._Energiekosten!I24 ->  | J28: =B._Energiekosten!J24 ->  | K28: =B._Energiekosten!K24 ->  | L28: =B._Energiekosten!L24 ->  | M28: =B._Energiekosten!M24 ->  | N28: =B._Energiekosten!N24 ->  | O28: =B._Energiekosten!O24 ->  | P28: =B._Energiekosten!P24 ->  | Q28: =B._Energiekosten!Q24 ->  | R28: =B._Energiekosten!R24 ->  | S28: =B._Energiekosten!S24 ->  | T28: =B._Energiekosten!T24 ->  | U28: =B._Energiekosten!U24 ->  | V28: =B._Energiekosten!V24 ->  | W28: =B._Energiekosten!W24 ->  | X28: =B._Energiekosten!X24 ->  | Y28: =B._Energiekosten!Y24 ->  | Z28: =B._Energiekosten!Z24 ->  | AA28: =B._Energiekosten!AA24 ->  | AB28: =B._Energiekosten!AB24 ->  | AC28: =B._Energiekosten!AC24 ->  | AD28: =B._Energiekosten!AD24 ->  | AE28: =B._Energiekosten!AE24 ->  | AF28: =B._Energiekosten!AF24 ->  | AG28: =B._Energiekosten!AG24 ->  | AH28: =B._Energiekosten!AH24 ->  | AI28: EUR/a
C29: O&M Neubau | D29: ='B._O&M'!D21 -> 248000 | E29: ='B._O&M'!E21 -> 248000 | F29: ='B._O&M'!F21 -> 248000 | G29: ='B._O&M'!G21 -> 248000 | H29: ='B._O&M'!H21 -> 248000 | I29: ='B._O&M'!I21 -> 248000 | J29: ='B._O&M'!J21 -> 248000 | K29: ='B._O&M'!K21 -> 248000 | L29: ='B._O&M'!L21 -> 248000 | M29: ='B._O&M'!M21 -> 248000 | N29: ='B._O&M'!N21 -> 248000 | O29: ='B._O&M'!O21 -> 248000 | P29: ='B._O&M'!P21 -> 248000 | Q29: ='B._O&M'!Q21 -> 248000 | R29: ='B._O&M'!R21 -> 248000 | S29: ='B._O&M'!S21 -> 248000 | T29: ='B._O&M'!T21 -> 248000 | U29: ='B._O&M'!U21 -> 248000 | V29: ='B._O&M'!V21 -> 248000 | W29: ='B._O&M'!W21 -> 248000 | X29: ='B._O&M'!X21 -> 248000 | Y29: ='B._O&M'!Y21 -> 248000 | Z29: ='B._O&M'!Z21 -> 248000 | AA29: ='B._O&M'!AA21 -> 248000 | AB29: ='B._O&M'!AB21 -> 248000 | AC29: ='B._O&M'!AC21 -> 248000 | AD29: ='B._O&M'!AD21 -> 248000 | AE29: ='B._O&M'!AE21 -> 248000 | AF29: ='B._O&M'!AF21 -> 248000 | AG29: ='B._O&M'!AG21 -> 248000 | AH29: ='B._O&M'!AH21 -> 248000 | AI29: EUR/a
C30: O&M Modernisierung | D30: ='B._O&M'!D22 -> 248000 | E30: ='B._O&M'!E22 -> 248000 | F30: ='B._O&M'!F22 -> 248000 | G30: ='B._O&M'!G22 -> 248000 | H30: ='B._O&M'!H22 -> 248000 | I30: ='B._O&M'!I22 -> 248000 | J30: ='B._O&M'!J22 -> 248000 | K30: ='B._O&M'!K22 -> 248000 | L30: ='B._O&M'!L22 -> 248000 | M30: ='B._O&M'!M22 -> 248000 | N30: ='B._O&M'!N22 -> 248000 | O30: ='B._O&M'!O22 -> 248000 | P30: ='B._O&M'!P22 -> 248000 | Q30: ='B._O&M'!Q22 -> 248000 | R30: ='B._O&M'!R22 -> 248000 | S30: ='B._O&M'!S22 -> 248000 | T30: ='B._O&M'!T22 -> 248000 | U30: ='B._O&M'!U22 -> 248000 | V30: ='B._O&M'!V22 -> 248000 | W30: ='B._O&M'!W22 -> 248000 | X30: ='B._O&M'!X22 -> 248000 | Y30: ='B._O&M'!Y22 -> 248000 | Z30: ='B._O&M'!Z22 -> 248000 | AA30: ='B._O&M'!AA22 -> 248000 | AB30: ='B._O&M'!AB22 -> 248000 | AC30: ='B._O&M'!AC22 -> 248000 | AD30: ='B._O&M'!AD22 -> 248000 | AE30: ='B._O&M'!AE22 -> 248000 | AF30: ='B._O&M'!AF22 -> 248000 | AG30: ='B._O&M'!AG22 -> 248000 | AH30: ='B._O&M'!AH22 -> 248000 | AI30: EUR/a
C31: Gesamtkosten Neubau | D31: =D25+D27+D28+D29 ->  | E31: =E25+E27+E28+E29 ->  | AI31: EUR/a
C32: Gesamtkosten Modernisierung | D32: =D26+D27+D28+D30 ->  | E32: =E26+E27+E28+E30 ->  | AI32: EUR/a
C33: Einnahmen | D33: =B._Einnahmen!D24 -> 0 | E33: =B._Einnahmen!E24 -> 0 | F33: =B._Einnahmen!F24 -> 0 | G33: =B._Einnahmen!G24 -> 0 | H33: =B._Einnahmen!H24 -> 0 | I33: =B._Einnahmen!I24 -> 0 | J33: =B._Einnahmen!J24 -> 0 | K33: =B._Einnahmen!K24 -> 0 | L33: =B._Einnahmen!L24 -> 0 | M33: =B._Einnahmen!M24 -> 0 | N33: =B._Einnahmen!N24 -> 0 | O33: =B._Einnahmen!O24 -> 0 | P33: =B._Einnahmen!P24 -> 0 | Q33: =B._Einnahmen!Q24 -> 0 | R33: =B._Einnahmen!R24 -> 0 | S33: =B._Einnahmen!S24 -> 0 | T33: =B._Einnahmen!T24 -> 0 | U33: =B._Einnahmen!U24 -> 0 | V33: =B._Einnahmen!V24 -> 0 | W33: =B._Einnahmen!W24 -> 0 | X33: =B._Einnahmen!X24 -> 0 | Y33: =B._Einnahmen!Y24 -> 0 | Z33: =B._Einnahmen!Z24 -> 0 | AA33: =B._Einnahmen!AA24 -> 0 | AB33: =B._Einnahmen!AB24 -> 0 | AC33: =B._Einnahmen!AC24 -> 0 | AD33: =B._Einnahmen!AD24 -> 0 | AE33: =B._Einnahmen!AE24 -> 0 | AF33: =B._Einnahmen!AF24 -> 0 | AG33: =B._Einnahmen!AG24 -> 0 | AH33: =B._Einnahmen!AH24 -> 0 | AI33: EUR/a
C34: Wärmegestehungskosten Neubau | D34: =IF(OR(D7<Dashboard!$D$25,D7>Dashboard!$D$26),0,(D31-D33)/D24) ->  | E34: =IF(OR(E7<Dashboard!$D$25,E7>Dashboard!$D$26),0,(E31-E33)/E24) ->  | F34: =IF(OR(F7<Dashboard!$D$25,F7>Dashboard!$D$26),0,(F31-F33)/F24) ->  | G34: =IF(OR(G7<Dashboard!$D$25,G7>Dashboard!$D$26),0,(G31-G33)/G24) ->  | H34: =IF(OR(H7<Dashboard!$D$25,H7>Dashboard!$D$26),0,(H31-H33)/H24) ->  | I34: =IF(OR(I7<Dashboard!$D$25,I7>Dashboard!$D$26),0,(I31-I33)/I24) ->  | J34: =IF(OR(J7<Dashboard!$D$25,J7>Dashboard!$D$26),0,(J31-J33)/J24) ->  | K34: =IF(OR(K7<Dashboard!$D$25,K7>Dashboard!$D$26),0,(K31-K33)/K24) ->  | L34: =IF(OR(L7<Dashboard!$D$25,L7>Dashboard!$D$26),0,(L31-L33)/L24) ->  | M34: =IF(OR(M7<Dashboard!$D$25,M7>Dashboard!$D$26),0,(M31-M33)/M24) ->  | N34: =IF(OR(N7<Dashboard!$D$25,N7>Dashboard!$D$26),0,(N31-N33)/N24) ->  | O34: =IF(OR(O7<Dashboard!$D$25,O7>Dashboard!$D$26),0,(O31-O33)/O24) ->  | P34: =IF(OR(P7<Dashboard!$D$25,P7>Dashboard!$D$26),0,(P31-P33)/P24) ->  | Q34: =IF(OR(Q7<Dashboard!$D$25,Q7>Dashboard!$D$26),0,(Q31-Q33)/Q24) ->  | R34: =IF(OR(R7<Dashboard!$D$25,R7>Dashboard!$D$26),0,(R31-R33)/R24) ->  | S34: =IF(OR(S7<Dashboard!$D$25,S7>Dashboard!$D$26),0,(S31-S33)/S24) ->  | T34: =IF(OR(T7<Dashboard!$D$25,T7>Dashboard!$D$26),0,(T31-T33)/T24) ->  | U34: =IF(OR(U7<Dashboard!$D$25,U7>Dashboard!$D$26),0,(U31-U33)/U24) ->  | V34: =IF(OR(V7<Dashboard!$D$25,V7>Dashboard!$D$26),0,(V31-V33)/V24) ->  | W34: =IF(OR(W7<Dashboard!$D$25,W7>Dashboard!$D$26),0,(W31-W33)/W24) ->  | X34: =IF(OR(X7<Dashboard!$D$25,X7>Dashboard!$D$26),0,(X31-X33)/X24) ->  | Y34: =IF(OR(Y7<Dashboard!$D$25,Y7>Dashboard!$D$26),0,(Y31-Y33)/Y24) ->  | Z34: =IF(OR(Z7<Dashboard!$D$25,Z7>Dashboard!$D$26),0,(Z31-Z33)/Z24) ->  | AA34: =IF(OR(AA7<Dashboard!$D$25,AA7>Dashboard!$D$26),0,(AA31-AA33)/AA24) ->  | AB34: =IF(OR(AB7<Dashboard!$D$25,AB7>Dashboard!$D$26),0,(AB31-AB33)/AB24) ->  | AC34: =IF(OR(AC7<Dashboard!$D$25,AC7>Dashboard!$D$26),0,(AC31-AC33)/AC24) ->  | AD34: =IF(OR(AD7<Dashboard!$D$25,AD7>Dashboard!$D$26),0,(AD31-AD33)/AD24) ->  | AE34: =IF(OR(AE7<Dashboard!$D$25,AE7>Dashboard!$D$26),0,(AE31-AE33)/AE24) ->  | AF34: =IF(OR(AF7<Dashboard!$D$25,AF7>Dashboard!$D$26),0,(AF31-AF33)/AF24) ->  | AG34: =IF(OR(AG7<Dashboard!$D$25,AG7>Dashboard!$D$26),0,(AG31-AG33)/AG24) ->  | AH34: =IF(OR(AH7<Dashboard!$D$25,AH7>Dashboard!$D$26),0,(AH31-AH33)/AH24) ->  | AI34: EUR/tProdukt
C35: Wärmegestehungskosten Modernisierung | D35: =IF(OR(D7<Dashboard!$D$25,D7>Dashboard!$D$26),0,(D32-D33)/D24) ->  | E35: =IF(OR(E7<Dashboard!$D$25,E7>Dashboard!$D$26),0,(E32-E33)/E24) ->  | F35: =IF(OR(F7<Dashboard!$D$25,F7>Dashboard!$D$26),0,(F32-F33)/F24) ->  | G35: =IF(OR(G7<Dashboard!$D$25,G7>Dashboard!$D$26),0,(G32-G33)/G24) ->  | H35: =IF(OR(H7<Dashboard!$D$25,H7>Dashboard!$D$26),0,(H32-H33)/H24) ->  | I35: =IF(OR(I7<Dashboard!$D$25,I7>Dashboard!$D$26),0,(I32-I33)/I24) ->  | J35: =IF(OR(J7<Dashboard!$D$25,J7>Dashboard!$D$26),0,(J32-J33)/J24) ->  | K35: =IF(OR(K7<Dashboard!$D$25,K7>Dashboard!$D$26),0,(K32-K33)/K24) ->  | L35: =IF(OR(L7<Dashboard!$D$25,L7>Dashboard!$D$26),0,(L32-L33)/L24) ->  | M35: =IF(OR(M7<Dashboard!$D$25,M7>Dashboard!$D$26),0,(M32-M33)/M24) ->  | N35: =IF(OR(N7<Dashboard!$D$25,N7>Dashboard!$D$26),0,(N32-N33)/N24) ->  | O35: =IF(OR(O7<Dashboard!$D$25,O7>Dashboard!$D$26),0,(O32-O33)/O24) ->  | P35: =IF(OR(P7<Dashboard!$D$25,P7>Dashboard!$D$26),0,(P32-P33)/P24) ->  | Q35: =IF(OR(Q7<Dashboard!$D$25,Q7>Dashboard!$D$26),0,(Q32-Q33)/Q24) ->  | R35: =IF(OR(R7<Dashboard!$D$25,R7>Dashboard!$D$26),0,(R32-R33)/R24) ->  | S35: =IF(OR(S7<Dashboard!$D$25,S7>Dashboard!$D$26),0,(S32-S33)/S24) ->  | T35: =IF(OR(T7<Dashboard!$D$25,T7>Dashboard!$D$26),0,(T32-T33)/T24) ->  | U35: =IF(OR(U7<Dashboard!$D$25,U7>Dashboard!$D$26),0,(U32-U33)/U24) ->  | V35: =IF(OR(V7<Dashboard!$D$25,V7>Dashboard!$D$26),0,(V32-V33)/V24) ->  | W35: =IF(OR(W7<Dashboard!$D$25,W7>Dashboard!$D$26),0,(W32-W33)/W24) ->  | X35: =IF(OR(X7<Dashboard!$D$25,X7>Dashboard!$D$26),0,(X32-X33)/X24) ->  | Y35: =IF(OR(Y7<Dashboard!$D$25,Y7>Dashboard!$D$26),0,(Y32-Y33)/Y24) ->  | Z35: =IF(OR(Z7<Dashboard!$D$25,Z7>Dashboard!$D$26),0,(Z32-Z33)/Z24) ->  | AA35: =IF(OR(AA7<Dashboard!$D$25,AA7>Dashboard!$D$26),0,(AA32-AA33)/AA24) ->  | AB35: =IF(OR(AB7<Dashboard!$D$25,AB7>Dashboard!$D$26),0,(AB32-AB33)/AB24) ->  | AC35: =IF(OR(AC7<Dashboard!$D$25,AC7>Dashboard!$D$26),0,(AC32-AC33)/AC24) ->  | AD35: =IF(OR(AD7<Dashboard!$D$25,AD7>Dashboard!$D$26),0,(AD32-AD33)/AD24) ->  | AE35: =IF(OR(AE7<Dashboard!$D$25,AE7>Dashboard!$D$26),0,(AE32-AE33)/AE24) ->  | AF35: =IF(OR(AF7<Dashboard!$D$25,AF7>Dashboard!$D$26),0,(AF32-AF33)/AF24) ->  | AG35: =IF(OR(AG7<Dashboard!$D$25,AG7>Dashboard!$D$26),0,(AG32-AG33)/AG24) ->  | AH35: =IF(OR(AH7<Dashboard!$D$25,AH7>Dashboard!$D$26),0,(AH32-AH33)/AH24) ->  | AI35: EUR/tProdukt
A37: CO2-neutrale Prozesswärmetechnik_2
A38: Technik | B38: =NAME_Alternative2 -> Wasserstoffbeheizung | C38: Wärmegestehungskosten
C39: Jahr | D39: 2020 | E39: 2021 | F39: 2022 | G39: 2023 | H39: 2024 | I39: 2025 | J39: 2026 | K39: 2027 | L39: 2028 | M39: 2029 | N39: 2030 | O39: 2031 | P39: 2032 | Q39: 2033 | R39: 2034 | S39: 2035 | T39: 2036 | U39: 2037 | V39: 2038 | W39: 2039 | X39: 2040 | Y39: 2041 | Z39: 2042 | AA39: 2043 | AB39: 2044 | AC39: 2045 | AD39: 2046 | AE39: 2047 | AF39: 2048 | AG39: 2049 | AH39: 2050 | AI39: Einheit
C40: Aktivität | D40: =Kapazität_Alternative2*Auslastung_Alternative2 -> 468000 | E40: 468000 | F40: 468000 | G40: 468000 | H40: 468000 | I40: 468000 | J40: 468000 | K40: 468000 | L40: 468000 | M40: 468000 | N40: 468000 | O40: 468000 | P40: 468000 | Q40: 468000 | R40: 468000 | S40: 468000 | T40: 468000 | U40: 468000 | V40: 468000 | W40: 468000 | X40: 468000 | Y40: 468000 | Z40: 468000 | AA40: 468000 | AB40: 468000 | AC40: 468000 | AD40: 468000 | AE40: 468000 | AF40: 468000 | AG40: 468000 | AH40: 468000 | AI40: tProdukt
C41: Annuität Investition Neubau | D41: =B._Investition!D37 ->  | E41: =B._Investition!E37 ->  | F41: =B._Investition!F37 ->  | G41: =B._Investition!G37 ->  | H41: =B._Investition!H37 ->  | I41: =B._Investition!I37 ->  | J41: =B._Investition!J37 ->  | K41: =B._Investition!K37 ->  | L41: =B._Investition!L37 ->  | M41: =B._Investition!M37 ->  | N41: =B._Investition!N37 ->  | O41: =B._Investition!O37 ->  | P41: =B._Investition!P37 ->  | Q41: =B._Investition!Q37 ->  | R41: =B._Investition!R37 ->  | S41: =B._Investition!S37 ->  | T41: =B._Investition!T37 ->  | U41: =B._Investition!U37 ->  | V41: =B._Investition!V37 ->  | W41: =B._Investition!W37 ->  | X41: =B._Investition!X37 ->  | Y41: =B._Investition!Y37 ->  | Z41: =B._Investition!Z37 ->  | AA41: =B._Investition!AA37 ->  | AB41: =B._Investition!AB37 ->  | AC41: =B._Investition!AC37 ->  | AD41: =B._Investition!AD37 ->  | AE41: =B._Investition!AE37 ->  | AF41: =B._Investition!AF37 ->  | AG41: =B._Investition!AG37 ->  | AH41: =B._Investition!AH37 ->  | AI41: EUR/a
C42: Annuität Investition Modernisierung | D42: =B._Investition!D38 ->  | E42: =B._Investition!E38 ->  | F42: =B._Investition!F38 ->  | G42: =B._Investition!G38 ->  | H42: =B._Investition!H38 ->  | I42: =B._Investition!I38 ->  | J42: =B._Investition!J38 ->  | K42: =B._Investition!K38 ->  | L42: =B._Investition!L38 ->  | M42: =B._Investition!M38 ->  | N42: =B._Investition!N38 ->  | O42: =B._Investition!O38 ->  | P42: =B._Investition!P38 ->  | Q42: =B._Investition!Q38 ->  | R42: =B._Investition!R38 ->  | S42: =B._Investition!S38 ->  | T42: =B._Investition!T38 ->  | U42: =B._Investition!U38 ->  | V42: =B._Investition!V38 ->  | W42: =B._Investition!W38 ->  | X42: =B._Investition!X38 ->  | Y42: =B._Investition!Y38 ->  | Z42: =B._Investition!Z38 ->  | AA42: =B._Investition!AA38 ->  | AB42: =B._Investition!AB38 ->  | AC42: =B._Investition!AC38 ->  | AD42: =B._Investition!AD38 ->  | AE42: =B._Investition!AE38 ->  | AF42: =B._Investition!AF38 ->  | AG42: =B._Investition!AG38 ->  | AH42: =B._Investition!AH38 ->  | AI42: EUR/a
C43: CO2-Kosten/Umweltkosten | D43: =INDEX(B._Umweltkosten!$B$64:$AH$68,MATCH(Auswahl_CO2Preise,B._Umweltkosten!$B$64:$B$68,0),MATCH(B._WGK!D$7,B._Umweltkosten!$D$53:$AH$53,0)+2) -> 0 | E43: =INDEX(B._Umweltkosten!$B$64:$AH$68,MATCH(Auswahl_CO2Preise,B._Umweltkosten!$B$64:$B$68,0),MATCH(B._WGK!E$7,B._Umweltkosten!$D$53:$AH$53,0)+2) ->  | F43: =INDEX(B._Umweltkosten!$B$64:$AH$68,MATCH(Auswahl_CO2Preise,B._Umweltkosten!$B$64:$B$68,0),MATCH(B._WGK!F$7,B._Umweltkosten!$D$53:$AH$53,0)+2) ->  | G43: =INDEX(B._Umweltkosten!$B$64:$AH$68,MATCH(Auswahl_CO2Preise,B._Umweltkosten!$B$64:$B$68,0),MATCH(B._WGK!G$7,B._Umweltkosten!$D$53:$AH$53,0)+2) ->  | H43: =INDEX(B._Umweltkosten!$B$64:$AH$68,MATCH(Auswahl_CO2Preise,B._Umweltkosten!$B$64:$B$68,0),MATCH(B._WGK!H$7,B._Umweltkosten!$D$53:$AH$53,0)+2) ->  | I43: =INDEX(B._Umweltkosten!$B$64:$AH$68,MATCH(Auswahl_CO2Preise,B._Umweltkosten!$B$64:$B$68,0),MATCH(B._WGK!I$7,B._Umweltkosten!$D$53:$AH$53,0)+2) ->  | J43: =INDEX(B._Umweltkosten!$B$64:$AH$68,MATCH(Auswahl_CO2Preise,B._Umweltkosten!$B$64:$B$68,0),MATCH(B._WGK!J$7,B._Umweltkosten!$D$53:$AH$53,0)+2) ->  | K43: =INDEX(B._Umweltkosten!$B$64:$AH$68,MATCH(Auswahl_CO2Preise,B._Umweltkosten!$B$64:$B$68,0),MATCH(B._WGK!K$7,B._Umweltkosten!$D$53:$AH$53,0)+2) ->  | L43: =INDEX(B._Umweltkosten!$B$64:$AH$68,MATCH(Auswahl_CO2Preise,B._Umweltkosten!$B$64:$B$68,0),MATCH(B._WGK!L$7,B._Umweltkosten!$D$53:$AH$53,0)+2) ->  | M43: =INDEX(B._Umweltkosten!$B$64:$AH$68,MATCH(Auswahl_CO2Preise,B._Umweltkosten!$B$64:$B$68,0),MATCH(B._WGK!M$7,B._Umweltkosten!$D$53:$AH$53,0)+2) ->  | N43: =INDEX(B._Umweltkosten!$B$64:$AH$68,MATCH(Auswahl_CO2Preise,B._Umweltkosten!$B$64:$B$68,0),MATCH(B._WGK!N$7,B._Umweltkosten!$D$53:$AH$53,0)+2) ->  | O43: =INDEX(B._Umweltkosten!$B$64:$AH$68,MATCH(Auswahl_CO2Preise,B._Umweltkosten!$B$64:$B$68,0),MATCH(B._WGK!O$7,B._Umweltkosten!$D$53:$AH$53,0)+2) ->  | P43: =INDEX(B._Umweltkosten!$B$64:$AH$68,MATCH(Auswahl_CO2Preise,B._Umweltkosten!$B$64:$B$68,0),MATCH(B._WGK!P$7,B._Umweltkosten!$D$53:$AH$53,0)+2) ->  | Q43: =INDEX(B._Umweltkosten!$B$64:$AH$68,MATCH(Auswahl_CO2Preise,B._Umweltkosten!$B$64:$B$68,0),MATCH(B._WGK!Q$7,B._Umweltkosten!$D$53:$AH$53,0)+2) ->  | R43: =INDEX(B._Umweltkosten!$B$64:$AH$68,MATCH(Auswahl_CO2Preise,B._Umweltkosten!$B$64:$B$68,0),MATCH(B._WGK!R$7,B._Umweltkosten!$D$53:$AH$53,0)+2) ->  | S43: =INDEX(B._Umweltkosten!$B$64:$AH$68,MATCH(Auswahl_CO2Preise,B._Umweltkosten!$B$64:$B$68,0),MATCH(B._WGK!S$7,B._Umweltkosten!$D$53:$AH$53,0)+2) ->  | T43: =INDEX(B._Umweltkosten!$B$64:$AH$68,MATCH(Auswahl_CO2Preise,B._Umweltkosten!$B$64:$B$68,0),MATCH(B._WGK!T$7,B._Umweltkosten!$D$53:$AH$53,0)+2) ->  | U43: =INDEX(B._Umweltkosten!$B$64:$AH$68,MATCH(Auswahl_CO2Preise,B._Umweltkosten!$B$64:$B$68,0),MATCH(B._WGK!U$7,B._Umweltkosten!$D$53:$AH$53,0)+2) ->  | V43: =INDEX(B._Umweltkosten!$B$64:$AH$68,MATCH(Auswahl_CO2Preise,B._Umweltkosten!$B$64:$B$68,0),MATCH(B._WGK!V$7,B._Umweltkosten!$D$53:$AH$53,0)+2) ->  | W43: =INDEX(B._Umweltkosten!$B$64:$AH$68,MATCH(Auswahl_CO2Preise,B._Umweltkosten!$B$64:$B$68,0),MATCH(B._WGK!W$7,B._Umweltkosten!$D$53:$AH$53,0)+2) ->  | X43: =INDEX(B._Umweltkosten!$B$64:$AH$68,MATCH(Auswahl_CO2Preise,B._Umweltkosten!$B$64:$B$68,0),MATCH(B._WGK!X$7,B._Umweltkosten!$D$53:$AH$53,0)+2) ->  | Y43: =INDEX(B._Umweltkosten!$B$64:$AH$68,MATCH(Auswahl_CO2Preise,B._Umweltkosten!$B$64:$B$68,0),MATCH(B._WGK!Y$7,B._Umweltkosten!$D$53:$AH$53,0)+2) ->  | Z43: =INDEX(B._Umweltkosten!$B$64:$AH$68,MATCH(Auswahl_CO2Preise,B._Umweltkosten!$B$64:$B$68,0),MATCH(B._WGK!Z$7,B._Umweltkosten!$D$53:$AH$53,0)+2) ->  | AA43: =INDEX(B._Umweltkosten!$B$64:$AH$68,MATCH(Auswahl_CO2Preise,B._Umweltkosten!$B$64:$B$68,0),MATCH(B._WGK!AA$7,B._Umweltkosten!$D$53:$AH$53,0)+2) ->  | AB43: =INDEX(B._Umweltkosten!$B$64:$AH$68,MATCH(Auswahl_CO2Preise,B._Umweltkosten!$B$64:$B$68,0),MATCH(B._WGK!AB$7,B._Umweltkosten!$D$53:$AH$53,0)+2) ->  | AC43: =INDEX(B._Umweltkosten!$B$64:$AH$68,MATCH(Auswahl_CO2Preise,B._Umweltkosten!$B$64:$B$68,0),MATCH(B._WGK!AC$7,B._Umweltkosten!$D$53:$AH$53,0)+2) ->  | AD43: =INDEX(B._Umweltkosten!$B$64:$AH$68,MATCH(Auswahl_CO2Preise,B._Umweltkosten!$B$64:$B$68,0),MATCH(B._WGK!AD$7,B._Umweltkosten!$D$53:$AH$53,0)+2) ->  | AE43: =INDEX(B._Umweltkosten!$B$64:$AH$68,MATCH(Auswahl_CO2Preise,B._Umweltkosten!$B$64:$B$68,0),MATCH(B._WGK!AE$7,B._Umweltkosten!$D$53:$AH$53,0)+2) ->  | AF43: =INDEX(B._Umweltkosten!$B$64:$AH$68,MATCH(Auswahl_CO2Preise,B._Umweltkosten!$B$64:$B$68,0),MATCH(B._WGK!AF$7,B._Umweltkosten!$D$53:$AH$53,0)+2) ->  | AG43: =INDEX(B._Umweltkosten!$B$64:$AH$68,MATCH(Auswahl_CO2Preise,B._Umweltkosten!$B$64:$B$68,0),MATCH(B._WGK!AG$7,B._Umweltkosten!$D$53:$AH$53,0)+2) ->  | AH43: =INDEX(B._Umweltkosten!$B$64:$AH$68,MATCH(Auswahl_CO2Preise,B._Umweltkosten!$B$64:$B$68,0),MATCH(B._WGK!AH$7,B._Umweltkosten!$D$53:$AH$53,0)+2) ->  | AI43: EUR/a
C44: Energiekosten | D44: =B._Energiekosten!D32 -> 6746482.232 | E44: =B._Energiekosten!E32 ->  | F44: =B._Energiekosten!F32 ->  | G44: =B._Energiekosten!G32 ->  | H44: =B._Energiekosten!H32 ->  | I44: =B._Energiekosten!I32 ->  | J44: =B._Energiekosten!J32 ->  | K44: =B._Energiekosten!K32 ->  | L44: =B._Energiekosten!L32 ->  | M44: =B._Energiekosten!M32 ->  | N44: =B._Energiekosten!N32 ->  | O44: =B._Energiekosten!O32 ->  | P44: =B._Energiekosten!P32 ->  | Q44: =B._Energiekosten!Q32 ->  | R44: =B._Energiekosten!R32 ->  | S44: =B._Energiekosten!S32 ->  | T44: =B._Energiekosten!T32 ->  | U44: =B._Energiekosten!U32 ->  | V44: =B._Energiekosten!V32 ->  | W44: =B._Energiekosten!W32 ->  | X44: =B._Energiekosten!X32 ->  | Y44: =B._Energiekosten!Y32 ->  | Z44: =B._Energiekosten!Z32 ->  | AA44: =B._Energiekosten!AA32 ->  | AB44: =B._Energiekosten!AB32 ->  | AC44: =B._Energiekosten!AC32 ->  | AD44: =B._Energiekosten!AD32 ->  | AE44: =B._Energiekosten!AE32 ->  | AF44: =B._Energiekosten!AF32 ->  | AG44: =B._Energiekosten!AG32 ->  | AH44: =B._Energiekosten!AH32 ->  | AI44: EUR/a
C45: O&M Neubau | D45: ='B._O&M'!D28 -> 988000 | E45: ='B._O&M'!E28 -> 988000 | F45: ='B._O&M'!F28 -> 988000 | G45: ='B._O&M'!G28 -> 988000 | H45: ='B._O&M'!H28 -> 988000 | I45: ='B._O&M'!I28 -> 988000 | J45: ='B._O&M'!J28 -> 988000 | K45: ='B._O&M'!K28 -> 988000 | L45: ='B._O&M'!L28 -> 988000 | M45: ='B._O&M'!M28 -> 988000 | N45: ='B._O&M'!N28 -> 988000 | O45: ='B._O&M'!O28 -> 988000 | P45: ='B._O&M'!P28 -> 988000 | Q45: ='B._O&M'!Q28 -> 988000 | R45: ='B._O&M'!R28 -> 988000 | S45: ='B._O&M'!S28 -> 988000 | T45: ='B._O&M'!T28 -> 988000 | U45: ='B._O&M'!U28 -> 988000 | V45: ='B._O&M'!V28 -> 988000 | W45: ='B._O&M'!W28 -> 988000 | X45: ='B._O&M'!X28 -> 988000 | Y45: ='B._O&M'!Y28 -> 988000 | Z45: ='B._O&M'!Z28 -> 988000 | AA45: ='B._O&M'!AA28 -> 988000 | AB45: ='B._O&M'!AB28 -> 988000 | AC45: ='B._O&M'!AC28 -> 988000 | AD45: ='B._O&M'!AD28 -> 988000 | AE45: ='B._O&M'!AE28 -> 988000 | AF45: ='B._O&M'!AF28 -> 988000 | AG45: ='B._O&M'!AG28 -> 988000 | AH45: ='B._O&M'!AH28 -> 988000 | AI45: EUR/a
C46: O&M Modernisierung | D46: ='B._O&M'!D29 -> 988000 | E46: ='B._O&M'!E29 -> 988000 | F46: ='B._O&M'!F29 -> 988000 | G46: ='B._O&M'!G29 -> 988000 | H46: ='B._O&M'!H29 -> 988000 | I46: ='B._O&M'!I29 -> 988000 | J46: ='B._O&M'!J29 -> 988000 | K46: ='B._O&M'!K29 -> 988000 | L46: ='B._O&M'!L29 -> 988000 | M46: ='B._O&M'!M29 -> 988000 | N46: ='B._O&M'!N29 -> 988000 | O46: ='B._O&M'!O29 -> 988000 | P46: ='B._O&M'!P29 -> 988000 | Q46: ='B._O&M'!Q29 -> 988000 | R46: ='B._O&M'!R29 -> 988000 | S46: ='B._O&M'!S29 -> 988000 | T46: ='B._O&M'!T29 -> 988000 | U46: ='B._O&M'!U29 -> 988000 | V46: ='B._O&M'!V29 -> 988000 | W46: ='B._O&M'!W29 -> 988000 | X46: ='B._O&M'!X29 -> 988000 | Y46: ='B._O&M'!Y29 -> 988000 | Z46: ='B._O&M'!Z29 -> 988000 | AA46: ='B._O&M'!AA29 -> 988000 | AB46: ='B._O&M'!AB29 -> 988000 | AC46: ='B._O&M'!AC29 -> 988000 | AD46: ='B._O&M'!AD29 -> 988000 | AE46: ='B._O&M'!AE29 -> 988000 | AF46: ='B._O&M'!AF29 -> 988000 | AG46: ='B._O&M'!AG29 -> 988000 | AH46: ='B._O&M'!AH29 -> 988000 | AI46: EUR/a
C47: Gesamtkosten Neubau | D47: =D41+D43+D44+D45 ->  | E47: =E41+E43+E44+E45 ->  | AI47: EUR/a
C48: Gesamtkosten Modernisierung | D48: =D42+D43+D44+D46 ->  | E48: =E42+E43+E44+E46 ->  | AI48: EUR/a
C49: Einnahmen | D49: =B._Einnahmen!D32 -> 0 | E49: =B._Einnahmen!E32 -> 0 | F49: =B._Einnahmen!F32 -> 0 | G49: =B._Einnahmen!G32 -> 0 | H49: =B._Einnahmen!H32 -> 0 | I49: =B._Einnahmen!I32 -> 0 | J49: =B._Einnahmen!J32 -> 0 | K49: =B._Einnahmen!K32 -> 0 | L49: =B._Einnahmen!L32 -> 0 | M49: =B._Einnahmen!M32 -> 0 | N49: =B._Einnahmen!N32 -> 0 | O49: =B._Einnahmen!O32 -> 0 | P49: =B._Einnahmen!P32 -> 0 | Q49: =B._Einnahmen!Q32 -> 0 | R49: =B._Einnahmen!R32 -> 0 | S49: =B._Einnahmen!S32 -> 0 | T49: =B._Einnahmen!T32 -> 0 | U49: =B._Einnahmen!U32 -> 0 | V49: =B._Einnahmen!V32 -> 0 | W49: =B._Einnahmen!W32 -> 0 | X49: =B._Einnahmen!X32 -> 0 | Y49: =B._Einnahmen!Y32 -> 0 | Z49: =B._Einnahmen!Z32 -> 0 | AA49: =B._Einnahmen!AA32 -> 0 | AB49: =B._Einnahmen!AB32 -> 0 | AC49: =B._Einnahmen!AC32 -> 0 | AD49: =B._Einnahmen!AD32 -> 0 | AE49: =B._Einnahmen!AE32 -> 0 | AF49: =B._Einnahmen!AF32 -> 0 | AG49: =B._Einnahmen!AG32 -> 0 | AH49: =B._Einnahmen!AH32 -> 0 | AI49: EUR/a
C50: Wärmegestehungskosten Neubau | D50: =IF(OR(D7<Dashboard!$E$25,D7>Dashboard!$E$26),0,(D47-D49)/D40) -> 0 | E50: =IF(OR(E7<Dashboard!$E$25,E7>Dashboard!$E$26),0,(E47-E49)/E40) -> 0 | F50: =IF(OR(F7<Dashboard!$E$25,F7>Dashboard!$E$26),0,(F47-F49)/F40) -> 0 | G50: =IF(OR(G7<Dashboard!$E$25,G7>Dashboard!$E$26),0,(G47-G49)/G40) -> 0 | H50: =IF(OR(H7<Dashboard!$E$25,H7>Dashboard!$E$26),0,(H47-H49)/H40) -> 0 | I50: =IF(OR(I7<Dashboard!$E$25,I7>Dashboard!$E$26),0,(I47-I49)/I40) -> 0 | J50: =IF(OR(J7<Dashboard!$E$25,J7>Dashboard!$E$26),0,(J47-J49)/J40) -> 0 | K50: =IF(OR(K7<Dashboard!$E$25,K7>Dashboard!$E$26),0,(K47-K49)/K40) -> 0 | L50: =IF(OR(L7<Dashboard!$E$25,L7>Dashboard!$E$26),0,(L47-L49)/L40) -> 0 | M50: =IF(OR(M7<Dashboard!$E$25,M7>Dashboard!$E$26),0,(M47-M49)/M40) -> 0 | N50: =IF(OR(N7<Dashboard!$E$25,N7>Dashboard!$E$26),0,(N47-N49)/N40) ->  | O50: =IF(OR(O7<Dashboard!$E$25,O7>Dashboard!$E$26),0,(O47-O49)/O40) ->  | P50: =IF(OR(P7<Dashboard!$E$25,P7>Dashboard!$E$26),0,(P47-P49)/P40) ->  | Q50: =IF(OR(Q7<Dashboard!$E$25,Q7>Dashboard!$E$26),0,(Q47-Q49)/Q40) ->  | R50: =IF(OR(R7<Dashboard!$E$25,R7>Dashboard!$E$26),0,(R47-R49)/R40) ->  | S50: =IF(OR(S7<Dashboard!$E$25,S7>Dashboard!$E$26),0,(S47-S49)/S40) ->  | T50: =IF(OR(T7<Dashboard!$E$25,T7>Dashboard!$E$26),0,(T47-T49)/T40) ->  | U50: =IF(OR(U7<Dashboard!$E$25,U7>Dashboard!$E$26),0,(U47-U49)/U40) ->  | V50: =IF(OR(V7<Dashboard!$E$25,V7>Dashboard!$E$26),0,(V47-V49)/V40) ->  | W50: =IF(OR(W7<Dashboard!$E$25,W7>Dashboard!$E$26),0,(W47-W49)/W40) ->  | X50: =IF(OR(X7<Dashboard!$E$25,X7>Dashboard!$E$26),0,(X47-X49)/X40) ->  | Y50: =IF(OR(Y7<Dashboard!$E$25,Y7>Dashboard!$E$26),0,(Y47-Y49)/Y40) ->  | Z50: =IF(OR(Z7<Dashboard!$E$25,Z7>Dashboard!$E$26),0,(Z47-Z49)/Z40) ->  | AA50: =IF(OR(AA7<Dashboard!$E$25,AA7>Dashboard!$E$26),0,(AA47-AA49)/AA40) ->  | AB50: =IF(OR(AB7<Dashboard!$E$25,AB7>Dashboard!$E$26),0,(AB47-AB49)/AB40) ->  | AC50: =IF(OR(AC7<Dashboard!$E$25,AC7>Dashboard!$E$26),0,(AC47-AC49)/AC40) ->  | AD50: =IF(OR(AD7<Dashboard!$E$25,AD7>Dashboard!$E$26),0,(AD47-AD49)/AD40) ->  | AE50: =IF(OR(AE7<Dashboard!$E$25,AE7>Dashboard!$E$26),0,(AE47-AE49)/AE40) ->  | AF50: =IF(OR(AF7<Dashboard!$E$25,AF7>Dashboard!$E$26),0,(AF47-AF49)/AF40) ->  | AG50: =IF(OR(AG7<Dashboard!$E$25,AG7>Dashboard!$E$26),0,(AG47-AG49)/AG40) ->  | AH50: =IF(OR(AH7<Dashboard!$E$25,AH7>Dashboard!$E$26),0,(AH47-AH49)/AH40) ->  | AI50: EUR/tProdukt
C51: Wärmegestehungskosten Modernisierung | D51: =IF(OR(D7<Dashboard!$E$25,D7>Dashboard!$E$26),0,(D48-D49)/D40) -> 0 | E51: =IF(OR(E7<Dashboard!$E$25,E7>Dashboard!$E$26),0,(E48-E49)/E40) -> 0 | F51: =IF(OR(F7<Dashboard!$E$25,F7>Dashboard!$E$26),0,(F48-F49)/F40) -> 0 | G51: =IF(OR(G7<Dashboard!$E$25,G7>Dashboard!$E$26),0,(G48-G49)/G40) -> 0 | H51: =IF(OR(H7<Dashboard!$E$25,H7>Dashboard!$E$26),0,(H48-H49)/H40) -> 0 | I51: =IF(OR(I7<Dashboard!$E$25,I7>Dashboard!$E$26),0,(I48-I49)/I40) -> 0 | J51: =IF(OR(J7<Dashboard!$E$25,J7>Dashboard!$E$26),0,(J48-J49)/J40) -> 0 | K51: =IF(OR(K7<Dashboard!$E$25,K7>Dashboard!$E$26),0,(K48-K49)/K40) -> 0 | L51: =IF(OR(L7<Dashboard!$E$25,L7>Dashboard!$E$26),0,(L48-L49)/L40) -> 0 | M51: =IF(OR(M7<Dashboard!$E$25,M7>Dashboard!$E$26),0,(M48-M49)/M40) -> 0 | N51: =IF(OR(N7<Dashboard!$E$25,N7>Dashboard!$E$26),0,(N48-N49)/N40) ->  | O51: =IF(OR(O7<Dashboard!$E$25,O7>Dashboard!$E$26),0,(O48-O49)/O40) ->  | P51: =IF(OR(P7<Dashboard!$E$25,P7>Dashboard!$E$26),0,(P48-P49)/P40) ->  | Q51: =IF(OR(Q7<Dashboard!$E$25,Q7>Dashboard!$E$26),0,(Q48-Q49)/Q40) ->  | R51: =IF(OR(R7<Dashboard!$E$25,R7>Dashboard!$E$26),0,(R48-R49)/R40) ->  | S51: =IF(OR(S7<Dashboard!$E$25,S7>Dashboard!$E$26),0,(S48-S49)/S40) ->  | T51: =IF(OR(T7<Dashboard!$E$25,T7>Dashboard!$E$26),0,(T48-T49)/T40) ->  | U51: =IF(OR(U7<Dashboard!$E$25,U7>Dashboard!$E$26),0,(U48-U49)/U40) ->  | V51: =IF(OR(V7<Dashboard!$E$25,V7>Dashboard!$E$26),0,(V48-V49)/V40) ->  | W51: =IF(OR(W7<Dashboard!$E$25,W7>Dashboard!$E$26),0,(W48-W49)/W40) ->  | X51: =IF(OR(X7<Dashboard!$E$25,X7>Dashboard!$E$26),0,(X48-X49)/X40) ->  | Y51: =IF(OR(Y7<Dashboard!$E$25,Y7>Dashboard!$E$26),0,(Y48-Y49)/Y40) ->  | Z51: =IF(OR(Z7<Dashboard!$E$25,Z7>Dashboard!$E$26),0,(Z48-Z49)/Z40) ->  | AA51: =IF(OR(AA7<Dashboard!$E$25,AA7>Dashboard!$E$26),0,(AA48-AA49)/AA40) ->  | AB51: =IF(OR(AB7<Dashboard!$E$25,AB7>Dashboard!$E$26),0,(AB48-AB49)/AB40) ->  | AC51: =IF(OR(AC7<Dashboard!$E$25,AC7>Dashboard!$E$26),0,(AC48-AC49)/AC40) ->  | AD51: =IF(OR(AD7<Dashboard!$E$25,AD7>Dashboard!$E$26),0,(AD48-AD49)/AD40) ->  | AE51: =IF(OR(AE7<Dashboard!$E$25,AE7>Dashboard!$E$26),0,(AE48-AE49)/AE40) ->  | AF51: =IF(OR(AF7<Dashboard!$E$25,AF7>Dashboard!$E$26),0,(AF48-AF49)/AF40) ->  | AG51: =IF(OR(AG7<Dashboard!$E$25,AG7>Dashboard!$E$26),0,(AG48-AG49)/AG40) ->  | AH51: =IF(OR(AH7<Dashboard!$E$25,AH7>Dashboard!$E$26),0,(AH48-AH49)/AH40) ->  | AI51: EUR/tProdukt
A54: Referenz_Bestand | C54: Wärmegestehungskosten
A55: Technologie: | B55: =Name_Referenz -> Erdgasbeheizung | C55: Jahr | D55: 2020 | E55: 2021 | F55: 2022 | G55: 2023 | H55: 2024 | I55: 2025 | J55: 2026 | K55: 2027 | L55: 2028 | M55: 2029 | N55: 2030 | O55: 2031 | P55: 2032 | Q55: 2033 | R55: 2034 | S55: 2035 | T55: 2036 | U55: 2037 | V55: 2038 | W55: 2039 | X55: 2040 | Y55: 2041 | Z55: 2042 | AA55: 2043 | AB55: 2044 | AC55: 2045 | AD55: 2046 | AE55: 2047 | AF55: 2048 | AG55: 2049 | AH55: 2050 | AI55: Einheit
C56: Aktivität | D56: =D8 -> 468000 | E56: =E8 -> 468000 | F56: 468000 | G56: 468000 | H56: 468000 | I56: 468000 | J56: 468000 | K56: 468000 | L56: 468000 | M56: 468000 | N56: 468000 | O56: 468000 | P56: 468000 | Q56: 468000 | R56: 468000 | S56: 468000 | T56: 468000 | U56: 468000 | V56: 468000 | W56: 468000 | X56: 468000 | Y56: 468000 | Z56: 468000 | AA56: 468000 | AB56: 468000 | AC56: 468000 | AD56: 468000 | AE56: 468000 | AF56: 468000 | AG56: 468000 | AH56: 468000 | AI56: tProdukt
C57: CO2-Kosten/Umweltkosten | D57: =D11 -> 2520882 | E57: =E11 ->  | AI57: EUR/a
C58: Energiekosten | D58: =D12 -> 6064931.682 | E58: =E12 ->  | AI58: EUR/a
C59: O&M Bestand | D59: =D13 -> 988000 | E59: =E13 -> 988000 | F59: 988000 | G59: 988000 | H59: 988000 | I59: 988000 | J59: 988000 | K59: 988000 | L59: 988000 | M59: 988000 | N59: 988000 | O59: 988000 | P59: 988000 | Q59: 988000 | R59: 988000 | S59: 988000 | T59: 988000 | U59: 988000 | V59: 988000 | W59: 988000 | X59: 988000 | Y59: 988000 | Z59: 988000 | AA59: 988000 | AB59: 988000 | AC59: 988000 | AD59: 988000 | AE59: 988000 | AF59: 988000 | AG59: 988000 | AH59: 988000 | AI59: EUR/a
C60: Gesamtkosten Bestand | D60: =(D57+D58+D59) -> 9573813.682 | E60: =(E57+E58+E59) ->  | AI60: EUR/a
C61: Einnahmen | D61: =D17 -> 0 | E61: 0 | F61: 0 | G61: 0 | H61: 0 | I61: 0 | J61: 0 | K61: 0 | L61: 0 | M61: 0 | N61: 0 | O61: 0 | P61: 0 | Q61: 0 | R61: 0 | S61: 0 | T61: 0 | U61: 0 | V61: 0 | W61: 0 | X61: 0 | Y61: 0 | Z61: 0 | AA61: 0 | AB61: 0 | AC61: 0 | AD61: 0 | AE61: 0 | AF61: 0 | AG61: 0 | AH61: 0 | AI61: EUR/a
C62: Wärmegestehungskosten Bestand | D62: =IF(OR(D7<Dashboard!$C$25,D7>Dashboard!$C$26),0,(D60-D61)/D56) -> 20.45686684 | E62: =IF(OR(E7<Dashboard!$C$25,E7>Dashboard!$C$26),0,(E60-E61)/E56) ->  | F62: =IF(OR(F7<Dashboard!$C$25,F7>Dashboard!$C$26),0,(F60-F61)/F56) ->  | G62: =IF(OR(G7<Dashboard!$C$25,G7>Dashboard!$C$26),0,(G60-G61)/G56) ->  | H62: =IF(OR(H7<Dashboard!$C$25,H7>Dashboard!$C$26),0,(H60-H61)/H56) ->  | I62: =IF(OR(I7<Dashboard!$C$25,I7>Dashboard!$C$26),0,(I60-I61)/I56) ->  | J62: =IF(OR(J7<Dashboard!$C$25,J7>Dashboard!$C$26),0,(J60-J61)/J56) ->  | K62: =IF(OR(K7<Dashboard!$C$25,K7>Dashboard!$C$26),0,(K60-K61)/K56) ->  | L62: =IF(OR(L7<Dashboard!$C$25,L7>Dashboard!$C$26),0,(L60-L61)/L56) ->  | M62: =IF(OR(M7<Dashboard!$C$25,M7>Dashboard!$C$26),0,(M60-M61)/M56) ->  | N62: =IF(OR(N7<Dashboard!$C$25,N7>Dashboard!$C$26),0,(N60-N61)/N56) ->  | O62: =IF(OR(O7<Dashboard!$C$25,O7>Dashboard!$C$26),0,(O60-O61)/O56) ->  | P62: =IF(OR(P7<Dashboard!$C$25,P7>Dashboard!$C$26),0,(P60-P61)/P56) ->  | Q62: =IF(OR(Q7<Dashboard!$C$25,Q7>Dashboard!$C$26),0,(Q60-Q61)/Q56) ->  | R62: =IF(OR(R7<Dashboard!$C$25,R7>Dashboard!$C$26),0,(R60-R61)/R56) ->  | S62: =IF(OR(S7<Dashboard!$C$25,S7>Dashboard!$C$26),0,(S60-S61)/S56) ->  | T62: =IF(OR(T7<Dashboard!$C$25,T7>Dashboard!$C$26),0,(T60-T61)/T56) ->  | U62: =IF(OR(U7<Dashboard!$C$25,U7>Dashboard!$C$26),0,(U60-U61)/U56) ->  | V62: =IF(OR(V7<Dashboard!$C$25,V7>Dashboard!$C$26),0,(V60-V61)/V56) ->  | W62: =IF(OR(W7<Dashboard!$C$25,W7>Dashboard!$C$26),0,(W60-W61)/W56) ->  | X62: =IF(OR(X7<Dashboard!$C$25,X7>Dashboard!$C$26),0,(X60-X61)/X56) ->  | Y62: =IF(OR(Y7<Dashboard!$C$25,Y7>Dashboard!$C$26),0,(Y60-Y61)/Y56) ->  | Z62: =IF(OR(Z7<Dashboard!$C$25,Z7>Dashboard!$C$26),0,(Z60-Z61)/Z56) ->  | AA62: =IF(OR(AA7<Dashboard!$C$25,AA7>Dashboard!$C$26),0,(AA60-AA61)/AA56) ->  | AB62: =IF(OR(AB7<Dashboard!$C$25,AB7>Dashboard!$C$26),0,(AB60-AB61)/AB56) ->  | AC62: =IF(OR(AC7<Dashboard!$C$25,AC7>Dashboard!$C$26),0,(AC60-AC61)/AC56) ->  | AD62: =IF(OR(AD7<Dashboard!$C$25,AD7>Dashboard!$C$26),0,(AD60-AD61)/AD56) ->  | AE62: =IF(OR(AE7<Dashboard!$C$25,AE7>Dashboard!$C$26),0,(AE60-AE61)/AE56) ->  | AF62: =IF(OR(AF7<Dashboard!$C$25,AF7>Dashboard!$C$26),0,(AF60-AF61)/AF56) ->  | AG62: =IF(OR(AG7<Dashboard!$C$25,AG7>Dashboard!$C$26),0,(AG60-AG61)/AG56) ->  | AH62: =IF(OR(AH7<Dashboard!$C$25,AH7>Dashboard!$C$26),0,(AH60-AH61)/AH56) ->  | AI62: EUR/tProdukt
A64: CO2-neutrale Prozesswärmetechnik_3
A65: Technik | B65: =NAME_Alternative3 -> 0 | C65: Wärmegestehungskosten
C66: Jahr | D66: 2020 | E66: 2021 | F66: 2022 | G66: 2023 | H66: 2024 | I66: 2025 | J66: 2026 | K66: 2027 | L66: 2028 | M66: 2029 | N66: 2030 | O66: 2031 | P66: 2032 | Q66: 2033 | R66: 2034 | S66: 2035 | T66: 2036 | U66: 2037 | V66: 2038 | W66: 2039 | X66: 2040 | Y66: 2041 | Z66: 2042 | AA66: 2043 | AB66: 2044 | AC66: 2045 | AD66: 2046 | AE66: 2047 | AF66: 2048 | AG66: 2049 | AH66: 2050 | AI66: Einheit
C67: Aktivität | D67: =Kapazität_Alternative3*Auslastung_Alternative3 -> 0 | E67: 0 | F67: 0 | G67: 0 | H67: 0 | I67: 0 | J67: 0 | K67: 0 | L67: 0 | M67: 0 | N67: 0 | O67: 0 | P67: 0 | Q67: 0 | R67: 0 | S67: 0 | T67: 0 | U67: 0 | V67: 0 | W67: 0 | X67: 0 | Y67: 0 | Z67: 0 | AA67: 0 | AB67: 0 | AC67: 0 | AD67: 0 | AE67: 0 | AF67: 0 | AG67: 0 | AH67: 0 | AI67: tProdukt
C68: Annuität Investition Neubau | D68: =B._Investition!D47 ->  | E68: =B._Investition!E47 ->  | F68: =B._Investition!F47 ->  | G68: =B._Investition!G47 ->  | H68: =B._Investition!H47 ->  | I68: =B._Investition!I47 ->  | J68: =B._Investition!J47 ->  | K68: =B._Investition!K47 ->  | L68: =B._Investition!L47 ->  | M68: =B._Investition!M47 ->  | N68: =B._Investition!N47 ->  | O68: =B._Investition!O47 ->  | P68: =B._Investition!P47 ->  | Q68: =B._Investition!Q47 ->  | R68: =B._Investition!R47 ->  | S68: =B._Investition!S47 ->  | T68: =B._Investition!T47 ->  | U68: =B._Investition!U47 ->  | V68: =B._Investition!V47 ->  | W68: =B._Investition!W47 ->  | X68: =B._Investition!X47 ->  | Y68: =B._Investition!Y47 ->  | Z68: =B._Investition!Z47 ->  | AA68: =B._Investition!AA47 ->  | AB68: =B._Investition!AB47 ->  | AC68: =B._Investition!AC47 ->  | AD68: =B._Investition!AD47 ->  | AE68: =B._Investition!AE47 ->  | AF68: =B._Investition!AF47 ->  | AG68: =B._Investition!AG47 ->  | AH68: =B._Investition!AH47 ->  | AI68: EUR/a
C69: Annuität Investition Modernisierung | D69: =B._Investition!D48 ->  | E69: =B._Investition!E48 ->  | F69: =B._Investition!F48 ->  | G69: =B._Investition!G48 ->  | H69: =B._Investition!H48 ->  | I69: =B._Investition!I48 ->  | J69: =B._Investition!J48 ->  | K69: =B._Investition!K48 ->  | L69: =B._Investition!L48 ->  | M69: =B._Investition!M48 ->  | N69: =B._Investition!N48 ->  | O69: =B._Investition!O48 ->  | P69: =B._Investition!P48 ->  | Q69: =B._Investition!Q48 ->  | R69: =B._Investition!R48 ->  | S69: =B._Investition!S48 ->  | T69: =B._Investition!T48 ->  | U69: =B._Investition!U48 ->  | V69: =B._Investition!V48 ->  | W69: =B._Investition!W48 ->  | X69: =B._Investition!X48 ->  | Y69: =B._Investition!Y48 ->  | Z69: =B._Investition!Z48 ->  | AA69: =B._Investition!AA48 ->  | AB69: =B._Investition!AB48 ->  | AC69: =B._Investition!AC48 ->  | AD69: =B._Investition!AD48 ->  | AE69: =B._Investition!AE48 ->  | AF69: =B._Investition!AF48 ->  | AG69: =B._Investition!AG48 ->  | AH69: =B._Investition!AH48 ->  | AI69: EUR/a
C70: CO2-Kosten/Umweltkosten | D70: =INDEX(B._Umweltkosten!$B$69:$AH$73,MATCH(Auswahl_CO2Preise,B._Umweltkosten!$B$69:$B$73,0),MATCH(B._WGK!D$7,B._Umweltkosten!$D$53:$AH$53,0)+2) ->  | E70: =INDEX(B._Umweltkosten!$B$69:$AH$73,MATCH(Auswahl_CO2Preise,B._Umweltkosten!$B$69:$B$73,0),MATCH(B._WGK!E$7,B._Umweltkosten!$D$53:$AH$53,0)+2) ->  | F70: =INDEX(B._Umweltkosten!$B$69:$AH$73,MATCH(Auswahl_CO2Preise,B._Umweltkosten!$B$69:$B$73,0),MATCH(B._WGK!F$7,B._Umweltkosten!$D$53:$AH$53,0)+2) ->  | G70: =INDEX(B._Umweltkosten!$B$69:$AH$73,MATCH(Auswahl_CO2Preise,B._Umweltkosten!$B$69:$B$73,0),MATCH(B._WGK!G$7,B._Umweltkosten!$D$53:$AH$53,0)+2) ->  | H70: =INDEX(B._Umweltkosten!$B$69:$AH$73,MATCH(Auswahl_CO2Preise,B._Umweltkosten!$B$69:$B$73,0),MATCH(B._WGK!H$7,B._Umweltkosten!$D$53:$AH$53,0)+2) ->  | I70: =INDEX(B._Umweltkosten!$B$69:$AH$73,MATCH(Auswahl_CO2Preise,B._Umweltkosten!$B$69:$B$73,0),MATCH(B._WGK!I$7,B._Umweltkosten!$D$53:$AH$53,0)+2) ->  | J70: =INDEX(B._Umweltkosten!$B$69:$AH$73,MATCH(Auswahl_CO2Preise,B._Umweltkosten!$B$69:$B$73,0),MATCH(B._WGK!J$7,B._Umweltkosten!$D$53:$AH$53,0)+2) ->  | K70: =INDEX(B._Umweltkosten!$B$69:$AH$73,MATCH(Auswahl_CO2Preise,B._Umweltkosten!$B$69:$B$73,0),MATCH(B._WGK!K$7,B._Umweltkosten!$D$53:$AH$53,0)+2) ->  | L70: =INDEX(B._Umweltkosten!$B$69:$AH$73,MATCH(Auswahl_CO2Preise,B._Umweltkosten!$B$69:$B$73,0),MATCH(B._WGK!L$7,B._Umweltkosten!$D$53:$AH$53,0)+2) ->  | M70: =INDEX(B._Umweltkosten!$B$69:$AH$73,MATCH(Auswahl_CO2Preise,B._Umweltkosten!$B$69:$B$73,0),MATCH(B._WGK!M$7,B._Umweltkosten!$D$53:$AH$53,0)+2) ->  | N70: =INDEX(B._Umweltkosten!$B$69:$AH$73,MATCH(Auswahl_CO2Preise,B._Umweltkosten!$B$69:$B$73,0),MATCH(B._WGK!N$7,B._Umweltkosten!$D$53:$AH$53,0)+2) ->  | O70: =INDEX(B._Umweltkosten!$B$69:$AH$73,MATCH(Auswahl_CO2Preise,B._Umweltkosten!$B$69:$B$73,0),MATCH(B._WGK!O$7,B._Umweltkosten!$D$53:$AH$53,0)+2) ->  | P70: =INDEX(B._Umweltkosten!$B$69:$AH$73,MATCH(Auswahl_CO2Preise,B._Umweltkosten!$B$69:$B$73,0),MATCH(B._WGK!P$7,B._Umweltkosten!$D$53:$AH$53,0)+2) ->  | Q70: =INDEX(B._Umweltkosten!$B$69:$AH$73,MATCH(Auswahl_CO2Preise,B._Umweltkosten!$B$69:$B$73,0),MATCH(B._WGK!Q$7,B._Umweltkosten!$D$53:$AH$53,0)+2) ->  | R70: =INDEX(B._Umweltkosten!$B$69:$AH$73,MATCH(Auswahl_CO2Preise,B._Umweltkosten!$B$69:$B$73,0),MATCH(B._WGK!R$7,B._Umweltkosten!$D$53:$AH$53,0)+2) ->  | S70: =INDEX(B._Umweltkosten!$B$69:$AH$73,MATCH(Auswahl_CO2Preise,B._Umweltkosten!$B$69:$B$73,0),MATCH(B._WGK!S$7,B._Umweltkosten!$D$53:$AH$53,0)+2) ->  | T70: =INDEX(B._Umweltkosten!$B$69:$AH$73,MATCH(Auswahl_CO2Preise,B._Umweltkosten!$B$69:$B$73,0),MATCH(B._WGK!T$7,B._Umweltkosten!$D$53:$AH$53,0)+2) ->  | U70: =INDEX(B._Umweltkosten!$B$69:$AH$73,MATCH(Auswahl_CO2Preise,B._Umweltkosten!$B$69:$B$73,0),MATCH(B._WGK!U$7,B._Umweltkosten!$D$53:$AH$53,0)+2) ->  | V70: =INDEX(B._Umweltkosten!$B$69:$AH$73,MATCH(Auswahl_CO2Preise,B._Umweltkosten!$B$69:$B$73,0),MATCH(B._WGK!V$7,B._Umweltkosten!$D$53:$AH$53,0)+2) ->  | W70: =INDEX(B._Umweltkosten!$B$69:$AH$73,MATCH(Auswahl_CO2Preise,B._Umweltkosten!$B$69:$B$73,0),MATCH(B._WGK!W$7,B._Umweltkosten!$D$53:$AH$53,0)+2) ->  | X70: =INDEX(B._Umweltkosten!$B$69:$AH$73,MATCH(Auswahl_CO2Preise,B._Umweltkosten!$B$69:$B$73,0),MATCH(B._WGK!X$7,B._Umweltkosten!$D$53:$AH$53,0)+2) ->  | Y70: =INDEX(B._Umweltkosten!$B$69:$AH$73,MATCH(Auswahl_CO2Preise,B._Umweltkosten!$B$69:$B$73,0),MATCH(B._WGK!Y$7,B._Umweltkosten!$D$53:$AH$53,0)+2) ->  | Z70: =INDEX(B._Umweltkosten!$B$69:$AH$73,MATCH(Auswahl_CO2Preise,B._Umweltkosten!$B$69:$B$73,0),MATCH(B._WGK!Z$7,B._Umweltkosten!$D$53:$AH$53,0)+2) ->  | AA70: =INDEX(B._Umweltkosten!$B$69:$AH$73,MATCH(Auswahl_CO2Preise,B._Umweltkosten!$B$69:$B$73,0),MATCH(B._WGK!AA$7,B._Umweltkosten!$D$53:$AH$53,0)+2) ->  | AB70: =INDEX(B._Umweltkosten!$B$69:$AH$73,MATCH(Auswahl_CO2Preise,B._Umweltkosten!$B$69:$B$73,0),MATCH(B._WGK!AB$7,B._Umweltkosten!$D$53:$AH$53,0)+2) ->  | AC70: =INDEX(B._Umweltkosten!$B$69:$AH$73,MATCH(Auswahl_CO2Preise,B._Umweltkosten!$B$69:$B$73,0),MATCH(B._WGK!AC$7,B._Umweltkosten!$D$53:$AH$53,0)+2) ->  | AD70: =INDEX(B._Umweltkosten!$B$69:$AH$73,MATCH(Auswahl_CO2Preise,B._Umweltkosten!$B$69:$B$73,0),MATCH(B._WGK!AD$7,B._Umweltkosten!$D$53:$AH$53,0)+2) ->  | AE70: =INDEX(B._Umweltkosten!$B$69:$AH$73,MATCH(Auswahl_CO2Preise,B._Umweltkosten!$B$69:$B$73,0),MATCH(B._WGK!AE$7,B._Umweltkosten!$D$53:$AH$53,0)+2) ->  | AF70: =INDEX(B._Umweltkosten!$B$69:$AH$73,MATCH(Auswahl_CO2Preise,B._Umweltkosten!$B$69:$B$73,0),MATCH(B._WGK!AF$7,B._Umweltkosten!$D$53:$AH$53,0)+2) ->  | AG70: =INDEX(B._Umweltkosten!$B$69:$AH$73,MATCH(Auswahl_CO2Preise,B._Umweltkosten!$B$69:$B$73,0),MATCH(B._WGK!AG$7,B._Umweltkosten!$D$53:$AH$53,0)+2) ->  | AH70: =INDEX(B._Umweltkosten!$B$69:$AH$73,MATCH(Auswahl_CO2Preise,B._Umweltkosten!$B$69:$B$73,0),MATCH(B._WGK!AH$7,B._Umweltkosten!$D$53:$AH$53,0)+2) ->  | AI70: EUR/a
C71: Energiekosten | D71: =B._Energiekosten!D40 ->  | E71: =B._Energiekosten!E40 ->  | F71: =B._Energiekosten!F40 ->  | G71: =B._Energiekosten!G40 ->  | H71: =B._Energiekosten!H40 ->  | I71: =B._Energiekosten!I40 ->  | J71: =B._Energiekosten!J40 ->  | K71: =B._Energiekosten!K40 ->  | L71: =B._Energiekosten!L40 ->  | M71: =B._Energiekosten!M40 ->  | N71: =B._Energiekosten!N40 ->  | O71: =B._Energiekosten!O40 ->  | P71: =B._Energiekosten!P40 ->  | Q71: =B._Energiekosten!Q40 ->  | R71: =B._Energiekosten!R40 ->  | S71: =B._Energiekosten!S40 ->  | T71: =B._Energiekosten!T40 ->  | U71: =B._Energiekosten!U40 ->  | V71: =B._Energiekosten!V40 ->  | W71: =B._Energiekosten!W40 ->  | X71: =B._Energiekosten!X40 ->  | Y71: =B._Energiekosten!Y40 ->  | Z71: =B._Energiekosten!Z40 ->  | AA71: =B._Energiekosten!AA40 ->  | AB71: =B._Energiekosten!AB40 ->  | AC71: =B._Energiekosten!AC40 ->  | AD71: =B._Energiekosten!AD40 ->  | AE71: =B._Energiekosten!AE40 ->  | AF71: =B._Energiekosten!AF40 ->  | AG71: =B._Energiekosten!AG40 ->  | AH71: =B._Energiekosten!AH40 ->  | AI71: EUR/a
C72: O&M Neubau | D72: ='B._O&M'!D35 -> 0 | E72: ='B._O&M'!E35 -> 0 | F72: ='B._O&M'!F35 -> 0 | G72: ='B._O&M'!G35 -> 0 | H72: ='B._O&M'!H35 -> 0 | I72: ='B._O&M'!I35 -> 0 | J72: ='B._O&M'!J35 -> 0 | K72: ='B._O&M'!K35 -> 0 | L72: ='B._O&M'!L35 -> 0 | M72: ='B._O&M'!M35 -> 0 | N72: ='B._O&M'!N35 -> 0 | O72: ='B._O&M'!O35 -> 0 | P72: ='B._O&M'!P35 -> 0 | Q72: ='B._O&M'!Q35 -> 0 | R72: ='B._O&M'!R35 -> 0 | S72: ='B._O&M'!S35 -> 0 | T72: ='B._O&M'!T35 -> 0 | U72: ='B._O&M'!U35 -> 0 | V72: ='B._O&M'!V35 -> 0 | W72: ='B._O&M'!W35 -> 0 | X72: ='B._O&M'!X35 -> 0 | Y72: ='B._O&M'!Y35 -> 0 | Z72: ='B._O&M'!Z35 -> 0 | AA72: ='B._O&M'!AA35 -> 0 | AB72: ='B._O&M'!AB35 -> 0 | AC72: ='B._O&M'!AC35 -> 0 | AD72: ='B._O&M'!AD35 -> 0 | AE72: ='B._O&M'!AE35 -> 0 | AF72: ='B._O&M'!AF35 -> 0 | AG72: ='B._O&M'!AG35 -> 0 | AH72: ='B._O&M'!AH35 -> 0 | AI72: EUR/a
C73: O&M Modernisierung | D73: ='B._O&M'!D36 -> 0 | E73: ='B._O&M'!E36 -> 0 | F73: ='B._O&M'!F36 -> 0 | G73: ='B._O&M'!G36 -> 0 | H73: ='B._O&M'!H36 -> 0 | I73: ='B._O&M'!I36 -> 0 | J73: ='B._O&M'!J36 -> 0 | K73: ='B._O&M'!K36 -> 0 | L73: ='B._O&M'!L36 -> 0 | M73: ='B._O&M'!M36 -> 0 | N73: ='B._O&M'!N36 -> 0 | O73: ='B._O&M'!O36 -> 0 | P73: ='B._O&M'!P36 -> 0 | Q73: ='B._O&M'!Q36 -> 0 | R73: ='B._O&M'!R36 -> 0 | S73: ='B._O&M'!S36 -> 0 | T73: ='B._O&M'!T36 -> 0 | U73: ='B._O&M'!U36 -> 0 | V73: ='B._O&M'!V36 -> 0 | W73: ='B._O&M'!W36 -> 0 | X73: ='B._O&M'!X36 -> 0 | Y73: ='B._O&M'!Y36 -> 0 | Z73: ='B._O&M'!Z36 -> 0 | AA73: ='B._O&M'!AA36 -> 0 | AB73: ='B._O&M'!AB36 -> 0 | AC73: ='B._O&M'!AC36 -> 0 | AD73: ='B._O&M'!AD36 -> 0 | AE73: ='B._O&M'!AE36 -> 0 | AF73: ='B._O&M'!AF36 -> 0 | AG73: ='B._O&M'!AG36 -> 0 | AH73: ='B._O&M'!AH36 -> 0 | AI73: EUR/a
C74: Gesamtkosten Neubau | D74: =D68+D70+D71+D72 ->  | E74: =E68+E70+E71+E72 ->  | AI74: EUR/a
C75: Gesamtkosten Modernisierung | D75: =D69+D70+D71+D73 ->  | E75: =E69+E70+E71+E73 ->  | AI75: EUR/a
C76: Einnahmen | D76: =B._Einnahmen!D59 -> 0 | E76: =B._Einnahmen!E59 -> 0 | F76: =B._Einnahmen!F59 -> 0 | G76: =B._Einnahmen!G59 -> 0 | H76: =B._Einnahmen!H59 -> 0 | I76: =B._Einnahmen!I59 -> 0 | J76: =B._Einnahmen!J59 -> 0 | K76: =B._Einnahmen!K59 -> 0 | L76: =B._Einnahmen!L59 -> 0 | M76: =B._Einnahmen!M59 -> 0 | N76: =B._Einnahmen!N59 -> 0 | O76: =B._Einnahmen!O59 -> 0 | P76: =B._Einnahmen!P59 -> 0 | Q76: =B._Einnahmen!Q59 -> 0 | R76: =B._Einnahmen!R59 -> 0 | S76: =B._Einnahmen!S59 -> 0 | T76: =B._Einnahmen!T59 -> 0 | U76: =B._Einnahmen!U59 -> 0 | V76: =B._Einnahmen!V59 -> 0 | W76: =B._Einnahmen!W59 -> 0 | X76: =B._Einnahmen!X59 -> 0 | Y76: =B._Einnahmen!Y59 -> 0 | Z76: =B._Einnahmen!Z59 -> 0 | AA76: =B._Einnahmen!AA59 -> 0 | AB76: =B._Einnahmen!AB59 -> 0 | AC76: =B._Einnahmen!AC59 -> 0 | AD76: =B._Einnahmen!AD59 -> 0 | AE76: =B._Einnahmen!AE59 -> 0 | AF76: =B._Einnahmen!AF59 -> 0 | AG76: =B._Einnahmen!AG59 -> 0 | AH76: =B._Einnahmen!AH59 -> 0 | AI76: EUR/a
C77: Wärmegestehungskosten Neubau | D77: =IF(OR(D7<Dashboard!$F$25,D7>Dashboard!$F$26),0,(D74-D76)/D67) -> 0 | E77: =IF(OR(E7<Dashboard!$F$25,E7>Dashboard!$F$26),0,(E74-E76)/E67) -> 0 | F77: =IF(OR(F7<Dashboard!$F$25,F7>Dashboard!$F$26),0,(F74-F76)/F67) -> 0 | G77: =IF(OR(G7<Dashboard!$F$25,G7>Dashboard!$F$26),0,(G74-G76)/G67) -> 0 | H77: =IF(OR(H7<Dashboard!$F$25,H7>Dashboard!$F$26),0,(H74-H76)/H67) -> 0 | I77: =IF(OR(I7<Dashboard!$F$25,I7>Dashboard!$F$26),0,(I74-I76)/I67) -> 0 | J77: =IF(OR(J7<Dashboard!$F$25,J7>Dashboard!$F$26),0,(J74-J76)/J67) -> 0 | K77: =IF(OR(K7<Dashboard!$F$25,K7>Dashboard!$F$26),0,(K74-K76)/K67) -> 0 | L77: =IF(OR(L7<Dashboard!$F$25,L7>Dashboard!$F$26),0,(L74-L76)/L67) -> 0 | M77: =IF(OR(M7<Dashboard!$F$25,M7>Dashboard!$F$26),0,(M74-M76)/M67) -> 0 | N77: =IF(OR(N7<Dashboard!$F$25,N7>Dashboard!$F$26),0,(N74-N76)/N67) -> 0 | O77: =IF(OR(O7<Dashboard!$F$25,O7>Dashboard!$F$26),0,(O74-O76)/O67) -> 0 | P77: =IF(OR(P7<Dashboard!$F$25,P7>Dashboard!$F$26),0,(P74-P76)/P67) -> 0 | Q77: =IF(OR(Q7<Dashboard!$F$25,Q7>Dashboard!$F$26),0,(Q74-Q76)/Q67) -> 0 | R77: =IF(OR(R7<Dashboard!$F$25,R7>Dashboard!$F$26),0,(R74-R76)/R67) -> 0 | S77: =IF(OR(S7<Dashboard!$F$25,S7>Dashboard!$F$26),0,(S74-S76)/S67) -> 0 | T77: =IF(OR(T7<Dashboard!$F$25,T7>Dashboard!$F$26),0,(T74-T76)/T67) -> 0 | U77: =IF(OR(U7<Dashboard!$F$25,U7>Dashboard!$F$26),0,(U74-U76)/U67) -> 0 | V77: =IF(OR(V7<Dashboard!$F$25,V7>Dashboard!$F$26),0,(V74-V76)/V67) -> 0 | W77: =IF(OR(W7<Dashboard!$F$25,W7>Dashboard!$F$26),0,(W74-W76)/W67) -> 0 | X77: =IF(OR(X7<Dashboard!$F$25,X7>Dashboard!$F$26),0,(X74-X76)/X67) -> 0 | Y77: =IF(OR(Y7<Dashboard!$F$25,Y7>Dashboard!$F$26),0,(Y74-Y76)/Y67) -> 0 | Z77: =IF(OR(Z7<Dashboard!$F$25,Z7>Dashboard!$F$26),0,(Z74-Z76)/Z67) -> 0 | AA77: =IF(OR(AA7<Dashboard!$F$25,AA7>Dashboard!$F$26),0,(AA74-AA76)/AA67) -> 0 | AB77: =IF(OR(AB7<Dashboard!$F$25,AB7>Dashboard!$F$26),0,(AB74-AB76)/AB67) -> 0 | AC77: =IF(OR(AC7<Dashboard!$F$25,AC7>Dashboard!$F$26),0,(AC74-AC76)/AC67) -> 0 | AD77: =IF(OR(AD7<Dashboard!$F$25,AD7>Dashboard!$F$26),0,(AD74-AD76)/AD67) -> 0 | AE77: =IF(OR(AE7<Dashboard!$F$25,AE7>Dashboard!$F$26),0,(AE74-AE76)/AE67) -> 0 | AF77: =IF(OR(AF7<Dashboard!$F$25,AF7>Dashboard!$F$26),0,(AF74-AF76)/AF67) -> 0 | AG77: =IF(OR(AG7<Dashboard!$F$25,AG7>Dashboard!$F$26),0,(AG74-AG76)/AG67) -> 0 | AH77: =IF(OR(AH7<Dashboard!$F$25,AH7>Dashboard!$F$26),0,(AH74-AH76)/AH67) -> 0 | AI77: EUR/tProdukt
C78: Wärmegestehungskosten Modernisierung | D78: =IF(OR(D7<Dashboard!$F$25,D7>Dashboard!$F$26),0,(D75-D76)/D67) -> 0 | E78: =IF(OR(E7<Dashboard!$F$25,E7>Dashboard!$F$26),0,(E75-E76)/E67) -> 0 | F78: =IF(OR(F7<Dashboard!$F$25,F7>Dashboard!$F$26),0,(F75-F76)/F67) -> 0 | G78: =IF(OR(G7<Dashboard!$F$25,G7>Dashboard!$F$26),0,(G75-G76)/G67) -> 0 | H78: =IF(OR(H7<Dashboard!$F$25,H7>Dashboard!$F$26),0,(H75-H76)/H67) -> 0 | I78: =IF(OR(I7<Dashboard!$F$25,I7>Dashboard!$F$26),0,(I75-I76)/I67) -> 0 | J78: =IF(OR(J7<Dashboard!$F$25,J7>Dashboard!$F$26),0,(J75-J76)/J67) -> 0 | K78: =IF(OR(K7<Dashboard!$F$25,K7>Dashboard!$F$26),0,(K75-K76)/K67) -> 0 | L78: =IF(OR(L7<Dashboard!$F$25,L7>Dashboard!$F$26),0,(L75-L76)/L67) -> 0 | M78: =IF(OR(M7<Dashboard!$F$25,M7>Dashboard!$F$26),0,(M75-M76)/M67) -> 0 | N78: =IF(OR(N7<Dashboard!$F$25,N7>Dashboard!$F$26),0,(N75-N76)/N67) -> 0 | O78: =IF(OR(O7<Dashboard!$F$25,O7>Dashboard!$F$26),0,(O75-O76)/O67) -> 0 | P78: =IF(OR(P7<Dashboard!$F$25,P7>Dashboard!$F$26),0,(P75-P76)/P67) -> 0 | Q78: =IF(OR(Q7<Dashboard!$F$25,Q7>Dashboard!$F$26),0,(Q75-Q76)/Q67) -> 0 | R78: =IF(OR(R7<Dashboard!$F$25,R7>Dashboard!$F$26),0,(R75-R76)/R67) -> 0 | S78: =IF(OR(S7<Dashboard!$F$25,S7>Dashboard!$F$26),0,(S75-S76)/S67) -> 0 | T78: =IF(OR(T7<Dashboard!$F$25,T7>Dashboard!$F$26),0,(T75-T76)/T67) -> 0 | U78: =IF(OR(U7<Dashboard!$F$25,U7>Dashboard!$F$26),0,(U75-U76)/U67) -> 0 | V78: =IF(OR(V7<Dashboard!$F$25,V7>Dashboard!$F$26),0,(V75-V76)/V67) -> 0 | W78: =IF(OR(W7<Dashboard!$F$25,W7>Dashboard!$F$26),0,(W75-W76)/W67) -> 0 | X78: =IF(OR(X7<Dashboard!$F$25,X7>Dashboard!$F$26),0,(X75-X76)/X67) -> 0 | Y78: =IF(OR(Y7<Dashboard!$F$25,Y7>Dashboard!$F$26),0,(Y75-Y76)/Y67) -> 0 | Z78: =IF(OR(Z7<Dashboard!$F$25,Z7>Dashboard!$F$26),0,(Z75-Z76)/Z67) -> 0 | AA78: =IF(OR(AA7<Dashboard!$F$25,AA7>Dashboard!$F$26),0,(AA75-AA76)/AA67) -> 0 | AB78: =IF(OR(AB7<Dashboard!$F$25,AB7>Dashboard!$F$26),0,(AB75-AB76)/AB67) -> 0 | AC78: =IF(OR(AC7<Dashboard!$F$25,AC7>Dashboard!$F$26),0,(AC75-AC76)/AC67) -> 0 | AD78: =IF(OR(AD7<Dashboard!$F$25,AD7>Dashboard!$F$26),0,(AD75-AD76)/AD67) -> 0 | AE78: =IF(OR(AE7<Dashboard!$F$25,AE7>Dashboard!$F$26),0,(AE75-AE76)/AE67) -> 0 | AF78: =IF(OR(AF7<Dashboard!$F$25,AF7>Dashboard!$F$26),0,(AF75-AF76)/AF67) -> 0 | AG78: =IF(OR(AG7<Dashboard!$F$25,AG7>Dashboard!$F$26),0,(AG75-AG76)/AG67) -> 0 | AH78: =IF(OR(AH7<Dashboard!$F$25,AH7>Dashboard!$F$26),0,(AH75-AH76)/AH67) -> 0 | AI78: EUR/tProdukt
A80: CO2-neutrale Prozesswärmetechnik_4
A81: Technik | B81: =NAME_Alternative4 -> 0 | C81: Wärmegestehungskosten
C82: Jahr | D82: 2020 | E82: 2021 | F82: 2022 | G82: 2023 | H82: 2024 | I82: 2025 | J82: 2026 | K82: 2027 | L82: 2028 | M82: 2029 | N82: 2030 | O82: 2031 | P82: 2032 | Q82: 2033 | R82: 2034 | S82: 2035 | T82: 2036 | U82: 2037 | V82: 2038 | W82: 2039 | X82: 2040 | Y82: 2041 | Z82: 2042 | AA82: 2043 | AB82: 2044 | AC82: 2045 | AD82: 2046 | AE82: 2047 | AF82: 2048 | AG82: 2049 | AH82: 2050 | AI82: Einheit
C83: Aktivität | D83: =Kapazität_Alternative4*Auslastung_Alternative4 -> 0 | E83: 0 | F83: 0 | G83: 0 | H83: 0 | I83: 0 | J83: 0 | K83: 0 | L83: 0 | M83: 0 | N83: 0 | O83: 0 | P83: 0 | Q83: 0 | R83: 0 | S83: 0 | T83: 0 | U83: 0 | V83: 0 | W83: 0 | X83: 0 | Y83: 0 | Z83: 0 | AA83: 0 | AB83: 0 | AC83: 0 | AD83: 0 | AE83: 0 | AF83: 0 | AG83: 0 | AH83: 0 | AI83: tProdukt
C84: Annuität Investition Neubau | D84: =B._Investition!D57 ->  | E84: =B._Investition!E57 ->  | F84: =B._Investition!F57 ->  | G84: =B._Investition!G57 ->  | H84: =B._Investition!H57 ->  | I84: =B._Investition!I57 ->  | J84: =B._Investition!J57 ->  | K84: =B._Investition!K57 ->  | L84: =B._Investition!L57 ->  | M84: =B._Investition!M57 ->  | N84: =B._Investition!N57 ->  | O84: =B._Investition!O57 ->  | P84: =B._Investition!P57 ->  | Q84: =B._Investition!Q57 ->  | R84: =B._Investition!R57 ->  | S84: =B._Investition!S57 ->  | T84: =B._Investition!T57 ->  | U84: =B._Investition!U57 ->  | V84: =B._Investition!V57 ->  | W84: =B._Investition!W57 ->  | X84: =B._Investition!X57 ->  | Y84: =B._Investition!Y57 ->  | Z84: =B._Investition!Z57 ->  | AA84: =B._Investition!AA57 ->  | AB84: =B._Investition!AB57 ->  | AC84: =B._Investition!AC57 ->  | AD84: =B._Investition!AD57 ->  | AE84: =B._Investition!AE57 ->  | AF84: =B._Investition!AF57 ->  | AG84: =B._Investition!AG57 ->  | AH84: =B._Investition!AH57 ->  | AI84: EUR/a
C85: Annuität Investition Modernisierung | D85: =B._Investition!D58 ->  | E85: =B._Investition!E58 ->  | F85: =B._Investition!F58 ->  | G85: =B._Investition!G58 ->  | H85: =B._Investition!H58 ->  | I85: =B._Investition!I58 ->  | J85: =B._Investition!J58 ->  | K85: =B._Investition!K58 ->  | L85: =B._Investition!L58 ->  | M85: =B._Investition!M58 ->  | N85: =B._Investition!N58 ->  | O85: =B._Investition!O58 ->  | P85: =B._Investition!P58 ->  | Q85: =B._Investition!Q58 ->  | R85: =B._Investition!R58 ->  | S85: =B._Investition!S58 ->  | T85: =B._Investition!T58 ->  | U85: =B._Investition!U58 ->  | V85: =B._Investition!V58 ->  | W85: =B._Investition!W58 ->  | X85: =B._Investition!X58 ->  | Y85: =B._Investition!Y58 ->  | Z85: =B._Investition!Z58 ->  | AA85: =B._Investition!AA58 ->  | AB85: =B._Investition!AB58 ->  | AC85: =B._Investition!AC58 ->  | AD85: =B._Investition!AD58 ->  | AE85: =B._Investition!AE58 ->  | AF85: =B._Investition!AF58 ->  | AG85: =B._Investition!AG58 ->  | AH85: =B._Investition!AH58 ->  | AI85: EUR/a
C86: CO2-Kosten/Umweltkosten | D86: =INDEX(B._Umweltkosten!$B$74:$AH$78,MATCH(Auswahl_CO2Preise,B._Umweltkosten!$B$74:$B$78,0),MATCH(B._WGK!D$7,B._Umweltkosten!$D$53:$AH$53,0)+2) ->  | E86: =INDEX(B._Umweltkosten!$B$74:$AH$78,MATCH(Auswahl_CO2Preise,B._Umweltkosten!$B$74:$B$78,0),MATCH(B._WGK!E$7,B._Umweltkosten!$D$53:$AH$53,0)+2) ->  | F86: =INDEX(B._Umweltkosten!$B$74:$AH$78,MATCH(Auswahl_CO2Preise,B._Umweltkosten!$B$74:$B$78,0),MATCH(B._WGK!F$7,B._Umweltkosten!$D$53:$AH$53,0)+2) ->  | G86: =INDEX(B._Umweltkosten!$B$74:$AH$78,MATCH(Auswahl_CO2Preise,B._Umweltkosten!$B$74:$B$78,0),MATCH(B._WGK!G$7,B._Umweltkosten!$D$53:$AH$53,0)+2) ->  | H86: =INDEX(B._Umweltkosten!$B$74:$AH$78,MATCH(Auswahl_CO2Preise,B._Umweltkosten!$B$74:$B$78,0),MATCH(B._WGK!H$7,B._Umweltkosten!$D$53:$AH$53,0)+2) ->  | I86: =INDEX(B._Umweltkosten!$B$74:$AH$78,MATCH(Auswahl_CO2Preise,B._Umweltkosten!$B$74:$B$78,0),MATCH(B._WGK!I$7,B._Umweltkosten!$D$53:$AH$53,0)+2) ->  | J86: =INDEX(B._Umweltkosten!$B$74:$AH$78,MATCH(Auswahl_CO2Preise,B._Umweltkosten!$B$74:$B$78,0),MATCH(B._WGK!J$7,B._Umweltkosten!$D$53:$AH$53,0)+2) ->  | K86: =INDEX(B._Umweltkosten!$B$74:$AH$78,MATCH(Auswahl_CO2Preise,B._Umweltkosten!$B$74:$B$78,0),MATCH(B._WGK!K$7,B._Umweltkosten!$D$53:$AH$53,0)+2) ->  | L86: =INDEX(B._Umweltkosten!$B$74:$AH$78,MATCH(Auswahl_CO2Preise,B._Umweltkosten!$B$74:$B$78,0),MATCH(B._WGK!L$7,B._Umweltkosten!$D$53:$AH$53,0)+2) ->  | M86: =INDEX(B._Umweltkosten!$B$74:$AH$78,MATCH(Auswahl_CO2Preise,B._Umweltkosten!$B$74:$B$78,0),MATCH(B._WGK!M$7,B._Umweltkosten!$D$53:$AH$53,0)+2) ->  | N86: =INDEX(B._Umweltkosten!$B$74:$AH$78,MATCH(Auswahl_CO2Preise,B._Umweltkosten!$B$74:$B$78,0),MATCH(B._WGK!N$7,B._Umweltkosten!$D$53:$AH$53,0)+2) ->  | O86: =INDEX(B._Umweltkosten!$B$74:$AH$78,MATCH(Auswahl_CO2Preise,B._Umweltkosten!$B$74:$B$78,0),MATCH(B._WGK!O$7,B._Umweltkosten!$D$53:$AH$53,0)+2) ->  | P86: =INDEX(B._Umweltkosten!$B$74:$AH$78,MATCH(Auswahl_CO2Preise,B._Umweltkosten!$B$74:$B$78,0),MATCH(B._WGK!P$7,B._Umweltkosten!$D$53:$AH$53,0)+2) ->  | Q86: =INDEX(B._Umweltkosten!$B$74:$AH$78,MATCH(Auswahl_CO2Preise,B._Umweltkosten!$B$74:$B$78,0),MATCH(B._WGK!Q$7,B._Umweltkosten!$D$53:$AH$53,0)+2) ->  | R86: =INDEX(B._Umweltkosten!$B$74:$AH$78,MATCH(Auswahl_CO2Preise,B._Umweltkosten!$B$74:$B$78,0),MATCH(B._WGK!R$7,B._Umweltkosten!$D$53:$AH$53,0)+2) ->  | S86: =INDEX(B._Umweltkosten!$B$74:$AH$78,MATCH(Auswahl_CO2Preise,B._Umweltkosten!$B$74:$B$78,0),MATCH(B._WGK!S$7,B._Umweltkosten!$D$53:$AH$53,0)+2) ->  | T86: =INDEX(B._Umweltkosten!$B$74:$AH$78,MATCH(Auswahl_CO2Preise,B._Umweltkosten!$B$74:$B$78,0),MATCH(B._WGK!T$7,B._Umweltkosten!$D$53:$AH$53,0)+2) ->  | U86: =INDEX(B._Umweltkosten!$B$74:$AH$78,MATCH(Auswahl_CO2Preise,B._Umweltkosten!$B$74:$B$78,0),MATCH(B._WGK!U$7,B._Umweltkosten!$D$53:$AH$53,0)+2) ->  | V86: =INDEX(B._Umweltkosten!$B$74:$AH$78,MATCH(Auswahl_CO2Preise,B._Umweltkosten!$B$74:$B$78,0),MATCH(B._WGK!V$7,B._Umweltkosten!$D$53:$AH$53,0)+2) ->  | W86: =INDEX(B._Umweltkosten!$B$74:$AH$78,MATCH(Auswahl_CO2Preise,B._Umweltkosten!$B$74:$B$78,0),MATCH(B._WGK!W$7,B._Umweltkosten!$D$53:$AH$53,0)+2) ->  | X86: =INDEX(B._Umweltkosten!$B$74:$AH$78,MATCH(Auswahl_CO2Preise,B._Umweltkosten!$B$74:$B$78,0),MATCH(B._WGK!X$7,B._Umweltkosten!$D$53:$AH$53,0)+2) ->  | Y86: =INDEX(B._Umweltkosten!$B$74:$AH$78,MATCH(Auswahl_CO2Preise,B._Umweltkosten!$B$74:$B$78,0),MATCH(B._WGK!Y$7,B._Umweltkosten!$D$53:$AH$53,0)+2) ->  | Z86: =INDEX(B._Umweltkosten!$B$74:$AH$78,MATCH(Auswahl_CO2Preise,B._Umweltkosten!$B$74:$B$78,0),MATCH(B._WGK!Z$7,B._Umweltkosten!$D$53:$AH$53,0)+2) ->  | AA86: =INDEX(B._Umweltkosten!$B$74:$AH$78,MATCH(Auswahl_CO2Preise,B._Umweltkosten!$B$74:$B$78,0),MATCH(B._WGK!AA$7,B._Umweltkosten!$D$53:$AH$53,0)+2) ->  | AB86: =INDEX(B._Umweltkosten!$B$74:$AH$78,MATCH(Auswahl_CO2Preise,B._Umweltkosten!$B$74:$B$78,0),MATCH(B._WGK!AB$7,B._Umweltkosten!$D$53:$AH$53,0)+2) ->  | AC86: =INDEX(B._Umweltkosten!$B$74:$AH$78,MATCH(Auswahl_CO2Preise,B._Umweltkosten!$B$74:$B$78,0),MATCH(B._WGK!AC$7,B._Umweltkosten!$D$53:$AH$53,0)+2) ->  | AD86: =INDEX(B._Umweltkosten!$B$74:$AH$78,MATCH(Auswahl_CO2Preise,B._Umweltkosten!$B$74:$B$78,0),MATCH(B._WGK!AD$7,B._Umweltkosten!$D$53:$AH$53,0)+2) ->  | AE86: =INDEX(B._Umweltkosten!$B$74:$AH$78,MATCH(Auswahl_CO2Preise,B._Umweltkosten!$B$74:$B$78,0),MATCH(B._WGK!AE$7,B._Umweltkosten!$D$53:$AH$53,0)+2) ->  | AF86: =INDEX(B._Umweltkosten!$B$74:$AH$78,MATCH(Auswahl_CO2Preise,B._Umweltkosten!$B$74:$B$78,0),MATCH(B._WGK!AF$7,B._Umweltkosten!$D$53:$AH$53,0)+2) ->  | AG86: =INDEX(B._Umweltkosten!$B$74:$AH$78,MATCH(Auswahl_CO2Preise,B._Umweltkosten!$B$74:$B$78,0),MATCH(B._WGK!AG$7,B._Umweltkosten!$D$53:$AH$53,0)+2) ->  | AH86: =INDEX(B._Umweltkosten!$B$74:$AH$78,MATCH(Auswahl_CO2Preise,B._Umweltkosten!$B$74:$B$78,0),MATCH(B._WGK!AH$7,B._Umweltkosten!$D$53:$AH$53,0)+2) ->  | AI86: EUR/a
C87: Energiekosten | D87: =B._Energiekosten!D48 ->  | E87: =B._Energiekosten!E48 ->  | F87: =B._Energiekosten!F48 ->  | G87: =B._Energiekosten!G48 ->  | H87: =B._Energiekosten!H48 ->  | I87: =B._Energiekosten!I48 ->  | J87: =B._Energiekosten!J48 ->  | K87: =B._Energiekosten!K48 ->  | L87: =B._Energiekosten!L48 ->  | M87: =B._Energiekosten!M48 ->  | N87: =B._Energiekosten!N48 ->  | O87: =B._Energiekosten!O48 ->  | P87: =B._Energiekosten!P48 ->  | Q87: =B._Energiekosten!Q48 ->  | R87: =B._Energiekosten!R48 ->  | S87: =B._Energiekosten!S48 ->  | T87: =B._Energiekosten!T48 ->  | U87: =B._Energiekosten!U48 ->  | V87: =B._Energiekosten!V48 ->  | W87: =B._Energiekosten!W48 ->  | X87: =B._Energiekosten!X48 ->  | Y87: =B._Energiekosten!Y48 ->  | Z87: =B._Energiekosten!Z48 ->  | AA87: =B._Energiekosten!AA48 ->  | AB87: =B._Energiekosten!AB48 ->  | AC87: =B._Energiekosten!AC48 ->  | AD87: =B._Energiekosten!AD48 ->  | AE87: =B._Energiekosten!AE48 ->  | AF87: =B._Energiekosten!AF48 ->  | AG87: =B._Energiekosten!AG48 ->  | AH87: =B._Energiekosten!AH48 ->  | AI87: EUR/a
C88: O&M Neubau | D88: ='B._O&M'!D42 -> 0 | E88: ='B._O&M'!E42 -> 0 | F88: ='B._O&M'!F42 -> 0 | G88: ='B._O&M'!G42 -> 0 | H88: ='B._O&M'!H42 -> 0 | I88: ='B._O&M'!I42 -> 0 | J88: ='B._O&M'!J42 -> 0 | K88: ='B._O&M'!K42 -> 0 | L88: ='B._O&M'!L42 -> 0 | M88: ='B._O&M'!M42 -> 0 | N88: ='B._O&M'!N42 -> 0 | O88: ='B._O&M'!O42 -> 0 | P88: ='B._O&M'!P42 -> 0 | Q88: ='B._O&M'!Q42 -> 0 | R88: ='B._O&M'!R42 -> 0 | S88: ='B._O&M'!S42 -> 0 | T88: ='B._O&M'!T42 -> 0 | U88: ='B._O&M'!U42 -> 0 | V88: ='B._O&M'!V42 -> 0 | W88: ='B._O&M'!W42 -> 0 | X88: ='B._O&M'!X42 -> 0 | Y88: ='B._O&M'!Y42 -> 0 | Z88: ='B._O&M'!Z42 -> 0 | AA88: ='B._O&M'!AA42 -> 0 | AB88: ='B._O&M'!AB42 -> 0 | AC88: ='B._O&M'!AC42 -> 0 | AD88: ='B._O&M'!AD42 -> 0 | AE88: ='B._O&M'!AE42 -> 0 | AF88: ='B._O&M'!AF42 -> 0 | AG88: ='B._O&M'!AG42 -> 0 | AH88: ='B._O&M'!AH42 -> 0 | AI88: EUR/a
C89: O&M Modernisierung | D89: ='B._O&M'!D43 -> 0 | E89: ='B._O&M'!E43 -> 0 | F89: ='B._O&M'!F43 -> 0 | G89: ='B._O&M'!G43 -> 0 | H89: ='B._O&M'!H43 -> 0 | I89: ='B._O&M'!I43 -> 0 | J89: ='B._O&M'!J43 -> 0 | K89: ='B._O&M'!K43 -> 0 | L89: ='B._O&M'!L43 -> 0 | M89: ='B._O&M'!M43 -> 0 | N89: ='B._O&M'!N43 -> 0 | O89: ='B._O&M'!O43 -> 0 | P89: ='B._O&M'!P43 -> 0 | Q89: ='B._O&M'!Q43 -> 0 | R89: ='B._O&M'!R43 -> 0 | S89: ='B._O&M'!S43 -> 0 | T89: ='B._O&M'!T43 -> 0 | U89: ='B._O&M'!U43 -> 0 | V89: ='B._O&M'!V43 -> 0 | W89: ='B._O&M'!W43 -> 0 | X89: ='B._O&M'!X43 -> 0 | Y89: ='B._O&M'!Y43 -> 0 | Z89: ='B._O&M'!Z43 -> 0 | AA89: ='B._O&M'!AA43 -> 0 | AB89: ='B._O&M'!AB43 -> 0 | AC89: ='B._O&M'!AC43 -> 0 | AD89: ='B._O&M'!AD43 -> 0 | AE89: ='B._O&M'!AE43 -> 0 | AF89: ='B._O&M'!AF43 -> 0 | AG89: ='B._O&M'!AG43 -> 0 | AH89: ='B._O&M'!AH43 -> 0 | AI89: EUR/a
C90: Gesamtkosten Neubau | D90: =D84+D86+D87+D88 ->  | E90: =E84+E86+E87+E88 ->  | AI90: EUR/a
C91: Gesamtkosten Modernisierung | D91: =D85+D86+D87+D89 ->  | E91: =E85+E86+E87+E89 ->  | AI91: EUR/a
C92: Einnahmen | D92: =B._Einnahmen!D75 -> 0 | E92: =B._Einnahmen!E75 -> 0 | F92: =B._Einnahmen!F75 -> 0 | G92: =B._Einnahmen!G75 -> 0 | H92: =B._Einnahmen!H75 -> 0 | I92: =B._Einnahmen!I75 -> 0 | J92: =B._Einnahmen!J75 -> 0 | K92: =B._Einnahmen!K75 -> 0 | L92: =B._Einnahmen!L75 -> 0 | M92: =B._Einnahmen!M75 -> 0 | N92: =B._Einnahmen!N75 -> 0 | O92: =B._Einnahmen!O75 -> 0 | P92: =B._Einnahmen!P75 -> 0 | Q92: =B._Einnahmen!Q75 -> 0 | R92: =B._Einnahmen!R75 -> 0 | S92: =B._Einnahmen!S75 -> 0 | T92: =B._Einnahmen!T75 -> 0 | U92: =B._Einnahmen!U75 -> 0 | V92: =B._Einnahmen!V75 -> 0 | W92: =B._Einnahmen!W75 -> 0 | X92: =B._Einnahmen!X75 -> 0 | Y92: =B._Einnahmen!Y75 -> 0 | Z92: =B._Einnahmen!Z75 -> 0 | AA92: =B._Einnahmen!AA75 -> 0 | AB92: =B._Einnahmen!AB75 -> 0 | AC92: =B._Einnahmen!AC75 -> 0 | AD92: =B._Einnahmen!AD75 -> 0 | AE92: =B._Einnahmen!AE75 -> 0 | AF92: =B._Einnahmen!AF75 -> 0 | AG92: =B._Einnahmen!AG75 -> 0 | AH92: =B._Einnahmen!AH75 -> 0 | AI92: EUR/a
C93: Wärmegestehungskosten Neubau | D93: =IF(OR(D7<Dashboard!$G$25,D7>Dashboard!$G$26),0,(D90-D92)/D83) -> 0 | E93: =IF(OR(E7<Dashboard!$G$25,E7>Dashboard!$G$26),0,(E90-E92)/E83) -> 0 | F93: =IF(OR(F7<Dashboard!$G$25,F7>Dashboard!$G$26),0,(F90-F92)/F83) -> 0 | G93: =IF(OR(G7<Dashboard!$G$25,G7>Dashboard!$G$26),0,(G90-G92)/G83) -> 0 | H93: =IF(OR(H7<Dashboard!$G$25,H7>Dashboard!$G$26),0,(H90-H92)/H83) -> 0 | I93: =IF(OR(I7<Dashboard!$G$25,I7>Dashboard!$G$26),0,(I90-I92)/I83) -> 0 | J93: =IF(OR(J7<Dashboard!$G$25,J7>Dashboard!$G$26),0,(J90-J92)/J83) -> 0 | K93: =IF(OR(K7<Dashboard!$G$25,K7>Dashboard!$G$26),0,(K90-K92)/K83) -> 0 | L93: =IF(OR(L7<Dashboard!$G$25,L7>Dashboard!$G$26),0,(L90-L92)/L83) -> 0 | M93: =IF(OR(M7<Dashboard!$G$25,M7>Dashboard!$G$26),0,(M90-M92)/M83) -> 0 | N93: =IF(OR(N7<Dashboard!$G$25,N7>Dashboard!$G$26),0,(N90-N92)/N83) -> 0 | O93: =IF(OR(O7<Dashboard!$G$25,O7>Dashboard!$G$26),0,(O90-O92)/O83) -> 0 | P93: =IF(OR(P7<Dashboard!$G$25,P7>Dashboard!$G$26),0,(P90-P92)/P83) -> 0 | Q93: =IF(OR(Q7<Dashboard!$G$25,Q7>Dashboard!$G$26),0,(Q90-Q92)/Q83) -> 0 | R93: =IF(OR(R7<Dashboard!$G$25,R7>Dashboard!$G$26),0,(R90-R92)/R83) -> 0 | S93: =IF(OR(S7<Dashboard!$G$25,S7>Dashboard!$G$26),0,(S90-S92)/S83) -> 0 | T93: =IF(OR(T7<Dashboard!$G$25,T7>Dashboard!$G$26),0,(T90-T92)/T83) -> 0 | U93: =IF(OR(U7<Dashboard!$G$25,U7>Dashboard!$G$26),0,(U90-U92)/U83) -> 0 | V93: =IF(OR(V7<Dashboard!$G$25,V7>Dashboard!$G$26),0,(V90-V92)/V83) -> 0 | W93: =IF(OR(W7<Dashboard!$G$25,W7>Dashboard!$G$26),0,(W90-W92)/W83) -> 0 | X93: =IF(OR(X7<Dashboard!$G$25,X7>Dashboard!$G$26),0,(X90-X92)/X83) -> 0 | Y93: =IF(OR(Y7<Dashboard!$G$25,Y7>Dashboard!$G$26),0,(Y90-Y92)/Y83) -> 0 | Z93: =IF(OR(Z7<Dashboard!$G$25,Z7>Dashboard!$G$26),0,(Z90-Z92)/Z83) -> 0 | AA93: =IF(OR(AA7<Dashboard!$G$25,AA7>Dashboard!$G$26),0,(AA90-AA92)/AA83) -> 0 | AB93: =IF(OR(AB7<Dashboard!$G$25,AB7>Dashboard!$G$26),0,(AB90-AB92)/AB83) -> 0 | AC93: =IF(OR(AC7<Dashboard!$G$25,AC7>Dashboard!$G$26),0,(AC90-AC92)/AC83) -> 0 | AD93: =IF(OR(AD7<Dashboard!$G$25,AD7>Dashboard!$G$26),0,(AD90-AD92)/AD83) -> 0 | AE93: =IF(OR(AE7<Dashboard!$G$25,AE7>Dashboard!$G$26),0,(AE90-AE92)/AE83) -> 0 | AF93: =IF(OR(AF7<Dashboard!$G$25,AF7>Dashboard!$G$26),0,(AF90-AF92)/AF83) -> 0 | AG93: =IF(OR(AG7<Dashboard!$G$25,AG7>Dashboard!$G$26),0,(AG90-AG92)/AG83) -> 0 | AH93: =IF(OR(AH7<Dashboard!$G$25,AH7>Dashboard!$G$26),0,(AH90-AH92)/AH83) -> 0 | AI93: EUR/tProdukt
C94: Wärmegestehungskosten Modernisierung | D94: =IF(OR(D7<Dashboard!$G$25,D7>Dashboard!$G$26),0,(D91-D92)/D83) -> 0 | E94: =IF(OR(E7<Dashboard!$G$25,E7>Dashboard!$G$26),0,(E91-E92)/E83) -> 0 | F94: =IF(OR(F7<Dashboard!$G$25,F7>Dashboard!$G$26),0,(F91-F92)/F83) -> 0 | G94: =IF(OR(G7<Dashboard!$G$25,G7>Dashboard!$G$26),0,(G91-G92)/G83) -> 0 | H94: =IF(OR(H7<Dashboard!$G$25,H7>Dashboard!$G$26),0,(H91-H92)/H83) -> 0 | I94: =IF(OR(I7<Dashboard!$G$25,I7>Dashboard!$G$26),0,(I91-I92)/I83) -> 0 | J94: =IF(OR(J7<Dashboard!$G$25,J7>Dashboard!$G$26),0,(J91-J92)/J83) -> 0 | K94: =IF(OR(K7<Dashboard!$G$25,K7>Dashboard!$G$26),0,(K91-K92)/K83) -> 0 | L94: =IF(OR(L7<Dashboard!$G$25,L7>Dashboard!$G$26),0,(L91-L92)/L83) -> 0 | M94: =IF(OR(M7<Dashboard!$G$25,M7>Dashboard!$G$26),0,(M91-M92)/M83) -> 0 | N94: =IF(OR(N7<Dashboard!$G$25,N7>Dashboard!$G$26),0,(N91-N92)/N83) -> 0 | O94: =IF(OR(O7<Dashboard!$G$25,O7>Dashboard!$G$26),0,(O91-O92)/O83) -> 0 | P94: =IF(OR(P7<Dashboard!$G$25,P7>Dashboard!$G$26),0,(P91-P92)/P83) -> 0 | Q94: =IF(OR(Q7<Dashboard!$G$25,Q7>Dashboard!$G$26),0,(Q91-Q92)/Q83) -> 0 | R94: =IF(OR(R7<Dashboard!$G$25,R7>Dashboard!$G$26),0,(R91-R92)/R83) -> 0 | S94: =IF(OR(S7<Dashboard!$G$25,S7>Dashboard!$G$26),0,(S91-S92)/S83) -> 0 | T94: =IF(OR(T7<Dashboard!$G$25,T7>Dashboard!$G$26),0,(T91-T92)/T83) -> 0 | U94: =IF(OR(U7<Dashboard!$G$25,U7>Dashboard!$G$26),0,(U91-U92)/U83) -> 0 | V94: =IF(OR(V7<Dashboard!$G$25,V7>Dashboard!$G$26),0,(V91-V92)/V83) -> 0 | W94: =IF(OR(W7<Dashboard!$G$25,W7>Dashboard!$G$26),0,(W91-W92)/W83) -> 0 | X94: =IF(OR(X7<Dashboard!$G$25,X7>Dashboard!$G$26),0,(X91-X92)/X83) -> 0 | Y94: =IF(OR(Y7<Dashboard!$G$25,Y7>Dashboard!$G$26),0,(Y91-Y92)/Y83) -> 0 | Z94: =IF(OR(Z7<Dashboard!$G$25,Z7>Dashboard!$G$26),0,(Z91-Z92)/Z83) -> 0 | AA94: =IF(OR(AA7<Dashboard!$G$25,AA7>Dashboard!$G$26),0,(AA91-AA92)/AA83) -> 0 | AB94: =IF(OR(AB7<Dashboard!$G$25,AB7>Dashboard!$G$26),0,(AB91-AB92)/AB83) -> 0 | AC94: =IF(OR(AC7<Dashboard!$G$25,AC7>Dashboard!$G$26),0,(AC91-AC92)/AC83) -> 0 | AD94: =IF(OR(AD7<Dashboard!$G$25,AD7>Dashboard!$G$26),0,(AD91-AD92)/AD83) -> 0 | AE94: =IF(OR(AE7<Dashboard!$G$25,AE7>Dashboard!$G$26),0,(AE91-AE92)/AE83) -> 0 | AF94: =IF(OR(AF7<Dashboard!$G$25,AF7>Dashboard!$G$26),0,(AF91-AF92)/AF83) -> 0 | AG94: =IF(OR(AG7<Dashboard!$G$25,AG7>Dashboard!$G$26),0,(AG91-AG92)/AG83) -> 0 | AH94: =IF(OR(AH7<Dashboard!$G$25,AH7>Dashboard!$G$26),0,(AH91-AH92)/AH83) -> 0 | AI94: EUR/tProdukt

Sheet B._Diffusion (hidden)
AO1: =1-_xlfn.NORM.DIST((AL5-$BR$49)/($BR$49/4)*(-1),0,$BR$68,TRUE) -> 0.9999999893 | AP1: =_xlfn.NORM.DIST(((AL5-$BR$49)/($BR$49/4)*(-1)),0,$BR$68,FALSE) -> 6.1826205e-08
A2: Modellparameter | B2: 2020 | C2: 2021 | D2: 2022 | E2: 2023 | F2: 2024 | G2: 2025 | H2: 2026 | I2: 2027 | J2: 2028 | K2: 2029 | L2: 2030 | M2: 2031 | N2: 2032 | O2: 2033 | P2: 2034 | Q2: 2035 | R2: 2036 | S2: 2037 | T2: 2038 | U2: 2039 | V2: 2040 | W2: 2041 | X2: 2042 | Y2: 2043 | Z2: 2044 | AA2: 2045 | AB2: 2046 | AC2: 2047 | AD2: 2048 | AE2: 2049 | AF2: 2050 | AL2: Referenztechnik | AQ2: Alternativtechnik 1 | AV2: Alternativtechnik 2 | BA2: Alternativtechnik 3 | BF2: Alternativtechnik 4
A3: Epsilon | B3: =INDEX(A_Rahmendaten!$E$140:$H$143,MATCH(Dashboard!$L$27,A_Rahmendaten!$C$140:$C$143,0),MATCH(B$2,A_Rahmendaten!$E$139:$H$139,0)) -> 7 | C3: =($L$3-$B$3)/10+B3 -> 7 | D3: =($L$3-$B$3)/10+C3 -> 7 | E3: 7 | F3: 7 | G3: 7 | H3: 7 | I3: 7 | J3: 7 | K3: 7 | L3: =INDEX(A_Rahmendaten!$E$140:$H$143,MATCH(Dashboard!$L$27,A_Rahmendaten!$C$140:$C$143,0),MATCH(L$2,A_Rahmendaten!$E$139:$H$139,0)) -> 7 | M3: =($V$3-$L$3)/10+L3 -> 7 | N3: =($V$3-$L$3)/10+M3 -> 7 | O3: 7 | P3: 7 | Q3: 7 | R3: 7 | S3: 7 | T3: 7 | U3: 7 | V3: =INDEX(A_Rahmendaten!$E$140:$H$143,MATCH(Dashboard!$L$27,A_Rahmendaten!$C$140:$C$143,0),MATCH(V$2,A_Rahmendaten!$E$139:$H$139,0)) -> 7 | W3: =($AF$3-$V$3)/10+V3 -> 7 | X3: =($AF$3-$V$3)/10+W3 -> 7 | Y3: 7 | Z3: 7 | AA3: 7 | AB3: 7 | AC3: 7 | AD3: 7 | AE3: 7 | AF3: =INDEX(A_Rahmendaten!$E$140:$H$143,MATCH(Dashboard!$L$27,A_Rahmendaten!$C$140:$C$143,0),MATCH(AF$2,A_Rahmendaten!$E$139:$H$139,0)) -> 7
A4: Mittelwert Kosten | B4: =AVERAGEIF(B14:B18,">0")*(1-Dashboard!$L$28)+AVERAGEIF(B7:B11,">0")*(Dashboard!$L$28) ->  | C4: =AVERAGEIF(C14:C18,">0")*(1-Dashboard!$L$28)+AVERAGEIF(C7:C11,">0")*(Dashboard!$L$28) ->  | D4: =AVERAGEIF(D14:D18,">0")*(1-Dashboard!$L$28)+AVERAGEIF(D7:D11,">0")*(Dashboard!$L$28) ->  | E4: =AVERAGEIF(E14:E18,">0")*(1-Dashboard!$L$28)+AVERAGEIF(E7:E11,">0")*(Dashboard!$L$28) ->  | F4: =AVERAGEIF(F14:F18,">0")*(1-Dashboard!$L$28)+AVERAGEIF(F7:F11,">0")*(Dashboard!$L$28) ->  | G4: =AVERAGEIF(G14:G18,">0")*(1-Dashboard!$L$28)+AVERAGEIF(G7:G11,">0")*(Dashboard!$L$28) ->  | H4: =AVERAGEIF(H14:H18,">0")*(1-Dashboard!$L$28)+AVERAGEIF(H7:H11,">0")*(Dashboard!$L$28) ->  | I4: =AVERAGEIF(I14:I18,">0")*(1-Dashboard!$L$28)+AVERAGEIF(I7:I11,">0")*(Dashboard!$L$28) ->  | J4: =AVERAGEIF(J14:J18,">0")*(1-Dashboard!$L$28)+AVERAGEIF(J7:J11,">0")*(Dashboard!$L$28) ->  | K4: =AVERAGEIF(K14:K18,">0")*(1-Dashboard!$L$28)+AVERAGEIF(K7:K11,">0")*(Dashboard!$L$28) ->  | L4: =AVERAGEIF(L14:L18,">0")*(1-Dashboard!$L$28)+AVERAGEIF(L7:L11,">0")*(Dashboard!$L$28) ->  | M4: =AVERAGEIF(M14:M18,">0")*(1-Dashboard!$L$28)+AVERAGEIF(M7:M11,">0")*(Dashboard!$L$28) ->  | N4: =AVERAGEIF(N14:N18,">0")*(1-Dashboard!$L$28)+AVERAGEIF(N7:N11,">0")*(Dashboard!$L$28) ->  | O4: =AVERAGEIF(O14:O18,">0")*(1-Dashboard!$L$28)+AVERAGEIF(O7:O11,">0")*(Dashboard!$L$28) ->  | P4: =AVERAGEIF(P14:P18,">0")*(1-Dashboard!$L$28)+AVERAGEIF(P7:P11,">0")*(Dashboard!$L$28) ->  | Q4: =AVERAGEIF(Q14:Q18,">0")*(1-Dashboard!$L$28)+AVERAGEIF(Q7:Q11,">0")*(Dashboard!$L$28) ->  | R4: =AVERAGEIF(R14:R18,">0")*(1-Dashboard!$L$28)+AVERAGEIF(R7:R11,">0")*(Dashboard!$L$28) ->  | S4: =AVERAGEIF(S14:S18,">0")*(1-Dashboard!$L$28)+AVERAGEIF(S7:S11,">0")*(Dashboard!$L$28) ->  | T4: =AVERAGEIF(T14:T18,">0")*(1-Dashboard!$L$28)+AVERAGEIF(T7:T11,">0")*(Dashboard!$L$28) ->  | U4: =AVERAGEIF(U14:U18,">0")*(1-Dashboard!$L$28)+AVERAGEIF(U7:U11,">0")*(Dashboard!$L$28) ->  | V4: =AVERAGEIF(V14:V18,">0")*(1-Dashboard!$L$28)+AVERAGEIF(V7:V11,">0")*(Dashboard!$L$28) ->  | W4: =AVERAGEIF(W14:W18,">0")*(1-Dashboard!$L$28)+AVERAGEIF(W7:W11,">0")*(Dashboard!$L$28) ->  | X4: =AVERAGEIF(X14:X18,">0")*(1-Dashboard!$L$28)+AVERAGEIF(X7:X11,">0")*(Dashboard!$L$28) ->  | Y4: =AVERAGEIF(Y14:Y18,">0")*(1-Dashboard!$L$28)+AVERAGEIF(Y7:Y11,">0")*(Dashboard!$L$28) ->  | Z4: =AVERAGEIF(Z14:Z18,">0")*(1-Dashboard!$L$28)+AVERAGEIF(Z7:Z11,">0")*(Dashboard!$L$28) ->  | AA4: =AVERAGEIF(AA14:AA18,">0")*(1-Dashboard!$L$28)+AVERAGEIF(AA7:AA11,">0")*(Dashboard!$L$28) ->  | AB4: =AVERAGEIF(AB14:AB18,">0")*(1-Dashboard!$L$28)+AVERAGEIF(AB7:AB11,">0")*(Dashboard!$L$28) ->  | AC4: =AVERAGEIF(AC14:AC18,">0")*(1-Dashboard!$L$28)+AVERAGEIF(AC7:AC11,">0")*(Dashboard!$L$28) ->  | AD4: =AVERAGEIF(AD14:AD18,">0")*(1-Dashboard!$L$28)+AVERAGEIF(AD7:AD11,">0")*(Dashboard!$L$28) ->  | AE4: =AVERAGEIF(AE14:AE18,">0")*(1-Dashboard!$L$28)+AVERAGEIF(AE7:AE11,">0")*(Dashboard!$L$28) ->  | AF4: =AVERAGEIF(AF14:AF18,">0")*(1-Dashboard!$L$28)+AVERAGEIF(AF7:AF11,">0")*(Dashboard!$L$28) ->  | AK4: Startverteilung | AL4: Alter | AM4: Index | AN4: Verteilung | AO4: Dichte | AP4: Ausfallrate | AQ4: Alter | AR4: Index | AS4: Verteilung | AT4: Dichte | AU4: Ausfallrate | AV4: Alter | AW4: Index | AX4: Verteilung | AY4: Dichte | AZ4: Ausfallrate | BA4: Alter | BB4: Index | BC4: Verteilung | BD4: Dichte | BE4: Ausfallrate | BF4: Alter | BG4: Index | BH4: Verteilung | BI4: Dichte | BJ4: Ausfallrate
AJ5: 1960 | AK5: =AK9 -> 0 | AL5: =$AJ$65-AJ5 -> 60 | AM5: =(AL5-$BR$49)/($BR$49/4)*(-1) -> -5.6 | AN5: =_xlfn.NORM.DIST(AM5,0,$BR$68,FALSE) -> 6.1826205e-08 | AO5: =1-_xlfn.NORM.DIST(AM5,0,$BR$68,TRUE) -> 0.9999999893 | AP5: =IF($AL5>(2*$BR$49),0.2,IF(($AO5/SUM($AN$5:$AN$65)*$BR$67)>1,0.2,$AO5/SUM($AN$5:$AN$65)*$BR$67)) -> 0.2 | AQ5: =$AJ$65-AJ5 -> 60 | AR5: =(AQ5-$BR$50)/($BR$50/4)*(-1) -> -5.6 | AS5: =_xlfn.NORM.DIST(AR5,0,$BR$68,FALSE) -> 6.1826205e-08 | AT5: =1-_xlfn.NORM.DIST(AR5,0,$BR$68,TRUE) -> 0.9999999893 | AU5: =IF($AL5>(2*$BR$50),0.2,IF(($AT5/SUM($AS$5:$AS$65)*$BR$67)>1,0.2,$AT5/SUM($AS$5:$AS$65)*$BR$67)) -> 0.2 | AV5: =$AJ$65-AJ5 -> 60 | AW5: =(AV5-$BR$51)/($BR$51/4)*(-1) -> -5.6 | AX5: =_xlfn.NORM.DIST(AW5,0,$BR$68,FALSE) -> 6.1826205e-08 | AY5: =1-_xlfn.NORM.DIST(AW5,0,$BR$68,TRUE) -> 0.9999999893 | AZ5: =IF($AL5>(2*$BR$51),0.2,IF(($AY5/SUM($AX$5:$AX$65)*$BR$67)>1,0.2,$AY5/SUM($AX$5:$AX$65)*$BR$67)) -> 0.2 | BA5: =$AJ$65-AJ5 -> 60 | BB5: =(BA5-$BR$52)/($BR$52/4)*(-1) ->  | BC5: =_xlfn.NORM.DIST(BB5,0,$BR$68,FALSE) ->  | BD5: =1-_xlfn.NORM.DIST(BB5,0,$BR$68,TRUE) ->  | BE5: =IFERROR(IF($AL5>(2*$BR$52),0.2,IF(($BD5/SUM($BC$5:$BC$65)*$BR$67)>1,0.2,$BD5/SUM($BC$5:$BC$65)*$BR$67)),0) -> 0 | BF5: =$AJ$65-AJ5 -> 60 | BG5: =(BF5-$BR$53)/($BR$53/4)*(-1) ->  | BH5: =_xlfn.NORM.DIST(BG5,0,$BR$68,FALSE) ->  | BI5: =1-_xlfn.NORM.DIST(BG5,0,$BR$68,TRUE) ->  | BJ5: =IFERROR(IF($AL5>(2*$BR$53),0.2,IF(($BI5/SUM($BH$5:$BH$65)*$BR$67)>1,0.2,$BI5/SUM($BH$5:$BH$65)*$BR$67)),0) -> 0 | BQ5: Alter | BR5: Gleichverteilung | BS5: Manuelle Verteilung | BT5: Gewählte Verteilung | BU5: Manuelle Verteilung prozentual
A6: WGK_Neubau | B6: 2020 | C6: 2021 | D6: 2022 | E6: 2023 | F6: 2024 | G6: 2025 | H6: 2026 | I6: 2027 | J6: 2028 | K6: 2029 | L6: 2030 | M6: 2031 | N6: 2032 | O6: 2033 | P6: 2034 | Q6: 2035 | R6: 2036 | S6: 2037 | T6: 2038 | U6: 2039 | V6: 2040 | W6: 2041 | X6: 2042 | Y6: 2043 | Z6: 2044 | AA6: 2045 | AB6: 2046 | AC6: 2047 | AD6: 2048 | AE6: 2049 | AF6: 2050 | AJ6: 1961 | AK6: =AK9 -> 0 | AL6: 59 | AM6: =(AL6-$BR$49)/($BR$49/4)*(-1) -> -5.44 | AN6: =_xlfn.NORM.DIST(AM6,0,$BR$68,FALSE) -> 1.495345252e-07 | AO6: 0.9999999734 | AP6: =IF($AL6>(2*$BR$49),0.2,IF(($AO6/SUM($AN$5:$AN$65)*$BR$67)>1,0.2,$AO6/SUM($AN$5:$AN$65)*$BR$67)) -> 0.2 | AQ6: 59 | AR6: -5.44 | AS6: 1.495345252e-07 | AT6: 0.9999999734 | AU6: =IF($AL6>(2*$BR$50),0.2,IF(($AT6/SUM($AS$5:$AS$65)*$BR$67)>1,0.2,$AT6/SUM($AS$5:$AS$65)*$BR$67)) -> 0.2 | AV6: 59 | AW6: -5.44 | AX6: 1.495345252e-07 | AY6: 0.9999999734 | AZ6: =IF($AL6>(2*$BR$51),0.2,IF(($AY6/SUM($AX$5:$AX$65)*$BR$67)>1,0.2,$AY6/SUM($AX$5:$AX$65)*$BR$67)) -> 0.2 | BA6: 59 | BE6: =IFERROR(IF($AL6>(2*$BR$52),0.2,IF(($BD6/SUM($BC$5:$BC$65)*$BR$67)>1,0.2,$BD6/SUM($BC$5:$BC$65)*$BR$67)),0) -> 0 | BF6: 59 | BJ6: =IFERROR(IF($AL6>(2*$BR$53),0.2,IF(($BI6/SUM($BH$5:$BH$65)*$BR$67)>1,0.2,$BI6/SUM($BH$5:$BH$65)*$BR$67)),0) -> 0 | BQ6: 0 | BR6: =IF(BQ6>$BR$49*2,0,$BR$65/$BR$69/5) -> 11.96225455 | BS6: =BU6*$BR$65 -> 0 | BT6: =INDEX($BR$6:$BU$30,MATCH($BQ6,$BQ$6:$BQ$30,0),MATCH(Dashboard!$L$25,$BR$5:$BU$5,0)) -> 11.96225455 | BU6: 0
A7: Ref | B7: =B._WGK!D19 ->  | C7: =B._WGK!E19 ->  | D7: =B._WGK!F19 ->  | E7: =B._WGK!G19 ->  | F7: =B._WGK!H19 ->  | G7: =B._WGK!I19 ->  | H7: =B._WGK!J19 ->  | I7: =B._WGK!K19 ->  | J7: =B._WGK!L19 ->  | K7: =B._WGK!M19 ->  | L7: =B._WGK!N19 ->  | M7: =B._WGK!O19 ->  | N7: =B._WGK!P19 ->  | O7: =B._WGK!Q19 ->  | P7: =B._WGK!R19 ->  | Q7: =B._WGK!S19 ->  | R7: =B._WGK!T19 ->  | S7: =B._WGK!U19 ->  | T7: =B._WGK!V19 ->  | U7: =B._WGK!W19 ->  | V7: =B._WGK!X19 ->  | W7: =B._WGK!Y19 ->  | X7: =B._WGK!Z19 ->  | Y7: =B._WGK!AA19 ->  | Z7: =B._WGK!AB19 ->  | AA7: =B._WGK!AC19 ->  | AB7: =B._WGK!AD19 ->  | AC7: =B._WGK!AE19 ->  | AD7: =B._WGK!AF19 ->  | AE7: =B._WGK!AG19 ->  | AF7: =B._WGK!AH19 ->  | AJ7: 1962 | AK7: =AK9 -> 0 | AL7: 58 | AM7: -5.28 | AN7: 3.525270313e-07 | AO7: 0.9999999354 | AP7: 0.2 | AQ7: 58 | AR7: -5.28 | AS7: 3.525270313e-07 | AT7: 0.9999999354 | AU7: 0.2 | AV7: 58 | AW7: -5.28 | AX7: 3.525270313e-07 | AY7: 0.9999999354 | AZ7: 0.2 | BA7: 58 | BE7: 0 | BF7: 58 | BJ7: 0 | BQ7: 5 | BR7: =IF(BQ7>$BR$49*2,0,($BR$65)/$BR$69) -> 59.81127273 | BS7: =BU7*$BR$65 -> 65.7924 | BT7: =INDEX($BR$6:$BU$30,MATCH($BQ7,$BQ$6:$BQ$30,0),MATCH(Dashboard!$L$25,$BR$5:$BU$5,0)) -> 59.81127273 | BU7: 0.1
A8: A1 | B8: =B._WGK!D34 ->  | C8: =B._WGK!E34 ->  | D8: =B._WGK!F34 ->  | E8: =B._WGK!G34 ->  | F8: =B._WGK!H34 ->  | G8: =B._WGK!I34 ->  | H8: =B._WGK!J34 ->  | I8: =B._WGK!K34 ->  | J8: =B._WGK!L34 ->  | K8: =B._WGK!M34 ->  | L8: =B._WGK!N34 ->  | M8: =B._WGK!O34 ->  | N8: =B._WGK!P34 ->  | O8: =B._WGK!Q34 ->  | P8: =B._WGK!R34 ->  | Q8: =B._WGK!S34 ->  | R8: =B._WGK!T34 ->  | S8: =B._WGK!U34 ->  | T8: =B._WGK!V34 ->  | U8: =B._WGK!W34 ->  | V8: =B._WGK!X34 ->  | W8: =B._WGK!Y34 ->  | X8: =B._WGK!Z34 ->  | Y8: =B._WGK!AA34 ->  | Z8: =B._WGK!AB34 ->  | AA8: =B._WGK!AC34 ->  | AB8: =B._WGK!AD34 ->  | AC8: =B._WGK!AE34 ->  | AD8: =B._WGK!AF34 ->  | AE8: =B._WGK!AG34 ->  | AF8: =B._WGK!AH34 ->  | AJ8: 1963 | AK8: =AK9 -> 0 | AL8: 57 | AM8: -5.12 | AN8: 8.100753789e-07 | AO8: 0.9999998472 | AP8: 0.2 | AQ8: 57 | AR8: -5.12 | AS8: 8.100753789e-07 | AT8: 0.9999998472 | AU8: 0.2 | AV8: 57 | AW8: -5.12 | AX8: 8.100753789e-07 | AY8: 0.9999998472 | AZ8: 0.2 | BA8: 57 | BE8: 0 | BF8: 57 | BJ8: 0 | BQ8: 10 | BR8: =IF(BQ8>$BR$49*2,0,($BR$65)/$BR$69) -> 59.81127273 | BS8: 65.7924 | BT8: =INDEX($BR$6:$BU$30,MATCH($BQ8,$BQ$6:$BQ$30,0),MATCH(Dashboard!$L$25,$BR$5:$BU$5,0)) -> 59.81127273 | BU8: 0.1
A9: A2 | B9: =B._WGK!D50 -> 0 | C9: =B._WGK!E50 -> 0 | D9: =B._WGK!F50 -> 0 | E9: =B._WGK!G50 -> 0 | F9: =B._WGK!H50 -> 0 | G9: =B._WGK!I50 -> 0 | H9: =B._WGK!J50 -> 0 | I9: =B._WGK!K50 -> 0 | J9: =B._WGK!L50 -> 0 | K9: =B._WGK!M50 -> 0 | L9: =B._WGK!N50 ->  | M9: =B._WGK!O50 ->  | N9: =B._WGK!P50 ->  | O9: =B._WGK!Q50 ->  | P9: =B._WGK!R50 ->  | Q9: =B._WGK!S50 ->  | R9: =B._WGK!T50 ->  | S9: =B._WGK!U50 ->  | T9: =B._WGK!V50 ->  | U9: =B._WGK!W50 ->  | V9: =B._WGK!X50 ->  | W9: =B._WGK!Y50 ->  | X9: =B._WGK!Z50 ->  | Y9: =B._WGK!AA50 ->  | Z9: =B._WGK!AB50 ->  | AA9: =B._WGK!AC50 ->  | AB9: =B._WGK!AD50 ->  | AC9: =B._WGK!AE50 ->  | AD9: =B._WGK!AF50 ->  | AE9: =B._WGK!AG50 ->  | AF9: =B._WGK!AH50 ->  | AJ9: 1964 | AK9: =BT18/5*$BR$65/$BT$33 -> 0 | AL9: 56 | AM9: -4.96 | AN9: 1.81443119e-06 | AO9: 0.9999996475 | AP9: 0.2 | AQ9: 56 | AR9: -4.96 | AS9: 1.81443119e-06 | AT9: 0.9999996475 | AU9: 0.2 | AV9: 56 | AW9: -4.96 | AX9: 1.81443119e-06 | AY9: 0.9999996475 | AZ9: 0.2 | BA9: 56 | BE9: 0 | BF9: 56 | BJ9: 0 | BQ9: 15 | BR9: 59.81127273 | BS9: 65.7924 | BT9: =INDEX($BR$6:$BU$30,MATCH($BQ9,$BQ$6:$BQ$30,0),MATCH(Dashboard!$L$25,$BR$5:$BU$5,0)) -> 59.81127273 | BU9: 0.1
A10: A3 | B10: =B._WGK!D77 -> 0 | C10: =B._WGK!E77 -> 0 | D10: =B._WGK!F77 -> 0 | E10: =B._WGK!G77 -> 0 | F10: =B._WGK!H77 -> 0 | G10: =B._WGK!I77 -> 0 | H10: =B._WGK!J77 -> 0 | I10: =B._WGK!K77 -> 0 | J10: =B._WGK!L77 -> 0 | K10: =B._WGK!M77 -> 0 | L10: =B._WGK!N77 -> 0 | M10: =B._WGK!O77 -> 0 | N10: =B._WGK!P77 -> 0 | O10: =B._WGK!Q77 -> 0 | P10: =B._WGK!R77 -> 0 | Q10: =B._WGK!S77 -> 0 | R10: =B._WGK!T77 -> 0 | S10: =B._WGK!U77 -> 0 | T10: =B._WGK!V77 -> 0 | U10: =B._WGK!W77 -> 0 | V10: =B._WGK!X77 -> 0 | W10: =B._WGK!Y77 -> 0 | X10: =B._WGK!Z77 -> 0 | Y10: =B._WGK!AA77 -> 0 | Z10: =B._WGK!AB77 -> 0 | AA10: =B._WGK!AC77 -> 0 | AB10: =B._WGK!AD77 -> 0 | AC10: =B._WGK!AE77 -> 0 | AD10: =B._WGK!AF77 -> 0 | AE10: =B._WGK!AG77 -> 0 | AF10: =B._WGK!AH77 -> 0 | AJ10: 1965 | AK10: =AK14 -> 0 | AL10: 55 | AM10: -4.8 | AN10: 3.961299091e-06 | AO10: 0.9999992067 | AP10: 0.2 | AQ10: 55 | AR10: -4.8 | AS10: 3.961299091e-06 | AT10: 0.9999992067 | AU10: 0.2 | AV10: 55 | AW10: -4.8 | AX10: 3.961299091e-06 | AY10: 0.9999992067 | AZ10: 0.2 | BA10: 55 | BE10: 0 | BF10: 55 | BJ10: 0 | BQ10: 20 | BR10: 59.81127273 | BS10: 65.7924 | BT10: =INDEX($BR$6:$BU$30,MATCH($BQ10,$BQ$6:$BQ$30,0),MATCH(Dashboard!$L$25,$BR$5:$BU$5,0)) -> 59.81127273 | BU10: 0.1
A11: A4 | B11: =B._WGK!D93 -> 0 | C11: =B._WGK!E93 -> 0 | D11: =B._WGK!F93 -> 0 | E11: =B._WGK!G93 -> 0 | F11: =B._WGK!H93 -> 0 | G11: =B._WGK!I93 -> 0 | H11: =B._WGK!J93 -> 0 | I11: =B._WGK!K93 -> 0 | J11: =B._WGK!L93 -> 0 | K11: =B._WGK!M93 -> 0 | L11: =B._WGK!N93 -> 0 | M11: =B._WGK!O93 -> 0 | N11: =B._WGK!P93 -> 0 | O11: =B._WGK!Q93 -> 0 | P11: =B._WGK!R93 -> 0 | Q11: =B._WGK!S93 -> 0 | R11: =B._WGK!T93 -> 0 | S11: =B._WGK!U93 -> 0 | T11: =B._WGK!V93 -> 0 | U11: =B._WGK!W93 -> 0 | V11: =B._WGK!X93 -> 0 | W11: =B._WGK!Y93 -> 0 | X11: =B._WGK!Z93 -> 0 | Y11: =B._WGK!AA93 -> 0 | Z11: =B._WGK!AB93 -> 0 | AA11: =B._WGK!AC93 -> 0 | AB11: =B._WGK!AD93 -> 0 | AC11: =B._WGK!AE93 -> 0 | AD11: =B._WGK!AF93 -> 0 | AE11: =B._WGK!AG93 -> 0 | AF11: =B._WGK!AH93 -> 0 | AJ11: 1966 | AK11: =AK14 -> 0 | AL11: 54 | AM11: -4.64 | AN11: 8.429791383e-06 | AO11: 0.999998258 | AP11: 0.2 | AQ11: 54 | AR11: -4.64 | AS11: 8.429791383e-06 | AT11: 0.999998258 | AU11: 0.2 | AV11: 54 | AW11: -4.64 | AX11: 8.429791383e-06 | AY11: 0.999998258 | AZ11: 0.2 | BA11: 54 | BE11: 0 | BF11: 54 | BJ11: 0 | BQ11: 25 | BR11: 59.81127273 | BS11: 65.7924 | BT11: =INDEX($BR$6:$BU$30,MATCH($BQ11,$BQ$6:$BQ$30,0),MATCH(Dashboard!$L$25,$BR$5:$BU$5,0)) -> 59.81127273 | BU11: 0.1
AJ12: 1967 | AK12: =AK14 -> 0 | AL12: 53 | AM12: -4.48 | AN12: 1.748550103e-05 | AO12: 0.9999962678 | AP12: 0.2 | AQ12: 53 | AR12: -4.48 | AS12: 1.748550103e-05 | AT12: 0.9999962678 | AU12: 0.2 | AV12: 53 | AW12: -4.48 | AX12: 1.748550103e-05 | AY12: 0.9999962678 | AZ12: 0.2 | BA12: 53 | BE12: 0 | BF12: 53 | BJ12: 0 | BQ12: 30 | BR12: 59.81127273 | BS12: 65.7924 | BT12: =INDEX($BR$6:$BU$30,MATCH($BQ12,$BQ$6:$BQ$30,0),MATCH(Dashboard!$L$25,$BR$5:$BU$5,0)) -> 59.81127273 | BU12: 0.1
A13: WGK_Modernisierung | B13: 2020 | C13: 2021 | D13: 2022 | E13: 2023 | F13: 2024 | G13: 2025 | H13: 2026 | I13: 2027 | J13: 2028 | K13: 2029 | L13: 2030 | M13: 2031 | N13: 2032 | O13: 2033 | P13: 2034 | Q13: 2035 | R13: 2036 | S13: 2037 | T13: 2038 | U13: 2039 | V13: 2040 | W13: 2041 | X13: 2042 | Y13: 2043 | Z13: 2044 | AA13: 2045 | AB13: 2046 | AC13: 2047 | AD13: 2048 | AE13: 2049 | AF13: 2050 | AJ13: 1968 | AK13: =AK14 -> 0 | AL13: 52 | AM13: -4.32 | AN13: 3.5352603e-05 | AO13: 0.9999921985 | AP13: 0.2 | AQ13: 52 | AR13: -4.32 | AS13: 3.5352603e-05 | AT13: 0.9999921985 | AU13: 0.2 | AV13: 52 | AW13: -4.32 | AX13: 3.5352603e-05 | AY13: 0.9999921985 | AZ13: 0.2 | BA13: 52 | BE13: 0 | BF13: 52 | BJ13: 0 | BQ13: 35 | BR13: 59.81127273 | BS13: 65.7924 | BT13: =INDEX($BR$6:$BU$30,MATCH($BQ13,$BQ$6:$BQ$30,0),MATCH(Dashboard!$L$25,$BR$5:$BU$5,0)) -> 59.81127273 | BU13: 0.1
A14: Ref | B14: =B._WGK!D19 ->  | C14: =B._WGK!E19 ->  | D14: =B._WGK!F19 ->  | E14: =B._WGK!G19 ->  | F14: =B._WGK!H19 ->  | G14: =B._WGK!I19 ->  | H14: =B._WGK!J19 ->  | I14: =B._WGK!K19 ->  | J14: =B._WGK!L19 ->  | K14: =B._WGK!M19 ->  | L14: =B._WGK!N19 ->  | M14: =B._WGK!O19 ->  | N14: =B._WGK!P19 ->  | O14: =B._WGK!Q19 ->  | P14: =B._WGK!R19 ->  | Q14: =B._WGK!S19 ->  | R14: =B._WGK!T19 ->  | S14: =B._WGK!U19 ->  | T14: =B._WGK!V19 ->  | U14: =B._WGK!W19 ->  | V14: =B._WGK!X19 ->  | W14: =B._WGK!Y19 ->  | X14: =B._WGK!Z19 ->  | Y14: =B._WGK!AA19 ->  | Z14: =B._WGK!AB19 ->  | AA14: =B._WGK!AC19 ->  | AB14: =B._WGK!AD19 ->  | AC14: =B._WGK!AE19 ->  | AD14: =B._WGK!AF19 ->  | AE14: =B._WGK!AG19 ->  | AF14: =B._WGK!AH19 ->  | AJ14: 1969 | AK14: =BT17/5*$BR$65/$BT$33 -> 0 | AL14: 51 | AM14: -4.16 | AN14: 6.967015437e-05 | AO14: 0.9999840876 | AP14: 0.2 | AQ14: 51 | AR14: -4.16 | AS14: 6.967015437e-05 | AT14: 0.9999840876 | AU14: 0.2 | AV14: 51 | AW14: -4.16 | AX14: 6.967015437e-05 | AY14: 0.9999840876 | AZ14: 0.2 | BA14: 51 | BE14: 0 | BF14: 51 | BJ14: 0 | BQ14: 40 | BR14: 59.81127273 | BS14: 65.7924 | BT14: =INDEX($BR$6:$BU$30,MATCH($BQ14,$BQ$6:$BQ$30,0),MATCH(Dashboard!$L$25,$BR$5:$BU$5,0)) -> 59.81127273 | BU14: 0.1
A15: A1 | B15: =B._WGK!D35 ->  | C15: =B._WGK!E35 ->  | D15: =B._WGK!F35 ->  | E15: =B._WGK!G35 ->  | F15: =B._WGK!H35 ->  | G15: =B._WGK!I35 ->  | H15: =B._WGK!J35 ->  | I15: =B._WGK!K35 ->  | J15: =B._WGK!L35 ->  | K15: =B._WGK!M35 ->  | L15: =B._WGK!N35 ->  | M15: =B._WGK!O35 ->  | N15: =B._WGK!P35 ->  | O15: =B._WGK!Q35 ->  | P15: =B._WGK!R35 ->  | Q15: =B._WGK!S35 ->  | R15: =B._WGK!T35 ->  | S15: =B._WGK!U35 ->  | T15: =B._WGK!V35 ->  | U15: =B._WGK!W35 ->  | V15: =B._WGK!X35 ->  | W15: =B._WGK!Y35 ->  | X15: =B._WGK!Z35 ->  | Y15: =B._WGK!AA35 ->  | Z15: =B._WGK!AB35 ->  | AA15: =B._WGK!AC35 ->  | AB15: =B._WGK!AD35 ->  | AC15: =B._WGK!AE35 ->  | AD15: =B._WGK!AF35 ->  | AE15: =B._WGK!AG35 ->  | AF15: =B._WGK!AH35 ->  | AJ15: 1970 | AK15: =AK19 -> 12.90047059 | AL15: 50 | AM15: -4 | AN15: 0.0001338302258 | AO15: 0.9999683288 | AP15: 0.07999923485 | AQ15: 50 | AR15: -4 | AS15: 0.0001338302258 | AT15: 0.9999683288 | AU15: 0.07999923485 | AV15: 50 | AW15: -4 | AX15: 0.0001338302258 | AY15: 0.9999683288 | AZ15: 0.07999923485 | BA15: 50 | BE15: 0 | BF15: 50 | BJ15: 0 | BQ15: 45 | BR15: 59.81127273 | BS15: 65.7924 | BT15: =INDEX($BR$6:$BU$30,MATCH($BQ15,$BQ$6:$BQ$30,0),MATCH(Dashboard!$L$25,$BR$5:$BU$5,0)) -> 59.81127273 | BU15: 0.1
A16: A2 | B16: =B._WGK!D51 -> 0 | C16: =B._WGK!E51 -> 0 | D16: =B._WGK!F51 -> 0 | E16: =B._WGK!G51 -> 0 | F16: =B._WGK!H51 -> 0 | G16: =B._WGK!I51 -> 0 | H16: =B._WGK!J51 -> 0 | I16: =B._WGK!K51 -> 0 | J16: =B._WGK!L51 -> 0 | K16: =B._WGK!M51 -> 0 | L16: =B._WGK!N51 ->  | M16: =B._WGK!O51 ->  | N16: =B._WGK!P51 ->  | O16: =B._WGK!Q51 ->  | P16: =B._WGK!R51 ->  | Q16: =B._WGK!S51 ->  | R16: =B._WGK!T51 ->  | S16: =B._WGK!U51 ->  | T16: =B._WGK!V51 ->  | U16: =B._WGK!W51 ->  | V16: =B._WGK!X51 ->  | W16: =B._WGK!Y51 ->  | X16: =B._WGK!Z51 ->  | Y16: =B._WGK!AA51 ->  | Z16: =B._WGK!AB51 ->  | AA16: =B._WGK!AC51 ->  | AB16: =B._WGK!AD51 ->  | AC16: =B._WGK!AE51 ->  | AD16: =B._WGK!AF51 ->  | AE16: =B._WGK!AG51 ->  | AF16: =B._WGK!AH51 ->  | AJ16: 1971 | AK16: =AK19 -> 12.90047059 | AL16: 49 | AM16: -3.84 | AN16: 0.0002505784449 | AO16: 0.9999384828 | AP16: 0.07999684712 | AQ16: 49 | AR16: -3.84 | AS16: 0.0002505784449 | AT16: 0.9999384828 | AU16: 0.07999684712 | AV16: 49 | AW16: -3.84 | AX16: 0.0002505784449 | AY16: 0.9999384828 | AZ16: 0.07999684712 | BA16: 49 | BE16: 0 | BF16: 49 | BJ16: 0 | BQ16: 50 | BR16: 59.81127273 | BS16: 65.7924 | BT16: =INDEX($BR$6:$BU$30,MATCH($BQ16,$BQ$6:$BQ$30,0),MATCH(Dashboard!$L$25,$BR$5:$BU$5,0)) -> 59.81127273 | BU16: 0.1
A17: A3 | B17: =B._WGK!D78 -> 0 | C17: =B._WGK!E78 -> 0 | D17: =B._WGK!F78 -> 0 | E17: =B._WGK!G78 -> 0 | F17: =B._WGK!H78 -> 0 | G17: =B._WGK!I78 -> 0 | H17: =B._WGK!J78 -> 0 | I17: =B._WGK!K78 -> 0 | J17: =B._WGK!L78 -> 0 | K17: =B._WGK!M78 -> 0 | L17: =B._WGK!N78 -> 0 | M17: =B._WGK!O78 -> 0 | N17: =B._WGK!P78 -> 0 | O17: =B._WGK!Q78 -> 0 | P17: =B._WGK!R78 -> 0 | Q17: =B._WGK!S78 -> 0 | R17: =B._WGK!T78 -> 0 | S17: =B._WGK!U78 -> 0 | T17: =B._WGK!V78 -> 0 | U17: =B._WGK!W78 -> 0 | V17: =B._WGK!X78 -> 0 | W17: =B._WGK!Y78 -> 0 | X17: =B._WGK!Z78 -> 0 | Y17: =B._WGK!AA78 -> 0 | Z17: =B._WGK!AB78 -> 0 | AA17: =B._WGK!AC78 -> 0 | AB17: =B._WGK!AD78 -> 0 | AC17: =B._WGK!AE78 -> 0 | AD17: =B._WGK!AF78 -> 0 | AE17: =B._WGK!AG78 -> 0 | AF17: =B._WGK!AH78 -> 0 | AJ17: 1972 | AK17: =AK19 -> 12.90047059 | AL17: 48 | AM17: -3.68 | AN17: 0.0004573148141 | AO17: 0.999883383 | AP17: 0.07999243904 | AQ17: 48 | AR17: -3.68 | AS17: 0.0004573148141 | AT17: 0.999883383 | AU17: 0.07999243904 | AV17: 48 | AW17: -3.68 | AX17: 0.0004573148141 | AY17: 0.999883383 | AZ17: 0.07999243904 | BA17: 48 | BE17: 0 | BF17: 48 | BJ17: 0 | BQ17: 55 | BR17: 0 | BS17: 0 | BT17: =INDEX($BR$6:$BU$30,MATCH($BQ17,$BQ$6:$BQ$30,0),MATCH(Dashboard!$L$25,$BR$5:$BU$5,0)) -> 0
A18: A4 | B18: =B._WGK!D94 -> 0 | C18: =B._WGK!E94 -> 0 | D18: =B._WGK!F94 -> 0 | E18: =B._WGK!G94 -> 0 | F18: =B._WGK!H94 -> 0 | G18: =B._WGK!I94 -> 0 | H18: =B._WGK!J94 -> 0 | I18: =B._WGK!K94 -> 0 | J18: =B._WGK!L94 -> 0 | K18: =B._WGK!M94 -> 0 | L18: =B._WGK!N94 -> 0 | M18: =B._WGK!O94 -> 0 | N18: =B._WGK!P94 -> 0 | O18: =B._WGK!Q94 -> 0 | P18: =B._WGK!R94 -> 0 | Q18: =B._WGK!S94 -> 0 | R18: =B._WGK!T94 -> 0 | S18: =B._WGK!U94 -> 0 | T18: =B._WGK!V94 -> 0 | U18: =B._WGK!W94 -> 0 | V18: =B._WGK!X94 -> 0 | W18: =B._WGK!Y94 -> 0 | X18: =B._WGK!Z94 -> 0 | Y18: =B._WGK!AA94 -> 0 | Z18: =B._WGK!AB94 -> 0 | AA18: =B._WGK!AC94 -> 0 | AB18: =B._WGK!AD94 -> 0 | AC18: =B._WGK!AE94 -> 0 | AD18: =B._WGK!AF94 -> 0 | AE18: =B._WGK!AG94 -> 0 | AF18: =B._WGK!AH94 -> 0 | AJ18: 1973 | AK18: =AK19 -> 12.90047059 | AL18: 47 | AM18: -3.52 | AN18: 0.0008135212311 | AO18: 0.9997842266 | AP18: 0.07998450635 | AQ18: 47 | AR18: -3.52 | AS18: 0.0008135212311 | AT18: 0.9997842266 | AU18: 0.07998450635 | AV18: 47 | AW18: -3.52 | AX18: 0.0008135212311 | AY18: 0.9997842266 | AZ18: 0.07998450635 | BA18: 47 | BE18: 0 | BF18: 47 | BJ18: 0 | BQ18: 60 | BR18: 0 | BS18: 0 | BT18: =INDEX($BR$6:$BU$30,MATCH($BQ18,$BQ$6:$BQ$30,0),MATCH(Dashboard!$L$25,$BR$5:$BU$5,0)) -> 0
AJ19: 1974 | AK19: =BT16/5*$BR$65/$BT$33 -> 12.90047059 | AL19: 46 | AM19: -3.36 | AN19: 0.001410602257 | AO19: 0.9996102876 | AP19: 0.07997059092 | AQ19: 46 | AR19: -3.36 | AS19: 0.001410602257 | AT19: 0.9996102876 | AU19: 0.07997059092 | AV19: 46 | AW19: -3.36 | AX19: 0.001410602257 | AY19: 0.9996102876 | AZ19: 0.07997059092 | BA19: 46 | BE19: 0 | BF19: 46 | BJ19: 0 | BQ19: 65 | BR19: 0 | BS19: 0 | BT19: =INDEX($BR$6:$BU$30,MATCH($BQ19,$BQ$6:$BQ$30,0),MATCH(Dashboard!$L$25,$BR$5:$BU$5,0)) -> 0
A20: Utility | B20: 2020 | C20: 2021 | D20: 2022 | E20: 2023 | F20: 2024 | G20: 2025 | H20: 2026 | I20: 2027 | J20: 2028 | K20: 2029 | L20: 2030 | M20: 2031 | N20: 2032 | O20: 2033 | P20: 2034 | Q20: 2035 | R20: 2036 | S20: 2037 | T20: 2038 | U20: 2039 | V20: 2040 | W20: 2041 | X20: 2042 | Y20: 2043 | Z20: 2044 | AA20: 2045 | AB20: 2046 | AC20: 2047 | AD20: 2048 | AE20: 2049 | AF20: 2050 | AJ20: 1975 | AK20: =AK24 -> 12.90047059 | AL20: 45 | AM20: -3.2 | AN20: 0.002384088201 | AO20: 0.9993128621 | AP20: 0.07994679635 | AQ20: 45 | AR20: -3.2 | AS20: 0.002384088201 | AT20: 0.9993128621 | AU20: 0.07994679635 | AV20: 45 | AW20: -3.2 | AX20: 0.002384088201 | AY20: 0.9993128621 | AZ20: 0.07994679635 | BA20: 45 | BE20: 0 | BF20: 45 | BJ20: 0 | BQ20: 70 | BR20: 0 | BS20: 0 | BT20: =INDEX($BR$6:$BU$30,MATCH($BQ20,$BQ$6:$BQ$30,0),MATCH(Dashboard!$L$25,$BR$5:$BU$5,0)) -> 0
A21: Ref | B21: =IFERROR(IF(B14=0,0,EXP(-B$3*B7/B$4)),0) -> 0 | C21: =IFERROR(IF(C14=0,0,EXP(-C$3*C7/C$4)),0) -> 0 | D21: 0 | E21: 0 | F21: 0 | G21: 0 | H21: 0 | I21: 0 | J21: 0 | K21: 0 | L21: 0 | M21: 0 | N21: 0 | O21: 0 | P21: 0 | Q21: 0 | R21: 0 | S21: 0 | T21: 0 | U21: 0 | V21: 0 | W21: 0 | X21: 0 | Y21: 0 | Z21: 0 | AA21: 0 | AB21: 0 | AC21: 0 | AD21: 0 | AE21: 0 | AF21: =IFERROR(IF(AF14=0,0,EXP(-AF$3*AF7/AF$4)),0) -> 0 | AJ21: 1976 | AK21: =AK24 -> 12.90047059 | AL21: 44 | AM21: -3.04 | AN21: 0.003927553629 | AO21: 0.9988171093 | AP21: 0.07990713525 | AQ21: 44 | AR21: -3.04 | AS21: 0.003927553629 | AT21: 0.9988171093 | AU21: 0.07990713525 | AV21: 44 | AW21: -3.04 | AX21: 0.003927553629 | AY21: 0.9988171093 | AZ21: 0.07990713525 | BA21: 44 | BE21: 0 | BF21: 44 | BJ21: 0 | BQ21: 75 | BR21: 0 | BS21: 0 | BT21: =INDEX($BR$6:$BU$30,MATCH($BQ21,$BQ$6:$BQ$30,0),MATCH(Dashboard!$L$25,$BR$5:$BU$5,0)) -> 0
A22: A1 | B22: =IFERROR(IF(B8=0,0,EXP(-B$3*((B8*(1-Dashboard!$L$28)+B15*Dashboard!$L$28))/B$4)),0) -> 0 | C22: =IFERROR(IF(C8=0,0,EXP(-C$3*((C8*(1-Dashboard!$L$28)+C15*Dashboard!$L$28))/C$4)),0) -> 0 | D22: =IFERROR(IF(D8=0,0,EXP(-D$3*((D8*(1-Dashboard!$L$28)+D15*Dashboard!$L$28))/D$4)),0) -> 0 | E22: =IFERROR(IF(E8=0,0,EXP(-E$3*((E8*(1-Dashboard!$L$28)+E15*Dashboard!$L$28))/E$4)),0) -> 0 | F22: =IFERROR(IF(F8=0,0,EXP(-F$3*((F8*(1-Dashboard!$L$28)+F15*Dashboard!$L$28))/F$4)),0) -> 0 | G22: =IFERROR(IF(G8=0,0,EXP(-G$3*((G8*(1-Dashboard!$L$28)+G15*Dashboard!$L$28))/G$4)),0) -> 0 | H22: =IFERROR(IF(H8=0,0,EXP(-H$3*((H8*(1-Dashboard!$L$28)+H15*Dashboard!$L$28))/H$4)),0) -> 0 | I22: =IFERROR(IF(I8=0,0,EXP(-I$3*((I8*(1-Dashboard!$L$28)+I15*Dashboard!$L$28))/I$4)),0) -> 0 | J22: =IFERROR(IF(J8=0,0,EXP(-J$3*((J8*(1-Dashboard!$L$28)+J15*Dashboard!$L$28))/J$4)),0) -> 0 | K22: =IFERROR(IF(K8=0,0,EXP(-K$3*((K8*(1-Dashboard!$L$28)+K15*Dashboard!$L$28))/K$4)),0) -> 0 | L22: =IFERROR(IF(L8=0,0,EXP(-L$3*((L8*(1-Dashboard!$L$28)+L15*Dashboard!$L$28))/L$4)),0) -> 0 | M22: =IFERROR(IF(M8=0,0,EXP(-M$3*((M8*(1-Dashboard!$L$28)+M15*Dashboard!$L$28))/M$4)),0) -> 0 | N22: =IFERROR(IF(N8=0,0,EXP(-N$3*((N8*(1-Dashboard!$L$28)+N15*Dashboard!$L$28))/N$4)),0) -> 0 | O22: =IFERROR(IF(O8=0,0,EXP(-O$3*((O8*(1-Dashboard!$L$28)+O15*Dashboard!$L$28))/O$4)),0) -> 0 | P22: =IFERROR(IF(P8=0,0,EXP(-P$3*((P8*(1-Dashboard!$L$28)+P15*Dashboard!$L$28))/P$4)),0) -> 0 | Q22: =IFERROR(IF(Q8=0,0,EXP(-Q$3*((Q8*(1-Dashboard!$L$28)+Q15*Dashboard!$L$28))/Q$4)),0) -> 0 | R22: =IFERROR(IF(R8=0,0,EXP(-R$3*((R8*(1-Dashboard!$L$28)+R15*Dashboard!$L$28))/R$4)),0) -> 0 | S22: =IFERROR(IF(S8=0,0,EXP(-S$3*((S8*(1-Dashboard!$L$28)+S15*Dashboard!$L$28))/S$4)),0) -> 0 | T22: =IFERROR(IF(T8=0,0,EXP(-T$3*((T8*(1-Dashboard!$L$28)+T15*Dashboard!$L$28))/T$4)),0) -> 0 | U22: =IFERROR(IF(U8=0,0,EXP(-U$3*((U8*(1-Dashboard!$L$28)+U15*Dashboard!$L$28))/U$4)),0) -> 0 | V22: =IFERROR(IF(V8=0,0,EXP(-V$3*((V8*(1-Dashboard!$L$28)+V15*Dashboard!$L$28))/V$4)),0) -> 0 | W22: =IFERROR(IF(W8=0,0,EXP(-W$3*((W8*(1-Dashboard!$L$28)+W15*Dashboard!$L$28))/W$4)),0) -> 0 | X22: =IFERROR(IF(X8=0,0,EXP(-X$3*((X8*(1-Dashboard!$L$28)+X15*Dashboard!$L$28))/X$4)),0) -> 0 | Y22: =IFERROR(IF(Y8=0,0,EXP(-Y$3*((Y8*(1-Dashboard!$L$28)+Y15*Dashboard!$L$28))/Y$4)),0) -> 0 | Z22: =IFERROR(IF(Z8=0,0,EXP(-Z$3*((Z8*(1-Dashboard!$L$28)+Z15*Dashboard!$L$28))/Z$4)),0) -> 0 | AA22: =IFERROR(IF(AA8=0,0,EXP(-AA$3*((AA8*(1-Dashboard!$L$28)+AA15*Dashboard!$L$28))/AA$4)),0) -> 0 | AB22: =IFERROR(IF(AB8=0,0,EXP(-AB$3*((AB8*(1-Dashboard!$L$28)+AB15*Dashboard!$L$28))/AB$4)),0) -> 0 | AC22: =IFERROR(IF(AC8=0,0,EXP(-AC$3*((AC8*(1-Dashboard!$L$28)+AC15*Dashboard!$L$28))/AC$4)),0) -> 0 | AD22: =IFERROR(IF(AD8=0,0,EXP(-AD$3*((AD8*(1-Dashboard!$L$28)+AD15*Dashboard!$L$28))/AD$4)),0) -> 0 | AE22: =IFERROR(IF(AE8=0,0,EXP(-AE$3*((AE8*(1-Dashboard!$L$28)+AE15*Dashboard!$L$28))/AE$4)),0) -> 0 | AF22: =IFERROR(IF(AF8=0,0,EXP(-AF$3*((AF8*(1-Dashboard!$L$28)+AF15*Dashboard!$L$28))/AF$4)),0) -> 0 | AJ22: 1977 | AK22: =AK24 -> 12.90047059 | AL22: 43 | AM22: -2.88 | AN22: 0.006306726396 | AO22: 0.9980116241 | AP22: 0.07984269502 | AQ22: 43 | AR22: -2.88 | AS22: 0.006306726396 | AT22: 0.9980116241 | AU22: 0.07984269502 | AV22: 43 | AW22: -2.88 | AX22: 0.006306726396 | AY22: 0.9980116241 | AZ22: 0.07984269502 | BA22: 43 | BE22: 0 | BF22: 43 | BJ22: 0 | BQ22: 80 | BR22: 0 | BS22: 0 | BT22: =INDEX($BR$6:$BU$30,MATCH($BQ22,$BQ$6:$BQ$30,0),MATCH(Dashboard!$L$25,$BR$5:$BU$5,0)) -> 0
A23: A2 | B23: =IFERROR(IF(B9=0,0,EXP(-B$3*((B9*(1-Dashboard!$L$28)+B16*Dashboard!$L$28))/B$4)),0) -> 0 | C23: =IFERROR(IF(C9=0,0,EXP(-C$3*((C9*(1-Dashboard!$L$28)+C16*Dashboard!$L$28))/C$4)),0) -> 0 | D23: =IFERROR(IF(D9=0,0,EXP(-D$3*((D9*(1-Dashboard!$L$28)+D16*Dashboard!$L$28))/D$4)),0) -> 0 | E23: =IFERROR(IF(E9=0,0,EXP(-E$3*((E9*(1-Dashboard!$L$28)+E16*Dashboard!$L$28))/E$4)),0) -> 0 | F23: =IFERROR(IF(F9=0,0,EXP(-F$3*((F9*(1-Dashboard!$L$28)+F16*Dashboard!$L$28))/F$4)),0) -> 0 | G23: =IFERROR(IF(G9=0,0,EXP(-G$3*((G9*(1-Dashboard!$L$28)+G16*Dashboard!$L$28))/G$4)),0) -> 0 | H23: =IFERROR(IF(H9=0,0,EXP(-H$3*((H9*(1-Dashboard!$L$28)+H16*Dashboard!$L$28))/H$4)),0) -> 0 | I23: =IFERROR(IF(I9=0,0,EXP(-I$3*((I9*(1-Dashboard!$L$28)+I16*Dashboard!$L$28))/I$4)),0) -> 0 | J23: =IFERROR(IF(J9=0,0,EXP(-J$3*((J9*(1-Dashboard!$L$28)+J16*Dashboard!$L$28))/J$4)),0) -> 0 | K23: =IFERROR(IF(K9=0,0,EXP(-K$3*((K9*(1-Dashboard!$L$28)+K16*Dashboard!$L$28))/K$4)),0) -> 0 | L23: =IFERROR(IF(L9=0,0,EXP(-L$3*((L9*(1-Dashboard!$L$28)+L16*Dashboard!$L$28))/L$4)),0) -> 0 | M23: =IFERROR(IF(M9=0,0,EXP(-M$3*((M9*(1-Dashboard!$L$28)+M16*Dashboard!$L$28))/M$4)),0) -> 0 | N23: =IFERROR(IF(N9=0,0,EXP(-N$3*((N9*(1-Dashboard!$L$28)+N16*Dashboard!$L$28))/N$4)),0) -> 0 | O23: =IFERROR(IF(O9=0,0,EXP(-O$3*((O9*(1-Dashboard!$L$28)+O16*Dashboard!$L$28))/O$4)),0) -> 0 | P23: =IFERROR(IF(P9=0,0,EXP(-P$3*((P9*(1-Dashboard!$L$28)+P16*Dashboard!$L$28))/P$4)),0) -> 0 | Q23: =IFERROR(IF(Q9=0,0,EXP(-Q$3*((Q9*(1-Dashboard!$L$28)+Q16*Dashboard!$L$28))/Q$4)),0) -> 0 | R23: =IFERROR(IF(R9=0,0,EXP(-R$3*((R9*(1-Dashboard!$L$28)+R16*Dashboard!$L$28))/R$4)),0) -> 0 | S23: =IFERROR(IF(S9=0,0,EXP(-S$3*((S9*(1-Dashboard!$L$28)+S16*Dashboard!$L$28))/S$4)),0) -> 0 | T23: =IFERROR(IF(T9=0,0,EXP(-T$3*((T9*(1-Dashboard!$L$28)+T16*Dashboard!$L$28))/T$4)),0) -> 0 | U23: =IFERROR(IF(U9=0,0,EXP(-U$3*((U9*(1-Dashboard!$L$28)+U16*Dashboard!$L$28))/U$4)),0) -> 0 | V23: =IFERROR(IF(V9=0,0,EXP(-V$3*((V9*(1-Dashboard!$L$28)+V16*Dashboard!$L$28))/V$4)),0) -> 0 | W23: =IFERROR(IF(W9=0,0,EXP(-W$3*((W9*(1-Dashboard!$L$28)+W16*Dashboard!$L$28))/W$4)),0) -> 0 | X23: =IFERROR(IF(X9=0,0,EXP(-X$3*((X9*(1-Dashboard!$L$28)+X16*Dashboard!$L$28))/X$4)),0) -> 0 | Y23: =IFERROR(IF(Y9=0,0,EXP(-Y$3*((Y9*(1-Dashboard!$L$28)+Y16*Dashboard!$L$28))/Y$4)),0) -> 0 | Z23: =IFERROR(IF(Z9=0,0,EXP(-Z$3*((Z9*(1-Dashboard!$L$28)+Z16*Dashboard!$L$28))/Z$4)),0) -> 0 | AA23: =IFERROR(IF(AA9=0,0,EXP(-AA$3*((AA9*(1-Dashboard!$L$28)+AA16*Dashboard!$L$28))/AA$4)),0) -> 0 | AB23: =IFERROR(IF(AB9=0,0,EXP(-AB$3*((AB9*(1-Dashboard!$L$28)+AB16*Dashboard!$L$28))/AB$4)),0) -> 0 | AC23: =IFERROR(IF(AC9=0,0,EXP(-AC$3*((AC9*(1-Dashboard!$L$28)+AC16*Dashboard!$L$28))/AC$4)),0) -> 0 | AD23: =IFERROR(IF(AD9=0,0,EXP(-AD$3*((AD9*(1-Dashboard!$L$28)+AD16*Dashboard!$L$28))/AD$4)),0) -> 0 | AE23: =IFERROR(IF(AE9=0,0,EXP(-AE$3*((AE9*(1-Dashboard!$L$28)+AE16*Dashboard!$L$28))/AE$4)),0) -> 0 | AF23: =IFERROR(IF(AF9=0,0,EXP(-AF$3*((AF9*(1-Dashboard!$L$28)+AF16*Dashboard!$L$28))/AF$4)),0) -> 0 | AJ23: 1978 | AK23: =AK24 -> 12.90047059 | AL23: 42 | AM23: -2.72 | AN23: 0.009871153795 | AO23: 0.9967359042 | AP23: 0.07974063516 | AQ23: 42 | AR23: -2.72 | AS23: 0.009871153795 | AT23: 0.9967359042 | AU23: 0.07974063516 | AV23: 42 | AW23: -2.72 | AX23: 0.009871153795 | AY23: 0.9967359042 | AZ23: 0.07974063516 | BA23: 42 | BE23: 0 | BF23: 42 | BJ23: 0 | BQ23: 85 | BR23: 0 | BS23: 0 | BT23: =INDEX($BR$6:$BU$30,MATCH($BQ23,$BQ$6:$BQ$30,0),MATCH(Dashboard!$L$25,$BR$5:$BU$5,0)) -> 0
A24: A3 | B24: =IFERROR(IF(B10=0,0,EXP(-B$3*((B10*(1-Dashboard!$L$28)+B17*Dashboard!$L$28))/B$4)),0) -> 0 | C24: =IFERROR(IF(C10=0,0,EXP(-C$3*((C10*(1-Dashboard!$L$28)+C17*Dashboard!$L$28))/C$4)),0) -> 0 | D24: =IFERROR(IF(D10=0,0,EXP(-D$3*((D10*(1-Dashboard!$L$28)+D17*Dashboard!$L$28))/D$4)),0) -> 0 | E24: =IFERROR(IF(E10=0,0,EXP(-E$3*((E10*(1-Dashboard!$L$28)+E17*Dashboard!$L$28))/E$4)),0) -> 0 | F24: =IFERROR(IF(F10=0,0,EXP(-F$3*((F10*(1-Dashboard!$L$28)+F17*Dashboard!$L$28))/F$4)),0) -> 0 | G24: =IFERROR(IF(G10=0,0,EXP(-G$3*((G10*(1-Dashboard!$L$28)+G17*Dashboard!$L$28))/G$4)),0) -> 0 | H24: =IFERROR(IF(H10=0,0,EXP(-H$3*((H10*(1-Dashboard!$L$28)+H17*Dashboard!$L$28))/H$4)),0) -> 0 | I24: =IFERROR(IF(I10=0,0,EXP(-I$3*((I10*(1-Dashboard!$L$28)+I17*Dashboard!$L$28))/I$4)),0) -> 0 | J24: =IFERROR(IF(J10=0,0,EXP(-J$3*((J10*(1-Dashboard!$L$28)+J17*Dashboard!$L$28))/J$4)),0) -> 0 | K24: =IFERROR(IF(K10=0,0,EXP(-K$3*((K10*(1-Dashboard!$L$28)+K17*Dashboard!$L$28))/K$4)),0) -> 0 | L24: =IFERROR(IF(L10=0,0,EXP(-L$3*((L10*(1-Dashboard!$L$28)+L17*Dashboard!$L$28))/L$4)),0) -> 0 | M24: =IFERROR(IF(M10=0,0,EXP(-M$3*((M10*(1-Dashboard!$L$28)+M17*Dashboard!$L$28))/M$4)),0) -> 0 | N24: =IFERROR(IF(N10=0,0,EXP(-N$3*((N10*(1-Dashboard!$L$28)+N17*Dashboard!$L$28))/N$4)),0) -> 0 | O24: =IFERROR(IF(O10=0,0,EXP(-O$3*((O10*(1-Dashboard!$L$28)+O17*Dashboard!$L$28))/O$4)),0) -> 0 | P24: =IFERROR(IF(P10=0,0,EXP(-P$3*((P10*(1-Dashboard!$L$28)+P17*Dashboard!$L$28))/P$4)),0) -> 0 | Q24: =IFERROR(IF(Q10=0,0,EXP(-Q$3*((Q10*(1-Dashboard!$L$28)+Q17*Dashboard!$L$28))/Q$4)),0) -> 0 | R24: =IFERROR(IF(R10=0,0,EXP(-R$3*((R10*(1-Dashboard!$L$28)+R17*Dashboard!$L$28))/R$4)),0) -> 0 | S24: =IFERROR(IF(S10=0,0,EXP(-S$3*((S10*(1-Dashboard!$L$28)+S17*Dashboard!$L$28))/S$4)),0) -> 0 | T24: =IFERROR(IF(T10=0,0,EXP(-T$3*((T10*(1-Dashboard!$L$28)+T17*Dashboard!$L$28))/T$4)),0) -> 0 | U24: =IFERROR(IF(U10=0,0,EXP(-U$3*((U10*(1-Dashboard!$L$28)+U17*Dashboard!$L$28))/U$4)),0) -> 0 | V24: =IFERROR(IF(V10=0,0,EXP(-V$3*((V10*(1-Dashboard!$L$28)+V17*Dashboard!$L$28))/V$4)),0) -> 0 | W24: =IFERROR(IF(W10=0,0,EXP(-W$3*((W10*(1-Dashboard!$L$28)+W17*Dashboard!$L$28))/W$4)),0) -> 0 | X24: =IFERROR(IF(X10=0,0,EXP(-X$3*((X10*(1-Dashboard!$L$28)+X17*Dashboard!$L$28))/X$4)),0) -> 0 | Y24: =IFERROR(IF(Y10=0,0,EXP(-Y$3*((Y10*(1-Dashboard!$L$28)+Y17*Dashboard!$L$28))/Y$4)),0) -> 0 | Z24: =IFERROR(IF(Z10=0,0,EXP(-Z$3*((Z10*(1-Dashboard!$L$28)+Z17*Dashboard!$L$28))/Z$4)),0) -> 0 | AA24: =IFERROR(IF(AA10=0,0,EXP(-AA$3*((AA10*(1-Dashboard!$L$28)+AA17*Dashboard!$L$28))/AA$4)),0) -> 0 | AB24: =IFERROR(IF(AB10=0,0,EXP(-AB$3*((AB10*(1-Dashboard!$L$28)+AB17*Dashboard!$L$28))/AB$4)),0) -> 0 | AC24: =IFERROR(IF(AC10=0,0,EXP(-AC$3*((AC10*(1-Dashboard!$L$28)+AC17*Dashboard!$L$28))/AC$4)),0) -> 0 | AD24: =IFERROR(IF(AD10=0,0,EXP(-AD$3*((AD10*(1-Dashboard!$L$28)+AD17*Dashboard!$L$28))/AD$4)),0) -> 0 | AE24: =IFERROR(IF(AE10=0,0,EXP(-AE$3*((AE10*(1-Dashboard!$L$28)+AE17*Dashboard!$L$28))/AE$4)),0) -> 0 | AF24: =IFERROR(IF(AF10=0,0,EXP(-AF$3*((AF10*(1-Dashboard!$L$28)+AF17*Dashboard!$L$28))/AF$4)),0) -> 0 | AJ24: 1979 | AK24: =BT15/5*$BR$65/$BT$33 -> 12.90047059 | AL24: 41 | AM24: -2.56 | AN24: 0.01505961633 | AO24: 0.9947663918 | AP24: 0.07958307069 | AQ24: 41 | AR24: -2.56 | AS24: 0.01505961633 | AT24: 0.9947663918 | AU24: 0.07958307069 | AV24: 41 | AW24: -2.56 | AX24: 0.01505961633 | AY24: 0.9947663918 | AZ24: 0.07958307069 | BA24: 41 | BE24: 0 | BF24: 41 | BJ24: 0 | BQ24: 90 | BR24: 0 | BS24: 0 | BT24: =INDEX($BR$6:$BU$30,MATCH($BQ24,$BQ$6:$BQ$30,0),MATCH(Dashboard!$L$25,$BR$5:$BU$5,0)) -> 0
A25: A4 | B25: =IFERROR(IF(B11=0,0,EXP(-B$3*((B11*(1-Dashboard!$L$28)+B18*Dashboard!$L$28))/B$4)),0) -> 0 | C25: =IFERROR(IF(C11=0,0,EXP(-C$3*((C11*(1-Dashboard!$L$28)+C18*Dashboard!$L$28))/C$4)),0) -> 0 | D25: =IFERROR(IF(D11=0,0,EXP(-D$3*((D11*(1-Dashboard!$L$28)+D18*Dashboard!$L$28))/D$4)),0) -> 0 | E25: =IFERROR(IF(E11=0,0,EXP(-E$3*((E11*(1-Dashboard!$L$28)+E18*Dashboard!$L$28))/E$4)),0) -> 0 | F25: =IFERROR(IF(F11=0,0,EXP(-F$3*((F11*(1-Dashboard!$L$28)+F18*Dashboard!$L$28))/F$4)),0) -> 0 | G25: =IFERROR(IF(G11=0,0,EXP(-G$3*((G11*(1-Dashboard!$L$28)+G18*Dashboard!$L$28))/G$4)),0) -> 0 | H25: =IFERROR(IF(H11=0,0,EXP(-H$3*((H11*(1-Dashboard!$L$28)+H18*Dashboard!$L$28))/H$4)),0) -> 0 | I25: =IFERROR(IF(I11=0,0,EXP(-I$3*((I11*(1-Dashboard!$L$28)+I18*Dashboard!$L$28))/I$4)),0) -> 0 | J25: =IFERROR(IF(J11=0,0,EXP(-J$3*((J11*(1-Dashboard!$L$28)+J18*Dashboard!$L$28))/J$4)),0) -> 0 | K25: =IFERROR(IF(K11=0,0,EXP(-K$3*((K11*(1-Dashboard!$L$28)+K18*Dashboard!$L$28))/K$4)),0) -> 0 | L25: =IFERROR(IF(L11=0,0,EXP(-L$3*((L11*(1-Dashboard!$L$28)+L18*Dashboard!$L$28))/L$4)),0) -> 0 | M25: =IFERROR(IF(M11=0,0,EXP(-M$3*((M11*(1-Dashboard!$L$28)+M18*Dashboard!$L$28))/M$4)),0) -> 0 | N25: =IFERROR(IF(N11=0,0,EXP(-N$3*((N11*(1-Dashboard!$L$28)+N18*Dashboard!$L$28))/N$4)),0) -> 0 | O25: =IFERROR(IF(O11=0,0,EXP(-O$3*((O11*(1-Dashboard!$L$28)+O18*Dashboard!$L$28))/O$4)),0) -> 0 | P25: =IFERROR(IF(P11=0,0,EXP(-P$3*((P11*(1-Dashboard!$L$28)+P18*Dashboard!$L$28))/P$4)),0) -> 0 | Q25: =IFERROR(IF(Q11=0,0,EXP(-Q$3*((Q11*(1-Dashboard!$L$28)+Q18*Dashboard!$L$28))/Q$4)),0) -> 0 | R25: =IFERROR(IF(R11=0,0,EXP(-R$3*((R11*(1-Dashboard!$L$28)+R18*Dashboard!$L$28))/R$4)),0) -> 0 | S25: =IFERROR(IF(S11=0,0,EXP(-S$3*((S11*(1-Dashboard!$L$28)+S18*Dashboard!$L$28))/S$4)),0) -> 0 | T25: =IFERROR(IF(T11=0,0,EXP(-T$3*((T11*(1-Dashboard!$L$28)+T18*Dashboard!$L$28))/T$4)),0) -> 0 | U25: =IFERROR(IF(U11=0,0,EXP(-U$3*((U11*(1-Dashboard!$L$28)+U18*Dashboard!$L$28))/U$4)),0) -> 0 | V25: =IFERROR(IF(V11=0,0,EXP(-V$3*((V11*(1-Dashboard!$L$28)+V18*Dashboard!$L$28))/V$4)),0) -> 0 | W25: =IFERROR(IF(W11=0,0,EXP(-W$3*((W11*(1-Dashboard!$L$28)+W18*Dashboard!$L$28))/W$4)),0) -> 0 | X25: =IFERROR(IF(X11=0,0,EXP(-X$3*((X11*(1-Dashboard!$L$28)+X18*Dashboard!$L$28))/X$4)),0) -> 0 | Y25: =IFERROR(IF(Y11=0,0,EXP(-Y$3*((Y11*(1-Dashboard!$L$28)+Y18*Dashboard!$L$28))/Y$4)),0) -> 0 | Z25: =IFERROR(IF(Z11=0,0,EXP(-Z$3*((Z11*(1-Dashboard!$L$28)+Z18*Dashboard!$L$28))/Z$4)),0) -> 0 | AA25: =IFERROR(IF(AA11=0,0,EXP(-AA$3*((AA11*(1-Dashboard!$L$28)+AA18*Dashboard!$L$28))/AA$4)),0) -> 0 | AB25: =IFERROR(IF(AB11=0,0,EXP(-AB$3*((AB11*(1-Dashboard!$L$28)+AB18*Dashboard!$L$28))/AB$4)),0) -> 0 | AC25: =IFERROR(IF(AC11=0,0,EXP(-AC$3*((AC11*(1-Dashboard!$L$28)+AC18*Dashboard!$L$28))/AC$4)),0) -> 0 | AD25: =IFERROR(IF(AD11=0,0,EXP(-AD$3*((AD11*(1-Dashboard!$L$28)+AD18*Dashboard!$L$28))/AD$4)),0) -> 0 | AE25: =IFERROR(IF(AE11=0,0,EXP(-AE$3*((AE11*(1-Dashboard!$L$28)+AE18*Dashboard!$L$28))/AE$4)),0) -> 0 | AF25: =IFERROR(IF(AF11=0,0,EXP(-AF$3*((AF11*(1-Dashboard!$L$28)+AF18*Dashboard!$L$28))/AF$4)),0) -> 0 | AJ25: 1980 | AK25: =AK29 -> 12.90047059 | AL25: =$AJ$65-AJ25 -> 40 | AM25: =(AL25-$BR$49)/($BR$49/4)*(-1) -> -2.4 | AN25: =_xlfn.NORM.DIST(AM25,0,$BR$68,FALSE) -> 0.02239453029 | AO25: =1-_xlfn.NORM.DIST(AM25,0,$BR$68,TRUE) -> 0.9918024641 | AP25: 0.07934595123 | AQ25: =$AJ$65-AJ25 -> 40 | AR25: =(AQ25-$BR$50)/($BR$50/4)*(-1) -> -2.4 | AS25: =_xlfn.NORM.DIST(AR25,0,$BR$68,FALSE) -> 0.02239453029 | AT25: =1-_xlfn.NORM.DIST(AR25,0,$BR$68,TRUE) -> 0.9918024641 | AU25: 0.07934595123 | AV25: =$AJ$65-AJ25 -> 40 | AW25: =(AV25-$BR$51)/($BR$51/4)*(-1) -> -2.4 | AX25: =_xlfn.NORM.DIST(AW25,0,$BR$68,FALSE) -> 0.02239453029 | AY25: =1-_xlfn.NORM.DIST(AW25,0,$BR$68,TRUE) -> 0.9918024641 | AZ25: 0.07934595123 | BA25: =$AJ$65-AJ25 -> 40 | BB25: =(BA25-$BR$52)/($BR$52/4)*(-1) ->  | BC25: =_xlfn.NORM.DIST(BB25,0,$BR$68,FALSE) ->  | BD25: =1-_xlfn.NORM.DIST(BB25,0,$BR$68,TRUE) ->  | BE25: 0 | BF25: =$AJ$65-AJ25 -> 40 | BG25: =(BF25-$BR$53)/($BR$53/4)*(-1) ->  | BH25: =_xlfn.NORM.DIST(BG25,0,$BR$68,FALSE) ->  | BI25: =1-_xlfn.NORM.DIST(BG25,0,$BR$68,TRUE) ->  | BJ25: 0 | BQ25: 95 | BR25: 0 | BS25: 0 | BT25: =INDEX($BR$6:$BU$30,MATCH($BQ25,$BQ$6:$BQ$30,0),MATCH(Dashboard!$L$25,$BR$5:$BU$5,0)) -> 0
AJ26: 1981 | AK26: =AK29 -> 12.90047059 | AL26: 39 | AM26: -2.24 | AN26: 0.03246026564 | AO26: 0.9874545386 | AP26: 0.0789981095 | AQ26: 39 | AR26: =(AQ26-$BR$50)/($BR$50/4)*(-1) -> -2.24 | AS26: 0.03246026564 | AT26: 0.9874545386 | AU26: 0.0789981095 | AV26: 39 | AW26: =(AV26-$BR$51)/($BR$51/4)*(-1) -> -2.24 | AX26: 0.03246026564 | AY26: 0.9874545386 | AZ26: 0.0789981095 | BA26: 39 | BB26: =(BA26-$BR$52)/($BR$52/4)*(-1) ->  | BE26: 0 | BF26: 39 | BG26: =(BF26-$BR$53)/($BR$53/4)*(-1) ->  | BJ26: 0 | BQ26: 100 | BR26: 0 | BS26: 0 | BT26: =INDEX($BR$6:$BU$30,MATCH($BQ26,$BQ$6:$BQ$30,0),MATCH(Dashboard!$L$25,$BR$5:$BU$5,0)) -> 0
A27: Wahlwahrscheinlichkeit | B27: 2020 | C27: 2021 | D27: 2022 | E27: 2023 | F27: 2024 | G27: 2025 | H27: 2026 | I27: 2027 | J27: 2028 | K27: 2029 | L27: 2030 | M27: 2031 | N27: 2032 | O27: 2033 | P27: 2034 | Q27: 2035 | R27: 2036 | S27: 2037 | T27: 2038 | U27: 2039 | V27: 2040 | W27: 2041 | X27: 2042 | Y27: 2043 | Z27: 2044 | AA27: 2045 | AB27: 2046 | AC27: 2047 | AD27: 2048 | AE27: 2049 | AF27: 2050 | AJ27: 1982 | AK27: =AK29 -> 12.90047059 | AL27: 38 | AM27: -2.08 | AN27: 0.04586107627 | AO27: 0.9812372336 | AP27: 0.0785007141 | AQ27: 38 | AR27: -2.08 | AS27: 0.04586107627 | AT27: 0.9812372336 | AU27: 0.0785007141 | AV27: 38 | AW27: -2.08 | AX27: 0.04586107627 | AY27: 0.9812372336 | AZ27: 0.0785007141 | BA27: 38 | BE27: 0 | BF27: 38 | BJ27: 0 | BQ27: 105 | BR27: 0 | BS27: 0 | BT27: =INDEX($BR$6:$BU$30,MATCH($BQ27,$BQ$6:$BQ$30,0),MATCH(Dashboard!$L$25,$BR$5:$BU$5,0)) -> 0
A28: Ref | B28: =B21/SUM(B$21:B$25) ->  | I28: =I21/SUM(I$21:I$25) ->  | AF28: =AF21/SUM(AF$21:AF$25) ->  | AJ28: 1983 | AK28: =AK29 -> 12.90047059 | AL28: 37 | AM28: -1.92 | AN28: 0.06315656144 | AO28: 0.9725710503 | AP28: 0.07780740412 | AQ28: 37 | AR28: -1.92 | AS28: 0.06315656144 | AT28: 0.9725710503 | AU28: 0.07780740412 | AV28: 37 | AW28: -1.92 | AX28: 0.06315656144 | AY28: 0.9725710503 | AZ28: 0.07780740412 | BA28: 37 | BE28: 0 | BF28: 37 | BJ28: 0 | BQ28: 110 | BR28: 0 | BS28: 0 | BT28: =INDEX($BR$6:$BU$30,MATCH($BQ28,$BQ$6:$BQ$30,0),MATCH(Dashboard!$L$25,$BR$5:$BU$5,0)) -> 0
A29: A1 | B29: =B22/SUM(B$21:B$25) ->  | AJ29: 1984 | AK29: =BT14/5*$BR$65/$BT$33 -> 12.90047059 | AL29: 36 | AM29: -1.76 | AN29: 0.08477636131 | AO29: 0.9607960967 | AP29: 0.076865387 | AQ29: 36 | AR29: -1.76 | AS29: 0.08477636131 | AT29: 0.9607960967 | AU29: 0.076865387 | AV29: 36 | AW29: -1.76 | AX29: 0.08477636131 | AY29: 0.9607960967 | AZ29: 0.076865387 | BA29: 36 | BE29: 0 | BF29: 36 | BJ29: 0 | BQ29: 115 | BR29: 0 | BS29: 0 | BT29: =INDEX($BR$6:$BU$30,MATCH($BQ29,$BQ$6:$BQ$30,0),MATCH(Dashboard!$L$25,$BR$5:$BU$5,0)) -> 0
A30: A2 | B30: =B23/SUM(B$21:B$25) ->  | AJ30: 1985 | AK30: =AK34 -> 12.90047059 | AL30: 35 | AM30: -1.6 | AN30: 0.1109208347 | AO30: 0.9452007083 | AP30: 0.07561772835 | AQ30: 35 | AR30: -1.6 | AS30: 0.1109208347 | AT30: 0.9452007083 | AU30: 0.07561772835 | AV30: 35 | AW30: -1.6 | AX30: 0.1109208347 | AY30: 0.9452007083 | AZ30: 0.07561772835 | BA30: 35 | BE30: 0 | BF30: 35 | BJ30: 0 | BQ30: 120 | BR30: 0 | BS30: 0 | BT30: =INDEX($BR$6:$BU$30,MATCH($BQ30,$BQ$6:$BQ$30,0),MATCH(Dashboard!$L$25,$BR$5:$BU$5,0)) -> 0
A31: A3 | B31: =B24/SUM(B$21:B$25) ->  | AJ31: 1986 | AK31: =AK34 -> 12.90047059 | AL31: 34 | AM31: -1.44 | AN31: 0.1414599652 | AO31: 0.9250663005 | AP31: 0.07400694011 | AQ31: 34 | AR31: -1.44 | AS31: 0.1414599652 | AT31: 0.9250663005 | AU31: 0.07400694011 | AV31: 34 | AW31: -1.44 | AX31: 0.1414599652 | AY31: 0.9250663005 | AZ31: 0.07400694011 | BA31: 34 | BE31: 0 | BF31: 34 | BJ31: 0 | BQ31: 125 | BR31: 0 | BS31: 0
A32: A4 | B32: =B25/SUM(B$21:B$25) ->  | L32: =L25/SUM(L$21:L$25) ->  | AJ32: 1987 | AK32: =AK34 -> 12.90047059 | AL32: 33 | AM32: -1.28 | AN32: 0.1758474303 | AO32: 0.899727432 | AP32: 0.07197978582 | AQ32: 33 | AR32: -1.28 | AS32: 0.1758474303 | AT32: 0.899727432 | AU32: 0.07197978582 | AV32: 33 | AW32: -1.28 | AX32: 0.1758474303 | AY32: 0.899727432 | AZ32: 0.07197978582 | BA32: 33 | BE32: 0 | BF32: 33 | BJ32: 0 | BQ32: 130 | BR32: 0 | BS32: 0
AJ33: 1988 | AK33: =AK34 -> 12.90047059 | AL33: 32 | AM33: -1.12 | AN33: 0.2130691468 | AO33: 0.868643119 | AP33: 0.0694929858 | AQ33: 32 | AR33: -1.12 | AS33: 0.2130691468 | AT33: 0.868643119 | AU33: 0.0694929858 | AV33: 32 | AW33: -1.12 | AX33: 0.2130691468 | AY33: 0.868643119 | AZ33: 0.0694929858 | BA33: 32 | BE33: 0 | BF33: 32 | BJ33: 0 | BQ33: SUMME | BR33: =SUM(BR6:BR32) -> 610.0749818 | BS33: =SUM(BS6:BS32) -> 657.924 | BT33: =INDEX($BR$33:$BS$33,1,MATCH(Dashboard!$L$25,B._Diffusion!$BR$5:$BS$5,0)) -> 610.0749818 | BU33: =SUM(BU6:BU32) -> 1
AJ34: 1989 | AK34: =BT13/5*$BR$65/$BT$33 -> 12.90047059 | AL34: 31 | AM34: -0.96 | AN34: 0.2516443411 | AO34: 0.8314723925 | AP34: 0.06651926195 | AQ34: 31 | AR34: -0.96 | AS34: 0.2516443411 | AT34: 0.8314723925 | AU34: 0.06651926195 | AV34: 31 | AW34: -0.96 | AX34: 0.2516443411 | AY34: 0.8314723925 | AZ34: 0.06651926195 | BA34: 31 | BE34: 0 | BF34: 31 | BJ34: 0
AJ35: 1990 | AK35: =AK39 -> 12.90047059 | AL35: 30 | AM35: -0.8 | AN35: 0.2896915528 | AO35: 0.7881446014 | AP35: 0.06305296203 | AQ35: 30 | AR35: -0.8 | AS35: 0.2896915528 | AT35: 0.7881446014 | AU35: 0.06305296203 | AV35: 30 | AW35: -0.8 | AX35: 0.2896915528 | AY35: 0.7881446014 | AZ35: 0.06305296203 | BA35: 30 | BE35: 0 | BF35: 30 | BJ35: 0
AJ36: 1991 | AK36: =AK39 -> 12.90047059 | AL36: 29 | AM36: -0.64 | AN36: 0.3250622641 | AO36: 0.7389137003 | AP36: 0.05911440287 | AQ36: 29 | AR36: -0.64 | AS36: 0.3250622641 | AT36: 0.7389137003 | AU36: 0.05911440287 | AV36: 29 | AW36: -0.64 | AX36: 0.3250622641 | AY36: 0.7389137003 | AZ36: 0.05911440287 | BA36: 29 | BE36: 0 | BF36: 29 | BJ36: 0
AJ37: 1992 | AK37: =AK39 -> 12.90047059 | AL37: 28 | AM37: -0.48 | AN37: 0.3555325285 | AO37: 0.6843863035 | AP37: 0.05475211469 | AQ37: 28 | AR37: -0.48 | AS37: 0.3555325285 | AT37: 0.6843863035 | AU37: 0.05475211469 | AV37: 28 | AW37: -0.48 | AX37: 0.3555325285 | AY37: 0.6843863035 | AZ37: 0.05475211469 | BA37: 28 | BE37: 0 | BF37: 28 | BJ37: 0
AJ38: 1993 | AK38: =AK39 -> 12.90047059 | AL38: 27 | AM38: -0.32 | AN38: 0.3790305262 | AO38: 0.6255158347 | AP38: 0.05004237307 | AQ38: 27 | AR38: -0.32 | AS38: 0.3790305262 | AT38: 0.6255158347 | AU38: 0.05004237307 | AV38: 27 | AW38: -0.32 | AX38: 0.3790305262 | AY38: 0.6255158347 | AZ38: 0.05004237307 | BA38: 27 | BE38: 0 | BF38: 27 | BJ38: 0
AJ39: 1994 | AK39: =BT12/5*$BR$65/$BT$33 -> 12.90047059 | AL39: 26 | AM39: -0.16 | AN39: 0.3938683616 | AO39: 0.5635594629 | AP39: 0.04508575374 | AQ39: 26 | AR39: -0.16 | AS39: 0.3938683616 | AT39: 0.5635594629 | AU39: 0.04508575374 | AV39: 26 | AW39: -0.16 | AX39: 0.3938683616 | AY39: 0.5635594629 | AZ39: 0.04508575374 | BA39: 26 | BE39: 0 | BF39: 26 | BJ39: 0
AJ40: 1995 | AK40: =AK44 -> 12.90047059 | AL40: 25 | AM40: 0 | AN40: 0.3989422804 | AO40: 0.5 | AP40: 0.0400008843 | AQ40: 25 | AR40: 0 | AS40: 0.3989422804 | AT40: 0.5 | AU40: 0.0400008843 | AV40: 25 | AW40: 0 | AX40: 0.3989422804 | AY40: 0.5 | AZ40: 0.0400008843 | BA40: 25 | BE40: 0 | BF40: 25 | BJ40: 0
AJ41: 1996 | AK41: =AK44 -> 12.90047059 | AL41: 24 | AM41: 0.16 | AN41: 0.3938683616 | AO41: 0.4364405371 | AP41: 0.03491601486 | AQ41: 24 | AR41: 0.16 | AS41: 0.3938683616 | AT41: 0.4364405371 | AU41: 0.03491601486 | AV41: 24 | AW41: 0.16 | AX41: 0.3938683616 | AY41: 0.4364405371 | AZ41: 0.03491601486 | BA41: 24 | BE41: 0 | BF41: 24 | BJ41: 0
AJ42: 1997 | AK42: =AK44 -> 12.90047059 | AL42: 23 | AM42: 0.32 | AN42: 0.3790305262 | AO42: 0.3744841653 | AP42: 0.02995939554 | AQ42: 23 | AR42: 0.32 | AS42: 0.3790305262 | AT42: 0.3744841653 | AU42: 0.02995939554 | AV42: 23 | AW42: 0.32 | AX42: 0.3790305262 | AY42: 0.3744841653 | AZ42: 0.02995939554 | BA42: 23 | BE42: 0 | BF42: 23 | BJ42: 0
AJ43: 1998 | AK43: =AK44 -> 12.90047059 | AL43: 22 | AM43: 0.48 | AN43: 0.3555325285 | AO43: 0.3156136965 | AP43: 0.02524965392 | AQ43: 22 | AR43: 0.48 | AS43: 0.3555325285 | AT43: 0.3156136965 | AU43: 0.02524965392 | AV43: 22 | AW43: 0.48 | AX43: 0.3555325285 | AY43: 0.3156136965 | AZ43: 0.02524965392 | BA43: 22 | BE43: 0 | BF43: 22 | BJ43: 0
AJ44: 1999 | AK44: =BT11/5*$BR$65/$BT$33 -> 12.90047059 | AL44: 21 | AM44: 0.64 | AN44: 0.3250622641 | AO44: 0.2610862997 | AP44: 0.02088736573 | AQ44: 21 | AR44: 0.64 | AS44: 0.3250622641 | AT44: 0.2610862997 | AU44: 0.02088736573 | AV44: 21 | AW44: 0.64 | AX44: 0.3250622641 | AY44: 0.2610862997 | AZ44: 0.02088736573 | BA44: 21 | BE44: 0 | BF44: 21 | BJ44: 0
AJ45: 2000 | AK45: =AK49 -> 12.90047059 | AL45: 20 | AM45: 0.8 | AN45: 0.2896915528 | AO45: 0.2118553986 | AP45: 0.01694880657 | AQ45: 20 | AR45: 0.8 | AS45: 0.2896915528 | AT45: 0.2118553986 | AU45: 0.01694880657 | AV45: 20 | AW45: 0.8 | AX45: 0.2896915528 | AY45: 0.2118553986 | AZ45: 0.01694880657 | BA45: 20 | BE45: 0 | BF45: 20 | BJ45: 0
AJ46: 2001 | AK46: =AK49 -> 12.90047059 | AL46: 19 | AM46: 0.96 | AN46: 0.2516443411 | AO46: 0.1685276075 | AP46: 0.01348250666 | AQ46: 19 | AR46: 0.96 | AS46: 0.2516443411 | AT46: 0.1685276075 | AU46: 0.01348250666 | AV46: 19 | AW46: 0.96 | AX46: 0.2516443411 | AY46: 0.1685276075 | AZ46: 0.01348250666 | BA46: 19 | BE46: 0 | BF46: 19 | BJ46: 0
AJ47: 2002 | AK47: =AK49 -> 12.90047059 | AL47: 18 | AM47: 1.12 | AN47: 0.2130691468 | AO47: 0.131356881 | AP47: 0.0105087828 | AQ47: 18 | AR47: 1.12 | AS47: 0.2130691468 | AT47: 0.131356881 | AU47: 0.0105087828 | AV47: 18 | AW47: 1.12 | AX47: 0.2130691468 | AY47: 0.131356881 | AZ47: 0.0105087828 | BA47: 18 | BE47: 0 | BF47: 18 | BJ47: 0
AJ48: 2003 | AK48: =AK49 -> 12.90047059 | AL48: 17 | AM48: 1.28 | AN48: 0.1758474303 | AO48: 0.100272568 | AP48: 0.008021982779 | AQ48: 17 | AR48: 1.28 | AS48: 0.1758474303 | AT48: 0.100272568 | AU48: 0.008021982779 | AV48: 17 | AW48: 1.28 | AX48: 0.1758474303 | AY48: 0.100272568 | AZ48: 0.008021982779 | BA48: 17 | BE48: 0 | BF48: 17 | BJ48: 0 | BQ48: Austauschintervall | BR48: 2020 | BS48: 2030 | BT48: 2040 | BU48: 2050
AJ49: 2004 | AK49: =BT10/5*$BR$65/$BT$33 -> 12.90047059 | AL49: 16 | AM49: 1.44 | AN49: 0.1414599652 | AO49: 0.07493369953 | AP49: 0.005994828491 | AQ49: 16 | AR49: 1.44 | AS49: 0.1414599652 | AT49: 0.07493369953 | AU49: 0.005994828491 | AV49: 16 | AW49: 1.44 | AX49: 0.1414599652 | AY49: 0.07493369953 | AZ49: 0.005994828491 | BA49: 16 | BE49: 0 | BF49: 16 | BJ49: 0 | BQ49: Referenztechnik | BR49: =Modernisierungszyklus_Referenz/2 -> 25 | BS49: =BR49 -> 25 | BT49: =BS49 -> 25 | BU49: 25
AJ50: 2005 | AK50: =AK54 -> 12.90047059 | AL50: 15 | AM50: 1.6 | AN50: 0.1109208347 | AO50: 0.0547992917 | AP50: 0.004384040254 | AQ50: 15 | AR50: 1.6 | AS50: 0.1109208347 | AT50: 0.0547992917 | AU50: 0.004384040254 | AV50: 15 | AW50: 1.6 | AX50: 0.1109208347 | AY50: 0.0547992917 | AZ50: 0.004384040254 | BA50: 15 | BE50: 0 | BF50: 15 | BJ50: 0 | BQ50: Alternativtechnik 1 | BR50: =Modernisierungszyklus_Alternative1/2 -> 25 | BS50: =BR50 -> 25 | BT50: 25 | BU50: 25
AJ51: 2006 | AK51: =AK54 -> 12.90047059 | AL51: 14 | AM51: 1.76 | AN51: 0.08477636131 | AO51: 0.03920390329 | AP51: 0.003136381599 | AQ51: 14 | AR51: 1.76 | AS51: 0.08477636131 | AT51: 0.03920390329 | AU51: 0.003136381599 | AV51: 14 | AW51: 1.76 | AX51: 0.08477636131 | AY51: 0.03920390329 | AZ51: 0.003136381599 | BA51: 14 | BE51: 0 | BF51: 14 | BJ51: 0 | BQ51: Alternativtechnik 2 | BR51: =Modernisierungszyklus_Alternative2/2 -> 25 | BS51: 25 | BT51: =BR51 -> 25 | BU51: =BR51 -> 25
AJ52: 2007 | AK52: =AK54 -> 12.90047059 | AL52: 13 | AM52: 1.92 | AN52: 0.06315656144 | AO52: 0.0274289497 | AP52: 0.002194364487 | AQ52: 13 | AR52: 1.92 | AS52: 0.06315656144 | AT52: 0.0274289497 | AU52: 0.002194364487 | AV52: 13 | AW52: 1.92 | AX52: 0.06315656144 | AY52: 0.0274289497 | AZ52: 0.002194364487 | BA52: 13 | BE52: 0 | BF52: 13 | BJ52: 0 | BQ52: Alternativtechnik 3 | BR52: =IF(Modernisierungszyklus_Alternative3/2=0,"",Modernisierungszyklus_Alternative3/2) -> 
AJ53: 2008 | AK53: =AK54 -> 12.90047059 | AL53: 12 | AM53: 2.08 | AN53: 0.04586107627 | AO53: 0.01876276643 | AP53: 0.001501054499 | AQ53: 12 | AR53: 2.08 | AS53: 0.04586107627 | AT53: 0.01876276643 | AU53: 0.001501054499 | AV53: 12 | AW53: 2.08 | AX53: 0.04586107627 | AY53: 0.01876276643 | AZ53: 0.001501054499 | BA53: 12 | BE53: 0 | BF53: 12 | BJ53: 0 | BQ53: Alternativtechnik 4 | BR53: =IF(Modernisierungszyklus_Alternative4/2=0,"",Modernisierungszyklus_Alternative4/2) -> 
AJ54: 2009 | AK54: =BT9/5*$BR$65/$BT$33 -> 12.90047059 | AL54: 11 | AM54: 2.24 | AN54: 0.03246026564 | AO54: 0.01254546144 | AP54: 0.001003659103 | AQ54: 11 | AR54: 2.24 | AS54: 0.03246026564 | AT54: 0.01254546144 | AU54: 0.001003659103 | AV54: 11 | AW54: 2.24 | AX54: 0.03246026564 | AY54: 0.01254546144 | AZ54: 0.001003659103 | BA54: 11 | BE54: 0 | BF54: 11 | BJ54: 0
AJ55: 2010 | AK55: =AK59 -> 12.90047059 | AL55: 10 | AM55: 2.4 | AN55: 0.02239453029 | AO55: 0.008197535925 | AP55: 0.0006558173721 | AQ55: 10 | AR55: 2.4 | AS55: 0.02239453029 | AT55: 0.008197535925 | AU55: 0.0006558173721 | AV55: 10 | AW55: 2.4 | AX55: 0.02239453029 | AY55: 0.008197535925 | AZ55: 0.0006558173721 | BA55: 10 | BE55: 0 | BF55: 10 | BJ55: 0
AJ56: 2011 | AK56: =AK59 -> 12.90047059 | AL56: 9 | AM56: 2.56 | AN56: 0.01505961633 | AO56: 0.005233608164 | AP56: 0.0004186979093 | AQ56: 9 | AR56: 2.56 | AS56: 0.01505961633 | AT56: 0.005233608164 | AU56: 0.0004186979093 | AV56: 9 | AW56: 2.56 | AX56: 0.01505961633 | AY56: 0.005233608164 | AZ56: 0.0004186979093 | BA56: 9 | BE56: 0 | BF56: 9 | BJ56: 0
AJ57: 2012 | AK57: =AK59 -> 12.90047059 | AL57: 8 | AM57: 2.72 | AN57: 0.009871153795 | AO57: 0.003264095816 | AP57: 0.0002611334382 | AQ57: 8 | AR57: 2.72 | AS57: 0.009871153795 | AT57: 0.003264095816 | AU57: 0.0002611334382 | AV57: 8 | AW57: 2.72 | AX57: 0.009871153795 | AY57: 0.003264095816 | AZ57: 0.0002611334382 | BA57: 8 | BE57: 0 | BF57: 8 | BJ57: 0
AJ58: 2013 | AK58: =AK59 -> 12.90047059 | AL58: 7 | AM58: 2.88 | AN58: 0.006306726396 | AO58: 0.001988375855 | AP58: 0.000159073585 | AQ58: 7 | AR58: 2.88 | AS58: 0.006306726396 | AT58: 0.001988375855 | AU58: 0.000159073585 | AV58: 7 | AW58: 2.88 | AX58: 0.006306726396 | AY58: 0.001988375855 | AZ58: 0.000159073585 | BA58: 7 | BE58: 0 | BF58: 7 | BJ58: 0
AJ59: 2014 | AK59: =BT8/5*$BR$65/$BT$33 -> 12.90047059 | AL59: 6 | AM59: 3.04 | AN59: 0.003927553629 | AO59: 0.001182890743 | AP59: 9.463335151e-05 | AQ59: 6 | AR59: 3.04 | AS59: 0.003927553629 | AT59: 0.001182890743 | AU59: 9.463335151e-05 | AV59: 6 | AW59: 3.04 | AX59: 0.003927553629 | AY59: 0.001182890743 | AZ59: 9.463335151e-05 | BA59: 6 | BE59: 0 | BF59: 6 | BJ59: 0
AJ60: 2015 | AK60: =AK64 -> 12.90047059 | AL60: 5 | AM60: 3.2 | AN60: 0.002384088201 | AO60: 0.0006871379379 | AP60: 5.497225031e-05 | AQ60: 5 | AR60: 3.2 | AS60: 0.002384088201 | AT60: 0.0006871379379 | AU60: 5.497225031e-05 | AV60: 5 | AW60: 3.2 | AX60: 0.002384088201 | AY60: 0.0006871379379 | AZ60: 5.497225031e-05 | BA60: 5 | BE60: 0 | BF60: 5 | BJ60: 0
AJ61: 2016 | AK61: =AK64 -> 12.90047059 | AL61: 4 | AM61: 3.36 | AN61: 0.001410602257 | AO61: 0.0003897123626 | AP61: 3.117767825e-05 | AQ61: 4 | AR61: 3.36 | AS61: 0.001410602257 | AT61: 0.0003897123626 | AU61: 3.117767825e-05 | AV61: 4 | AW61: 3.36 | AX61: 0.001410602257 | AY61: 0.0003897123626 | AZ61: 3.117767825e-05 | BA61: 4 | BE61: 0 | BF61: 4 | BJ61: 0
AJ62: 2017 | AK62: =AK64 -> 12.90047059 | AL62: 3 | AM62: 3.52 | AN62: 0.0008135212311 | AO62: 0.0002157733993 | AP62: 1.726225356e-05 | AQ62: 3 | AR62: 3.52 | AS62: 0.0008135212311 | AT62: 0.0002157733993 | AU62: 1.726225356e-05 | AV62: 3 | AW62: 3.52 | AX62: 0.0008135212311 | AY62: 0.0002157733993 | AZ62: 1.726225356e-05 | BA62: 3 | BE62: 0 | BF62: 3 | BJ62: 0
AJ63: 2018 | AK63: =AK64 -> 12.90047059 | AL63: 2 | AM63: 3.68 | AN63: 0.0004573148141 | AO63: 0.0001166169768 | AP63: 9.329564394e-06 | AQ63: 2 | AR63: 3.68 | AS63: 0.0004573148141 | AT63: 0.0001166169768 | AU63: 9.329564394e-06 | AV63: 2 | AW63: 3.68 | AX63: 0.0004573148141 | AY63: 0.0001166169768 | AZ63: 9.329564394e-06 | BA63: 2 | BE63: 0 | BF63: 2 | BJ63: 0
AJ64: 2019 | AK64: =BT7/5*$BR$65/$BT$33 -> 12.90047059 | AL64: 1 | AM64: 3.84 | AN64: 0.0002505784449 | AO64: 6.151715518e-05 | AP64: 4.921481214e-06 | AQ64: 1 | AR64: 3.84 | AS64: 0.0002505784449 | AT64: 6.151715518e-05 | AU64: 4.921481214e-06 | AV64: 1 | AW64: 3.84 | AX64: 0.0002505784449 | AY64: 6.151715518e-05 | AZ64: 4.921481214e-06 | BA64: 1 | BE64: 0 | BF64: 1 | BJ64: 0
AJ65: 2020 | AK65: =BT6*$BR$65/$BT$33 -> 12.90047059 | AL65: 0 | AM65: 4 | AN65: 0.0001338302258 | AO65: 3.167124183e-05 | AP65: 2.53375536e-06 | AQ65: 0 | AR65: =(AQ65-$BR$50)/($BR$50/4)*(-1) -> 4 | AS65: 0.0001338302258 | AT65: 3.167124183e-05 | AU65: 2.53375536e-06 | AV65: 0 | AW65: 4 | AX65: 0.0001338302258 | AY65: 3.167124183e-05 | AZ65: 2.53375536e-06 | BA65: 0 | BE65: 0 | BF65: 0 | BJ65: 0 | BQ65: Kapazität betrachtete Techniken [Mt] | BR65: =Dashboard!C28 -> 657.924
AJ67: Ersatzrate | AK67: =INDEX(A_Rahmendaten!$E$182:$H$185,MATCH(Dashboard!$L$29,A_Rahmendaten!$C$182:$C$185,0),MATCH(B._Diffusion!BR$48,A_Rahmendaten!$E$181:$H$181,0)) -> 1 | AL67: =($AU$67-$AK$67)/10+AK67 -> 1 | AM67: 1 | AN67: 1 | AO67: 1 | AP67: 1 | AQ67: 1 | AR67: 1 | AS67: 1 | AT67: 1 | AU67: =INDEX(A_Rahmendaten!$E$182:$H$185,MATCH(Dashboard!$L$29,A_Rahmendaten!$C$182:$C$185,0),MATCH(B._Diffusion!BS$48,A_Rahmendaten!$E$181:$H$181,0)) -> 1 | AV67: =($AU$67-$AU$67)/10+BE67 -> 1 | AW67: 1 | AX67: 1 | AY67: 1 | AZ67: 1 | BA67: 1 | BB67: 1 | BC67: 1 | BD67: 1 | BE67: =INDEX(A_Rahmendaten!$E$182:$H$185,MATCH(Dashboard!$L$29,A_Rahmendaten!$C$182:$C$185,0),MATCH(B._Diffusion!BT$48,A_Rahmendaten!$E$181:$H$181,0)) -> 1 | BF67: =($BO$67-$BE$67)/10+BE67 -> 1 | BG67: 1 | BH67: 1 | BI67: 1 | BJ67: 1 | BK67: 1 | BL67: 1 | BM67: 1 | BN67: 1 | BO67: =INDEX(A_Rahmendaten!$E$182:$H$185,MATCH(Dashboard!$L$29,A_Rahmendaten!$C$182:$C$185,0),MATCH(B._Diffusion!BU$48,A_Rahmendaten!$E$181:$H$181,0)) -> 1 | BQ67: Ausfallfaktor | BR67: =INDEX(A_Rahmendaten!$E$133:$H$136,MATCH(Dashboard!$L$26,A_Rahmendaten!$C$133:$C$136,0),MATCH(BR$48,A_Rahmendaten!$E$132:$H$132,0)) -> 0.5 | BS67: =INDEX(A_Rahmendaten!$E$133:$H$136,MATCH(Dashboard!$L$26,A_Rahmendaten!$C$133:$C$136,0),MATCH(BS$48,A_Rahmendaten!$E$132:$H$132,0)) -> 0.5 | BT67: =INDEX(A_Rahmendaten!$E$133:$H$136,MATCH(Dashboard!$L$26,A_Rahmendaten!$C$133:$C$136,0),MATCH(BT$48,A_Rahmendaten!$E$132:$H$132,0)) -> 0.5 | BU67: =INDEX(A_Rahmendaten!$E$133:$H$136,MATCH(Dashboard!$L$26,A_Rahmendaten!$C$133:$C$136,0),MATCH(BU$48,A_Rahmendaten!$E$132:$H$132,0)) -> 0.5
AJ68: NEUBAU | AK68: =(B._Bestandsmodell!C95+B._Bestandsmodell!C191+B._Bestandsmodell!C287+B._Bestandsmodell!C383+B._Bestandsmodell!C479)*AK67 -> 0 | AL68: =(B._Bestandsmodell!D95+B._Bestandsmodell!D191+B._Bestandsmodell!D287+B._Bestandsmodell!D383+B._Bestandsmodell!D479)*AL67 -> 28.89705412 | AM68: =(B._Bestandsmodell!E95+B._Bestandsmodell!E191+B._Bestandsmodell!E287+B._Bestandsmodell!E383+B._Bestandsmodell!E479)*AM67 ->  | AN68: =(B._Bestandsmodell!F95+B._Bestandsmodell!F191+B._Bestandsmodell!F287+B._Bestandsmodell!F383+B._Bestandsmodell!F479)*AN67 ->  | AO68: =(B._Bestandsmodell!G95+B._Bestandsmodell!G191+B._Bestandsmodell!G287+B._Bestandsmodell!G383+B._Bestandsmodell!G479)*AO67 ->  | AP68: =(B._Bestandsmodell!H95+B._Bestandsmodell!H191+B._Bestandsmodell!H287+B._Bestandsmodell!H383+B._Bestandsmodell!H479)*AP67 ->  | AQ68: =(B._Bestandsmodell!I95+B._Bestandsmodell!I191+B._Bestandsmodell!I287+B._Bestandsmodell!I383+B._Bestandsmodell!I479)*AQ67 ->  | AR68: =(B._Bestandsmodell!J95+B._Bestandsmodell!J191+B._Bestandsmodell!J287+B._Bestandsmodell!J383+B._Bestandsmodell!J479)*AR67 ->  | AS68: =(B._Bestandsmodell!K95+B._Bestandsmodell!K191+B._Bestandsmodell!K287+B._Bestandsmodell!K383+B._Bestandsmodell!K479)*AS67 ->  | AT68: =(B._Bestandsmodell!L95+B._Bestandsmodell!L191+B._Bestandsmodell!L287+B._Bestandsmodell!L383+B._Bestandsmodell!L479)*AT67 ->  | AU68: =(B._Bestandsmodell!M95+B._Bestandsmodell!M191+B._Bestandsmodell!M287+B._Bestandsmodell!M383+B._Bestandsmodell!M479)*AU67 ->  | AV68: =(B._Bestandsmodell!N95+B._Bestandsmodell!N191+B._Bestandsmodell!N287+B._Bestandsmodell!N383+B._Bestandsmodell!N479)*AV67 ->  | AW68: =(B._Bestandsmodell!O95+B._Bestandsmodell!O191+B._Bestandsmodell!O287+B._Bestandsmodell!O383+B._Bestandsmodell!O479)*AW67 ->  | AX68: =(B._Bestandsmodell!P95+B._Bestandsmodell!P191+B._Bestandsmodell!P287+B._Bestandsmodell!P383+B._Bestandsmodell!P479)*AX67 ->  | AY68: =(B._Bestandsmodell!Q95+B._Bestandsmodell!Q191+B._Bestandsmodell!Q287+B._Bestandsmodell!Q383+B._Bestandsmodell!Q479)*AY67 ->  | AZ68: =(B._Bestandsmodell!R95+B._Bestandsmodell!R191+B._Bestandsmodell!R287+B._Bestandsmodell!R383+B._Bestandsmodell!R479)*AZ67 ->  | BA68: =(B._Bestandsmodell!S95+B._Bestandsmodell!S191+B._Bestandsmodell!S287+B._Bestandsmodell!S383+B._Bestandsmodell!S479)*BA67 ->  | BB68: =(B._Bestandsmodell!T95+B._Bestandsmodell!T191+B._Bestandsmodell!T287+B._Bestandsmodell!T383+B._Bestandsmodell!T479)*BB67 ->  | BC68: =(B._Bestandsmodell!U95+B._Bestandsmodell!U191+B._Bestandsmodell!U287+B._Bestandsmodell!U383+B._Bestandsmodell!U479)*BC67 ->  | BD68: =(B._Bestandsmodell!V95+B._Bestandsmodell!V191+B._Bestandsmodell!V287+B._Bestandsmodell!V383+B._Bestandsmodell!V479)*BD67 ->  | BE68: =(B._Bestandsmodell!W95+B._Bestandsmodell!W191+B._Bestandsmodell!W287+B._Bestandsmodell!W383+B._Bestandsmodell!W479)*BE67 ->  | BF68: =(B._Bestandsmodell!X95+B._Bestandsmodell!X191+B._Bestandsmodell!X287+B._Bestandsmodell!X383+B._Bestandsmodell!X479)*BF67 ->  | BG68: =(B._Bestandsmodell!Y95+B._Bestandsmodell!Y191+B._Bestandsmodell!Y287+B._Bestandsmodell!Y383+B._Bestandsmodell!Y479)*BG67 ->  | BH68: =(B._Bestandsmodell!Z95+B._Bestandsmodell!Z191+B._Bestandsmodell!Z287+B._Bestandsmodell!Z383+B._Bestandsmodell!Z479)*BH67 ->  | BI68: =(B._Bestandsmodell!AA95+B._Bestandsmodell!AA191+B._Bestandsmodell!AA287+B._Bestandsmodell!AA383+B._Bestandsmodell!AA479)*BI67 ->  | BJ68: =(B._Bestandsmodell!AB95+B._Bestandsmodell!AB191+B._Bestandsmodell!AB287+B._Bestandsmodell!AB383+B._Bestandsmodell!AB479)*BJ67 ->  | BK68: =(B._Bestandsmodell!AC95+B._Bestandsmodell!AC191+B._Bestandsmodell!AC287+B._Bestandsmodell!AC383+B._Bestandsmodell!AC479)*BK67 ->  | BL68: =(B._Bestandsmodell!AD95+B._Bestandsmodell!AD191+B._Bestandsmodell!AD287+B._Bestandsmodell!AD383+B._Bestandsmodell!AD479)*BL67 ->  | BM68: =(B._Bestandsmodell!AE95+B._Bestandsmodell!AE191+B._Bestandsmodell!AE287+B._Bestandsmodell!AE383+B._Bestandsmodell!AE479)*BM67 ->  | BN68: =(B._Bestandsmodell!AF95+B._Bestandsmodell!AF191+B._Bestandsmodell!AF287+B._Bestandsmodell!AF383+B._Bestandsmodell!AF479)*BN67 ->  | BO68: =(B._Bestandsmodell!AG95+B._Bestandsmodell!AG191+B._Bestandsmodell!AG287+B._Bestandsmodell!AG383+B._Bestandsmodell!AG479)*BO67 ->  | BQ68: Standardabweichung | BR68: 1
AK69: Neubau nach Techniken | BQ69: Anzahl Altersklassen in Betrachtungsintervall | BR69: =(BR49*2/5)+1 -> 11
AK70: 2020 | AL70: 2021 | AM70: 2022 | AN70: 2023 | AO70: 2024 | AP70: 2025 | AQ70: 2026 | AR70: 2027 | AS70: 2028 | AT70: 2029 | AU70: 2030 | AV70: 2031 | AW70: 2032 | AX70: 2033 | AY70: 2034 | AZ70: 2035 | BA70: 2036 | BB70: 2037 | BC70: 2038 | BD70: 2039 | BE70: 2040 | BF70: 2041 | BG70: 2042 | BH70: 2043 | BI70: 2044 | BJ70: 2045 | BK70: 2046 | BL70: 2047 | BM70: 2048 | BN70: 2049 | BO70: 2050 | BQ70: Anteil Technik 1 | BR70: =Dashboard!C24 -> 1
AJ71: Technik 1 | AK71: =AK$68*B28 ->  | AL71: =AL$68*C28 ->  | AR71: =AR$68*I28 ->  | AU71: =AU$68*L28 ->  | BE71: =BE$68*V28 ->  | BO71: =BO$68*AF28 ->  | BQ71: Anteil Technik 2 | BR71: =Dashboard!D24 -> 0
AJ72: Technik 2 | BQ72: Anteil Technik 3 | BR72: =Dashboard!E24 -> 0
AJ73: Technik 3 | BQ73: Anteil Technik 4 | BR73: =Dashboard!F24 -> 0
AJ74: Technik 4 | BQ74: Anteil Technik 5 | BR74: =Dashboard!G24 -> 0
AJ75: Technik 5
AK76: =SUM(AK71:AK75) ->  | AL76: =SUM(AL71:AL75) ->  | BO76: =SUM(BO71:BO75) -> 
AK78: Ausfall nach Technik
AK79: 2020 | AL79: 2021 | AM79: 2022 | AN79: 2023 | AO79: 2024 | AP79: 2025 | AQ79: 2026 | AR79: 2027 | AS79: 2028 | AT79: 2029 | AU79: 2030 | AV79: 2031 | AW79: 2032 | AX79: 2033 | AY79: 2034 | AZ79: 2035 | BA79: 2036 | BB79: 2037 | BC79: 2038 | BD79: 2039 | BE79: 2040 | BF79: 2041 | BG79: 2042 | BH79: 2043 | BI79: 2044 | BJ79: 2045 | BK79: 2046 | BL79: 2047 | BM79: 2048 | BN79: 2049 | BO79: 2050
AJ80: Technik 1 | AK80: =IF(AK101=1,B._Bestandsmodell!C95,AK89) -> 0 | AL80: =IF(AL101=1,B._Bestandsmodell!D95,AK89) -> 28.89705412 | AM80: =IF(AM101=1,B._Bestandsmodell!E95,AL89) ->  | AN80: =IF(AN101=1,B._Bestandsmodell!F95,AM89) ->  | AO80: =IF(AO101=1,B._Bestandsmodell!G95,AN89) ->  | AP80: =IF(AP101=1,B._Bestandsmodell!H95,AO89) ->  | AQ80: =IF(AQ101=1,B._Bestandsmodell!I95,AP89) ->  | AR80: =IF(AR101=1,B._Bestandsmodell!J95,AQ89) ->  | AS80: =IF(AS101=1,B._Bestandsmodell!K95,AR89) ->  | AT80: =IF(AT101=1,B._Bestandsmodell!L95,AS89) ->  | AU80: =IF(AU101=1,B._Bestandsmodell!M95,AT89) ->  | AV80: =IF(AV101=1,B._Bestandsmodell!N95,AU89) ->  | AW80: =IF(AW101=1,B._Bestandsmodell!O95,AV89) ->  | AX80: =IF(AX101=1,B._Bestandsmodell!P95,AW89) ->  | AY80: =IF(AY101=1,B._Bestandsmodell!Q95,AX89) ->  | AZ80: =IF(AZ101=1,B._Bestandsmodell!R95,AY89) ->  | BA80: =IF(BA101=1,B._Bestandsmodell!S95,AZ89) ->  | BB80: =IF(BB101=1,B._Bestandsmodell!T95,BA89) ->  | BC80: =IF(BC101=1,B._Bestandsmodell!U95,BB89) ->  | BD80: =IF(BD101=1,B._Bestandsmodell!V95,BC89) ->  | BE80: =IF(BE101=1,B._Bestandsmodell!W95,BD89) ->  | BF80: =IF(BF101=1,B._Bestandsmodell!X95,BE89) ->  | BG80: =IF(BG101=1,B._Bestandsmodell!Y95,BF89) ->  | BH80: =IF(BH101=1,B._Bestandsmodell!Z95,BG89) ->  | BI80: =IF(BI101=1,B._Bestandsmodell!AA95,BH89) ->  | BJ80: =IF(BJ101=1,B._Bestandsmodell!AB95,BI89) ->  | BK80: =IF(BK101=1,B._Bestandsmodell!AC95,BJ89) ->  | BL80: =IF(BL101=1,B._Bestandsmodell!AD95,BK89) ->  | BM80: =IF(BM101=1,B._Bestandsmodell!AE95,BL89) ->  | BN80: =IF(BN101=1,B._Bestandsmodell!AF95,BM89) ->  | BO80: =IF(BO101=1,B._Bestandsmodell!AG95,BN89) -> 
AJ81: Technik 2 | AK81: =IF(AK102=1,B._Bestandsmodell!C191,AK90) -> 0 | AL81: =IF(AL102=1,B._Bestandsmodell!D191,AK90) -> 0 | AM81: =IF(AM102=1,B._Bestandsmodell!E191,AL90) ->  | AN81: =IF(AN102=1,B._Bestandsmodell!F191,AM90) ->  | AO81: =IF(AO102=1,B._Bestandsmodell!G191,AN90) ->  | AP81: =IF(AP102=1,B._Bestandsmodell!H191,AO90) ->  | AQ81: =IF(AQ102=1,B._Bestandsmodell!I191,AP90) ->  | AR81: =IF(AR102=1,B._Bestandsmodell!J191,AQ90) ->  | AS81: =IF(AS102=1,B._Bestandsmodell!K191,AR90) ->  | AT81: =IF(AT102=1,B._Bestandsmodell!L191,AS90) ->  | AU81: =IF(AU102=1,B._Bestandsmodell!M191,AT90) ->  | AV81: =IF(AV102=1,B._Bestandsmodell!N191,AU90) ->  | AW81: =IF(AW102=1,B._Bestandsmodell!O191,AV90) ->  | AX81: =IF(AX102=1,B._Bestandsmodell!P191,AW90) ->  | AY81: =IF(AY102=1,B._Bestandsmodell!Q191,AX90) ->  | AZ81: =IF(AZ102=1,B._Bestandsmodell!R191,AY90) ->  | BA81: =IF(BA102=1,B._Bestandsmodell!S191,AZ90) ->  | BB81: =IF(BB102=1,B._Bestandsmodell!T191,BA90) ->  | BC81: =IF(BC102=1,B._Bestandsmodell!U191,BB90) ->  | BD81: =IF(BD102=1,B._Bestandsmodell!V191,BC90) ->  | BE81: =IF(BE102=1,B._Bestandsmodell!W191,BD90) ->  | BF81: =IF(BF102=1,B._Bestandsmodell!X191,BE90) ->  | BG81: =IF(BG102=1,B._Bestandsmodell!Y191,BF90) ->  | BH81: =IF(BH102=1,B._Bestandsmodell!Z191,BG90) ->  | BI81: =IF(BI102=1,B._Bestandsmodell!AA191,BH90) ->  | BJ81: =IF(BJ102=1,B._Bestandsmodell!AB191,BI90) ->  | BK81: =IF(BK102=1,B._Bestandsmodell!AC191,BJ90) ->  | BL81: =IF(BL102=1,B._Bestandsmodell!AD191,BK90) ->  | BM81: =IF(BM102=1,B._Bestandsmodell!AE191,BL90) ->  | BN81: =IF(BN102=1,B._Bestandsmodell!AF191,BM90) ->  | BO81: =IF(BO102=1,B._Bestandsmodell!AG191,BN90) -> 
AJ82: Technik 3 | AK82: =IF(AK103=1,B._Bestandsmodell!C287,AK91) -> 0 | AL82: =IF(AL103=1,B._Bestandsmodell!D287,AK91) -> 0 | AM82: =IF(AM103=1,B._Bestandsmodell!E287,AL91) ->  | AN82: =IF(AN103=1,B._Bestandsmodell!F287,AM91) ->  | AO82: =IF(AO103=1,B._Bestandsmodell!G287,AN91) ->  | AP82: =IF(AP103=1,B._Bestandsmodell!H287,AO91) ->  | AQ82: =IF(AQ103=1,B._Bestandsmodell!I287,AP91) ->  | AR82: =IF(AR103=1,B._Bestandsmodell!J287,AQ91) ->  | AS82: =IF(AS103=1,B._Bestandsmodell!K287,AR91) ->  | AT82: =IF(AT103=1,B._Bestandsmodell!L287,AS91) ->  | AU82: =IF(AU103=1,B._Bestandsmodell!M287,AT91) ->  | AV82: =IF(AV103=1,B._Bestandsmodell!N287,AU91) ->  | AW82: =IF(AW103=1,B._Bestandsmodell!O287,AV91) ->  | AX82: =IF(AX103=1,B._Bestandsmodell!P287,AW91) ->  | AY82: =IF(AY103=1,B._Bestandsmodell!Q287,AX91) ->  | AZ82: =IF(AZ103=1,B._Bestandsmodell!R287,AY91) ->  | BA82: =IF(BA103=1,B._Bestandsmodell!S287,AZ91) ->  | BB82: =IF(BB103=1,B._Bestandsmodell!T287,BA91) ->  | BC82: =IF(BC103=1,B._Bestandsmodell!U287,BB91) ->  | BD82: =IF(BD103=1,B._Bestandsmodell!V287,BC91) ->  | BE82: =IF(BE103=1,B._Bestandsmodell!W287,BD91) ->  | BF82: =IF(BF103=1,B._Bestandsmodell!X287,BE91) ->  | BG82: =IF(BG103=1,B._Bestandsmodell!Y287,BF91) ->  | BH82: =IF(BH103=1,B._Bestandsmodell!Z287,BG91) ->  | BI82: =IF(BI103=1,B._Bestandsmodell!AA287,BH91) ->  | BJ82: =IF(BJ103=1,B._Bestandsmodell!AB287,BI91) ->  | BK82: =IF(BK103=1,B._Bestandsmodell!AC287,BJ91) ->  | BL82: =IF(BL103=1,B._Bestandsmodell!AD287,BK91) ->  | BM82: =IF(BM103=1,B._Bestandsmodell!AE287,BL91) ->  | BN82: =IF(BN103=1,B._Bestandsmodell!AF287,BM91) ->  | BO82: =IF(BO103=1,B._Bestandsmodell!AG287,BN91) -> 
AJ83: Technik 4 | AK83: =IF(AK104=1,B._Bestandsmodell!C383,AK92) -> 0 | AL83: =IF(AL104=1,B._Bestandsmodell!D383,AK92) -> 0 | AM83: =IF(AM104=1,B._Bestandsmodell!E383,AL92) ->  | AN83: =IF(AN104=1,B._Bestandsmodell!F383,AM92) ->  | AO83: =IF(AO104=1,B._Bestandsmodell!G383,AN92) ->  | AP83: =IF(AP104=1,B._Bestandsmodell!H383,AO92) ->  | AQ83: =IF(AQ104=1,B._Bestandsmodell!I383,AP92) ->  | AR83: =IF(AR104=1,B._Bestandsmodell!J383,AQ92) ->  | AS83: =IF(AS104=1,B._Bestandsmodell!K383,AR92) ->  | AT83: =IF(AT104=1,B._Bestandsmodell!L383,AS92) ->  | AU83: =IF(AU104=1,B._Bestandsmodell!M383,AT92) ->  | AV83: =IF(AV104=1,B._Bestandsmodell!N383,AU92) ->  | AW83: =IF(AW104=1,B._Bestandsmodell!O383,AV92) ->  | AX83: =IF(AX104=1,B._Bestandsmodell!P383,AW92) ->  | AY83: =IF(AY104=1,B._Bestandsmodell!Q383,AX92) ->  | AZ83: =IF(AZ104=1,B._Bestandsmodell!R383,AY92) ->  | BA83: =IF(BA104=1,B._Bestandsmodell!S383,AZ92) ->  | BB83: =IF(BB104=1,B._Bestandsmodell!T383,BA92) ->  | BC83: =IF(BC104=1,B._Bestandsmodell!U383,BB92) ->  | BD83: =IF(BD104=1,B._Bestandsmodell!V383,BC92) ->  | BE83: =IF(BE104=1,B._Bestandsmodell!W383,BD92) ->  | BF83: =IF(BF104=1,B._Bestandsmodell!X383,BE92) ->  | BG83: =IF(BG104=1,B._Bestandsmodell!Y383,BF92) ->  | BH83: =IF(BH104=1,B._Bestandsmodell!Z383,BG92) ->  | BI83: =IF(BI104=1,B._Bestandsmodell!AA383,BH92) ->  | BJ83: =IF(BJ104=1,B._Bestandsmodell!AB383,BI92) ->  | BK83: =IF(BK104=1,B._Bestandsmodell!AC383,BJ92) ->  | BL83: =IF(BL104=1,B._Bestandsmodell!AD383,BK92) ->  | BM83: =IF(BM104=1,B._Bestandsmodell!AE383,BL92) ->  | BN83: =IF(BN104=1,B._Bestandsmodell!AF383,BM92) ->  | BO83: =IF(BO104=1,B._Bestandsmodell!AG383,BN92) -> 
AJ84: Technik 5 | AK84: =IF(AK105=1,B._Bestandsmodell!C479,AK93) -> 0 | AL84: =IF(AL105=1,B._Bestandsmodell!D479,AK93) -> 0 | AM84: =IF(AM105=1,B._Bestandsmodell!E479,AL93) ->  | AN84: =IF(AN105=1,B._Bestandsmodell!F479,AM93) ->  | AO84: =IF(AO105=1,B._Bestandsmodell!G479,AN93) ->  | AP84: =IF(AP105=1,B._Bestandsmodell!H479,AO93) ->  | AQ84: =IF(AQ105=1,B._Bestandsmodell!I479,AP93) ->  | AR84: =IF(AR105=1,B._Bestandsmodell!J479,AQ93) ->  | AS84: =IF(AS105=1,B._Bestandsmodell!K479,AR93) ->  | AT84: =IF(AT105=1,B._Bestandsmodell!L479,AS93) ->  | AU84: =IF(AU105=1,B._Bestandsmodell!M479,AT93) ->  | AV84: =IF(AV105=1,B._Bestandsmodell!N479,AU93) ->  | AW84: =IF(AW105=1,B._Bestandsmodell!O479,AV93) ->  | AX84: =IF(AX105=1,B._Bestandsmodell!P479,AW93) ->  | AY84: =IF(AY105=1,B._Bestandsmodell!Q479,AX93) ->  | AZ84: =IF(AZ105=1,B._Bestandsmodell!R479,AY93) ->  | BA84: =IF(BA105=1,B._Bestandsmodell!S479,AZ93) ->  | BB84: =IF(BB105=1,B._Bestandsmodell!T479,BA93) ->  | BC84: =IF(BC105=1,B._Bestandsmodell!U479,BB93) ->  | BD84: =IF(BD105=1,B._Bestandsmodell!V479,BC93) ->  | BE84: =IF(BE105=1,B._Bestandsmodell!W479,BD93) ->  | BF84: =IF(BF105=1,B._Bestandsmodell!X479,BE93) ->  | BG84: =IF(BG105=1,B._Bestandsmodell!Y479,BF93) ->  | BH84: =IF(BH105=1,B._Bestandsmodell!Z479,BG93) ->  | BI84: =IF(BI105=1,B._Bestandsmodell!AA479,BH93) ->  | BJ84: =IF(BJ105=1,B._Bestandsmodell!AB479,BI93) ->  | BK84: =IF(BK105=1,B._Bestandsmodell!AC479,BJ93) ->  | BL84: =IF(BL105=1,B._Bestandsmodell!AD479,BK93) ->  | BM84: =IF(BM105=1,B._Bestandsmodell!AE479,BL93) ->  | BN84: =IF(BN105=1,B._Bestandsmodell!AF479,BM93) ->  | BO84: =IF(BO105=1,B._Bestandsmodell!AG479,BN93) -> 
AK85: =SUM(AK80:AK84) -> 0 | AL85: =SUM(AL80:AL84) -> 28.89705412 | BO85: =SUM(BO80:BO84) -> 
AK87: Stock nach Technik
AK88: 2020 | AL88: 2021 | AM88: 2022 | AN88: 2023 | AO88: 2024 | AP88: 2025 | AQ88: 2026 | AR88: 2027 | AS88: 2028 | AT88: 2029 | AU88: 2030 | AV88: 2031 | AW88: 2032 | AX88: 2033 | AY88: 2034 | AZ88: 2035 | BA88: 2036 | BB88: 2037 | BC88: 2038 | BD88: 2039 | BE88: 2040 | BF88: 2041 | BG88: 2042 | BH88: 2043 | BI88: 2044 | BJ88: 2045 | BK88: 2046 | BL88: 2047 | BM88: 2048 | BN88: 2049 | BO88: 2050
AJ89: Technik 1 | AK89: =SUM($AK$5:$AK$65)*BR70 -> 657.924 | AL89: =AK89-AL80+AL71 ->  | AM89: =AL89-AM80+AM71 ->  | BA89: =AZ89-BA80+BA71 ->  | BE89: =BD89-BE80+BE71 ->  | BO89: =BN89-BO80+BO71 -> 
AJ90: Technik 2 | AK90: =SUM($AK$5:$AK$65)*BR71 -> 0 | AL90: =AK90-AL81+AL72 -> 
AJ91: Technik 3 | AK91: =SUM($AK$5:$AK$65)*BR72 -> 0 | AL91: =AK91-AL82+AL73 ->  | AM91: =AL91-AM82+AM73 -> 
AJ92: Technik 4 | AK92: =SUM($AK$5:$AK$65)*BR73 -> 0 | AL92: =AK92-AL83+AL74 ->  | AM92: =AL92-AM83+AM74 -> 
AJ93: Technik 5 | AK93: =SUM($AK$5:$AK$65)*BR74 -> 0 | AL93: =AK93-AL84+AL75 -> 
AK94: =SUM(AK89:AK93) -> 657.924 | AL94: =SUM(AL89:AL93) ->  | BO94: =SUM(BO89:BO93) -> 
AJ97: Mittleres Alter Bestand | AK97: =(B._Bestandsmodell!C96*B._Diffusion!AK89+B._Bestandsmodell!C192*B._Diffusion!AK90+B._Bestandsmodell!C288*B._Diffusion!AK91+B._Bestandsmodell!C384*B._Diffusion!AK92+B._Bestandsmodell!C480*B._Diffusion!AK93)/AK94 -> 25 | AL97: =(B._Bestandsmodell!D96*B._Diffusion!AL89+B._Bestandsmodell!D192*B._Diffusion!AL90+B._Bestandsmodell!D288*B._Diffusion!AL91+B._Bestandsmodell!D384*B._Diffusion!AL92+B._Bestandsmodell!D480*B._Diffusion!AL93)/AL94 ->  | AM97: =(B._Bestandsmodell!E96*B._Diffusion!AM89+B._Bestandsmodell!E192*B._Diffusion!AM90+B._Bestandsmodell!E288*B._Diffusion!AM91+B._Bestandsmodell!E384*B._Diffusion!AM92+B._Bestandsmodell!E480*B._Diffusion!AM93)/AM94 ->  | AN97: =(B._Bestandsmodell!F96*B._Diffusion!AN89+B._Bestandsmodell!F192*B._Diffusion!AN90+B._Bestandsmodell!F288*B._Diffusion!AN91+B._Bestandsmodell!F384*B._Diffusion!AN92+B._Bestandsmodell!F480*B._Diffusion!AN93)/AN94 ->  | AO97: =(B._Bestandsmodell!G96*B._Diffusion!AO89+B._Bestandsmodell!G192*B._Diffusion!AO90+B._Bestandsmodell!G288*B._Diffusion!AO91+B._Bestandsmodell!G384*B._Diffusion!AO92+B._Bestandsmodell!G480*B._Diffusion!AO93)/AO94 ->  | AP97: =(B._Bestandsmodell!H96*B._Diffusion!AP89+B._Bestandsmodell!H192*B._Diffusion!AP90+B._Bestandsmodell!H288*B._Diffusion!AP91+B._Bestandsmodell!H384*B._Diffusion!AP92+B._Bestandsmodell!H480*B._Diffusion!AP93)/AP94 ->  | AQ97: =(B._Bestandsmodell!I96*B._Diffusion!AQ89+B._Bestandsmodell!I192*B._Diffusion!AQ90+B._Bestandsmodell!I288*B._Diffusion!AQ91+B._Bestandsmodell!I384*B._Diffusion!AQ92+B._Bestandsmodell!I480*B._Diffusion!AQ93)/AQ94 ->  | AR97: =(B._Bestandsmodell!J96*B._Diffusion!AR89+B._Bestandsmodell!J192*B._Diffusion!AR90+B._Bestandsmodell!J288*B._Diffusion!AR91+B._Bestandsmodell!J384*B._Diffusion!AR92+B._Bestandsmodell!J480*B._Diffusion!AR93)/AR94 ->  | AS97: =(B._Bestandsmodell!K96*B._Diffusion!AS89+B._Bestandsmodell!K192*B._Diffusion!AS90+B._Bestandsmodell!K288*B._Diffusion!AS91+B._Bestandsmodell!K384*B._Diffusion!AS92+B._Bestandsmodell!K480*B._Diffusion!AS93)/AS94 ->  | AT97: =(B._Bestandsmodell!L96*B._Diffusion!AT89+B._Bestandsmodell!L192*B._Diffusion!AT90+B._Bestandsmodell!L288*B._Diffusion!AT91+B._Bestandsmodell!L384*B._Diffusion!AT92+B._Bestandsmodell!L480*B._Diffusion!AT93)/AT94 ->  | AU97: =(B._Bestandsmodell!M96*B._Diffusion!AU89+B._Bestandsmodell!M192*B._Diffusion!AU90+B._Bestandsmodell!M288*B._Diffusion!AU91+B._Bestandsmodell!M384*B._Diffusion!AU92+B._Bestandsmodell!M480*B._Diffusion!AU93)/AU94 ->  | AV97: =(B._Bestandsmodell!N96*B._Diffusion!AV89+B._Bestandsmodell!N192*B._Diffusion!AV90+B._Bestandsmodell!N288*B._Diffusion!AV91+B._Bestandsmodell!N384*B._Diffusion!AV92+B._Bestandsmodell!N480*B._Diffusion!AV93)/AV94 ->  | AW97: =(B._Bestandsmodell!O96*B._Diffusion!AW89+B._Bestandsmodell!O192*B._Diffusion!AW90+B._Bestandsmodell!O288*B._Diffusion!AW91+B._Bestandsmodell!O384*B._Diffusion!AW92+B._Bestandsmodell!O480*B._Diffusion!AW93)/AW94 ->  | AX97: =(B._Bestandsmodell!P96*B._Diffusion!AX89+B._Bestandsmodell!P192*B._Diffusion!AX90+B._Bestandsmodell!P288*B._Diffusion!AX91+B._Bestandsmodell!P384*B._Diffusion!AX92+B._Bestandsmodell!P480*B._Diffusion!AX93)/AX94 ->  | AY97: =(B._Bestandsmodell!Q96*B._Diffusion!AY89+B._Bestandsmodell!Q192*B._Diffusion!AY90+B._Bestandsmodell!Q288*B._Diffusion!AY91+B._Bestandsmodell!Q384*B._Diffusion!AY92+B._Bestandsmodell!Q480*B._Diffusion!AY93)/AY94 ->  | AZ97: =(B._Bestandsmodell!R96*B._Diffusion!AZ89+B._Bestandsmodell!R192*B._Diffusion!AZ90+B._Bestandsmodell!R288*B._Diffusion!AZ91+B._Bestandsmodell!R384*B._Diffusion!AZ92+B._Bestandsmodell!R480*B._Diffusion!AZ93)/AZ94 ->  | BA97: =(B._Bestandsmodell!S96*B._Diffusion!BA89+B._Bestandsmodell!S192*B._Diffusion!BA90+B._Bestandsmodell!S288*B._Diffusion!BA91+B._Bestandsmodell!S384*B._Diffusion!BA92+B._Bestandsmodell!S480*B._Diffusion!BA93)/BA94 ->  | BB97: =(B._Bestandsmodell!T96*B._Diffusion!BB89+B._Bestandsmodell!T192*B._Diffusion!BB90+B._Bestandsmodell!T288*B._Diffusion!BB91+B._Bestandsmodell!T384*B._Diffusion!BB92+B._Bestandsmodell!T480*B._Diffusion!BB93)/BB94 ->  | BC97: =(B._Bestandsmodell!U96*B._Diffusion!BC89+B._Bestandsmodell!U192*B._Diffusion!BC90+B._Bestandsmodell!U288*B._Diffusion!BC91+B._Bestandsmodell!U384*B._Diffusion!BC92+B._Bestandsmodell!U480*B._Diffusion!BC93)/BC94 ->  | BD97: =(B._Bestandsmodell!V96*B._Diffusion!BD89+B._Bestandsmodell!V192*B._Diffusion!BD90+B._Bestandsmodell!V288*B._Diffusion!BD91+B._Bestandsmodell!V384*B._Diffusion!BD92+B._Bestandsmodell!V480*B._Diffusion!BD93)/BD94 ->  | BE97: =(B._Bestandsmodell!W96*B._Diffusion!BE89+B._Bestandsmodell!W192*B._Diffusion!BE90+B._Bestandsmodell!W288*B._Diffusion!BE91+B._Bestandsmodell!W384*B._Diffusion!BE92+B._Bestandsmodell!W480*B._Diffusion!BE93)/BE94 ->  | BF97: =(B._Bestandsmodell!X96*B._Diffusion!BF89+B._Bestandsmodell!X192*B._Diffusion!BF90+B._Bestandsmodell!X288*B._Diffusion!BF91+B._Bestandsmodell!X384*B._Diffusion!BF92+B._Bestandsmodell!X480*B._Diffusion!BF93)/BF94 ->  | BG97: =(B._Bestandsmodell!Y96*B._Diffusion!BG89+B._Bestandsmodell!Y192*B._Diffusion!BG90+B._Bestandsmodell!Y288*B._Diffusion!BG91+B._Bestandsmodell!Y384*B._Diffusion!BG92+B._Bestandsmodell!Y480*B._Diffusion!BG93)/BG94 ->  | BH97: =(B._Bestandsmodell!Z96*B._Diffusion!BH89+B._Bestandsmodell!Z192*B._Diffusion!BH90+B._Bestandsmodell!Z288*B._Diffusion!BH91+B._Bestandsmodell!Z384*B._Diffusion!BH92+B._Bestandsmodell!Z480*B._Diffusion!BH93)/BH94 ->  | BI97: =(B._Bestandsmodell!AA96*B._Diffusion!BI89+B._Bestandsmodell!AA192*B._Diffusion!BI90+B._Bestandsmodell!AA288*B._Diffusion!BI91+B._Bestandsmodell!AA384*B._Diffusion!BI92+B._Bestandsmodell!AA480*B._Diffusion!BI93)/BI94 ->  | BJ97: =(B._Bestandsmodell!AB96*B._Diffusion!BJ89+B._Bestandsmodell!AB192*B._Diffusion!BJ90+B._Bestandsmodell!AB288*B._Diffusion!BJ91+B._Bestandsmodell!AB384*B._Diffusion!BJ92+B._Bestandsmodell!AB480*B._Diffusion!BJ93)/BJ94 ->  | BK97: =(B._Bestandsmodell!AC96*B._Diffusion!BK89+B._Bestandsmodell!AC192*B._Diffusion!BK90+B._Bestandsmodell!AC288*B._Diffusion!BK91+B._Bestandsmodell!AC384*B._Diffusion!BK92+B._Bestandsmodell!AC480*B._Diffusion!BK93)/BK94 ->  | BL97: =(B._Bestandsmodell!AD96*B._Diffusion!BL89+B._Bestandsmodell!AD192*B._Diffusion!BL90+B._Bestandsmodell!AD288*B._Diffusion!BL91+B._Bestandsmodell!AD384*B._Diffusion!BL92+B._Bestandsmodell!AD480*B._Diffusion!BL93)/BL94 ->  | BM97: =(B._Bestandsmodell!AE96*B._Diffusion!BM89+B._Bestandsmodell!AE192*B._Diffusion!BM90+B._Bestandsmodell!AE288*B._Diffusion!BM91+B._Bestandsmodell!AE384*B._Diffusion!BM92+B._Bestandsmodell!AE480*B._Diffusion!BM93)/BM94 ->  | BN97: =(B._Bestandsmodell!AF96*B._Diffusion!BN89+B._Bestandsmodell!AF192*B._Diffusion!BN90+B._Bestandsmodell!AF288*B._Diffusion!BN91+B._Bestandsmodell!AF384*B._Diffusion!BN92+B._Bestandsmodell!AF480*B._Diffusion!BN93)/BN94 ->  | BO97: =(B._Bestandsmodell!AG96*B._Diffusion!BO89+B._Bestandsmodell!AG192*B._Diffusion!BO90+B._Bestandsmodell!AG288*B._Diffusion!BO91+B._Bestandsmodell!AG384*B._Diffusion!BO92+B._Bestandsmodell!AG480*B._Diffusion!BO93)/BO94 -> 
AK99: Betriebserlaubnis
AK100: 2020 | AL100: 2021 | AM100: 2022 | AN100: 2023 | AO100: 2024 | AP100: 2025 | AQ100: 2026 | AR100: 2027 | AS100: 2028 | AT100: 2029 | AU100: 2030 | AV100: 2031 | AW100: 2032 | AX100: 2033 | AY100: 2034 | AZ100: 2035 | BA100: 2036 | BB100: 2037 | BC100: 2038 | BD100: 2039 | BE100: 2040 | BF100: 2041 | BG100: 2042 | BH100: 2043 | BI100: 2044 | BJ100: 2045 | BK100: 2046 | BL100: 2047 | BM100: 2048 | BN100: 2049 | BO100: 2050
AJ101: Technik 1 | AK101: =IF(AK$100>Dashboard!$C$29,0,1) -> 1 | AL101: =IF(AL$100>Dashboard!$C$29,0,1) -> 1 | AM101: =IF(AM$100>Dashboard!$C$29,0,1) -> 1 | AN101: =IF(AN$100>Dashboard!$C$29,0,1) -> 1 | AO101: =IF(AO$100>Dashboard!$C$29,0,1) -> 1 | AP101: =IF(AP$100>Dashboard!$C$29,0,1) -> 1 | AQ101: =IF(AQ$100>Dashboard!$C$29,0,1) -> 1 | AR101: =IF(AR$100>Dashboard!$C$29,0,1) -> 1 | AS101: =IF(AS$100>Dashboard!$C$29,0,1) -> 1 | AT101: =IF(AT$100>Dashboard!$C$29,0,1) -> 1 | AU101: =IF(AU$100>Dashboard!$C$29,0,1) -> 1 | AV101: =IF(AV$100>Dashboard!$C$29,0,1) -> 1 | AW101: =IF(AW$100>Dashboard!$C$29,0,1) -> 1 | AX101: =IF(AX$100>Dashboard!$C$29,0,1) -> 1 | AY101: =IF(AY$100>Dashboard!$C$29,0,1) -> 1 | AZ101: =IF(AZ$100>Dashboard!$C$29,0,1) -> 1 | BA101: =IF(BA$100>Dashboard!$C$29,0,1) -> 1 | BB101: =IF(BB$100>Dashboard!$C$29,0,1) -> 1 | BC101: =IF(BC$100>Dashboard!$C$29,0,1) -> 1 | BD101: =IF(BD$100>Dashboard!$C$29,0,1) -> 1 | BE101: =IF(BE$100>Dashboard!$C$29,0,1) -> 1 | BF101: =IF(BF$100>Dashboard!$C$29,0,1) -> 1 | BG101: =IF(BG$100>Dashboard!$C$29,0,1) -> 1 | BH101: =IF(BH$100>Dashboard!$C$29,0,1) -> 1 | BI101: =IF(BI$100>Dashboard!$C$29,0,1) -> 1 | BJ101: =IF(BJ$100>Dashboard!$C$29,0,1) -> 1 | BK101: =IF(BK$100>Dashboard!$C$29,0,1) -> 1 | BL101: =IF(BL$100>Dashboard!$C$29,0,1) -> 1 | BM101: =IF(BM$100>Dashboard!$C$29,0,1) -> 1 | BN101: =IF(BN$100>Dashboard!$C$29,0,1) -> 1 | BO101: =IF(BO$100>Dashboard!$C$29,0,1) -> 1
AJ102: Technik 2 | AK102: =IF(AK$100>Dashboard!$D$29,0,1) -> 1 | AL102: =IF(AL$100>Dashboard!$D$29,0,1) -> 1 | AM102: =IF(AM$100>Dashboard!$D$29,0,1) -> 1 | AN102: =IF(AN$100>Dashboard!$D$29,0,1) -> 1 | AO102: =IF(AO$100>Dashboard!$D$29,0,1) -> 1 | AP102: =IF(AP$100>Dashboard!$D$29,0,1) -> 1 | AQ102: =IF(AQ$100>Dashboard!$D$29,0,1) -> 1 | AR102: =IF(AR$100>Dashboard!$D$29,0,1) -> 1 | AS102: =IF(AS$100>Dashboard!$D$29,0,1) -> 1 | AT102: =IF(AT$100>Dashboard!$D$29,0,1) -> 1 | AU102: =IF(AU$100>Dashboard!$D$29,0,1) -> 1 | AV102: =IF(AV$100>Dashboard!$D$29,0,1) -> 1 | AW102: =IF(AW$100>Dashboard!$D$29,0,1) -> 1 | AX102: =IF(AX$100>Dashboard!$D$29,0,1) -> 1 | AY102: =IF(AY$100>Dashboard!$D$29,0,1) -> 1 | AZ102: =IF(AZ$100>Dashboard!$D$29,0,1) -> 1 | BA102: =IF(BA$100>Dashboard!$D$29,0,1) -> 1 | BB102: =IF(BB$100>Dashboard!$D$29,0,1) -> 1 | BC102: =IF(BC$100>Dashboard!$D$29,0,1) -> 1 | BD102: =IF(BD$100>Dashboard!$D$29,0,1) -> 1 | BE102: =IF(BE$100>Dashboard!$D$29,0,1) -> 1 | BF102: =IF(BF$100>Dashboard!$D$29,0,1) -> 1 | BG102: =IF(BG$100>Dashboard!$D$29,0,1) -> 1 | BH102: =IF(BH$100>Dashboard!$D$29,0,1) -> 1 | BI102: =IF(BI$100>Dashboard!$D$29,0,1) -> 1 | BJ102: =IF(BJ$100>Dashboard!$D$29,0,1) -> 1 | BK102: =IF(BK$100>Dashboard!$D$29,0,1) -> 1 | BL102: =IF(BL$100>Dashboard!$D$29,0,1) -> 1 | BM102: =IF(BM$100>Dashboard!$D$29,0,1) -> 1 | BN102: =IF(BN$100>Dashboard!$D$29,0,1) -> 1 | BO102: =IF(BO$100>Dashboard!$D$29,0,1) -> 1
AJ103: Technik 3 | AK103: =IF(AK$100>Dashboard!$E$29,0,1) -> 1 | AL103: =IF(AL$100>Dashboard!$E$29,0,1) -> 1 | AM103: =IF(AM$100>Dashboard!$E$29,0,1) -> 1 | AN103: =IF(AN$100>Dashboard!$E$29,0,1) -> 1 | AO103: =IF(AO$100>Dashboard!$E$29,0,1) -> 1 | AP103: =IF(AP$100>Dashboard!$E$29,0,1) -> 1 | AQ103: =IF(AQ$100>Dashboard!$E$29,0,1) -> 1 | AR103: =IF(AR$100>Dashboard!$E$29,0,1) -> 1 | AS103: =IF(AS$100>Dashboard!$E$29,0,1) -> 1 | AT103: =IF(AT$100>Dashboard!$E$29,0,1) -> 1 | AU103: =IF(AU$100>Dashboard!$E$29,0,1) -> 1 | AV103: =IF(AV$100>Dashboard!$E$29,0,1) -> 1 | AW103: =IF(AW$100>Dashboard!$E$29,0,1) -> 1 | AX103: =IF(AX$100>Dashboard!$E$29,0,1) -> 1 | AY103: =IF(AY$100>Dashboard!$E$29,0,1) -> 1 | AZ103: =IF(AZ$100>Dashboard!$E$29,0,1) -> 1 | BA103: =IF(BA$100>Dashboard!$E$29,0,1) -> 1 | BB103: =IF(BB$100>Dashboard!$E$29,0,1) -> 1 | BC103: =IF(BC$100>Dashboard!$E$29,0,1) -> 1 | BD103: =IF(BD$100>Dashboard!$E$29,0,1) -> 1 | BE103: =IF(BE$100>Dashboard!$E$29,0,1) -> 1 | BF103: =IF(BF$100>Dashboard!$E$29,0,1) -> 1 | BG103: =IF(BG$100>Dashboard!$E$29,0,1) -> 1 | BH103: =IF(BH$100>Dashboard!$E$29,0,1) -> 1 | BI103: =IF(BI$100>Dashboard!$E$29,0,1) -> 1 | BJ103: =IF(BJ$100>Dashboard!$E$29,0,1) -> 1 | BK103: =IF(BK$100>Dashboard!$E$29,0,1) -> 1 | BL103: =IF(BL$100>Dashboard!$E$29,0,1) -> 1 | BM103: =IF(BM$100>Dashboard!$E$29,0,1) -> 1 | BN103: =IF(BN$100>Dashboard!$E$29,0,1) -> 1 | BO103: =IF(BO$100>Dashboard!$E$29,0,1) -> 1
AJ104: Technik 4 | AK104: =IF(AK$100>Dashboard!$F$29,0,1) -> 1 | AL104: =IF(AL$100>Dashboard!$F$29,0,1) -> 1 | AM104: =IF(AM$100>Dashboard!$F$29,0,1) -> 1 | AN104: =IF(AN$100>Dashboard!$F$29,0,1) -> 1 | AO104: =IF(AO$100>Dashboard!$F$29,0,1) -> 1 | AP104: =IF(AP$100>Dashboard!$F$29,0,1) -> 1 | AQ104: =IF(AQ$100>Dashboard!$F$29,0,1) -> 1 | AR104: =IF(AR$100>Dashboard!$F$29,0,1) -> 1 | AS104: =IF(AS$100>Dashboard!$F$29,0,1) -> 1 | AT104: =IF(AT$100>Dashboard!$F$29,0,1) -> 1 | AU104: =IF(AU$100>Dashboard!$F$29,0,1) -> 1 | AV104: =IF(AV$100>Dashboard!$F$29,0,1) -> 1 | AW104: =IF(AW$100>Dashboard!$F$29,0,1) -> 1 | AX104: =IF(AX$100>Dashboard!$F$29,0,1) -> 1 | AY104: =IF(AY$100>Dashboard!$F$29,0,1) -> 1 | AZ104: =IF(AZ$100>Dashboard!$F$29,0,1) -> 1 | BA104: =IF(BA$100>Dashboard!$F$29,0,1) -> 1 | BB104: =IF(BB$100>Dashboard!$F$29,0,1) -> 1 | BC104: =IF(BC$100>Dashboard!$F$29,0,1) -> 1 | BD104: =IF(BD$100>Dashboard!$F$29,0,1) -> 1 | BE104: =IF(BE$100>Dashboard!$F$29,0,1) -> 1 | BF104: =IF(BF$100>Dashboard!$F$29,0,1) -> 1 | BG104: =IF(BG$100>Dashboard!$F$29,0,1) -> 1 | BH104: =IF(BH$100>Dashboard!$F$29,0,1) -> 1 | BI104: =IF(BI$100>Dashboard!$F$29,0,1) -> 1 | BJ104: =IF(BJ$100>Dashboard!$F$29,0,1) -> 1 | BK104: =IF(BK$100>Dashboard!$F$29,0,1) -> 1 | BL104: =IF(BL$100>Dashboard!$F$29,0,1) -> 1 | BM104: =IF(BM$100>Dashboard!$F$29,0,1) -> 1 | BN104: =IF(BN$100>Dashboard!$F$29,0,1) -> 1 | BO104: =IF(BO$100>Dashboard!$F$29,0,1) -> 1
AJ105: Technik 5 | AK105: =IF(AK$100>Dashboard!$G$29,0,1) -> 1 | AL105: =IF(AL$100>Dashboard!$G$29,0,1) -> 1 | AM105: =IF(AM$100>Dashboard!$G$29,0,1) -> 1 | AN105: =IF(AN$100>Dashboard!$G$29,0,1) -> 1 | AO105: =IF(AO$100>Dashboard!$G$29,0,1) -> 1 | AP105: =IF(AP$100>Dashboard!$G$29,0,1) -> 1 | AQ105: =IF(AQ$100>Dashboard!$G$29,0,1) -> 1 | AR105: =IF(AR$100>Dashboard!$G$29,0,1) -> 1 | AS105: =IF(AS$100>Dashboard!$G$29,0,1) -> 1 | AT105: =IF(AT$100>Dashboard!$G$29,0,1) -> 1 | AU105: =IF(AU$100>Dashboard!$G$29,0,1) -> 1 | AV105: =IF(AV$100>Dashboard!$G$29,0,1) -> 1 | AW105: =IF(AW$100>Dashboard!$G$29,0,1) -> 1 | AX105: =IF(AX$100>Dashboard!$G$29,0,1) -> 1 | AY105: =IF(AY$100>Dashboard!$G$29,0,1) -> 1 | AZ105: =IF(AZ$100>Dashboard!$G$29,0,1) -> 1 | BA105: =IF(BA$100>Dashboard!$G$29,0,1) -> 1 | BB105: =IF(BB$100>Dashboard!$G$29,0,1) -> 1 | BC105: =IF(BC$100>Dashboard!$G$29,0,1) -> 1 | BD105: =IF(BD$100>Dashboard!$G$29,0,1) -> 1 | BE105: =IF(BE$100>Dashboard!$G$29,0,1) -> 1 | BF105: =IF(BF$100>Dashboard!$G$29,0,1) -> 1 | BG105: =IF(BG$100>Dashboard!$G$29,0,1) -> 1 | BH105: =IF(BH$100>Dashboard!$G$29,0,1) -> 1 | BI105: =IF(BI$100>Dashboard!$G$29,0,1) -> 1 | BJ105: =IF(BJ$100>Dashboard!$G$29,0,1) -> 1 | BK105: =IF(BK$100>Dashboard!$G$29,0,1) -> 1 | BL105: =IF(BL$100>Dashboard!$G$29,0,1) -> 1 | BM105: =IF(BM$100>Dashboard!$G$29,0,1) -> 1 | BN105: =IF(BN$100>Dashboard!$G$29,0,1) -> 1 | BO105: =IF(BO$100>Dashboard!$G$29,0,1) -> 1

Sheet B._Bestandsmodell (hidden)
B1: Bestand | AI1: Ausfallraten | BP1: Anlagenalter | CX1: Verteilung | EF1: Dichte
